Workbook

Sheet Design Regulator
A1: LM(2)5145/46-Q1 DC-DC Controller Design Tool
A3: About | C3: xx | F3: = Input Box | O3: TERMS OF USE
A5: Step 1: Operating Specifications
D6: Input Voltage ‒ Min, VIN(min) | E6: 18 | F6: V
D7: Input Voltage ‒ Nom, VIN(nom) | E7: 24 | F7: V
D8: Input Voltage ‒ Max, VIN(max) | E8: 36 | F8: V
D9: Output Voltage, VOUT | E9: 5 | F9: V
D10: Maximum Output Current, IOUT | E10: 12 | F10: A
D11: Free-running Switching Frequency, FSW | E11: 230 | F11: kHz
D12: SYNC Frequency (if used), FSW-SYNC | E12: 230 | F12: kHz
D13: Frequency Set Resistor, RRT | E13: ='Standard Value Calculator'!S4/1000 -> 43.2 | F13: kΩ
A15: Step 2: Filter Inductor
D16: Recommended Filter Inductance | E16: =Lout1*1000000 -> 4.306843075 | F16: µH
D17: Inductance, LF | E17: 4.7 | F17: µH
D18: Inductor DCR | E18: 5 | F18: mΩ
D19: Pk-to-Pk Ripple Current at VIN(nom), DIL | E19: =Iripple1 -> 3.758402714 | F19: Apk-pk
D20: Inductor Ripple Current as a % of Max IOUT | E20: =Iripple1/Iout*100 -> 31.32002261 | F20: %
D21: Estimate Core Loss at VIN(nom) | E21: 0.2 | F21: W
A23: Step 3: RDS(on) or Shunt-Based Current Limit
D24: Shunt, RS | E24: 6 | F24: mΩ | S24: \
D25: Required Current Limit Setpoint | E25: 16 | F25: A
D26: Current Limit Set Resistor, RILIM | E26: =IF(RDSON_sense=1, Rilim_Rdson, Rilim_shunt) -> 422 | F26: Ω
D27: Min Inductor Sat Current, IL(SAT) | E27: ='Variable Management'!B51 -> 21.6 | F27: A
D28: Power Loss in RS at Full Load, Max VIN | E28: =_Rs3 -> 0.64 | F28: W
A30: Step 4: Output Capacitance
D31: Output Voltage Ripple Specification | E31: 200 | F31: mVpk-pk
D32: Minimum Ideal Output Capacitance | E32: =Coutmin*1000000 -> 10.21305085 | F32: µF
D33: Total Output Capacitance (Derated), COUT | E33: 200 | F33: µF
D34: Maximum Permitted ESR | E34: =IF(ISERROR(Resrmax*1000),"N/A",Resrmax*1000) -> 53.14466782 | F34: mΩ
D35: Output Capacitor ESR | E35: 1 | F35: mΩ
D36: Resulting Output Voltage Ripple | E36: =Vripple2*1000 -> 10.88264668 | F36: mVpk-pk
D37: Output Capacitor Ripple Current | E37: =Icoutrms -> 1.084957409 | F37: A (rms)
A39: Step 5: Input Capacitance
D40: Input Voltage Ripple Specification | E40: 500 | F40: mVpk-pk
D41: Minimum Ideal Input Capacitance | E41: ='Variable Management'!B80*1000000 -> 17.54177101 | F41: µF
D42: Total Input Capacitance (Derated), CIN | E42: 50 | F42: µF
D43: Maximum Permitted ESR | E43: =IF(CinEsrMax*1000<0,"N/A",CinEsrMax*1000) -> 23.38623682 | F43: mΩ
D44: Input Capacitor ESR | E44: 2 | F44: mΩ
D45: Resulting Input Voltage Ripple | E45: =Vinripple2*1000 -> 203.1761129 | F45: mVpk-pk
D46: Input Capacitor Ripple Current | E46: =Icinrms -> 4.920126421 | F46: A (rms)
A48: Step 6: Soft-start, UVLO
D49: Soft-Start Time, tSS | E49: 4 | F49: ms
D50: Soft-Start Capacitance, CSS | E50: =Css_u*1000000000 -> 47 | F50: nF
D51: Input Voltage UVLO Turn-On | E51: 34 | F51: V
D52: Input Voltage UVLO Turn-Off | E52: 30 | F52: V
D53: UVLO Upper Resistor, RUV1 | E53: ='Variable Management'!F97 -> 402 | F53: kΩ
D54: UVLO Lower Resistor, RUV2 | E54: ='Variable Management'!F98 -> 14.7 | F54: kΩ
A55: If the SYNC feature is not required, connect SYNCIN to GND
A56: or VCC for DCM or CCM operation, respectively
A58: Step 7: Compensation Design
D59: LC Complex Pole Frequency | E59: =Fo/1000 -> 5.215860471 | F59: kHz
D60: ESR Zero Frequency | E60: =Fesr/1000 -> 795.7747164 | F60: kHz
D61: Desired Crossover Frequency | E61: 35 | F61: kHz
D62: Appropriate Midband Gain | E62: =Kmidband -> 0.44735348 | F62: V/V
D63: Upper Feedback Resistor, RFB1 | E63: 22.1 | F63: kΩ
D64: Lower Feedback Resistor, RFB2 | E64: =IF(Vout=Vref,"OPEN",Rfb2_u/1000) -> 4.22 | F64: =IF(Vout=Vref,"","kΩ") -> kΩ
D65: Actual Output Voltage, VOUT | E65: ='Variable Management'!B129 -> 4.98957346 | F65: V
A67: Pole & Zero Placement | D67: FZ1 | E67: =Fo/1000*0.7 -> 3.65110233 | F67: =" kHz " -> kHz
A68: =" Baseline P/Z Frequencies:" -> Baseline P/Z Frequencies: | D68: FZ2 | E68: =Fo/1000*0.9 -> 4.694274424 | F68: =" kHz" -> kHz
D69: FP1 | E69: =Fesr/1000 -> 795.7747164 | F69: =" kHz" -> kHz
D70: FP2 | E70: =Fsw/2000 -> 115 | F70: =" kHz" -> kHz
A72: Compensation Components
B73: Calculated / | C73: Std Values | D73: =" Selected" -> Selected | F73: Actual P/Z Frequencies
A74: RC1 | B74: =Rcea1/1000 -> 9.886511909 | C74: ='Standard Value Calculator'!S27 -> 10 | D74: =C74 -> 10 | E74: kΩ | F74: =Fz1_u/1000 -> 3.386275389 | G74: kHz (FZ1)
A75: CC1 | B75: =Cc1ea*1000000000000 -> 4409.131312 | C75: ='Standard Value Calculator'!S28 -> 4700 | D75: =C75 -> 4700 | E75: pF | F75: =Fz2_u/1000 -> 4.772977756 | G75: kHz (FZ2)
A76: CC2 | B76: =Cc2ea*1000000000000 -> 144.574306 | C76: ='Standard Value Calculator'!S29 -> 150 | D76: =C76 -> 150 | E76: pF | F76: =Fp1_u/1000 -> 816.1791963 | G76: kHz (FP1)
A77: RC2 | B77: =Rcea2 -> 131.1414861 | C77: ='Standard Value Calculator'!S30 -> 130 | D77: =C77 -> 130 | E77: Ω | F77: =Fp2_u/1000 -> 109.4895709 | G77: kHz (FP2)
A78: CC3 | B78: =Cc3ea*1000000000000 -> 1525.07041 | C78: ='Standard Value Calculator'!S31 -> 1500 | D78: =C78 -> 1500 | E78: pF | L78: ** Specify Inductor Core Loss ** | M78: 0.4 | N78: W
A80: Efficiency / Power Loss Analyzer
A82: Step 8: Efficiency
D84: High-Side MOSFET (Q1) Specifications | E84: CSD18563Q5D
D85: On-State Resistance, RDS(on) | E85: 6 | F85: mΩ
D86: Total Gate Charge, QG | E86: 11.5 | F86: nC
D87: Gate-Drain Charge, QGD | E87: 2.9 | F87: nC
D88: Gate-Source Charge, QGS | E88: 3.3 | F88: nC
D89: Output Capacitance, COSS | E89: 280 | F89: pF
D90: Gate Resistance, RG | E90: 1.5 | F90: Ω
D91: Transconductance, gFS | E91: 100 | F91: S
D92: Gate-Source Plateau Voltage, VGS(MP) | E92: 3.2 | F92: V
D93: Body Diode Forward Voltage, VBD1 | E93: 0.8 | F93: V
D94: Thermal Resistance, θJA | E94: 50 | F94: °C/W
D96: Low-Side MOSFET (Q2) Specifications | E96: CSD18563Q5D
D97: On-State Resistance, RDS(on) | E97: 6 | F97: mΩ
D98: Total Gate Charge, QG | E98: 11.5 | F98: nC
D99: Output Charge, QOSS | E99: 20 | F99: nC
D100: Output Capacitance, COSS | E100: 280 | F100: pF
D101: Body Diode Forward Voltage, VBD2 | E101: 0.9 | F101: V
D102: Body Diode Recovery Charge, QRR | E102: 63 | F102: nC
D103: Thermal Resistance, θJA | E103: 50 | F103: °C/W
D104: Antiparallel Schottky Diode (if applicable)
D105: Schottky Diode Forward Voltage, VSD | E105: 0 | F105: V
D106: Schottky Diode Recovery Charge, QRR2 | E106: 0 | F106: nC
A108: Step 9: IC Power Loss
D109: IC Power Dissipation | E109: ='Power Calculations'!AN9 -> 0.087675 | F109: W
D110: IC Junction Temperature Rise (est) | E110: ='Power Calculations'!AN9*50 -> 4.38375 | F110: °C

Sheet Schematic & BOM
B34: ** Tie SYNCIN to VCC and GND for CCM and DCM operation, respectively **
A35: ="VIN = "&Vin&" V, VOUT = "& Vout &" V, IOUT = " &Iout & " A, Fsw = " & Fsw/1000 &" kHz, Current Limit = "&ROUNDUP(DC_Current_Limit_Setpoint,0)&" A" -> VIN = 24 V, VOUT = 5 V, IOUT = 12 A, Fsw = 230 kHz, Current Limit = 16 A
A36: Wide VIN, High Efficiency Synchronous Buck Regulator BOM
A37: Count | B37: Ref Des | C37: Value | D37: Description | H37: Size | I37: Part Number | J37: MFR | K37: Footprint (mm) | L37: Area (mm2)
A38: 1 | B38: CBOOT | C38: 0.1 | D38: =C38 -> 0.1 | I38: Std | J38: Std | K38: =CHOOSE(Q38, 'Variable Management'!N69,'Variable Management'!N70,'Variable Management'!N71) -> 1.6 x 0.8 | L38: =CHOOSE(Q38, 'Variable Management'!O69,'Variable Management'!O70,'Variable Management'!O71) -> 1.3 | Q38: 2
A39: 1 | B39: CC1 | C39: ='Design Regulator'!D75 -> 4700 | D39: 4700 | I39: Std | J39: Std | K39: =CHOOSE(Q39, 'Variable Management'!N69,'Variable Management'!N70,'Variable Management'!N71) -> 1.0 x 0.5 | L39: =CHOOSE(Q39, 'Variable Management'!O69,'Variable Management'!O70,'Variable Management'!O71) -> 0.5 | Q39: 1
A40: 1 | B40: CC2 | C40: ='Design Regulator'!D76 -> 150 | D40: 150 | I40: Std | J40: Std | K40: =CHOOSE(Q40, 'Variable Management'!N69,'Variable Management'!N70,'Variable Management'!N71) -> 1.0 x 0.5 | L40: =CHOOSE(Q40, 'Variable Management'!O69,'Variable Management'!O70,'Variable Management'!O71) -> 0.5 | Q40: 1
A41: 1 | B41: CC3 | C41: ='Design Regulator'!D78 -> 1500 | D41: 1500 | I41: Std | J41: Std | K41: =CHOOSE(Q41, 'Variable Management'!N69,'Variable Management'!N70,'Variable Management'!N71) -> 1.0 x 0.5 | L41: =CHOOSE(Q41, 'Variable Management'!O69,'Variable Management'!O70,'Variable Management'!O71) -> 0.5 | Q41: 1
A42: 1 | B42: CS | C42: ='Variable Management'!B270 -> 12pF | D42: ="Capacitor, Ceramic, "&'Variable Management'!B270&", 100V, X7R, 20%" -> Capacitor, Ceramic, 12pF, 100V, X7R, 20% | I42: Std | J42: Std | K42: =CHOOSE(Q42, 'Variable Management'!N69,'Variable Management'!N70,'Variable Management'!N71) -> 1.6 x 0.8 | L42: =CHOOSE(RDSON_sense,CHOOSE(Q42,'Variable Management'!O69,'Variable Management'!O70,'Variable Management'!O71),0) -> 1.3 | Q42: 2
A43: =ROUNDUP('Design Regulator'!E42/10,0) -> 5 | B43: CIN | C43: ='Variable Management'!B249 -> 4.7µF | D43: =CHOOSE(Cin_Voltage_Rating, "Capacitor, Ceramic, "&'Variable Management'!B249&", 10V, X7R, 10%", "Capacitor, Ceramic, "&'Variable Management'!B249&", 16V, X7R, 10%", "Capacitor, Ceramic, "&'Variable Management'!B249&", 25V, X7R, 10%", "Capacitor, Ceramic, "&'Variable Management'!B249&", 50V, X7R, 10%", "Capacitor, Ceramic, "&'Variable Management'!B249&", 100V, X7S, 10%") -> Capacitor, Ceramic, 4.7µF, 50V, X7R, 10% | I43: Std | J43: Std | K43: =CHOOSE(Q43, 'Variable Management'!N69,'Variable Management'!N70,'Variable Management'!N71,'Variable Management'!N72,'Variable Management'!N73) -> 3.2 x 2.5 | L43: =CHOOSE(Q43, 'Variable Management'!O69,'Variable Management'!O70,'Variable Management'!O71,'Variable Management'!O72,'Variable Management'!O73)*A43 -> 40 | Q43: 5
A44: ='Variable Management'!D242 -> 5 | B44: COUT | C44: ='Variable Management'!F243 -> 47µF | D44: =CHOOSE(Cout_Voltage_Rating, "Capacitor, Ceramic, "&'Variable Management'!B244&", 6.3V, X7R, 10%", "Capacitor, Ceramic, "&'Variable Management'!B244&", 10V, X7R, 10%", "Capacitor, Ceramic, "&'Variable Management'!B244&", 16V, X7R, 10%", "Capacitor, Ceramic, "&'Variable Management'!B244&", 25V, X7R, 10%", "Capacitor, Ceramic, "&'Variable Management'!B244&", 50V, X7R, 10%", "Capacitor, Ceramic, "&'Variable Management'!B244&", 100V, X7R, 10%") -> Capacitor, Ceramic, 47µF, 10V, X7R, 10% | I44: Std | J44: Std | K44: =CHOOSE(Q44, 'Variable Management'!N69,'Variable Management'!N70,'Variable Management'!N71,'Variable Management'!N72,'Variable Management'!N73) -> 3.2 x 2.5 | L44: =CHOOSE(Q44, 'Variable Management'!O69,'Variable Management'!O70,'Variable Management'!O71,'Variable Management'!O72,'Variable Management'!O73)*A44 -> 40 | Q44: 5
A45: 1 | B45: CSS | C45: ='Design Regulator'!E50 -> 47 | D45: =C45 -> 47 | I45: Std | J45: Std | K45: =CHOOSE(Q45, 'Variable Management'!N69,'Variable Management'!N70,'Variable Management'!N71) -> 1.6 x 0.8 | L45: =CHOOSE(Q45, 'Variable Management'!O69,'Variable Management'!O70,'Variable Management'!O71) -> 1.3 | Q45: 2
A46: 1 | B46: CVCC | C46: 2.2 | D46: 2.2 | I46: Std | J46: Std | K46: =CHOOSE(Q46, 'Variable Management'!N69,'Variable Management'!N70,'Variable Management'!N71) -> 2.0 x 1.25 | L46: =CHOOSE(Q46, 'Variable Management'!O69,'Variable Management'!O70,'Variable Management'!O71) -> 2.5 | Q46: 3
A47: 1 | B47: CVIN | C47: 0.1 | D47: 0.1 | I47: Std | J47: Std | K47: =CHOOSE(Q47, 'Variable Management'!N69,'Variable Management'!N70,'Variable Management'!N71) -> 1.6 x 0.8 | L47: =CHOOSE(Q47, 'Variable Management'!O69,'Variable Management'!O70,'Variable Management'!O71) -> 1.3 | Q47: 2
A48: 1 | B48: LF | C48: ='Design Regulator'!E17 -> 4.7 | D48: ="Inductor, "&Lout2*1000000&"µH, "&Rdcr*1000&"mΩ, >"&ROUNDUP(Ilsat,0)&"A" -> Inductor, 4.7µH, 5mΩ, >22A | I48: Various | J48: Various | K48: =CHOOSE(Q48, 'Variable Management'!N78,'Variable Management'!N79,'Variable Management'!N80, 'Variable Management'!N81, 'Variable Management'!N82, 'Variable Management'!N83, 'Variable Management'!N84, 'Variable Management'!N85) -> 10.0 x 10.0 | L48: =CHOOSE(Q48, 'Variable Management'!O78,'Variable Management'!O79,'Variable Management'!O80, 'Variable Management'!O81, 'Variable Management'!O82, 'Variable Management'!O83, 'Variable Management'!O84, 'Variable Management'!O85) -> 100 | Q48: 7
A49: =R49 -> 1 | B49: Q1 | C49: See description | D49: ='Design Regulator'!E85 -> 6 | I49: ='Design Regulator'!E84 -> CSD18563Q5D | J49: TI | K49: =CHOOSE(Q49, 'Variable Management'!N48,'Variable Management'!N49,'Variable Management'!N50,'Variable Management'!N51) -> 5.0 x 6.0 | L49: =CHOOSE(Q49, 'Variable Management'!O48,'Variable Management'!O49,'Variable Management'!O50,'Variable Management'!O51)*R49 -> 30 | Q49: 1 | R49: 1
A50: =R50 -> 1 | B50: Q2 | C50: See description | D50: ='Design Regulator'!E97 -> 6 | I50: ='Design Regulator'!E96 -> CSD18563Q5D | J50: TI | K50: =CHOOSE(Q50, 'Variable Management'!N48,'Variable Management'!N49,'Variable Management'!N50,'Variable Management'!N51) -> 5.0 x 6.0 | L50: =CHOOSE(Q50, 'Variable Management'!O48,'Variable Management'!O49,'Variable Management'!O50,'Variable Management'!O51)*R50 -> 30 | Q50: 1 | R50: 1
A52: 1 | B52: RC1 | C52: ='Design Regulator'!D74 -> 10 | D52: =C52 -> 10 | I52: Std | J52: Std | K52: =CHOOSE(Q52, 'Variable Management'!N69,'Variable Management'!N70,'Variable Management'!N71) -> 1.0 x 0.5 | L52: =CHOOSE(Q52, 'Variable Management'!O69,'Variable Management'!O70,'Variable Management'!O71) -> 0.5 | Q52: 1
A53: 1 | B53: RC2 | C53: ='Design Regulator'!D77 -> 130 | D53: 130 | I53: Std | J53: Std | K53: =CHOOSE(Q52, 'Variable Management'!N69,'Variable Management'!N70,'Variable Management'!N71) -> 1.0 x 0.5 | L53: =CHOOSE(Q53, 'Variable Management'!O69,'Variable Management'!O70,'Variable Management'!O71) -> 0.5 | Q53: 1
A54: 1 | B54: RILIM | C54: ='Design Regulator'!E26 -> 422 | D54: 422 | I54: Std | J54: Std | K54: =CHOOSE(Q52, 'Variable Management'!N69,'Variable Management'!N70,'Variable Management'!N71) -> 1.0 x 0.5 | L54: =CHOOSE(Q54, 'Variable Management'!O69,'Variable Management'!O70,'Variable Management'!O71) -> 2.5 | Q54: 3
A55: 1 | B55: RRT | C55: ='Design Regulator'!E13 -> 43.2 | D55: 43.2 | I55: Std | J55: Std | K55: =CHOOSE(Q55, 'Variable Management'!N69,'Variable Management'!N70,'Variable Management'!N71) -> 1.0 x 0.5 | L55: =CHOOSE(Q55, 'Variable Management'!O69,'Variable Management'!O70,'Variable Management'!O71) -> 0.5 | Q55: 1
A56: 1 | B56: RFB1 | C56: ='Design Regulator'!E63 -> 22.1 | D56: 22.1 | I56: Std | J56: Std | K56: =CHOOSE(Q56, 'Variable Management'!N69,'Variable Management'!N70,'Variable Management'!N71) -> 1.0 x 0.5 | L56: =CHOOSE(Q56, 'Variable Management'!O69,'Variable Management'!O70,'Variable Management'!O71) -> 0.5 | Q56: 1
A57: 1 | B57: RFB2 | C57: ='Design Regulator'!E64 -> 4.22 | D57: 4.22 | I57: Std | J57: Std | K57: =CHOOSE(Q57, 'Variable Management'!N69,'Variable Management'!N70,'Variable Management'!N71) -> 1.0 x 0.5 | L57: =CHOOSE(Q57, 'Variable Management'!O69,'Variable Management'!O70,'Variable Management'!O71) -> 0.5 | Q57: 1
A58: 1 | B58: RPGOOD | C58: 20 | D58: 20 | I58: Std | J58: Std | K58: =CHOOSE(Q58, 'Variable Management'!N69,'Variable Management'!N70,'Variable Management'!N71) -> 1.0 x 0.5 | L58: =CHOOSE(Q58, 'Variable Management'!O69,'Variable Management'!O70,'Variable Management'!O71) -> 0.5 | Q58: 1
A59: 1 | B59: RS | C59: ='Design Regulator'!E24 -> 6 | D59: 6 | H59: 1206 | I59: Std | J59: Std | K59: 3.2 x 1.6 | L59: =CHOOSE(RDSON_sense, 0,5.1) -> 0
A60: 1 | B60: RUV1 | C60: ='Design Regulator'!E53 -> 402 | D60: 402 | I60: Std | J60: Std | K60: =CHOOSE(Q60, 'Variable Management'!N69,'Variable Management'!N70,'Variable Management'!N71) -> 1.6 x 0.8 | L60: =CHOOSE(Q60, 'Variable Management'!O69,'Variable Management'!O70,'Variable Management'!O71) -> 1.3 | Q60: 2
A61: 1 | B61: RUV2 | C61: ='Design Regulator'!E54 -> 14.7 | D61: 14.7 | I61: Std | J61: Std | K61: =CHOOSE(Q61, 'Variable Management'!N69,'Variable Management'!N70,'Variable Management'!N71) -> 1.0 x 0.5 | L61: =CHOOSE(Q61, 'Variable Management'!O69,'Variable Management'!O70,'Variable Management'!O71) -> 0.5 | Q61: 1
A62: 1 | B62: RVIN | C62: 2.2 | D62: 2.2 | I62: Std | J62: Std | K62: =CHOOSE(Q62, 'Variable Management'!N69,'Variable Management'!N70,'Variable Management'!N71) -> 1.0 x 0.5 | L62: =CHOOSE(Q62, 'Variable Management'!O69,'Variable Management'!O70,'Variable Management'!O71) -> 0.5 | Q62: 1
A63: 1 | B63: U1 | C63: =CHOOSE(VARIANT, "LM5145", "LM5145-Q1", "LM25145", "LM5146", "LM5146-Q1") -> LM25145 | D63: =CHOOSE(VARIANT, "IC, LM5145, PWM Controller, 6V-75V Input", "IC, LM5145-Q1, PWM Controller, 6V-75V Input", "IC, LM25145, PWM Controller, 6V-42V Input", "IC, LM5146 PWM Controller, 5.5V-100V Input", "IC, LM5146-Q1, PWM Controller, 5.5V-100V Input") -> IC, LM25145, PWM Controller, 6V-42V Input | H63: VQFN-20 | I63: =CHOOSE(VARIANT, "LM5145RGYR", "LM5145QRGYRQ1", "LM25145RGYR", "LM5146RGYR", "LM5146QRGYRQ1",) -> LM25145RGYR | J63: TI | K63: 3.5 x 4.5 x 1.0 | L63: 15.75
I65: Total Solution Size (buffered by 25%) | L65: =SUM(L38:L63)*1.25 -> 340.9375 | M65: mm2 = | N65: =L65/25.4/25.4 -> 0.5284541819 | O65: in2
A66: NOTES:
A67: ** Inductor saturation current should be higher than the current limit setpoint at all operating temperatures **
A68: ** Effective output capacitance should be appropriately derated for applied voltage and temperature, particularly with ceramics **
Q455: 2

Sheet EVMs
A1: LM(2)5145/6/-Q1 Quickstart Calculator
B3: LM5146-Q1-EVM12V
B46: LM5145EVM-HD-20A PCB Layout
O50: Top
O51: Layer | Y51: x
O76: Layer 2
O102: Layer 3
O129: Bottom

Sheet Variable Management (hidden)
A1: Excel Variables Names/Calculations
B2: Input from user =
B3: Output =
B4: Constant
A5: Variable Name | B5: Value | C5: STD Units | D5: Notes | H5: iteration
A6: Step 1: Operational Specs
A7: Vin | B7: ='Design Regulator'!E7 -> 24 | C7: V | D7: Nominal input voltage | H7: 1 | U7: LM5145 | V7: 1
A8: Vinmin | B8: ='Design Regulator'!E6 -> 18 | C8: V | D8: Min input voltage | U8: LM5145-Q1 | V8: 2
A9: Vinmax | B9: ='Design Regulator'!E8 -> 36 | C9: V | D9: Max input voltage | U9: LM25145 | V9: 3
A10: Vout | B10: ='Design Regulator'!E9 -> 5 | C10: V | D10: Output Voltage | H10: 1 | U10: LM5146 | V10: 4
A11: Iout | B11: ='Design Regulator'!E10 -> 12 | C11: A | D11: Maximum output Current | H11: 1 | U11: LM5146-Q1 | V11: 5
A12: Fsw | B12: =IF(AND('Design Regulator'!E12<='Design Regulator'!E11*1.5, 'Design Regulator'!E12>='Design Regulator'!E11*0.8), 'Design Regulator'!E12*1000, 'Design Regulator'!E11*1000) -> 230000 | C12: Hz | D12: Nominal Operational Frequency | H12: 1 | T12: VARIANT | U12: =CHOOSE(VARIANT, "LM5145", "LM5145-Q1", "LM25145", "LM5146", "LM5146-Q1") -> LM25145 | V12: 3
A13: Fsw_freerunning | B13: ='Design Regulator'!E11*1000 -> 230000 | C13: Hz | D13: Free-running switching frequency | T13: VIN-MAX | U13: =CHOOSE(VARIANT, 75, 75, 42, 100, 100) -> 42 | V13: V
A14: Vref | B14: 0.8 | C14: V | D14: Reference Voltage | T14: VIN-MIN | U14: =CHOOSE(VARIANT, 6, 6, 6, 5.5, 5.5) -> 6 | V14: V
A15: R_RT | B15: =1/(B13*0.0000000001) -> 43478.26087 | C15: W | T15: VOUT-MAX | U15: =CHOOSE(VARIANT, 60, 60, 42, 60, 60) -> 42 | V15: V
A17: Ton at Vin-max | B17: =B38/Fsw*1000000000 -> 619.8067633 | C17: ns
A18: Toff at Vin-min | B18: =B37/Fsw*1000000000 -> 3108.21256 | C18: ns
U19: External VCC Applied | V19: 1
U20: No External VCC | V20: 2
U21: Ext_VCC | V21: 1
A22: Step 2: Inductor
A23: Don1 | B23: =Vout/Vin -> 0.2083333333 | C23: index | D23: ideal Duty Cycle | H23: 1
A24: Doff1 | B24: =1-23:23 -> 0.7916666667 | C24: index | D24: Ideal 1- Duty Cycle | H24: 1
A25: Don_Vinmin | B25: =Vout/Vinmin -> 0.2777777778
A26: Doff_Vinmin | B26: =1-B25 -> 0.7222222222
A27: Don_Vinmax | B27: =Vout/Vinmax -> 0.1388888889
A28: Doff_Vinmax | B28: =1-B27 -> 0.8611111111
A30: Lout1 | B30: =(Vin-Vout)*_Don1/(Fsw*Iout*0.333) -> 4.306843075e-06 | C30: H | D30: Calculated Inductor value for 30% ripple | H30: 1
A31: Lout2 | B31: ='Design Regulator'!E17/1000000 -> 4.7e-06 | C31: H | D31: Chosen Inductor Value | H31: 2
A32: Rdcr | B32: ='Design Regulator'!E18/1000 -> 0.005 | C32: W | D32: DCR | H32: 1
A34: Don2 | B34: =(Vout+(Rdcr+RdsonBot)*Iout)/(Vin+(RdsonBot-RdsonTop)*Iout) -> 0.2138333333 | D34: Duty Cycle with DCR accounted for | H34: 2
A35: Doff2 | B35: =1-_Don2 -> 0.7861666667 | D35: 1-Duty Cycle with DCR accounted for | H35: 2
A36: Don2_Vinmin | B36: =(Vout+(Rdcr+RdsonBot)*Iout)/(Vinmin+(RdsonBot-RdsonTop)*Iout) -> 0.2851111111
A37: Doff2_Vinmin | B37: =1-B36 -> 0.7148888889
A38: Don2_Vinmax | B38: =(Vout+(Rdcr+RdsonBot)*Iout)/(Vinmax+(RdsonBot-RdsonTop)*Iout) -> 0.1425555556 | L38: Vout<5V | M38: 100 | N38: 1
A39: Doff2_Vinmax | B39: =1-B38 -> 0.8574444444 | L39: Vout<=8V | M39: 47 | N39: 2
L40: Vout<=12V | M40: 22 | N40: 3
A41: Vripple1 | B41: ='Design Regulator'!E31/1000 -> 0.2 | C41: V | D41: Choosen Initial Voltage ripple Value | H41: 1 | L41: Vout<=20V | M41: 22 | N41: 4
A42: Irripple1 | B42: =(Vin-Vout)*_Don2/(Fsw*Lout2) -> 3.758402714 | C42: A | D42: Ripple Current after Chosen inductor (p-p) | H42: 1 | L42: Vout<=42V | M42: 10 | N42: 5
A43: DCR at hot | B43: =Rdcr*(1+0.0039*(F43-25)) -> 0.0064625 | C43: Ohms | E43: Temp | F43: 100 | L43: Vout<60V | M43: 4.7 | N43: 6
A44: TL | B44: =Lout2/Rdcr -> 0.00094 | C44: s | D44: L/R Time Constant | L44: Cout Capacitance | M44: =CHOOSE(N44,"100", "47","22","22","10", "4.7") -> 47 | N44: =IF(Vout<5, 1, IF(Vout<=8, 2, IF(Vout<=12, 3, IF(Vout<=20, 4, IF(Vout<=42, 5, 6))))) -> 2 | Q44: Quantity: 1 | R44: 1
Q45: Quantity: 2 | R45: 2
A46: Step 3: Current Limit
L48: SON 5 x 6 | M48: 1 | N48: 5.0 x 6.0 | O48: 30
A49: DC Current Limit Setpoint | B49: ='Design Regulator'!E25 -> 16 | L49: SON 3 x 3 | M49: 2 | N49: 3.3 x 3.3 | O49: 10.9
A50: Ilimit | B50: ='Design Regulator'!E25-Iripple1/2 -> 14.12079864 | C50: A | D50: Chosen current limit level - valley current | L50: DPAK, TO-252 | M50: 3 | N50: 10.0 x 6.6 | O50: 66
A51: Ilsat | B51: =ROUND('Design Regulator'!E25+Iripple1/2,0)*1.2 -> 21.6 | C51: A | L51: D2PAK, TO-263 | M51: 4 | N51: 15.0 x 10.0 | O51: 150
K52: MOSFET package | L52: =CHOOSE(M52, L48, L49, L50, L51) -> SON 5 x 6 | M52: 1
A53: Ilim1 | B53: 0.0002 | C53: A | D53: Current Limit Current Source - Rdson sensing
A54: Ilim2 | B54: 0.0001 | C54: A | D54: Current Limit Current Source - shunt sensing | L54: RDS(on) sensing | M54: 1
A55: Rilim_Rdson_ideal | B55: =ILimit*RdsonBot/Ilim1 -> 423.6239593 | C55: W | D55: Ideal Rset for the chosen current limit | L55: Shunt sensing | M55: 2
A56: Rilim_Rdson | B56: ='Standard Value Calculator'!S6 -> 422 | C56: W | D56: Standard value current limit set resistor | K56: Current Sensing | L56: =CHOOSE(RDSON_sense, L54,L55) -> RDS(on) sensing | M56: 1 | N56: 1 = Yes, 2 = No
A58: Rshunt | B58: ='Design Regulator'!E24/1000 -> 0.006 | C58: W
A59: Rilim_shunt_ideal | B59: =ILimit*Rshunt/Ilim2 -> 847.2479186 | C59: W | K59: Vout<5V | L59: 6.3V | M59: 1
A60: Rilim_shunt | B60: ='Standard Value Calculator'!S22 -> 845 | C60: W | D60: Standard value current limit set resistor | K60: Vout<=8V | L60: 10V | M60: 2 | Q60: Vin(max)<=8V | R60: 10V | S60: 1
K61: Vout<=12V | L61: 16V | M61: 3 | Q61: Vin(max)<=12V | R61: 16V | S61: 2
A62: Power dissipation in the shunt | B62: =ROUND(((1-Don_Vinmax)*Iout)^2*Rshunt,2) -> 0.64 | C62: W | K62: Vout<=20V | L62: 25V | M62: 4 | Q62: Vin(max)<=20V | R62: 25V | S62: 3
A64: Cilim | B64: =0.000000006/Rilim_Rdson_ideal - 0.000000000002 -> 1.216350485e-11 | C64: F | D64: Choose cap for 6ns time constant | K64: Vout<=42V | L64: 50V | M64: 5 | Q64: Vin(max)<=42V | R64: 50V | S64: 4
A65: Cilim_ideal | B65: ='Standard Value Calculator'!S23 -> 12 | C65: pF | K65: Vout<60V | L65: 100V | M65: 6 | Q65: Vin(max)<100V | R65: 100V | S65: 5
A66: Ilimit2 | B66: =Ics*Rset/Rdcr-Iripple1/2 ->  | C66: A | D66: Current limit setpoint after standard components are selected | K66: Cout Voltage Rating | L66: =CHOOSE(M66,"6.3V","10V","16V","25V","50V","100V") -> 10V | M66: =IF(Vout<5, 1, IF(Vout<=8, 2, IF(Vout<=12, 3, IF(Vout<=20, 4, IF(Vout<=42, 5, 6))))) -> 2 | Q66: Cin Voltage Rating | R66: =CHOOSE(S66,"10V","16V","25V","50V","100V") -> 50V | S66: =IF(Vinmax<=8,1,IF(Vinmax<=12,2,IF(Vinmax<=20,3,IF(Vinmax<=42,4,5)))) -> 4
A68: Step 4: Output Capacitor
A69: Icoutrms | B69: =Iripple1/SQRT(3)/2 -> 1.084957409 | C69: A | D69: Output Cap rms current | L69: 0402 | M69: 1 | N69: 1.0 x 0.5 | O69: 0.5
A70: Coutmin | B70: =(Iripple1/(Vripple1*Fsw*8)) -> 1.021305085e-05 | C70: F | D70: Minimum Output Capacitnace | H70: 1 | L70: 0603 | M70: 2 | N70: 1.6 x 0.8 | O70: 1.3
A71: Cout | B71: ='Design Regulator'!E33/1000000 -> 0.0002 | C71: F | D71: Choosen Output Capacitor | H71: 1 | L71: 0805 | M71: 3 | N71: 2.0 x 1.25 | O71: 2.5
A72: Resrmax | B72: =SQRT((Vripple1/Iripple1)^2-(1/(Fsw*Cout*8))^2) -> 0.05314466782 | C72: W | D72: Max ESR before ripple exceeds Vripple1 | H72: 1 | L72: 1206 | M72: 4 | N72: 3.2 x 1.6 | O72: 5.1
A73: CoutEsr | B73: ='Design Regulator'!E35/1000 -> 0.001 | C73: W | D73: Chosen ESR | H73: 1 | L73: 1210 | M73: 5 | N73: 3.2 x 2.5 | O73: 8
A74: Vripple | B74: =Iripple1*SQRT(CoutEsr^2+(1/(8*Fsw*Cout))^2) -> 0.01088264668 | C74: Vp-p | K74: Component Size | L74: =CHOOSE(M74,"0402","0603","0805","1206","1210") -> 1210 | M74: 5 | N74: =CHOOSE(M74,N69,N70, N71,N72,N73) -> 3.2 x 2.5
A77: Step 5: Input Capacitor
A78: Vinripple1 | B78: ='Design Regulator'!E40/1000 -> 0.5 | C78: Vp-p | L78: 3mm x 3mm | M78: 1 | N78: 3.0 x 3.0 | O78: 9
A79: Icinrms | B79: =Iout*SQRT(_Don2*Doff2) -> 4.920126421 | C79: A | L79: 4mm x 4mm | M79: 2 | N79: 4.0 x 4.0 | O79: 16
A80: Cinmin | B80: =Iout*_Don2*(1-_Don2)/(Vinripple1*Fsw) -> 1.754177101e-05 | C80: F | L80: 5mm x 5mm | M80: 3 | N80: 5.0 x 5.0 | O80: 25
A81: Cin | B81: ='Design Regulator'!E42/1000000 -> 5e-05 | C81: F | D81: Input capacitance | L81: 6mm x 6mm | M81: 4 | N81: 6.0 x 6.0 | O81: 36
A82: CinEsrMax | B82: =-(Iout*_Don2*(1-_Don2)/(Cin*Fsw)-Vinripple1)/(Iout+Iripple1/2) -> 0.02338623682 | C82: W | L82: 7mm x 7mm | M82: 5 | N82: 7.0 x 7.0 | O82: 49
A83: RCinEsr | B83: ='Design Regulator'!E44/1000 -> 0.002 | C83: W | D83: Input capacitance series resistance (ESR) | L83: 8mm x 8mm | M83: 6 | N83: 8.0 x 8.0 | O83: 64
A84: Vinripple2 | B84: =Iout*_Don2*(1-_Don2)/(Cin*Fsw)+(Iout +Iripple1/2)*RCinEsr -> 0.2031761129 | C84: Vp-p | L84: 10mm x 10mm | M84: 7 | N84: 10.0 x 10.0 | O84: 100
B85: =Iout*_Don1*(1-_Don1)/(Cin*Fsw) -> 0.1721014493 | L85: 12mm x 12mm | M85: 8 | N85: 12.0 x 12.0 | O85: 144
K86: Inductor Size | L86: =CHOOSE(M86,L78,L79, L80, L81, L82, L83, L84, L85) -> 12mm x 12mm | M86: 8 | N86: =CHOOSE(M86,N78,N79, N80,N81,N82, N83, N84, N85) -> 12.0 x 12.0
A87: Step 6: Soft Start
A88: Tss | B88: ='Design Regulator'!E49/1000 -> 0.004 | C88: s | D88: Soft Start Time
A89: Iss | B89: =Cout*Vout/Tss -> 0.25 | C89: A | D89: Load Cap current during soft start
A90: Css | B90: =0.00001*Tss/0.8 -> 5e-08 | C90: F
A91: Css_u | B91: ='Standard Value Calculator'!B4 -> 4.7e-08 | C91: F
A93: Step 7: Other Components
A95: VINUVLO_ON | B95: ='Design Regulator'!E51 -> 34 | C95: V
A96: VINUVLO_OFF | B96: ='Design Regulator'!E52 -> 30 | C96: V
A97: RUV1 | B97: =(VINuvlo_off-VINuvlo_on*Vuvlo_off/Vuvlo_on)/(Iuvlo1*Vuvlo_off/Vuvlo_on-Iuvlo2) -> 400 | C97: kΩ | D97: ='Standard Value Calculator'!S16 -> 402 | E97: kΩ | F97: =IF(Ruvlo1<0,"N/A",D97) -> 402 | G97: =IF(Ruvlo1<0,"N/A",D97&"kΩ") -> 402kΩ
A98: RUV2 | B98: =D97*Vuvlo_on/(VINuvlo_on-Vuvlo_on+Ruvlo1*Iuvlo1) -> 14.70731707 | C98: kΩ | D98: ='Standard Value Calculator'!S17 -> 14.7 | E98: kΩ | F98: =IF(F97="N/A","N/A",D98) -> 14.7 | G98: =IF(G97="N/A","N/A",D98&"kΩ") -> 14.7kΩ
A100: VINUVLO_ON_ACTUAL | B100: =(D97+D98)/D98*Vuvlo_on-Iuvlo1*D97 -> 34.01632653
A101: VINUVLO_OFF_ACTUAL | B101: =(D97+D98)/D98*Vuvlo_off-Iuvlo2*D97 -> 29.99632653
A104: Rising UVLO/EN Threshold | B104: 1.2
A105: Falling UVLO/EN Threshold | B105: 1.2
A106: Falling UVLO/EN Threshold | B106: =B104-B105 -> 0
A107: UVLO/EN Current Hysteresis | B107: 0
A108: Falling UVLO/EN Falling | B108: 0.01
A109: Rising UVLO/EN Hysteresis | B109: =B108-B107 -> 0.01
A111: RPG | C111: W
A112: RSB | C112: W
A113: Rh | C113: W
A114: Rotp | B114: =80700/(Totp+273)*398 ->  | C114: W
A117: CSBY | B117: 100 | C117: pF
A121: Step 8: Compensation
A122: Eadcg | B122: 10000 | C122: V/V | D122: Error Amplifier Finite DC Gain (AOL)
A123: GBP | B123: 5000000 | C123: Hz | D123: Error Amplifier Gain Bandwidth Product (GBW)
A124: Chosen Crossover | B124: ='Design Regulator'!E61*1000 -> 35000 | C124: Hz
A125: Kmidband | B125: =Fcross/Fo/15 -> 0.44735348 | C125: V/V | D125: Midband Gain For the Error Amplifier | H125: 1
A126: Rfb1 | B126: ='Design Regulator'!E63*1000 -> 22100 | C126: W | D126: Top Feedback Resistor | H126: 1
A127: Rfb2 | B127: =IF(Vout=Vref,100000000,Vref/((Vout-Vref)/_Rfb1)) -> 4209.52381 | C127: W | D127: Lower Feedback Resistor
A128: Rfb2_u | B128: =IF(Vout=Vref,"N/A",'Standard Value Calculator'!S11) -> 4220 | C128: W | D128: Calculated Lower Feedback Resistor
A129: Vout_actual | B129: =0.8/Rfb2_u*(Rfb2_u+_Rfb1) -> 4.98957346 | C129: V | D129: Actual VOUT
A131: Vramp | B131: =Vin/15 -> 1.6 | C131: Vp-p | D131: Peak-to-Peak Ramp Voltage of PWM
A132: Rcea1 | B132: =Kmidband*_Rfb1 -> 9886.511909 | C132: W | D132: This component will first set the midband gain | H132: 1
A133: Cc1ea | B133: =1/(Rcea1*('Design Regulator'!E67*1000)*2*Pi) -> 4.409131312e-09 | C133: F | D133: This along with Rcea1 will set a zero | H133: 1
A134: Cc2ea | B134: =1/((Rcea1*2*Pi*'Design Regulator'!E70*1000)-1/Cc1ea) -> 1.44574306e-10 | C134: F | H134: 1
A135: Rcea2 | B135: =(1/(1000*2*Pi*'Design Regulator'!E69))*_Rfb1/(1/('Design Regulator'!E68*1000*2*Pi)-(1/(1000*2*Pi*'Design Regulator'!E69))) -> 131.1414861 | C135: W | H135: 1
A136: Cc3ea | B136: =(1/(1000*2*Pi*'Design Regulator'!E69))/Rcea2 -> 1.52507041e-09 | C136: F | H136: 1
A138: Choosen Compensation Components from the standard value sheet
A139: Rcea1_u | B139: ='Design Regulator'!D74*1000 -> 10000 | C139: W | H139: 2
A140: Cc1ea_u | B140: ='Design Regulator'!D75*0.000000000001 -> 4.7e-09 | C140: F | H140: 2
A141: Cc2ea_u | B141: ='Design Regulator'!D76*0.000000000001 -> 1.5e-10 | C141: F | H141: 2
A142: Rcea2_u | B142: ='Design Regulator'!D77 -> 130 | C142: W | H142: 2
A143: Cc3ea_u | B143: ='Design Regulator'!D78*0.000000000001 -> 1.5e-09 | C143: F | H143: 2
A145: Resulting Poles/Zero/Q Locations | D145: =Cout -> 0.0002 | E145: =CoutEsr -> 0.001
A146: Fo | B146: =SQRT((Rfets+Rdcr+Ro)/(Cout*Lout2*(CoutEsr+Ro)))/(2*Pi) -> 5215.860471 | C146: Hz | D146: LC Double Pole Location
A147: Q | B147: =(Rfets+Rdcr+Ro)/(Lout2+Cout*(Rdcr+Rfets)*(CoutEsr+Ro)+Cout*CoutEsr*Ro)/(Fo*2*Pi) -> 2.473833401 | C147: V/V | D147: Quality Factor of LC output Filter
A148: Fesr | B148: =1/(2*Pi*Cout*CoutEsr) -> 795774.7164 | C148: Hz | D148: Cout ESR Zero Location
A149: Fz1 | B149: =1/(2*Pi*Rcea1_u*Cc1ea_u) -> 3386.275389 | C149: Hz | D149: This zero is set at or below the double pole location
A150: Fz2 | B150: =1/(2*Pi*Cc3ea_u*(_Rfb1+Rcea2_u)) -> 4772.977756 | C150: Hz | D150: This zero is set at or below the double pole location
A151: Fp1 | B151: =1/(2*Pi*Rcea2_u*Cc3ea_u) -> 816179.1963 | C151: Hz | D151: This pole cancels the zero from the Output Cap ESR
A152: Fp2 | B152: =1/(2*Pi*Rcea1_u*(Cc1ea_u*Cc2ea_u/(Cc1ea_u+Cc2ea_u))) -> 109489.5709 | C152: Hz | D152: This pole is set at half the switching frequency
A153: Ro | B153: =Vout/(Iout+Vref/_Rfb2) -> 0.416660068 | D153: Output Resistance
A154: Pi | B154: 3.14159265 | D154: PI
A155: Other Input Variables
A156: Rfets | B156: 0 | C156: W | D156: Series resistance due to FETs | G156: =_Don2*RdsonTop+Doff2*RdsonBot+B161*Vin^2*Fsw/2/(((Iripple1/SQRT(3))^2)) -> 0.07634041995
A158: Diode loss eq res | B158: =0.00000002*Fsw*0.6*4/Iripple1 -> 0.002937418058
A159: Fet loss eq res | B159: =_Don2*RdsonTop+Doff2*RdsonBot -> 0.006
A160: cap loss eq res | B160: =B161*Vin^2*Fsw/2/(((Iripple1/SQRT(3))^2)) -> 0.07034041995
A161: Sw cap | B161: 5e-09
A164: Step 8: Efficiency
A166: Design
A167: Ta | B167: 25 | D167: Ambient Temperature
A168: Components
A169: LTc | B169: =4000/1000000 -> 0.004 | C169: %/°C | D169: Inductor Series Resistance Temp Co
A170: ThetaCa | B170: 20 | C170: °C/W | D170: Core to Ambient Thermal Resistance
A171: RCinEsr | B171: =RCinEsr -> 0.002 | C171: W | D171: Input Capacitor Series Resistance
A172: Part Characteristics
A173: Vcc | B173: 7.5
A174: Top Driver
A175: RdsonDRT | B175: 1 | C175: W | D175: Drain to Source Resistance of pull up Top FET Driver
A176: RdsonDRT2 | B176: 0.9 | C176: W | D176: Drain to Source Resistance of pull down Top FET Driver
A177: Bottom Driver
A178: RdsonDRB | B178: 1 | C178: W | D178: Drain to Source Resistance of pull up Top FET Driver
A179: RdsonDRB2 | B179: 0.9 | C179: W | D179: Drain to Source Resistance of pull down Top FET Driver
A180: Deadtime | D180: Output Capacitor Capcitance
A181: Deadtime | B181: 3e-08 | C181: s | D181: Total Deadtime
A182: IQ
A183: IQ | B183: 0.002 | C183: A | D183: Quiescent Current Of Controller (Not Switching!)
A184: Top FET
A185: RdsonTop | B185: ='Design Regulator'!E85/1000 -> 0.006 | C185: W | D185: Drain to Source Resistance of Top FET
A186: RdsonTopTc | B186: =4000/1000000 -> 0.004 | C186: %/°C | D186: Drain to Source Resistance Temp Co
A187: QgTop | B187: ='Design Regulator'!E86/1000000000 -> 1.15e-08 | C187: C | D187: Gate Charge Of Top FET
A188: QgdTop | B188: ='Design Regulator'!E87/1000000000 -> 2.9e-09 | C188: C | D188: Gate to Drain Charge
A189: QgsTop | B189: ='Design Regulator'!E88/1000000000 -> 3.3e-09 | C189: C | D189: Gate to Source Charge
A190: CossTop | B190: ='Design Regulator'!E89/1000000000000 -> 2.8e-10 | C190: F | D190: Output Capacitance of High-side FET
A191: RGateTop | B191: ='Design Regulator'!E90 -> 1.5 | C191: W | D191: Gate Resistance of High-side FET
A192: GfsTop | B192: ='Design Regulator'!E91 -> 100 | C192: S | D192: Transconductance of Top FET
A193: VthTop | B193: ='Design Regulator'!E92 -> 3.2 | C193: V | D193: Threshold Voltage of Top FET
A194: VspTop | B194: =VthTop+Iout/GmTop -> 3.32 | C194: V | D194: Switch Point Voltage of Top FET
A195: VsdTop | B195: ='Design Regulator'!E93 -> 0.8 | C195: V | D195: Diode Forward Voltage of Top FET Body diode
A196: ThetaJaTop | B196: ='Design Regulator'!E94 -> 50 | C196: °C/W | D196: Junction to Ambient Resistance
A197: Bottom FET
A198: RdsonBot | B198: ='Design Regulator'!E97/1000 -> 0.006 | C198: W | D198: Drain To Source Resistance of Bottom FET Driver
A199: RdsonBotTc | B199: =4000/1000000 -> 0.004 | C199: %/°C | D199: Drain To Source Resitance Temp Co
A200: QgBot | B200: ='Design Regulator'!E98/1000000000 -> 1.15e-08 | C200: C | D200: Gate Charge Of Bottom FET | J200: =RGateTop -> 1.5
A201: QossBot | B201: ='Design Regulator'!E99/1000000000 -> 2e-08 | C201: C | D201: Output Charge Of Bottom FET
A202: CossBot | B202: ='Design Regulator'!E100/1000000000000 -> 2.8e-10 | C202: F | D202: Output Capacitance Of Bottom FET
A203: RGateBot | B203: 1 | C203: W | D203: Gate Resistance
A204: VsdBot | B204: ='Design Regulator'!E101 -> 0.9 | C204: V | D204: Diode Forward Voltage of Bottom FET Body Diode
A205: QrrBot | B205: ='Design Regulator'!E102/1000000000 -> 6.3e-08 | C205: C | D205: Reverse Recovery Charge of Body Diode
A206: TrrBot | B206: 4e-08 | C206: s | D206: Reverse Recovery Time of Body Diode
A207: ThetaJaBot | B207: ='Design Regulator'!E103 -> 50 | C207: °C/W | D207: Junction to Ambient Resistance
A208: Bottom Schottky
A209: VfdSky | B209: ='Design Regulator'!E105 -> 0 | C209: V | D209: Diode Forward Voltage
A210: QrrSky | B210: ='Design Regulator'!E106/1000000000 -> 0 | C210: C | D210: Diode Reverse Recovery Charge
A211: Ireverse | B211: 0 | C211: A | D211: Reverse Leakage Current
A212: Controller
A213: ThetaJaCtrl | B213: 30
A214: Outputs
A215: Top FET
A216: Tr | B216: =(QgdTop+QgsTop/2)*(RdsonDRT+RGateTop)/(Vdd-VspTop) -> 2.721291866e-09 | C216: s
A217: Tf | B217: =(QgdTop+QgsTop/2)*(RdsonDRT+RGateTop)/(VspTop) -> 3.426204819e-09 | C217: s
A220: Part Power Disipation | B220: Value | C220: Units
A221: Power Dis | B221: ='Power Calculations'!AN9 -> 0.087675 | C221: W
A222: Temp rise | B222: =B221*ThetaJaCtrl -> 2.63025 | C222: °C
A223: Current (switching) | B223: =(QgBot+QgTop)*Fsw+Iq -> 0.00729 | C223: A
A224: Qrr Current | B224: =QrrBot*Fsw -> 0.01449 | C224: A
A225: Diode Current | B225: =C225/Vin -> 0.0001927915104 | C225: =Deadtime*Fsw*(Ipp/2)*(VsdTop+VsdBot) -> 0.00462699625
A226: Total Application Switching IQ | B226: =SUM(B223:B225) -> 0.02197279151 | C226: A
A232: Bottom FET/Diode
A233: Part Power
A234: Power Dis
... 62 more rows

Sheet Standard Value Calculator (hidden)
A2: Capacitors | B2: Css | C2: Cc1ea | D2: Cc2ea | E2: Cc3ea | F2: Cout | G2: Cin | H2: Cilim | I2: Cdd | J2: Csb | K2: Csby | L2: Cby | M2: Cb | N2: Sugested Cs
A3: Inputs | B3: =Css -> 5e-08 | C3: =Cc1ea -> 4.409131312e-09 | D3: =Cc2ea -> 1.44574306e-10 | E3: =Cc3ea -> 1.52507041e-09 | F3: =Cout -> 0.0002 | G3: =Cin -> 5e-05 | H3: =Cilim -> 1.216350485e-11 | I3: =Cdd -> 0 | J3: =Csb -> 0 | K3: =Csby -> 100 | L3: =Cby -> 0 | M3: =Cb -> 0 | N3: ='Variable Management'!#REF! ->  | Q3: Resistors | R3: inputs | S3: Standard Result
A4: Standard Result | B4: =SUM(B6:B158)/1000000000000 -> 4.7e-08 | C4: =SUM(C6:C158)/1000000000000 -> 4.7e-09 | D4: 1.5e-10 | E4: 1.5e-09 | F4: 0.00022 | G4: 4.7e-05 | H4: 1.2e-11 | I4: =IF(I3="OPEN","OPEN",SUM(I6:I158)/1000000000000) -> 0 | J4: 0 | K4: 0 | L4: 0 | M4: 0 | Q4: Radj | R4: =Rfadj -> 43478.26087 | S4: =IF(R4>(INT(0.5+100*POWER(10,IF(96*(LOG(R4)-INT(LOG(R4)))-ROUND(96*(LOG(R4)-INT(LOG(R4))),0)<0,ROUND(96*(LOG(R4)-INT(LOG(R4))),0)-1,ROUND(96*(LOG(R4)-INT(LOG(R4))),0))/96))*POWER(10,INT(LOG(R4))-2)+INT(0.5+100*POWER(10,(IF(96*(LOG(R4)-INT(LOG(R4)))-ROUND(96*(LOG(R4)-INT(LOG(R4))),0)<0,ROUND(96*(LOG(R4)-INT(LOG(R4))),0)-1,ROUND(96*(LOG(R4)-INT(LOG(R4))),0))+1)/96))*POWER(10,INT(LOG(R4))-2))/2,INT(0.5+100*POWER(10,(IF(96*(LOG(R4)-INT(LOG(R4)))-ROUND(96*(LOG(R4)-INT(LOG(R4))),0)<0,ROUND(96*(LOG(R4)-INT(LOG(R4))),0)-1,ROUND(96*(LOG(R4)-INT(LOG(R4))),0))+1)/96))*POWER(10,INT(LOG(R4))-2),INT(0.5+100*POWER(10,IF(96*(LOG(R4)-INT(LOG(R4)))-ROUND(96*(LOG(R4)-INT(LOG(R4))),0)<0,ROUND(96*(LOG(R4)-INT(LOG(R4))),0)-1,ROUND(96*(LOG(R4)-INT(LOG(R4))),0))/96))*POWER(10,INT(LOG(R4))-2)) -> 43200 | T4: Ω
A5: (pF) | Q5: Rilim_Rdson | R5: =Rilim_Rdson_ideal -> 423.6239593 | S5: 422 | T5: Ω
A6: 0.47 | B6: =IF(IF((B$3*10^12-$A7)*(B$3*10^12-$A6)*-1<0,0,1)*IF(ABS(B$3*10^12-$A7)>(B$3*10^12-$A6),$A6,$A7)=B7,0,IF((B$3*10^12-$A7)*(B$3*10^12-$A6)*-1<0,0,1)*IF(ABS(B$3*10^12-$A7)>(B$3*10^12-$A6),$A6,$A7)) -> 0 | C6: =IF(IF((C$3*10^12-$A7)*(C$3*10^12-$A6)*-1<0,0,1)*IF(ABS(C$3*10^12-$A7)>(C$3*10^12-$A6),$A6,$A7)=C7,0,IF((C$3*10^12-$A7)*(C$3*10^12-$A6)*-1<0,0,1)*IF(ABS(C$3*10^12-$A7)>(C$3*10^12-$A6),$A6,$A7)) -> 0 | D6: =IF(IF((D$3*10^12-$A7)*(D$3*10^12-$A6)*-1<0,0,1)*IF(ABS(D$3*10^12-$A7)>(D$3*10^12-$A6),$A6,$A7)=D7,0,IF((D$3*10^12-$A7)*(D$3*10^12-$A6)*-1<0,0,1)*IF(ABS(D$3*10^12-$A7)>(D$3*10^12-$A6),$A6,$A7)) -> 0 | E6: =IF(IF((E$3*10^12-$A7)*(E$3*10^12-$A6)*-1<0,0,1)*IF(ABS(E$3*10^12-$A7)>(E$3*10^12-$A6),$A6,$A7)=E7,0,IF((E$3*10^12-$A7)*(E$3*10^12-$A6)*-1<0,0,1)*IF(ABS(E$3*10^12-$A7)>(E$3*10^12-$A6),$A6,$A7)) -> 0 | F6: =IF(IF((F$3*10^12-$A7)*(F$3*10^12-$A6)*-1<0,0,1)*IF(ABS(F$3*10^12-$A7)>(F$3*10^12-$A6),$A6,$A7)=F7,0,IF((F$3*10^12-$A7)*(F$3*10^12-$A6)*-1<0,0,1)*IF(ABS(F$3*10^12-$A7)>(F$3*10^12-$A6),$A6,$A7)) -> 0 | G6: =IF(IF((G$3*10^12-$A7)*(G$3*10^12-$A6)*-1<0,0,1)*IF(ABS(G$3*10^12-$A7)>(G$3*10^12-$A6),$A6,$A7)=G7,0,IF((G$3*10^12-$A7)*(G$3*10^12-$A6)*-1<0,0,1)*IF(ABS(G$3*10^12-$A7)>(G$3*10^12-$A6),$A6,$A7)) -> 0 | H6: =IF(IF((H$3*10^12-$A7)*(H$3*10^12-$A6)*-1<0,0,1)*IF(ABS(H$3*10^12-$A7)>(H$3*10^12-$A6),$A6,$A7)=H7,0,IF((H$3*10^12-$A7)*(H$3*10^12-$A6)*-1<0,0,1)*IF(ABS(H$3*10^12-$A7)>(H$3*10^12-$A6),$A6,$A7)) -> 0 | I6: 0 | J6: 0 | K6: 0 | L6: =IF(IF((L$3*10^12-$A7)*(L$3*10^12-$A6)*-1<0,0,1)*IF(ABS(L$3*10^12-$A7)>(L$3*10^12-$A6),$A6,$A7)=L7,0,IF((L$3*10^12-$A7)*(L$3*10^12-$A6)*-1<0,0,1)*IF(ABS(L$3*10^12-$A7)>(L$3*10^12-$A6),$A6,$A7)) -> 0 | M6: =IF(IF((M$3*10^12-$A7)*(M$3*10^12-$A6)*-1<0,0,1)*IF(ABS(M$3*10^12-$A7)>(M$3*10^12-$A6),$A6,$A7)=M7,0,IF((M$3*10^12-$A7)*(M$3*10^12-$A6)*-1<0,0,1)*IF(ABS(M$3*10^12-$A7)>(M$3*10^12-$A6),$A6,$A7)) -> 0 | N6: =IF(IF((N$3*10^12-$A7)*(N$3*10^12-$A6)*-1<0,0,1)*IF(ABS(N$3*10^12-$A7)>(N$3*10^12-$A6),$A6,$A7)=N7,0,IF((N$3*10^12-$A7)*(N$3*10^12-$A6)*-1<0,0,1)*IF(ABS(N$3*10^12-$A7)>(N$3*10^12-$A6),$A6,$A7)) ->  | Q6: Rilim_Rdson | R6: =Rilim_Rdson_ideal -> 423.6239593 | S6: 422 | T6: Ω
A7: 0.56 | B7: =IF(IF((B$3*10^12-$A8)*(B$3*10^12-$A7)*-1<0,0,1)*IF(ABS(B$3*10^12-$A8)>(B$3*10^12-$A7),$A7,$A8)=B8,0,IF((B$3*10^12-$A8)*(B$3*10^12-$A7)*-1<0,0,1)*IF(ABS(B$3*10^12-$A8)>(B$3*10^12-$A7),$A7,$A8)) -> 0 | C7: =IF(IF((C$3*10^12-$A8)*(C$3*10^12-$A7)*-1<0,0,1)*IF(ABS(C$3*10^12-$A8)>(C$3*10^12-$A7),$A7,$A8)=C8,0,IF((C$3*10^12-$A8)*(C$3*10^12-$A7)*-1<0,0,1)*IF(ABS(C$3*10^12-$A8)>(C$3*10^12-$A7),$A7,$A8)) -> 0 | D7: 0 | E7: 0 | F7: 0 | G7: 0 | H7: 0 | I7: 0 | J7: 0 | K7: 0 | L7: 0 | M7: 0
A8: 0.68 | B8: 0 | C8: 0 | D8: 0 | E8: 0 | F8: 0 | G8: 0 | H8: 0 | I8: 0 | J8: 0 | K8: 0 | L8: 0 | M8: 0 | Q8: Rc1ea | R8: =Rcea1 -> 9886.511909 | S8: =IF(R8>(INT(0.5+100*POWER(10,IF(96*(LOG(R8)-INT(LOG(R8)))-ROUND(96*(LOG(R8)-INT(LOG(R8))),0)<0,ROUND(96*(LOG(R8)-INT(LOG(R8))),0)-1,ROUND(96*(LOG(R8)-INT(LOG(R8))),0))/96))*POWER(10,INT(LOG(R8))-2)+INT(0.5+100*POWER(10,(IF(96*(LOG(R8)-INT(LOG(R8)))-ROUND(96*(LOG(R8)-INT(LOG(R8))),0)<0,ROUND(96*(LOG(R8)-INT(LOG(R8))),0)-1,ROUND(96*(LOG(R8)-INT(LOG(R8))),0))+1)/96))*POWER(10,INT(LOG(R8))-2))/2,INT(0.5+100*POWER(10,(IF(96*(LOG(R8)-INT(LOG(R8)))-ROUND(96*(LOG(R8)-INT(LOG(R8))),0)<0,ROUND(96*(LOG(R8)-INT(LOG(R8))),0)-1,ROUND(96*(LOG(R8)-INT(LOG(R8))),0))+1)/96))*POWER(10,INT(LOG(R8))-2),INT(0.5+100*POWER(10,IF(96*(LOG(R8)-INT(LOG(R8)))-ROUND(96*(LOG(R8)-INT(LOG(R8))),0)<0,ROUND(96*(LOG(R8)-INT(LOG(R8))),0)-1,ROUND(96*(LOG(R8)-INT(LOG(R8))),0))/96))*POWER(10,INT(LOG(R8))-2)) -> 10000 | T8: Ω
A9: 0.82 | B9: 0 | C9: 0 | D9: 0 | E9: 0 | F9: 0 | G9: 0 | H9: 0 | I9: 0 | J9: 0 | K9: 0 | L9: 0 | M9: 0 | Q9: Rc2ea | R9: =Rcea2 -> 131.1414861 | S9: =IF(R9>(INT(0.5+100*POWER(10,IF(96*(LOG(R9)-INT(LOG(R9)))-ROUND(96*(LOG(R9)-INT(LOG(R9))),0)<0,ROUND(96*(LOG(R9)-INT(LOG(R9))),0)-1,ROUND(96*(LOG(R9)-INT(LOG(R9))),0))/96))*POWER(10,INT(LOG(R9))-2)+INT(0.5+100*POWER(10,(IF(96*(LOG(R9)-INT(LOG(R9)))-ROUND(96*(LOG(R9)-INT(LOG(R9))),0)<0,ROUND(96*(LOG(R9)-INT(LOG(R9))),0)-1,ROUND(96*(LOG(R9)-INT(LOG(R9))),0))+1)/96))*POWER(10,INT(LOG(R9))-2))/2,INT(0.5+100*POWER(10,(IF(96*(LOG(R9)-INT(LOG(R9)))-ROUND(96*(LOG(R9)-INT(LOG(R9))),0)<0,ROUND(96*(LOG(R9)-INT(LOG(R9))),0)-1,ROUND(96*(LOG(R9)-INT(LOG(R9))),0))+1)/96))*POWER(10,INT(LOG(R9))-2),INT(0.5+100*POWER(10,IF(96*(LOG(R9)-INT(LOG(R9)))-ROUND(96*(LOG(R9)-INT(LOG(R9))),0)<0,ROUND(96*(LOG(R9)-INT(LOG(R9))),0)-1,ROUND(96*(LOG(R9)-INT(LOG(R9))),0))/96))*POWER(10,INT(LOG(R9))-2)) -> 130 | T9: Ω
A10: 1 | B10: 0 | C10: 0 | D10: 0 | E10: 0 | F10: 0 | G10: 0 | H10: 0 | I10: 0 | J10: 0 | K10: 0 | L10: 0 | M10: 0 | Q10: Rfb1 | R10: =_Rfb1 -> 22100 | S10: =IF(R10>(INT(0.5+100*POWER(10,IF(96*(LOG(R10)-INT(LOG(R10)))-ROUND(96*(LOG(R10)-INT(LOG(R10))),0)<0,ROUND(96*(LOG(R10)-INT(LOG(R10))),0)-1,ROUND(96*(LOG(R10)-INT(LOG(R10))),0))/96))*POWER(10,INT(LOG(R10))-2)+INT(0.5+100*POWER(10,(IF(96*(LOG(R10)-INT(LOG(R10)))-ROUND(96*(LOG(R10)-INT(LOG(R10))),0)<0,ROUND(96*(LOG(R10)-INT(LOG(R10))),0)-1,ROUND(96*(LOG(R10)-INT(LOG(R10))),0))+1)/96))*POWER(10,INT(LOG(R10))-2))/2,INT(0.5+100*POWER(10,(IF(96*(LOG(R10)-INT(LOG(R10)))-ROUND(96*(LOG(R10)-INT(LOG(R10))),0)<0,ROUND(96*(LOG(R10)-INT(LOG(R10))),0)-1,ROUND(96*(LOG(R10)-INT(LOG(R10))),0))+1)/96))*POWER(10,INT(LOG(R10))-2),INT(0.5+100*POWER(10,IF(96*(LOG(R10)-INT(LOG(R10)))-ROUND(96*(LOG(R10)-INT(LOG(R10))),0)<0,ROUND(96*(LOG(R10)-INT(LOG(R10))),0)-1,ROUND(96*(LOG(R10)-INT(LOG(R10))),0))/96))*POWER(10,INT(LOG(R10))-2)) -> 22100 | T10: Ω
A11: 1.2 | B11: 0 | C11: 0 | D11: 0 | E11: 0 | F11: 0 | G11: 0 | H11: 0 | I11: 0 | J11: 0 | K11: 0 | L11: 0 | M11: 0 | Q11: Rfb2 | R11: =_Rfb2 -> 4209.52381 | S11: =IF(R11="OPEN","OPEN",IF(R11>(INT(0.5+100*POWER(10,IF(96*(LOG(R11)-INT(LOG(R11)))-ROUND(96*(LOG(R11)-INT(LOG(R11))),0)<0,ROUND(96*(LOG(R11)-INT(LOG(R11))),0)-1,ROUND(96*(LOG(R11)-INT(LOG(R11))),0))/96))*POWER(10,INT(LOG(R11))-2)+INT(0.5+100*POWER(10,(IF(96*(LOG(R11)-INT(LOG(R11)))-ROUND(96*(LOG(R11)-INT(LOG(R11))),0)<0,ROUND(96*(LOG(R11)-INT(LOG(R11))),0)-1,ROUND(96*(LOG(R11)-INT(LOG(R11))),0))+1)/96))*POWER(10,INT(LOG(R11))-2))/2,INT(0.5+100*POWER(10,(IF(96*(LOG(R11)-INT(LOG(R11)))-ROUND(96*(LOG(R11)-INT(LOG(R11))),0)<0,ROUND(96*(LOG(R11)-INT(LOG(R11))),0)-1,ROUND(96*(LOG(R11)-INT(LOG(R11))),0))+1)/96))*POWER(10,INT(LOG(R11))-2),INT(0.5+100*POWER(10,IF(96*(LOG(R11)-INT(LOG(R11)))-ROUND(96*(LOG(R11)-INT(LOG(R11))),0)<0,ROUND(96*(LOG(R11)-INT(LOG(R11))),0)-1,ROUND(96*(LOG(R11)-INT(LOG(R11))),0))/96))*POWER(10,INT(LOG(R11))-2))) -> 4220 | T11: Ω
A12: 1.5 | B12: 0 | C12: 0 | D12: 0 | E12: 0 | F12: 0 | G12: 0 | H12: 0 | I12: 0 | J12: 0 | K12: 0 | L12: 0 | M12: 0 | Q12: Rs1 | R12: =_Rs1 -> 12
A13: 1.8 | B13: 0 | C13: 0 | D13: 0 | E13: 0 | F13: 0 | G13: 0 | H13: 0 | I13: 0 | J13: 0 | K13: 0 | L13: 0 | M13: 0 | Q13: Rs2 | R13: =_Rs2 -> 1.216350485e-11
A14: 2.2 | B14: 0 | C14: 0 | D14: 0 | E14: 0 | F14: 0 | G14: 0 | H14: 0 | I14: 0 | J14: 0 | K14: 0 | L14: 0 | M14: 0 | Q14: Rs3 | R14: =_Rs3 -> 0.64
A15: 2.7 | B15: 0 | C15: 0 | D15: 0 | E15: 0 | F15: 0 | G15: 0 | H15: 0 | I15: 0 | J15: 0 | K15: 0 | L15: 0 | M15: 0
A16: 3.3 | B16: 0 | C16: 0 | D16: 0 | E16: 0 | F16: 0 | G16: 0 | H16: 0 | I16: 0 | J16: 0 | K16: 0 | L16: 0 | M16: 0 | Q16: Ruv1 | R16: =Ruvlo1 -> 400 | S16: =IF(R16="OPEN","OPEN",IF(R16>(INT(0.5+100*POWER(10,IF(96*(LOG(R16)-INT(LOG(R16)))-ROUND(96*(LOG(R16)-INT(LOG(R16))),0)<0,ROUND(96*(LOG(R16)-INT(LOG(R16))),0)-1,ROUND(96*(LOG(R16)-INT(LOG(R16))),0))/96))*POWER(10,INT(LOG(R16))-2)+INT(0.5+100*POWER(10,(IF(96*(LOG(R16)-INT(LOG(R16)))-ROUND(96*(LOG(R16)-INT(LOG(R16))),0)<0,ROUND(96*(LOG(R16)-INT(LOG(R16))),0)-1,ROUND(96*(LOG(R16)-INT(LOG(R16))),0))+1)/96))*POWER(10,INT(LOG(R16))-2))/2,INT(0.5+100*POWER(10,(IF(96*(LOG(R16)-INT(LOG(R16)))-ROUND(96*(LOG(R16)-INT(LOG(R16))),0)<0,ROUND(96*(LOG(R16)-INT(LOG(R16))),0)-1,ROUND(96*(LOG(R16)-INT(LOG(R16))),0))+1)/96))*POWER(10,INT(LOG(R16))-2),INT(0.5+100*POWER(10,IF(96*(LOG(R16)-INT(LOG(R16)))-ROUND(96*(LOG(R16)-INT(LOG(R16))),0)<0,ROUND(96*(LOG(R16)-INT(LOG(R16))),0)-1,ROUND(96*(LOG(R16)-INT(LOG(R16))),0))/96))*POWER(10,INT(LOG(R16))-2))) -> 402 | T16: kΩ
A17: 3.9 | B17: 0 | C17: 0 | D17: 0 | E17: 0 | F17: 0 | G17: 0 | H17: 0 | I17: 0 | J17: 0 | K17: 0 | L17: 0 | M17: 0 | Q17: Ruv2 | R17: =Ruvlo2 -> 14.70731707 | S17: 14.7 | T17: kΩ
A18: 4.7 | B18: 0 | C18: 0 | D18: 0 | E18: 0 | F18: 0 | G18: 0 | H18: 0 | I18: 0 | J18: 0 | K18: 0 | L18: 0 | M18: 0
A19: 5.6 | B19: 0 | C19: 0 | D19: 0 | E19: 0 | F19: 0 | G19: 0 | H19: 0 | I19: 0 | J19: 0 | K19: 0 | L19: 0 | M19: 0
A20: 6.8 | B20: 0 | C20: 0 | D20: 0 | E20: 0 | F20: 0 | G20: 0 | H20: 0 | I20: 0 | J20: 0 | K20: 0 | L20: 0 | M20: 0
A21: 8.2 | B21: 0 | C21: 0 | D21: 0 | E21: 0 | F21: 0 | G21: 0 | H21: 0 | I21: 0 | J21: 0 | K21: 0 | L21: 0 | M21: 0
A22: 10 | B22: 0 | C22: 0 | D22: 0 | E22: 0 | F22: 0 | G22: 0 | H22: 0 | I22: 0 | J22: 0 | K22: 0 | L22: 0 | M22: 0 | Q22: Rilim_shunt | R22: =Rilim_shunt_ideal -> 847.2479186 | S22: =IF(R22=0,0,IF(R22>(INT(0.5+100*POWER(10,IF(96*(LOG(R22)-INT(LOG(R22)))-ROUND(96*(LOG(R22)-INT(LOG(R22))),0)<0,ROUND(96*(LOG(R22)-INT(LOG(R22))),0)-1,ROUND(96*(LOG(R22)-INT(LOG(R22))),0))/96))*POWER(10,INT(LOG(R22))-2)+INT(0.5+100*POWER(10,(IF(96*(LOG(R22)-INT(LOG(R22)))-ROUND(96*(LOG(R22)-INT(LOG(R22))),0)<0,ROUND(96*(LOG(R22)-INT(LOG(R22))),0)-1,ROUND(96*(LOG(R22)-INT(LOG(R22))),0))+1)/96))*POWER(10,INT(LOG(R22))-2))/2,INT(0.5+100*POWER(10,(IF(96*(LOG(R22)-INT(LOG(R22)))-ROUND(96*(LOG(R22)-INT(LOG(R22))),0)<0,ROUND(96*(LOG(R22)-INT(LOG(R22))),0)-1,ROUND(96*(LOG(R22)-INT(LOG(R22))),0))+1)/96))*POWER(10,INT(LOG(R22))-2),INT(0.5+100*POWER(10,IF(96*(LOG(R22)-INT(LOG(R22)))-ROUND(96*(LOG(R22)-INT(LOG(R22))),0)<0,ROUND(96*(LOG(R22)-INT(LOG(R22))),0)-1,ROUND(96*(LOG(R22)-INT(LOG(R22))),0))/96))*POWER(10,INT(LOG(R22))-2))) -> 845 | T22: Ω
A23: 12 | B23: 0 | C23: 0 | D23: 0 | E23: 0 | F23: 0 | G23: 0 | H23: 12 | I23: 0 | J23: 0 | K23: 0 | L23: 0 | M23: 0 | Q23: Cilim | R23: =Cilim -> 1.216350485e-11 | S23: =H4*1000000000000 -> 12 | T23: pF
A24: 15 | B24: 0 | C24: 0 | D24: 0 | E24: 0 | F24: 0 | G24: 0 | H24: 0 | I24: 0 | J24: 0 | K24: 0 | L24: 0 | M24: 0
A25: 18 | B25: 0 | C25: 0 | D25: 0 | E25: 0 | F25: 0 | G25: 0 | H25: 0 | I25: 0 | J25: 0 | K25: 0 | L25: 0 | M25: 0
A26: 22 | B26: 0 | C26: 0 | D26: 0 | E26: 0 | F26: 0 | G26: 0 | H26: 0 | I26: 0 | J26: 0 | K26: 0 | L26: 0 | M26: 0
A27: 27 | B27: 0 | C27: 0 | D27: 0 | E27: 0 | F27: 0 | G27: 0 | H27: 0 | I27: 0 | J27: 0 | K27: 0 | L27: 0 | M27: 0 | Q27: Rc1 | R27: =S8/1000&" kΩ" -> 10 kΩ | S27: =S8/1000 -> 10 | T27: kΩ
A28: 33 | B28: 0 | C28: 0 | D28: 0 | E28: 0 | F28: 0 | G28: 0 | H28: 0 | I28: 0 | J28: 0 | K28: 0 | L28: 0 | M28: 0 | Q28: Cc1 | R28: =C4*1000000000000&" pF" -> 4700 pF | S28: =C4*1000000000000 -> 4700 | T28: pF
A29: 39 | B29: 0 | C29: 0 | D29: 0 | E29: 0 | F29: 0 | G29: 0 | H29: 0 | I29: 0 | J29: 0 | K29: 0 | L29: 0 | M29: 0 | Q29: Cc2 | R29: =D4*1000000000000&" pF" -> 150 pF | S29: =D4*1000000000000 -> 150 | T29: pF
A30: 47 | B30: 0 | C30: 0 | D30: 0 | E30: 0 | F30: 0 | G30: 0 | H30: 0 | I30: 0 | J30: 0 | K30: 0 | L30: 0 | M30: 0 | Q30: Rc2 | R30: =S9&" Ω" -> 130 Ω | S30: =S9 -> 130 | T30: Ω
A31: 56 | B31: 0 | C31: 0 | D31: 0 | E31: 0 | F31: 0 | G31: 0 | H31: 0 | I31: 0 | J31: 0 | K31: 0 | L31: 0 | M31: 0 | Q31: Cc3 | R31: =E4*1000000000000&" pF" -> 1500 pF | S31: =E4*1000000000000 -> 1500 | T31: pF
A32: 68 | B32: 0 | C32: 0 | D32: 0 | E32: 0 | F32: 0 | G32: 0 | H32: 0 | I32: 0 | J32: 0 | K32: 0 | L32: 0 | M32: 0
A33: 82 | B33: 0 | C33: 0 | D33: 0 | E33: 0 | F33: 0 | G33: 0 | H33: 0 | I33: 0 | J33: 0 | K33: 0 | L33: 0 | M33: 0
A34: =A22*10 -> 100 | B34: 0 | C34: 0 | D34: 0 | E34: 0 | F34: 0 | G34: 0 | H34: 0 | I34: 0 | J34: 0 | K34: 0 | L34: 0 | M34: 0
A35: =A23*10 -> 120 | B35: 0 | C35: 0 | D35: 150 | E35: 0 | F35: 0 | G35: 0 | H35: 0 | I35: 0 | J35: 0 | K35: 0 | L35: 0 | M35: 0
A36: 150 | B36: 0 | C36: 0 | D36: 0 | E36: 0 | F36: 0 | G36: 0 | H36: 0 | I36: 0 | J36: 0 | K36: 0 | L36: 0 | M36: 0
A37: 180 | B37: 0 | C37: 0 | D37: 0 | E37: 0 | F37: 0 | G37: 0 | H37: 0 | I37: 0 | J37: 0 | K37: 0 | L37: 0 | M37: 0
A38: 220 | B38: 0 | C38: 0 | D38: 0 | E38: 0 | F38: 0 | G38: 0 | H38: 0 | I38: 0 | J38: 0 | K38: 0 | L38: 0 | M38: =IF(IF((M$3*10^12-$A39)*(M$3*10^12-$A38)*-1<0,0,1)*IF(ABS(M$3*10^12-$A39)>(M$3*10^12-$A38),$A38,$A39)=M39,0,IF((M$3*10^12-$A39)*(M$3*10^12-$A38)*-1<0,0,1)*IF(ABS(M$3*10^12-$A39)>(M$3*10^12-$A38),$A38,$A39)) -> 0 | N38: =IF(IF((N$3*10^12-$A39)*(N$3*10^12-$A38)*-1<0,0,1)*IF(ABS(N$3*10^12-$A39)>(N$3*10^12-$A38),$A38,$A39)=N39,0,IF((N$3*10^12-$A39)*(N$3*10^12-$A38)*-1<0,0,1)*IF(ABS(N$3*10^12-$A39)>(N$3*10^12-$A38),$A38,$A39)) -> 
A39: 270 | B39: 0 | C39: =IF(IF((C$3*10^12-$A40)*(C$3*10^12-$A39)*-1<0,0,1)*IF(ABS(C$3*10^12-$A40)>(C$3*10^12-$A39),$A39,$A40)=C40,0,IF((C$3*10^12-$A40)*(C$3*10^12-$A39)*-1<0,0,1)*IF(ABS(C$3*10^12-$A40)>(C$3*10^12-$A39),$A39,$A40)) -> 0 | D39: 0 | E39: 0 | F39: 0 | G39: 0 | H39: 0 | I39: 0 | J39: 0 | K39: 0 | L39: 0 | M39: 0
A40: 330 | B40: 0 | C40: 0 | D40: 0 | E40: 0 | F40: 0 | G40: 0 | H40: 0 | I40: 0 | J40: 0 | K40: 0 | L40: 0 | M40: 0
A41: 390 | B41: 0 | C41: 0 | D41: 0 | E41: 0 | F41: 0 | G41: 0 | H41: 0 | I41: 0 | J41: 0 | K41: 0 | L41: 0 | M41: 0
A42: 470 | B42: 0 | C42: 0 | D42: 0 | E42: 0 | F42: 0 | G42: 0 | H42: 0 | I42: 0 | J42: 0 | K42: 0 | L42: 0 | M42: 0
A43: 560 | B43: 0 | C43: 0 | D43: 0 | E43: 0 | F43: 0 | G43: 0 | H43: 0 | I43: 0 | J43: 0 | K43: 0 | L43: 0 | M43: 0
A44: 680 | B44: 0 | C44: 0 | D44: 0 | E44: 0 | F44: 0 | G44: 0 | H44: 0 | I44: 0 | J44: 0 | K44: 0 | L44: 0 | M44: 0
A45: =A33*10 -> 820 | B45: 0 | C45: 0 | D45: 0 | E45: 0 | F45: 0 | G45: 0 | H45: 0 | I45: 0 | J45: 0 | K45: 0 | L45: 0 | M45: 0
A46: 1000 | B46: 0 | C46: 0 | D46: 0 | E46: 0 | F46: 0 | G46: 0 | H46: 0 | I46: 0 | J46: 0 | K46: 0 | L46: 0 | M46: 0
A47: 1200 | B47: 0 | C47: 0 | D47: 0 | E47: 0 | F47: 0 | G47: 0 | H47: 0 | I47: 0 | J47: 0 | K47: 0 | L47: 0 | M47: 0
A48: 1500 | B48: 0 | C48: 0 | D48: 0 | E48: 1500 | F48: 0 | G48: 0 | H48: 0 | I48: 0 | J48: 0 | K48: 0 | L48: 0 | M48: 0
A49: 1800 | B49: 0 | C49: 0 | D49: 0 | E49: 0 | F49: 0 | G49: 0 | H49: 0 | I49: 0 | J49: 0 | K49: 0 | L49: 0 | M49: 0
A50: 2200 | B50: 0 | C50: 0 | D50: 0 | E50: 0 | F50: 0 | G50: 0 | H50: 0 | I50: 0 | J50: 0 | K50: 0 | L50: 0 | M50: 0
A51: 2700 | B51: 0 | C51: 0 | D51: 0 | E51: 0 | F51: 0 | G51: 0 | H51: 0 | I51: 0 | J51: 0 | K51: 0 | L51: 0 | M51: 0
A52: 3300 | B52: 0 | C52: 0 | D52: 0 | E52: 0 | F52: 0 | G52: 0 | H52: 0 | I52: 0 | J52: 0 | K52: 0 | L52: 0 | M52: 0
A53: 3900 | B53: 0 | C53: 4700 | D53: 0 | E53: 0 | F53: 0 | G53: 0 | H53: 0 | I53: 0 | J53: 0 | K53: 0 | L53: 0 | M53: 0
A54: 4700 | B54: 0 | C54: 0 | D54: 0 | E54: 0 | F54: 0 | G54: 0 | H54: 0 | I54: 0 | J54: 0 | K54: 0 | L54: 0 | M54: 0
A55: 5600 | B55: 0 | C55: 0 | D55: 0 | E55: 0 | F55: 0 | G55: 0 | H55: 0 | I55: 0 | J55: 0 | K55: 0 | L55: 0 | M55: 0
A56: 6800 | B56: 0 | C56: 0 | D56: 0 | E56: 0 | F56: 0 | G56: 0 | H56: 0 | I56: 0 | J56: 0 | K56: 0 | L56: 0 | M56: 0
A57: 8200 | B57: 0 | C57: 0 | D57: 0 | E57: 0 | F57: 0 | G57: 0 | H57: 0 | I57: 0 | J57: 0 | K57: 0 | L57: 0 | M57: 0
A58: 10000 | B58: 0 | C58: 0 | D58: 0 | E58: 0 | F58: 0 | G58: 0 | H58: 0 | I58: 0 | J58: 0 | K58: 0 | L58: 0 | M58: 0
A59: 12000 | B59: 0 | C59: 0 | D59: 0 | E59: 0 | F59: 0 | G59: 0 | H59: 0 | I59: 0 | J59: 0 | K59: 0 | L59: 0 | M59: 0
A60: 15000 | B60: 0 | C60: 0 | D60: 0 | E60: 0 | F60: 0 | G60: 0 | H60: 0 | I60: 0 | J60: 0 | K60: 0 | L60: 0 | M60: 0
A61: 18000 | B61: 0 | C61: 0 | D61: 0 | E61: 0 | F61: 0 | G61: 0 | H61: 0 | I61: 0 | J61: 0 | K61: 0 | L61: 0 | M61: 0
A62: 22000 | B62: 0 | C62: 0 | D62: 0 | E62: 0 | F62: 0 | G62: 0 | H62: 0 | I62: 0 | J62: 0 | K62: 0 | L62: 0 | M62: 0
A63: 27000 | B63: 0 | C63: 0 | D63: 0 | E63: 0 | F63: 0 | G63: 0 | H63: 0 | I63: 0 | J63: 0 | K63: 0 | L63: 0 | M63: 0
A64: 33000 | B64: 0 | C64: 0 | D64: 0 | E64: 0 | F64: 0 | G64: 0 | H64: 0 | I64: 0 | J64: 0 | K64: 0 | L64: 0 | M64: 0
A65: 39000 | B65: 0 | C65: 0 | D65: 0 | E65: 0 | F65: 0 | G65: 0 | H65: 0 | I65: 0 | J65: 0 | K65: 0 | L65: 0 | M65: 0
A66: 47000 | B66: 47000 | C66: 0 | D66: 0 | E66: 0 | F66: 0 | G66: 0 | H66: 0 | I66: 0 | J66: 0 | K66: 0 | L66: 0 | M66: 0
A67: 56000 | B67: 0 | C67: 0 | D67: 0 | E67: 0 | F67: 0 | G67: 0 | H67: 0 | I67: 0 | J67: 0 | K67: 0 | L67: 0 | M67: 0
A68: 68000 | B68: 0 | C68: 0 | D68: 0 | E68: 0 | F68: 0 | G68: 0 | H68: 0 | I68: 0 | J68: 0 | K68: 0 | L68: 0 | M68: 0
A69: 82000 | B69: 0 | C69: 0 | D69: 0 | E69: 0 | F69: 0 | G69: 0 | H69: 0 | I69: 0 | J69: 0 | K69: =IF(IF((K$3*10^12-$A70)*(K$3*10^12-$A69)*-1<0,0,1)*IF(ABS(K$3*10^12-$A70)>(K$3*10^12-$A69),$A69,$A70)=K70,0,IF((K$3*10^12-$A70)*(K$3*10^12-$A69)*-1<0,0,1)*IF(ABS(K$3*10^12-$A70)>(K$3*10^12-$A69),$A69,$A70)) -> 0 | L69: 0 | M69: 0
A70: 100000 | B70: 0 | C70: 0 | D70: =IF(IF((D$3*10^12-$A71)*(D$3*10^12-$A70)*-1<0,0,1)*IF(ABS(D$3*10^12-$A71)>(D$3*10^12-$A70),$A70,$A71)=D71,0,IF((D$3*10^12-$A71)*(D$3*10^12-$A70)*-1<0,0,1)*IF(ABS(D$3*10^12-$A71)>(D$3*10^12-$A70),$A70,$A71)) -> 0 | E70: 0 | F70: 0 | G70: 0 | H70: 0 | I70: 0 | J70: 0 | K70: 0 | L70: 0 | M70: =IF(IF((M$3*10^12-$A71)*(M$3*10^12-$A70)*-1<0,0,1)*IF(ABS(M$3*10^12-$A71)>(M$3*10^12-$A70),$A70,$A71)=M71,0,IF((M$3*10^12-$A71)*(M$3*10^12-$A70)*-1<0,0,1)*IF(ABS(M$3*10^12-$A71)>(M$3*10^12-$A70),$A70,$A71)) -> 0 | N70: =IF(IF((N$3*10^12-$A71)*(N$3*10^12-$A70)*-1<0,0,1)*IF(ABS(N$3*10^12-$A71)>(N$3*10^12-$A70),$A70,$A71)=N71,0,IF((N$3*10^12-$A71)*(N$3*10^12-$A70)*-1<0,0,1)*IF(ABS(N$3*10^12-$A71)>(N$3*10^12-$A70),$A70,$A71)) -> 
A71: 120000 | B71: =IF(IF((B$3*10^12-$A72)*(B$3*10^12-$A71)*-1<0,0,1)*IF(ABS(B$3*10^12-$A72)>(B$3*10^12-$A71),$A71,$A72)=B72,0,IF((B$3*10^12-$A72)*(B$3*10^12-$A71)*-1<0,0,1)*IF(ABS(B$3*10^12-$A72)>(B$3*10^12-$A71),$A71,$A72)) -> 0 | C71: =IF(IF((C$3*10^12-$A72)*(C$3*10^12-$A71)*-1<0,0,1)*IF(ABS(C$3*10^12-$A72)>(C$3*10^12-$A71),$A71,$A72)=C72,0,IF((C$3*10^12-$A72)*(C$3*10^12-$A71)*-1<0,0,1)*IF(ABS(C$3*10^12-$A72)>(C$3*10^12-$A71),$A71,$A72)) -> 0 | D71: 0 | E71: 0 | F71: 0 | G71: =IF(IF((G$3*10^12-$A72)*(G$3*10^12-$A71)*-1<0,0,1)*IF(ABS(G$3*10^12-$A72)>(G$3*10^12-$A71),$A71,$A72)=G72,0,IF((G$3*10^12-$A72)*(G$3*10^12-$A71)*-1<0,0,1)*IF(ABS(G$3*10^12-$A72)>(G$3*10^12-$A71),$A71,$A72)) -> 0 | H71: =IF(IF((H$3*10^12-$A72)*(H$3*10^12-$A71)*-1<0,0,1)*IF(ABS(H$3*10^12-$A72)>(H$3*10^12-$A71),$A71,$A72)=H72,0,IF((H$3*10^12-$A72)*(H$3*10^12-$A71)*-1<0,0,1)*IF(ABS(H$3*10^12-$A72)>(H$3*10^12-$A71),$A71,$A72)) -> 0 | I71: =IF(IF((I$3*10^12-$A72)*(I$3*10^12-$A71)*-1<0,0,1)*IF(ABS(I$3*10^12-$A72)>(I$3*10^12-$A71),$A71,$A72)=I72,0,IF((I$3*10^12-$A72)*(I$3*10^12-$A71)*-1<0,0,1)*IF(ABS(I$3*10^12-$A72)>(I$3*10^12-$A71),$A71,$A72)) -> 0 | J71: =IF(IF((J$3*10^12-$A72)*(J$3*10^12-$A71)*-1<0,0,1)*IF(ABS(J$3*10^12-$A72)>(J$3*10^12-$A71),$A71,$A72)=J72,0,IF((J$3*10^12-$A72)*(J$3*10^12-$A71)*-1<0,0,1)*IF(ABS(J$3*10^12-$A72)>(J$3*10^12-$A71),$A71,$A72)) -> 0 | K71: 0 | L71: 0 | M71: 0
A72: 150000 | B72: 0 | C72: 0 | D72: 0 | E72: 0 | F72: 0 | G72: 0 | H72: 0 | I72: 0 | J72: 0 | K72: 0 | L72: 0 | M72: 0
A73: 180000 | B73: 0 | C73: 0 | D73: 0 | E73: 0 | F73: 0 | G73: 0 | H73: 0 | I73: 0 | J73: 0 | K73: 0 | L73: 0 | M73: 0
A74: 220000 | B74: 0 | C74: 0 | D74: 0 | E74: 0 | F74: 0 | G74: 0 | H74: 0 | I74: 0 | J74: 0 | K74: 0 | L74: 0 | M74: 0
A75: 270000 | B75: 0 | C75: 0 | D75: 0 | E75: 0 | F75: 0 | G75: 0 | H75: 0 | I75: 0 | J75: 0 | K75: 0 | L75: 0 | M75: 0
A76: 330000 | B76: 0 | C76: 0 | D76: 0 | E76: 0 | F76: 0 | G76: 0 | H76: 0 | I76: 0 | J76: 0 | K76: 0 | L76: 0 | M76: 0
A77: 390000 | B77: 0 | C77: 0 | D77: 0 | E77: 0 | F77: 0 | G77: 0 | H77: 0 | I77: 0 | J77: 0 | K77: 0 | L77: 0 | M77: 0
A78: 470000 | B78: 0 | C78: 0 | D78: 0 | E78: 0 | F78: 0 | G78: 0 | H78: 0 | I78: 0 | J78: 0 | K78: 0 | L78: 0 | M78: 0
A79: 560000 | B79: 0 | C79: 0 | D79: 0 | E79: 0 | F79: 0 | G79: 0 | H79: 0 | I79: 0 | J79: 0 | K79: 0 | L79: 0 | M79: 0
A80: 680000 | B80: 0 | C80: 0 | D80: 0 | E80: 0 | F80: 0 | G80: 0 | H80: 0 | I80: 0 | J80: 0 | K80: 0 | L80: 0 | M80: 0
A81: 820000 | B81: 0 | C81: 0 | D81: 0 | E81: 0 | F81: 0 | G81: 0 | H81: 0 | I81: 0 | J81: 0 | K81: 0 | L81: 0 | M81: 0
A82: 1000000 | B82: 0 | C82: 0 | D82: 0 | E82: 0 | F82: 0 | G82: 0 | H82: 0 | I82: 0 | J82: 0 | K82: 0 | L82: 0 | M82: 0
A83: 1200000 | B83: 0 | C83: 0 | D83: 0 | E83: 0 | F83: 0 | G83: 0 | H83: 0 | I83: 0 | J83: 0 | K83: 0 | L83: 0 | M83: 0
A84: 1500000 | B84: 0 | C84: 0 | D84: 0 | E84: 0 | F84: 0 | G84: 0 | H84: 0 | I84: 0 | J84: 0 | K84: 0 | L84: 0 | M84: 0
A85: 1800000 | B85: 0 | C85: 0 | D85: 0 | E85: 0 | F85: 0 | G85: 0 | H85: 0 | I85: 0 | J85: 0 | K85: 0 | L85: 0 | M85: 0
A86: 2200000 | B86: 0 | C86: 0 | D86: 0 | E86: 0 | F86: 0 | G86: 0 | H86: 0 | I86: 0 | J86: 0 | K86: 0 | L86: 0 | M86: 0
A87: 2700000 | B87: 0 | C87: 0 | D87: 0 | E87: 0 | F87: 0 | G87: 0 | H87: 0 | I87: 0 | J87: 0 | K87: 0 | L87: 0 | M87: 0
A88: 3300000 | B88: 0 | C88: 0 | D88: 0 | E88: 0 | F88: 0 | G88: 0 | H88: 0 | I88: 0 | J88: 0 | K88: 0 | L88: 0 | M88: 0
A89: 3900000 | B89: 0 | C89: 0 | D89: 0 | E89: 0 | F89: 0 | G89: 0 | H89: 0 | I89: 0 | J89: 0 | K89: 0 | L89: 0 | M89: 0
A90: 4700000 | B90: 0 | C90: 0 | D90: 0 | E90: 0 | F90: 0 | G90: 0 | H90: 0 | I90: 0 | J90: 0 | K90: 0 | L90: 0 | M90: 0
A91: 5600000 | B91: 0 | C91: 0 | D91: 0 | E91: 0 | F91: 0 | G91: 0 | H91: 0 | I91: 0 | J91: 0 | K91: 0 | L91: 0 | M91: 0
A92: 6800000 | B92: 0 | C92: 0 | D92: 0 | E92: 0 | F92: 0 | G92: 0 | H92: 0 | I92: 0 | J92: 0 | K92: 0 | L92: 0 | M92: 0
A93: 8200000 | B93: 0 | C93: 0 | D93: 0 | E93: 0 | F93: 0 | G93: 0 | H93: 0 | I93: 0 | J93: 0 | K93: 0 | L93: 0 | M93: 0
A94: 10000000 | B94: 0 | C94: 0 | D94: 0 | E94: 0 | F94: 0 | G94: 0 | H94: 0 | I94: 0 | J94: 0 | K94: 0 | L94: 0 | M94: 0
A95: 12000000 | B95: 0 | C95: 0 | D95: 0 | E95: 0 | F95: 0 | G95: 0 | H95: 0 | I95: 0 | J95: 0 | K95: 0 | L95: 0 | M95: 0
A96: 15000000 | B96: 0 | C96: 0 | D96: 0 | E96: 0 | F96: 0 | G96: 0 | H96: 0 | I96: 0 | J96: 0 | K96: 0 | L96: 0 | M96: 0
A97: 18000000 | B97: 0 | C97: 0 | D97: 0 | E97: 0 | F97: 0 | G97: 0 | H97: 0 | I97: 0 | J97: 0 | K97: 0 | L97: 0 | M97: 0
A98: 22000000 | B98: 0 | C98: 0 | D98: 0 | E98: 0 | F98: 0 | G98: 0 | H98: 0 | I98: 0 | J98: 0 | K98: 0 | L98: 0 | M98: 0
A99: =A87*10 -> 27000000 | B99: 0 | C99: 0 | D99: 0 | E99: 0 | F99: 0 | G99: 0 | H99: 0 | I99: 0 | J99: 0 | K99: 0 | L99: 0 | M99: 0
A100: 33000000 | B100: 0 | C100: 0 | D100: 0 | E100: 0 | F100: 0 | G100: 0 | H100: 0 | I100: 0 | J100: 0 | K100: 0 | L100: 0 | M100: 0
A101: 39000000 | B101: 0 | C101: 0 | D101: 0 | E101: 0 | F101: 0 | G101: 0 | H101: 0 | I101: 0 | J101: 0 | K101: 0 | L101: 0 | M101: 0
A102: 47000000 | B102: 0 | C102: 0 | D102: 0 | E102: 0 | F102: 0 | G102: 47000000 | H102: 0 | I102: 0 | J102: 0 | K102: 0 | L102: 0 | M102: =IF(IF((M$3*10^12-$A103)*(M$3*10^12-$A102)*-1<0,0,1)*IF(ABS(M$3*10^12-$A103)>(M$3*10^12-$A102),$A102,$A103)=M103,0,IF((M$3*10^12-$A103)*(M$3*10^12-$A102)*-1<0,0,1)*IF(ABS(M$3*10^12-$A103)>(M$3*10^12-$A102),$A102,$A103)) -> 0 | N102: =IF(IF((N$3*10^12-$A103)*(N$3*10^12-$A102)*-1<0,0,1)*IF(ABS(N$3*10^12-$A103)>(N$3*10^12-$A102),$A102,$A103)=N103,0,IF((N$3*10^12-$A103)*(N$3*10^12-$A102)*-1<0,0,1)*IF(ABS(N$3*10^12-$A103)>(N$3*10^12-$A102),$A102,$A103)) -> 
A103: 56000000 | B103: 0 | C103: 0 | D103: 0 | E103: 0 | F103: 0 | G103: =IF(IF((G$3*10^12-$A104)*(G$3*10^12-$A103)*-1<0,0,1)*IF(ABS(G$3*10^12-$A104)>(G$3*10^12-$A103),$A103,$A104)=G104,0,IF((G$3*10^12-$A104)*(G$3*10^12-$A103)*-1<0,0,1)*IF(ABS(G$3*10^12-$A104)>(G$3*10^12-$A103),$A103,$A104)) -> 0 | H103: =IF(IF((H$3*10^12-$A104)*(H$3*10^12-$A103)*-1<0,0,1)*IF(ABS(H$3*10^12-$A104)>(H$3*10^12-$A103),$A103,$A104)=H104,0,IF((H$3*10^12-$A104)*(H$3*10^12-$A103)*-1<0,0,1)*IF(ABS(H$3*10^12-$A104)>(H$3*10^12-$A103),$A103,$A104)) -> 0 | I103: =IF(IF((I$3*10^12-$A104)*(I$3*10^12-$A103)*-1<0,0,1)*IF(ABS(I$3*10^12-$A104)>(I$3*10^12-$A103),$A103,$A104)=I104,0,IF((I$3*10^12-$A104)*(I$3*10^12-$A103)*-1<0,0,1)*IF(ABS(I$3*10^12-$A104)>(I$3*10^12-$A103),$A103,$A104)) -> 0 | J103: =IF(IF((J$3*10^12-$A104)*(J$3*10^12-$A103)*-1<0,0,1)*IF(ABS(J$3*10^12-$A104)>(J$3*10^12-$A103),$A103,$A104)=J104,0,IF((J$3*10^12-$A104)*(J$3*10^12-$A103)*-1<0,0,1)*IF(ABS(J$3*10^12-$A104)>(J$3*10^12-$A103),$A103,$A104)) -> 0 | K103: 0 | L103: 0 | M103: 0
A104: 68000000 | B104: 0 | C104: 0 | D104: 0 | E104: 0 | F104: 0 | G104: 0 | H104: 0 | I104: 0 | J104: 0 | K104: 0 | L104: 0 | M104: 0
A105: 82000000 | B105: 0 | C105: 0 | D105: 0 | E105: 0 | F105: 0 | G105: 0 | H105: 0 | I105: 0 | J105: 0 | K105: 0 | L105: 0 | M105: 0
A106: 100000000 | B106: 0 | C106: 0 | D106: 0 | E106: 0 | F106: 0 | G106: 0 | H106: 0 | I106: 0 | J106: 0 | K106: 0 | L106: 0 | M106: 0
A107: 120000000 | B107: 0 | C107: 0 | D107: 0 | E107: 0 | F107: 0 | G107: 0 | H107: 0 | I107: 0 | J107: 0 | K107: 0 | L107: 0 | M107: 0
A108: 150000000 | B108: 0 | C108: 0 | D108: 0 | E108: 0 | F108: 0 | G108: 0 | H108: 0 | I108: 0 | J108: 0 | K108: 0 | L108: 0 | M108: 0
A109: 180000000 | B109: 0 | C109: 0 | D109: 0 | E109: 0 | F109: 220000000 | G109: 0 | H109: 0 | I109: 0 | J109: 0 | K109: 0 | L109: 0 | M109: 0
A110: 220000000 | B110: 0 | C110: 0 | D110: 0 | E110: 0 | F110: 0 | G110: 0 | H110: 0 | I110: 0 | J110: 0 | K110: 0 | L110: 0 | M110: 0
A111: 270000000 | B111: 0 | C111: 0 | D111: 0 | E111: 0 | F111: 0 | G111: 0 | H111: 0 | I111: 0 | J111: 0 | K111: 0 | L111: 0 | M111: 0
A112: 330000000 | B112: 0 | C112: 0 | D112: 0 | E112: 0 | F112: 0 | G112: 0 | H112: 0 | I112: 0 | J112: 0 | K112: 0 | L112: 0 | M112: 0
A113: 390000000 | B113: 0 | C113: 0 | D113: 0 | E113: 0 | F113: 0 | G113: 0 | H113: 0 | I113: 0 | J113: 0 | K113: 0 | L113: 0 | M113: 0
A114: 470000000 | B114: 0 | C114: 0 | D114: 0 | E114: 0 | F114: 0 | G114: 0 | H114: 0 | I114: 0 | J114: 0 | K114: 0 | L114: 0 | M114: 0
A115: 560000000 | B115: 0 | C115: 0 | D115: 0 | E115: 0 | F115: 0 | G115: 0 | H115: 0 | I115: 0 | J115: 0 | K115: 0 | L115: 0 | M115: 0
A116: 680000000 | B116: 0 | C116: 0 | D116: 0 | E116: 0 | F116: 0 | G116: 0 | H116: 0 | I116: 0 | J116: 0 | K116: 0 | L116: 0 | M116: 0
A117: 820000000 | B117: 0 | C117: 0 | D117: 0 | E117: 0 | F117: 0 | G117: 0 | H117: 0 | I117: 0 | J117: 0 | K117: 0 | L117: 0 | M117: 0
A118: 1000000000 | B118: 0 | C118: 0 | D118: 0 | E118: 0 | F118: 0 | G118: 0 | H118: 0 | I118: 0 | J118: 0 | K118: 0 | L118: 0 | M118: 0
A119: 1200000000 | B119: 0 | C119: 0 | D119: 0 | E119: 0 | F119: 0 | G119: 0 | H119: 0 | I119: 0 | J119: 0 | K119: 0 | L119: 0 | M119: 0
A120: 1500000000 | B120: 0 | C120: 0 | D120: 0 | E120: 0 | F120: 0 | G120: 0 | H120: 0 | I120: 0 | J120: 0 | K120: 0 | L120: 0 | M120: 0
A121: 1800000000 | B121: 0 | C121: 0 | D121: 0 | E121: 0 | F121: 0 | G121: 0 | H121: 0 | I121: 0 | J121: 0 | K121: 0 | L121: 0 | M121: 0
A122: 2200000000 | B122: 0 | C122: 0 | D122: 0 | E122: 0 | F122: 0 | G122: 0 | H122: 0 | I122: 0 | J122: 0 | K122: 0 | L122: 0 | M122: 0
A123: 2700000000 | B123: 0 | C123: 0 | D123: 0 | E123: 0 | F123: 0 | G123: 0 | H123: 0 | I123: 0 | J123: 0 | K123: 0 | L123: 0 | M123: 0
A124: 3300000000 | B124: 0 | C124: 0 | D124: 0 | E124: 0 | F124: 0 | G124: 0 | H124: 0 | I124: 0 | J124: 0 | K124: 0 | L124: 0 | M124: 0
A125: 3900000000 | B125: 0 | C125: 0 | D125: 0 | E125: 0 | F125: 0 | G125: 0 | H125: 0 | I125: 0 | J125: 0 | K125: 0 | L125: 0 | M125: 0
A126: 4700000000 | B126: 0 | C126: 0 | D126: 0 | E126: 0 | F126: 0 | G126: 0 | H126: 0 | I126: 0 | J126: 0 | K126: 0 | L126: 0 | M126: 0
A127: 5600000000 | B127: 0 | C127: 0 | D127: 0 | E127: 0 | F127: 0 | G127: 0 | H127: 0 | I127: 0 | J127: 0 | K127: 0 | L127: 0 | M127: 0
A128: 6800000000 | B128: 0 | C128: 0 | D128: 0 | E128: 0 | F128: 0 | G128: 0 | H128: 0 | I128: 0 | J128: 0 | K128: 0 | L128: 0 | M128: 0
A129: 8200000000 | B129: 0 | C129: 0 | D129: 0 | E129: 0 | F129: 0 | G129: 0 | H129: 0 | I129: 0 | J129: 0 | K129: 0 | L129: 0 | M129: 0
A130: 10000000000 | B130: 0 | C130: 0 | D130: 0 | E130: 0 | F130: 0 | G130: 0 | H130: 0 | I130: 0 | J130: 0 | K130: 0 | L130: 0 | M130: 0
A131: 12000000000 | B131: 0 | C131: 0 | D131: 0 | E131: 0 | F131: 0 | G131: 0 | H131: 0 | I131: 0 | J131: 0 | K131: 0 | L131: 0 | M131: 0
A132: 15000000000 | B132: 0 | C132: 0 | D132: 0 | E132: 0 | F132: 0 | G132: 0 | H132: 0 | I132: 0 | J132: 0 | K132: 0 | L132: 0 | M132: 0
A133: 18000000000 | B133: 0 | C133: 0 | D133: 0 | E133: 0 | F133: 0 | G133: 0 | H133: 0 | I133: 0 | J133: 0 | K133: =IF(IF((K$3*10^12-$A134)*(K$3*10^12-$A133)*-1<0,0,1)*IF(ABS(K$3*10^12-$A134)>(K$3*10^12-$A133),$A133,$A134)=K134,0,IF((K$3*10^12-$A134)*(K$3*10^12-$A133)*-1<0,0,1)*IF(ABS(K$3*10^12-$A134)>(K$3*10^12-$A133),$A133,$A134)) -> 0 | L133: =IF(IF((L$3*10^12-$A134)*(L$3*10^12-$A133)*-1<0,0,1)*IF(ABS(L$3*10^12-$A134)>(L$3*10^12-$A133),$A133,$A134)=L134,0,IF((L$3*10^12-$A134)*(L$3*10^12-$A133)*-1<0,0,1)*IF(ABS(L$3*10^12-$A134)>(L$3*10^12-$A133),$A133,$A134)) -> 0 | M133: 0
A134: 22000000000 | B134: 0 | C134: 0 | D134: 0 | E134: 0 | F134: =IF(IF((F$3*10^12-$A135)*(F$3*10^12-$A134)*-1<0,0,1)*IF(ABS(F$3*10^12-$A135)>(F$3*10^12-$A134),$A134,$A135)=F135,0,IF((F$3*10^12-$A135)*(F$3*10^12-$A134)*-1<0,0,1)*IF(ABS(F$3*10^12-$A135)>(F$3*10^12-$A134),$A134,$A135)) -> 0 | G134: 0 | H134: 0 | I134: 0 | J134: 0 | K134: =IF(IF((K$3*10^12-$A135)*(K$3*10^12-$A134)*-1<0,0,1)*IF(ABS(K$3*10^12-$A135)>(K$3*10^12-$A134),$A134,$A135)=K135,0,IF((K$3*10^12-$A135)*(K$3*10^12-$A134)*-1<0,0,1)*IF(ABS(K$3*10^12-$A135)>(K$3*10^12-$A134),$A134,$A135)) -> 0 | L134: =IF(IF((L$3*10^12-$A135)*(L$3*10^12-$A134)*-1<0,0,1)*IF(ABS(L$3*10^12-$A135)>(L$3*10^12-$A134),$A134,$A135)=L135,0,IF((L$3*10^12-$A135)*(L$3*10^12-$A134)*-1<0,0,1)*IF(ABS(L$3*10^12-$A135)>(L$3*10^12-$A134),$A134,$A135)) -> 0 | M134: =IF(IF((M$3*10^12-$A135)*(M$3*10^12-$A134)*-1<0,0,1)*IF(ABS(M$3*10^12-$A135)>(M$3*10^12-$A134),$A134,$A135)=M135,0,IF((M$3*10^12-$A135)*(M$3*10^12-$A134)*-1<0,0,1)*IF(ABS(M$3*10^12-$A135)>(M$3*10^12-$A134),$A134,$A135)) -> 0 | N134: =IF(IF((N$3*10^12-$A135)*(N$3*10^12-$A134)*-1<0,0,1)*IF(ABS(N$3*10^12-$A135)>(N$3*10^12-$A134),$A134,$A135)=N135,0,IF((N$3*10^12-$A135)*(N$3*10^12-$A134)*-1<0,0,1)*IF(ABS(N$3*10^12-$A135)>(N$3*10^12-$A134),$A134,$A135)) -> 
A135: 27000000000 | B135: =IF(IF((B$3*10^12-$A136)*(B$3*10^12-$A135)*-1<0,0,1)*IF(ABS(B$3*10^12-$A136)>(B$3*10^12-$A135),$A135,$A136)=B136,0,IF((B$3*10^12-$A136)*(B$3*10^12-$A135)*-1<0,0,1)*IF(ABS(B$3*10^12-$A136)>(B$3*10^12-$A135),$A135,$A136)) -> 0 | C135: =IF(IF((C$3*10^12-$A136)*(C$3*10^12-$A135)*-1<0,0,1)*IF(ABS(C$3*10^12-$A136)>(C$3*10^12-$A135),$A135,$A136)=C136,0,IF((C$3*10^12-$A136)*(C$3*10^12-$A135)*-1<0,0,1)*IF(ABS(C$3*10^12-$A136)>(C$3*10^12-$A135),$A135,$A136)) -> 0 | D135: 0 | E135: 0 | F135: 0 | G135: 0 | H135: 0 | I135: 0 | J135: 0 | K135: 0 | L135: 0 | M135: 0
A136: 33000000000 | B136: 0 | C136: 0 | D136: 0 | E136: 0 | F136: 0 | G136: 0 | H136: 0 | I136: 0 | J136: 0 | K136: 0 | L136: 0 | M136: 0
A137: 39000000000 | B137: 0 | C137: 0 | D137: 0 | E137: 0 | F137: 0 | G137: 0 | H137: 0 | I137: 0 | J137: 0 | K137: 0 | L137: 0 | M137: 0
A138: 47000000000 | B138: 0 | C138: 0 | D138: 0 | E138: 0 | F138: 0 | G138: 0 | H138: 0 | I138: 0 | J138: 0 | K138: 0 | L138: 0 | M138: 0
A139: 56000000000 | B139: 0 | C139: 0 | D139: 0 | E139: 0 | F139: 0 | G139: 0 | H139: 0 | I139: 0 | J139: 0 | K139: 0 | L139: 0 | M139: 0
A140: 68000000000 | B140: 0 | C140: 0 | D140: 0 | E140: 0 | F140: 0 | G140: 0 | H140: 0 | I140: 0 | J140: 0 | K140: 0 | L140: 0 | M140: 0
A141: 82000000000 | B141: 0 | C141: 0 | D141: 0 | E141: 0 | F141: 0 | G141: 0 | H141: 0 | I141: 0 | J141: 0 | K141: 0 | L141: 0 | M141: 0
A142: 100000000000 | B142: 0 | C142: 0 | D142: 0 | E142: 0 | F142: 0 | G142: 0 | H142: 0 | I142: 0 | J142: 0 | K142: 0 | L142: 0 | M142: 0
A143: 120000000000 | B143: 0 | C143: 0 | D143: 0 | E143: 0 | F143: 0 | G143: 0 | H143: 0 | I143: 0 | J143: 0 | K143: 0 | L143: 0 | M143: 0
A144: 150000000000 | B144: 0 | C144: 0 | D144: 0 | E144: 0 | F144: 0 | G144: 0 | H144: 0 | I144: 0 | J144: 0 | K144: 0 | L144: 0 | M144: 0
A145: 180000000000 | B145: 0 | C145: 0 | D145: 0 | E145: 0 | F145: 0 | G145: 0 | H145: 0 | I145: 0 | J145: 0 | K145: 0 | L145: 0 | M145: 0
A146: 220000000000 | B146: 0 | C146: 0 | D146: 0 | E146: 0 | F146: 0 | G146: 0 | H146: 0 | I146: 0 | J146: 0 | K146: 0 | L146: 0 | M146: 0
A147: 270000000000 | B147: 0 | C147: 0 | D147: 0 | E147: 0 | F147: 0 | G147: 0 | H147: 0 | I147: 0 | J147: 0 | K147: 0 | L147: 0 | M147: 0
A148: 330000000000 | B148: 0 | C148: 0 | D148: 0 | E148: 0 | F148: 0 | G148: 0 | H148: 0 | I148: 0 | J148: 0 | K148: 0 | L148: 0 | M148: 0
A149: 390000000000 | B149: 0 | C149: 0 | D149: 0 | E149: 0 | F149: 0 | G149: 0 | H149: 0 | I149: 0 | J149: 0 | K149: 0 | L149: 0 | M149: 0
A150: 470000000000 | B150: 0 | C150: 0 | D150: 0 | E150: 0 | F150: 0 | G150: 0 | H150: 0 | I150: 0 | J150: 0 | K150: 0 | L150: 0 | M150: 0
A151: 560000000000 | B151: 0 | C151: 0 | D151: 0 | E151: 0 | F151: 0 | G151: 0 | H151: 0 | I151: 0 | J151: 0 | K151: 0 | L151: 0 | M151: 0
A152: 680000000000 | B152: 0 | C152: 0 | D152: 0 | E152: 0 | F152: 0 | G152: 0 | H152: 0 | I152: 0 | J152: 0 | K152: 0 | L152: 0 | M152: 0
A153: 820000000000 | B153: 0 | C153: 0 | D153: 0 | E153: 0 | F153: 0 | G153: 0 | H153: 0 | I153: 0 | J153: 0 | K153: 0 | L153: 0 | M153: 0
A154: 1000000000000 | B154: 0 | C154: 0 | D154: 0 | E154: 0 | F154: 0 | G154: 0 | H154: 0 | I154: 0 | J154: 0 | K154: 0 | L154: 0 | M154: 0
A155: 1200000000000 | B155: 0 | C155: 0 | D155: 0 | E155: 0 | F155: 0 | G155: 0 | H155: 0 | I155: 0 | J155: 0 | K155: 0 | L155: 0 | M155: 0
A156: 1500000000000 | B156: 0 | C156: 0 | D156: 0 | E156: 0 | F156: 0 | G156: 0 | H156: 0 | I156: 0 | J156: 0 | K156: 0 | L156: 0 | M156: 0
A157: 1800000000000 | B157: 0 | C157: 0 | D157: 0 | E157: 0 | F157: 0 | G157: 0 | H157: 0 | I157: 0 | J157: 0 | K157: 0 | L157: 0 | M157: 0
A158: 2200000000000 | B158: 0 | C158: 0 | D158: 0 | E158: 0 | F158: 0 | G158: 0 | H158: 0 | I158: 0 | J158: 0 | K158: 0 | L158: 0 | M158: 0
A159: 2700000000000 | B159: 2700000000000 | C159: 2700000000000 | D159: 2700000000000 | E159: 2700000000000 | F159: 2700000000000 | G159: 2700000000000 | H159: 2700000000000 | I159: 2700000000000 | J159: 2700000000000 | K159: 0 | L159: 2700000000000 | M159: 2700000000000

Sheet Bode Plots Calculations (hidden)
A1: Bode Plot Setup | AC1: EA MODELING
AT3: =AT9/10000000000000 -> -5.623967105e-05 | AU3: =AU9/10000000000000 -> -0.03281533983
AT4: =AT3*1000 -> -0.05623967105 | AU4: =AU3*1000 -> -32.81533983 | BJ4: XOVER SEARCH
AC5: a | AD5: b | AE5: c | AF5: d | AJ5: a | AK5: b | AL5: c | AM5: d | BJ5: xover | BK5: =SUM(BJ9:BJ626)/1000 -> 36.5
C6: Output Filter | J6: Pwm | M6: Compensation | X6: Design Output | AC6: Z1 | AJ6: Z3 | AQ6: Ea Gain BW | AT6: Complex EA | BA6: Actual EA Response | BF6: Actual Open Loop System Response | BJ6: phase margin | BK6: =SUM(BK10:BK627) -> 60.21211112 | BM6: Comp To Output
C7: Esr zero | F7: LC Double Pole | M7: Origin Pole | O7: Fz1 | Q7: Fz2 | S7: Fp1 | U7: Fp2 | AC7: Num | AE7: Den | AG7: Total | AJ7: Num | AL7: Den | AN7: Total | AQ7: A(s) | AT7: Num | AW7: Den
A8: Frequency | C8: Gain | D8: Phase | F8: Gain | H8: Phase | J8: Gain | M8: Gain | N8: Phase | O8: Gain | P8: Phase | Q8: Gain | R8: Phase | S8: Gain | T8: Phase | U8: Gain | V8: Phase | X8: Total Gain | Y8: Total Phase | Z8: Phase margin | AC8: Real | AD8: Imag | AE8: Real | AF8: Imag | AG8: Z1 Real | AH8: Z1 Imag | AJ8: Real | AK8: Imag | AL8: Real | AM8: Imag | AN8: Z3 Real | AO8: Z3 Imag | AQ8: Real | AR8: Imag | AT8: Real | AU8: Imag | AV8: Phase | AW8: Real | AX8: Imag | AY8: Phase | BA8: EAGain | BB8: Ea Gain (db) | BC8: Ea Phase | BF8: Total Gain | BG8: Total Phase | BH8: Total Phase Margin | BM8: Total Gain | BN8: Total Phase margin | BT8: Output to Comp 5V In @ 500kHz 0A Iout 25DegC
A9: 1 | B9: =A9/1000 -> 0.001 | C9: =SQRT((A9/Fesr)^2+1) -> 1 | D9: =ATAN(A9/Fesr) -> 1.25663706e-06 | F9: =(Ro/(Ro+Rdcr))/SQRT((A9/(Q*Fo))^2+(1-(A9^2/Fo^2))^2) -> 0.9881421403 | G9: =-ATAN(A9*Fo/(Q*(Fo^2-A9^2))) -> -7.75003388e-05 | H9: =IF(G9>0,G9-Pi,G9) -> -7.75003388e-05 | J9: =Vin/Vramp -> 15 | M9: =1/(2*Pi*_Rfb1*(Cc1ea_u+Cc2ea_u)*A9) -> 1484.862091 | N9: =-Pi/2 -> -1.570796325 | O9: =SQRT(1+(A9/Fz1_u)^2) -> 1.000000044 | P9: =ATAN2(Fz1_u,A9) -> 0.0002953097005 | Q9: =SQRT(1+(A9/Fz2_u)^2) -> 1.000000022 | R9: =ATAN2(Fz2_u,A9) -> 0.0002095128108 | S9: =1/SQRT(1+(A9/Fp1_u)^2) -> 1 | T9: =-ATAN2(Fp1_u,A9) -> -1.225221133e-06 | U9: =1/SQRT(1+(A9/Fp2_u)^2) -> 1 | V9: =-ATAN2(Fp2_u,A9) -> -9.133289972e-06 | X9: =20*LOG(C9*J9*O9*Q9*F9*M9*S9*U9) -> 86.85193656 | Y9: =(180/Pi)*(D9+H9+N9+P9+R9+T9+V9) -> -89.97603774 | Z9: =Y9+180 -> 90.02396226 | AC9: 1 | AD9: =Rcea1_u*Cc1ea_u*A9*2*Pi -> 0.0002953097091 | AE9: =-Rcea1_u*Cc1ea_u*Cc2ea_u*(A9*2*Pi)^2 -> -2.783228435e-13 | AF9: =(Cc2ea_u+Cc1ea_u)*A9*2*Pi -> 3.047344871e-08 | AG9: =AC9*AE9/(AE9^2+AF9^2)+AD9*AF9/(AE9^2+AF9^2) -> 9391.008608 | AH9: =AD9*AE9/(AE9^2+AF9^2)-AC9*AF9/(AE9^2+AF9^2) -> -32815452.31 | AI9: =SQRT(AG9^2+AH9^2) -> 32815453.65 | AJ9: =_Rfb1 -> 22100 | AK9: =_Rfb1*Rcea2_u*Cc3ea_u*A9*2*Pi -> 0.02707738705 | AL9: 1 | AM9: =(_Rfb1+Rcea2_u)*Cc3ea_u*A9*2*Pi -> 0.0002095128138 | AN9: =AJ9*AL9/(AL9^2+AM9^2)+AK9*AM9/(AL9^2+AM9^2) -> 22099.99904 | AO9: =AK9*AL9/(AL9^2+AM9^2)-AJ9*AM9/(AL9^2+AM9^2) -> -4.603155597 | AP9: =SQRT(AN9^2+AO9^2) -> 22099.99951 | AQ9: =Eadcg/(1+(Eadcg*A9/GBP)^2) -> 9999.96 | AR9: =-(A9*Eadcg*Eadcg/GBP)/(1+(Eadcg*A9/GBP)^2) -> -19.99992 | AT9: =-AR9*AH9+AG9*AQ9 -> -562396710.5 | AU9: =AQ9*AH9+AG9*AR9 -> -3.281533983e+11 | AV9: =ATAN2(AT9,AU9) -> -1.572510148 | AW9: =AG9-AH9*AO9/_Rfb2+AG9*AN9/_Rfb2+AN9-AO9*AR9+AQ9*AN9 -> 221043924.1 | AX9: =AH9+AH9*AN9/_Rfb2+AG9*AO9/_Rfb2+AO9+AO9*AQ9+AN9*AR9 -> -205584613.9 | AY9: =ATAN2(AW9,AX9) -> -0.7491780142 | BA9: =SQRT(AT9^2+AU9^2)/SQRT(AW9^2+AX9^2) -> 1087.070477 | BB9: =20*LOG(BA9) -> 60.72515403 | BC9: =AV9-AY9 -> -0.8233321335 | BD9: =BC9*180/Pi-180 -> -227.1734564 | BF9: =20*LOG(BA9*J9*F9*C9) -> 84.14336762 | BG9: =(180/Pi)*(D9+H9+BC9) -> -47.17782488 | BH9: =IF(BG9>180,BG9-180,BG9+180) -> 132.8221751 | BI9: =IF(BH9>180,BH9-360,BH9) -> 132.8221751 | BJ9: =SUM((BF10<0)*(BF9>0))*A9 -> 0 | BK9: =IF(BJ9>0,BI9,0) -> 0 | BM9: =20*LOG(J9*F9*C9) -> 23.41821359 | BN9: =(H9+D9)*180/Pi -> -0.004368442329 | BQ9: =20*LOG(BA9*7) -> 77.62711483 | BT9: Frequency | BU9: Gain | BV9: Phase
A10: 2 | B10: =A10/1000 -> 0.002 | C10: 1 | D10: 2.51327412e-06 | F10: 0.9881422403 | G10: -0.0001550006938 | H10: -0.0001550006938 | J10: 15 | M10: 742.4310457 | N10: -1.570796325 | O10: 1.000000174 | P10: 0.0005906193495 | Q10: 1.000000088 | R10: 0.0004190256031 | S10: 1 | T10: -2.450442267e-06 | U10: 0.9999999998 | V10: -1.826657994e-05 | X10: =20*LOG(C10*J10*O10*Q10*F10*M10*S10*U10) -> 80.83133923 | Y10: -89.95207549 | Z10: =Y10+180 -> 90.04792451 | AC10: 1 | AD10: 0.0005906194182 | AE10: -1.113291374e-12 | AF10: 6.094689741e-08 | AG10: =AC10*AE10/(AE10^2+AF10^2)+AD10*AF10/(AE10^2+AF10^2) -> 9391.008606 | AH10: =AD10*AE10/(AE10^2+AF10^2)-AC10*AF10/(AE10^2+AF10^2) -> -16407726.28 | AJ10: 22100 | AK10: 0.0541547741 | AL10: 1 | AM10: 0.0004190256277 | AN10: =AJ10*AL10/(AL10^2+AM10^2)+AK10*AM10/(AL10^2+AM10^2) -> 22099.99614 | AO10: =AK10*AL10/(AL10^2+AM10^2)-AJ10*AM10/(AL10^2+AM10^2) -> -9.206309981 | AQ10: 9999.840003 | AR10: -39.99936001 | AT10: =-AR10*AH10+AG10*AQ10 -> -562389967 | AU10: =AQ10*AH10+AG10*AR10 -> -1.640750133e+11 | AV10: =ATAN2(AT10,AU10) -> -1.574223953 | AW10: 221040967 | AX10: -103524351.3 | AY10: =ATAN2(AW10,AX10) -> -0.4380078785 | BA10: 672.2144894 | BB10: =20*LOG(BA10) -> 56.55015739 | BC10: =AV10-AY10 -> -1.136216074 | BD10: -245.1003857 | BF10: 79.96837186 | BG10: -65.10912263 | BH10: =IF(BG10>180,BG10-180,BG10+180) -> 114.8908774 | BI10: =IF(BH10>180,BH10-360,BH10) -> 114.8908774 | BJ10: 0 | BK10: =IF(BJ10>0,BI10,0) -> 0 | BM10: =20*LOG(J10*F10*C10) -> 23.41821447 | BN10: -0.008736885585 | BQ10: =20*LOG(BA10*7) -> 73.45211819 | BT10: 100 | BU10: 35.3593 | BV10: -267.6677
A11: 3 | B11: 0.003 | C11: 1 | D11: 3.76991118e-06 | F11: 0.9881424071 | G11: -0.0002325010811 | H11: -0.0002325010811 | J11: 15 | M11: 494.9540305 | N11: -1.570796325 | O11: 1.000000392 | P11: 0.0008859288955 | Q11: 1.000000198 | R11: 0.0006285383587 | S11: 1 | T11: -3.6756634e-06 | U11: 0.9999999996 | V11: -2.739986991e-05 | X11: 77.30951836 | Y11: -89.92811325 | Z11: 90.07188675 | AC11: 1 | AD11: 0.0008859291273 | AE11: -2.504905591e-12 | AF11: 9.142034611e-08 | AG11: 9391.008602 | AH11: -10938484.33 | AJ11: 22100 | AK11: 0.08123216115 | AL11: 1 | AM11: 0.0006285384415 | AN11: 22099.99132 | AO11: -13.80946194 | AQ11: 9999.640013 | AR11: -59.99784008 | AT11: -562378728.2 | AU11: -1.09381469e+11 | AV11: -1.575937726 | AW11: 221036038.7 | AX11: -69829590.53 | AY11: =ATAN2(AW11,AX11) -> -0.3059970848 | BA11: 471.8767014 | BB11: 53.4765707 | BC11: -1.269940641 | BD11: -252.762239 | BF11: 76.89478664 | BG11: -72.77534437 | BH11: 107.2246556 | BI11: 107.2246556 | BJ11: 0 | BK11: 0 | BM11: 23.41821594 | BN11: -0.01310533069 | BQ11: 70.3785315 | BT11: 102.329 | BU11: 34.9368 | BV11: -265.9149
A12: 4 | B12: 0.004 | C12: 1 | D12: 5.02654824e-06 | F12: 0.9881426406 | G12: -0.0003100015168 | H12: -0.0003100015168 | J12: 15 | M12: 371.2155229 | N12: -1.570796325 | O12: 1.000000698 | P12: 0.001181238287 | Q12: 1.000000351 | R12: 0.0008380510591 | S12: 1 | T12: -4.900884534e-06 | U12: 0.9999999993 | V12: -3.653315987e-05 | X12: 74.81074967 | Y12: -89.90415102 | Z12: 90.09584898 | AC12: 1 | AD12: 0.001181238836 | AE12: -4.453165496e-12 | AF12: 1.218937948e-07 | AG12: 9391.008596 | AH12: -8203863.398 | AJ12: 22100 | AK12: 0.1083095482 | AL12: 1 | AM12: 0.0008380512553 | AN12: 22099.98457 | AO12: -18.41261026 | AQ12: 9999.360041 | AR12: -79.99488033 | AT12: -562362994.7 | AU12: -8.203413508e+10 | AV12: -1.577651451 | AW12: 221029139.5 | AX12: -53226175.6 | AY12: -0.23631136 | BA12: 360.8398876 | BB12: 51.14629078 | BC12: -1.341340091 | BD12: -256.8531262 | BF12: 74.56450877 | BG12: -76.87059997 | BH12: 103.1294 | BI12: 103.1294 | BJ12: 0 | BK12: 0 | BM12: 23.41821799 | BN12: -0.01747377858 | BQ12: 68.04825158 | BT12: 104.713 | BU12: 34.1908 | BV12: -264.9322
A13: 5 | B13: 0.005 | C13: 1 | D13: 6.2831853e-06 | F13: 0.9881429408 | G13: -0.0003875020172 | H13: -0.0003875020172 | J13: 15 | M13: 296.9724183 | N13: -1.570796325 | O13: 1.00000109 | P13: 0.001476547472 | Q13: 1.000000549 | R13: 0.001047563686 | S13: 1 | T13: -6.126105667e-06 | U13: 0.999999999 | V13: -4.566644983e-05 | X13: 72.87255717 | Y13: -89.88018881 | Z13: 90.11981119 | AC13: 1 | AD13: 0.001476548546 | AE13: -6.958071087e-12 | AF13: 1.523672435e-07 | AG13: 9391.008589 | AH13: -6563090.873 | AJ13: 22100 | AK13: 0.1353869353 | AL13: 1 | AM13: 0.001047564069 | AN13: 22099.97589 | AO13: -23.01575374 | AQ13: 9999.0001 | AR13: -99.990001 | AT13: -562342767.1 | AU13: -6.56252853e+10 | AV13: -1.579365112 | AW13: 221020269.5 | AX13: -43459265.86 | AY13: -0.1941533042 | BA13: 291.3517429 | BB13: 49.28835241 | BC13: -1.385211808 | BD13: -259.3667904 | BF13: 72.70657304 | BG13: -79.38863267 | BH13: 100.6113673 | BI13: 100.6113673 | BJ13: 0 | BK13: 0 | BM13: 23.41822063 | BN13: -0.02184223017 | BQ13: 66.19031321 | BT13: 107.152 | BU13: 34.4777 | BV13: -262.3057
A14: 6 | B14: 0.006 | C14: 1 | D14: 7.53982236e-06 | F14: 0.9881433077 | G14: -0.0004650025985 | H14: -0.0004650025985 | J14: 15 | M14: 247.4770152 | N14: -1.570796325 | O14: 1.00000157 | P14: 0.0017718564 | Q14: 1.00000079 | R14: 0.001257076221 | S14: 1 | T14: -7.351326801e-06 | U14: 0.9999999985 | V14: -5.479973978e-05 | X14: 71.28894173 | Y14: -89.85622662 | Z14: 90.14377338 | AC14: 1 | AD14: 0.001771858255 | AE14: -1.001962237e-11 | AF14: 1.828406922e-07 | AG14: 9391.008581 | AH14: -5469242.552 | AJ14: 22100 | AK14: 0.1624643223 | AL14: 1 | AM14: 0.001257076883 | AN14: 22099.96528 | AO14: -27.61889115 | AQ14: 9998.560207 | AR14: -119.9827225 | AT14: -562318046.6 | AU14: -5.46856777e+10 | AV14: -1.581078694 | AW14: 221009429.4 | AX14: -37110573.22 | AY14: -0.1663620349 | BA14: 244.0326792 | BB14: 47.74895976 | BC14: -1.414716659 | BD14: -261.0572939 | BF14: 71.16718361 | BG14: -81.08350456 | BH14: 98.91649544 | BI14: 98.91649544 | BJ14: 0 | BK14: 0 | BM14: 23.41822385 | BN14: -0.02621068639 | BQ14: 64.65092056 | BT14: 109.648 | BU14: 34.1144 | BV14: -262.7662
A15: 7 | B15: 0.007 | C15: 1 | D15: 8.79645942e-06 | F15: 0.9881437413 | G15: -0.0005425032767 | H15: -0.0005425032767 | J15: 15 | M15: 212.1231559 | N15: -1.570796325 | O15: 1.000002137 | P15: 0.002067165019 | Q15: 1.000001075 | R15: 0.001466588645 | S15: 1 | T15: -8.576547934e-06 | U15: 0.999999998 | V15: -6.393302972e-05 | X15: 69.95001714 | Y15: -89.83226447 | Z15: 90.16773553 | AC15: 1 | AD15: 0.002067167964 | AE15: -1.363781933e-11 | AF15: 2.133141409e-07 | AG15: 9391.00857 | AH15: -4687922.346 | AJ15: 22100 | AK15: 0.1895417094 | AL15: 1 | AM15: 0.001466589697 | AN15: 22099.95274 | AO15: -32.22202128 | AQ15: 9998.040384 | AR15: -139.9725654 | AT15: -562288834.2 | AU15: -4.687135142e+10 | AV15: -1.58279218 | AW15: 220996619.5 | AX15: -32715110.29 | AY15: -0.1469670852 | BA15: 209.8195143 | BB15: 46.43691755 | BC15: -1.435825095 | BD15: -262.2667182 | BF15: 69.85514522 | BG15: -82.29729731 | BH15: 97.70270269 | BI15: 97.70270269 | BJ15: 0 | BK15: 0 | BM15: 23.41822767 | BN15: -0.03057914816 | BQ15: 63.33887835 | BT15: 112.202 | BU15: 34.2977 | BV15: -267.0128
A16: 8 | B16: 0.008 | C16: 1 | D16: 1.005309648e-05 | F16: 0.9881442416 | G16: -0.000620004068 | H16: -0.000620004068 | J16: 15 | M16: 185.6077614 | N16: -1.570796325 | O16: 1.000002791 | P16: 0.002362473278 | Q16: 1.000001405 | R16: 0.001676100941 | S16: 1 | T16: -9.801769068e-06 | U16: 0.9999999973 | V16: -7.306631965e-05 | X16: 68.79019114 | Y16: -89.80830235 | Z16: 90.19169765 | AC16: 1 | AD16: 0.002362477673 | AE16: -1.781266198e-11 | AF16: 2.437875896e-07 | AG16: 9391.008559 | AH16: -4101932.214 | AJ16: 22100 | AK16: 0.2166190964 | AL16: 1 | AM16: 0.001676102511 | AN16: 22099.93828 | AO16: -36.82514293 | AQ16: 9997.440655 | AR16: -159.9590505 | AT16: -562255131.3 | AU16: -4.101032606e+10 | AV16: -1.584505555 | AW16: 220981840.6 | AX16: -29540377.49 | AY16: -0.1328900166 | BA16: 183.9633631 | BB16: 45.29462681 | BC16: -1.451615538 | BD16: -263.1714439 | BF16: 68.71285888 | BG16: -83.20639152 | BH16: 96.79360848 | BI16: 96.79360848 | BJ16: 0 | BK16: 0 | BM16: 23.41823206 | BN16: -0.03494761642 | BQ16: 62.19658761 | BT16: 114.815 | BU16: 33.3465 | BV16: -266.2048
A17: 9 | B17: 0.009 | C17: 1 | D17: 1.130973354e-05 | F17: 0.9881448086 | G17: -0.0006975049886 | H17: -0.0006975049886 | J17: 15 | M17: 164.9846768 | N17: -1.570796325 | O17: 1.000003532 | P17: 0.002657781124 | Q17: 1.000001778 | R17: 0.00188561309 | S17: 0.9999999999 | T17: -1.10269902e-05 | U17: 0.9999999966 | V17: -8.219960956e-05 | X17: 67.76715535 | Y17: -89.78434027 | Z17: 90.21565973 | AC17: 1 | AD17: 0.002657787382 | AE17: -2.254415032e-11 | AF17: 2.742610383e-07 | AG17: 9391.008545 | AH17: -3646162.13 | AJ17: 22100 | AK17: 0.2436964835 | AL17: 1 | AM17: 0.001885615324 | AN17: 22099.92188 | AO17: -41.42825489 | AQ17: 9996.761049 | AR17: -179.9416989 | AT17: -562216939.6 | AU17: -3.645150139e+10 | AV17: -1.586218802 | AW17: 220965093.2 | AX17: -27179425.35 | AY17: -0.1223884864 | BA17: 163.7504913 | BB17: 44.28365224 | BC17: -1.463830315 | BD17: -263.8712991 | BF17: 67.70188928 | BG17: -83.91061518 | BH17: 96.08938482 | BI17: 96.08938482 | BJ17: 0 | BK17: 0 | BM17: 23.41823705 | BN17: -0.03931609208 | BQ17: 61.18561304 | BT17: 117.49 | BU17: 33.0246 | BV17: -264.9049
A18: 10 | B18: 0.01 | C18: 1 | D18: 1.25663706e-05 | F18: 0.9881454424 | G18: -0.0007750060547 | H18: -0.0007750060547 | J18: 15 | M18: 148.4862091 | N18: -1.570796325 | O18: 1.00000436 | P18: 0.002953088507 | Q18: 1.000002195 | R18: 0.002095125073 | S18: 0.9999999999 | T18: -1.225221133e-05 | U18: 0.9999999958 | V18: -9.133289947e-05 | X18: 66.85202192 | Y18: -89.76037823 | Z18: 90.23962177 | AC18: 1 | AD18: 0.002953097091 | AE18: -2.783228435e-11 | AF18: 3.047344871e-07 | AG18: 9391.00853 | AH18: -3281546.08 | AJ18: 22100 | AK18: 0.2707738705 | AL18: 1 | AM18: 0.002095128138 | AN18: 22099.90356 | AO18: -46.03135593 | AQ18: 9996.001599 | AR18: -199.920032 | AT18: -562174261 | AU18: -3.280421731e+10 | AV18: -1.587931905 | AW18: 220946378.3 | AX18: -25388079.47 | AY18: -0.1144043194 | BA18: 147.5224908 | BB18: 43.37716473 | BC18: -1.473527586 | BD18: -264.4269118 | BF18: 66.79540735 | BG18: -84.47059633 | BH18: 95.52940367 | BI18: 95.52940367 | BJ18: 0 | BK18: 0 | BM18: 23.41824262 | BN18: -0.04368457608 | BQ18: 60.27912553 | BT18: 120.226 | BU18: 33.736 | BV18: -269.9808
A19: =A10*10 -> 20 | B19: 0.02 | C19: 1 | D19: 2.513274119e-05 | F19: 0.9881554488 | G19: -0.001550028271 | H19: -0.001550028271 | J19: 15 | M19: 74.24310457 | N19: -1.570796325 | O19: 1.000017441 | P19: 0.005906125508 | Q19: 1.000008779 | R19: 0.004190231752 | S19: 0.9999999997 | T19: -2.450442267e-05 | U19: 0.9999999833 | V19: -0.0001826657974 | X19: 60.83168066 | Y19: -89.5207614 | Z19: 90.4792386 | AC19: 1 | AD19: 0.005906194182 | AE19: -1.113291374e-10 | AF19: 6.094689741e-07 | AG19: 9391.008295 | AH19: -1640774.326 | AJ19: 22100 | AK19: 0.541547741 | AL19: 1 | AM19: 0.004190256277 | AN19: 22099.61424 | AO19: -92.06149953 | AQ19: 9984.025559 | AR19: -399.3610224 | AT19: -561501245.6 | AU19: -1.638528322e+10 | AV19: -1.605051554 | AW19: 220651256.8 | AX19: -19999855.52 | AY19: -0.0903931106 | BA19: 73.9989724 | BB19: 37.38451378 | BC19: -1.514658444 | BD19: -266.7835363 | BF19: 60.80284436 | BG19: -86.8709064 | BH19: 93.1290936 | BI19: 93.1290936 | BJ19: 0 | BK19: 0 | BM19: 23.41833058 | BN19: -0.08737007816 | BQ19: 54.28647458 | BT19: 123.027 | BU19: 32.7649 | BV19: -265.7341
A20: =A11*10 -> 30 | B20: 0.03 | C20: 1.000000001 | D20: 3.769911178e-05 | F20: 0.9881721266 | G20: -0.002325082812 | H20: -0.002325082812 | J20: 15 | M20: 49.49540305 | N20: -1.570796325 | O20: 1.000039243 | P20: 0.008859059504 | Q20: 1.000019753 | R20: 0.006285301647 | S20: 0.9999999993 | T20: -3.675663399e-05 | U20: 0.9999999625 | V20: -0.0002739986923 | X20: 57.31028657 | Y20: -89.28115442 | Z20: 90.71884558 | AC20: 1 | AD20: 0.008859291273 | AE20: -2.504905591e-10 | AF20: 9.142034612e-07 | AG20: 9391.007904 | AH20: -1093850.981 | AJ20: 22100 | AK20: 0.8123216115 | AL20: 1 | AM20: 0.006285384415 | AN20: 22099.13206 | AO20: -138.0892186 | AQ20: 9964.129135 | AR20: -597.8477481 | AT20: -560383130 | AU20: -1.090488682e+10 | AV20: -1.622139421 | AW20: 220160957.6 | AX20: -21424644.38 | AY20: -0.09700809976 | BA20: 49.36360183 | BB20: 33.86813681 | BC20: -1.525131321 | BD20: -267.383588 | BF20: 57.28661399 | BG20: -87.51464545 | BH20: 92.48535455 | BI20: 92.48535455 | BJ20: 0 | BK20: 0 | BM20: 23.41847718 | BN20: -0.1310574323 | BQ20: 50.77009761 | BT20: 125.893 | BU20: 32.2472 | BV20: -266.3711
A21: 40 | B21: 0.04 | C21: 1.000000001 | D21: 5.026548236e-05 | F21: 0.9881954764 | G21: -0.003100185842 | H21: -0.003100185842 | J21: 15 | M21: 37.12155229 | N21: -1.570796325 | O21: 1.000069764 | P21: 0.01181183901 | Q21: 1.000035116 | R21: 0.008380316365 | S21: 0.9999999988 | T21: -4.90088453e-05 | U21: 0.9999999333 | V21: -0.0003653315826 | X21: 54.81211535 | Y21: -89.04156224 | Z21: 90.95843776 | AC21: 1 | AD21: 0.01181238836 | AE21: -4.453165496e-10 | AF21: 1.218937948e-06 | AG21: 9391.007355 | AH21: -820389.7364 | AJ21: 22100 | AK21: 1.083095482 | AL21: 1 | AM21: 0.008380512553 | AN21: 22098.45704 | AO21: -184.1133011 | AQ21: 9936.406995 | AR21: -794.9125596 | AT21: -558825234 | AU21: -8159191345 | AV21: -1.639179805 | AW21: 219477816.3 | AX21: -24523495.74 | AY21: -0.1112740981 | BA21: 37.03211001 | BB21: 31.37156916 | BC21: -1.527905707 | BD21: -267.5425486 | BF21: 54.79025158 | BG21: -87.71729617 | BH21: 92.28270383 | BI21: 92.28270383 | BJ21: 0 | BK21: 0 | BM21: 23.41868242 | BN21: -0.1747475646 | BQ21: 48.27352996 | BT21: 128.825 | BU21: 32.3142 | BV21: -268.0596
A22: 50 | B22: 0.05 | C22: 1.000000002 | D22: 6.283185292e-05 | F22: 0.988225499 | G22: -0.003875353529 | H22: -0.003875353529 | J22: 15 | M22: 29.69724183 | N22: -1.570796325 | O22: 1.000109004 | P22: 0.01476441254 | Q22: 1.000054868 | R22: 0.01047525752 | S22: 0.9999999981 | T22: -6.12610566e-05 | U22: 0.9999998957 | V22: -0.0004566644669 | X22: 52.87469101 | Y22: -88.80198978 | Z22: 91.19801022 | AC22: 1 | AD22: 0.01476548545 | AE22: -6.958071087e-10 | AF22: 1.523672435e-06 | AG22: 9391.00665 | AH22: -656313.333 | AJ22: 22100 | AK22: 1.353869353 | AL22: 1 | AM22: 0.01047564069 | AN22: 22097.58921 | AO22: -230.1325354 | AQ22: 9900.990099 | AR22: -990.0990099 | AT22: =-AR22*AH22+AG22*AQ22 -> -556834917.3 | AU22: =AQ22*AH22+AG22*AR22 -> -6507449838 | AV22: -1.656157231 | AW22: 218605063.7 | AX22: -28259667.15 | AY22: -0.1285597263 | BA22: 29.63029145 | BB22: 29.43471847 | BC22: -1.527597505 | BD22: -267.5248899 | BF22: 52.85366478 | BG22: -87.74333133 | BH22: 92.25666867 | BI22: 92.25666867 | BJ22: 0 | BK22: 0 | BM22: 23.41894631 | BN22: -0.2184414016 | BQ22: 46.33667927 | BT22: 131.826 | BU22: 32.1558 | BV22: -263.3605
A23: 60 | B23: 0.06 | C23: 1.000000003 | D23: 7.539822346e-05 | F23: 0.9882621955 | G23: -0.004650602046 | H23: -0.004650602046 | J23: 15 | M23: 24.74770152 | N23: -1.570796325 | O23: 1.000156962 | P23: 0.01771672866 | Q23: 1.000079009 | R23: 0.01257010673 | S23: 0.9999999973 | T23: -7.351326788e-05 | U23: 0.9999998498 | V23: -0.0005479973435 | X23: 51.2920144 | Y23: -88.56244196 | Z23: 91.43755804 | AC23: 1 | AD23: 0.01771858255 | AE23: -1.001962237e-09 | AF23: 1.828406922e-06 | AG23: 9391.005789 | AH23: -546929.3499 | AJ23: 22100 | AK23: 1.624643223 | AL23: 1 | AM23: 0.01257076883 | AN23: 22096.52864 | AO23: -276.1457102 | AQ23: 9858.044164 | AR23: -1182.9653 | AT23: -554421492.5 | AU23: -5402762920 | AV23: -1.673056522 | AW23: 217546788.3 | AX23: -32280432.84 | AY23: -0.1473090001 | BA23: 24.69498236 | BB23: 27.85217441 | BC23: -1.525747521 | BD23: -267.4188937 | BF23: 51.27144326 | BG23: -87.68103355 | BH23: 92.31896645 | BI23: 92.31896645 | BJ23: 0 | BK23: 0 | BM23: 23.41926885 | BN23: -0.2621398697 | BQ23: 44.75413521 | BT23: 134.896 | BU23: 32.8753 | BV23: -269.4654
A24: 70 | B24: 0.07 | C24: 1.000000004 | D24: 8.796459397e-05 | F24: 0.9883055674 | G24: -0.00542594757 | H24: -0.00542594757 | J24: 15 | M24: 21.21231559 | N24: -1.570796325 | O24: 1.000213636 | P24: 0.02066873593 | Q24: 1.000107538 | R24: 0.01466484561 | S24: 0.9999999963 | T24: -8.576547913e-05 | U24: 0.9999997956 | V24: -0.0006393302109 | X24: 49.95419928 | Y24: -88.32292372 | Z24: 91.67707628 | AC24: 1 | AD24: 0.02067167964 | AE24: -1.363781933e-09 | AF24: 2.133141409e-06 | AG24: 9391.00477 | AH24: -468798.1785 | AJ24: 22100 | AK24: 1.895417094 | AL24: 1 | AM24: 0.01466589697 | AN24: 22095.27536 | AO24: -322.1516148 | AQ24: 9807.767752 | AR24: -1373.087485 | AT24: -551596118.3 | AU24: -4610758329 | AV24: -1.689862863 | AW24: 216307888.5 | AX24: -36428837.59 | AY24: -0.1668463281 | BA24: 21.1695989 | BB24: 26.51425259 | BC24: -1.523016534 | BD24: -267.2624197 | BF24: 49.93390264 | BG24: -87.56826355 | BH24: 92.43173645 | BI24: 92.43173645 | BJ24: 0 | BK24: 0 | BM24: 23.41965005 | BN24: -0.305843896 | BQ24: 43.41621339 | BT24: 138.038 | BU24: 32.5387 | BV24: -267.9507
A25: 80 | B25: 0.08 | C25: 1.000000005 | D25: 0.0001005309645 | F25: 0.9883556161 | G25: -0.006201406285 | H25: -0.006201406285 | J25: 15 | M25: 18.56077614 | N25: -1.570796325 | O25: 1.000279026 | P25: 0.02362038297 | Q25: 1.000140456 | R25: 0.0167594558 | S25: 0.9999999952 | T25: -9.801769037e-05 | U25: 0.9999997331 | V25: -0.0007306630677 | X25: 48.79565336 | Y25: -88.08343998 | Z25: 91.91656002 | AC25: 1 | AD25: 0.02362477673 | AE25: -1.781266198e-09 | AF25: 2.437875896e-06 | AG25: 9391.003595 | AH25: -410200.0144 | AJ25: 22100 | AK25: 2.166190964 | AL25: 1 | AM25: 0.01676102511 | AN25: 22093.82944 | AO25: -368.1490391 | AQ25: 9750.390016 | AR25: -1560.062402 | AT25: -548371672.3 | AU25: -4014260677 | AV25: -1.706561869 | AW25: 214894017.8 | AX25: -40621687.61 | AY25: -0.1868267966 | BA25: 18.52559871 | BB25: 25.35544505 | BC25: -1.519735072 | BD25: -267.0744057 | BF25: 48.77553496 | BG25: -87.42396014 | BH25: 92.57603986 | BI25: 92.57603986 | BJ25: 0 | BK25: 0 | BM25: 23.42008991 | BN25: -0.3495544076 | BQ25: 42.25740585 | BT25: 141.254 | BU25: 32.377 | BV25: -263.1143
A26: 90 | B26: 0.09 | C26: 1.000000006 | D26: 0.0001130973349 | F26: 0.9884123435 | G26: -0.006976994382 | H26: -0.006976994382 | J26: 15 | M26: 16.49846768 | N26: -1.570796325 | O26: 1.000353129 | P26: 0.02657161841 | Q26: 1.000177761 | R26: 0.01885391892 | S26: 0.9999999939 | T26: -0.0001102699016 | U26: 0.9999996622 | V26: -0.0008219959124 | X26: 47.77406824 | Y26: -87.84399565 | Z26: 92.15600435 | AC26: 1 | AD26: 0.02657787382 | AE26: -2.254415032e-09 | AF26: 2.742610383e-06 | AG26: 9391.002263 | AH26: -364623.8552 | AJ26: 22100 | AK26: 2.436964835 | AL26: 1 | AM26: 0.01885615324 | AN26: 22092.19097 | AO26: -414.1367737 | AQ26: 9686.168152 | AR26: -1743.510267 | AT26: -544762608.1 | AU26: -3548181282 | AV26: -1.723139643 | AW26: 213311521.4 | AX26: -44808920.94 | AY26: -0.2070528145 | BA26: 16.46926372 | BB26: 24.33348368 | BC26: -1.516086828 | BD26: -266.8653767 | BF26: 47.75407212 | BG26: -87.25864905 | BH26: 92.74135095 | BI26: 92.74135095 | BJ26: 0 | BK26: 0 | BM26: 23.42058844 | BN26: -0.3932723323 | BQ26: 41.23544448 | BT26: 144.544 | BU26: 31.4991 | BV26: -266.2885
A27: 100 | B27: 0.1 | C27: 1.000000008 | D27: 0.0001256637053 | F27: 0.9884757518 | G27: -0.007752728062 | H27: -0.007752728062 | J27: 15 | M27: 14.84862091 | N27: -1.570796325 | O27: 1.000435944 | P27: 0.02952239096 | Q27: 1.000219454 | R27: 0.02094821663 | S27: 0.9999999925 | T27: -0.0001225221127 | U27: 0.9999995829 | V27: -0.0009133287433 | X27: 46.86055604 | Y27: -87.60459567 | Z27: 92.39540433 | AC27: 1 | AD27: 0.02953097091 | AE27: -2.783228435e-09 | AF27: 3.04734487e-06 | AG27: 9391.000775 | AH27: -328163.0993 | AJ27: 22100 | AK27: 2.707738705 | AL27: 1 | AM27: 0.02095128138 | AN27: 22090.36003 | AO27: -460.1136101 | AQ27: 9615.384615 | AR27: -1923.076923 | AT27: -540784798.9 | AU27: -3173474033 | AV27: -1.739582824 | AW27: 211567367.5 | AX27: -48957385.37 | AY27: -0.2274007665 | BA27: 14.82433055 | BB27: 23.41950181 | BC27: -1.512182058 | BD27: -266.6416499 | BF27: 46.84064746 | BG27: -87.07864847 | BH27: 92.92135153 | BI27: 92.92135153 | BJ27: 0 | BK27: 0 | BM27: 23.42114565 | BN27: -0.4369985982 | BQ27: 40.32146261 | BT27: 147.911 | BU27: 31.4819 | BV27: -266.3463
A28: 200 | B28: 0.2 | C28: 1.000000032 | D28: 0.0002513274067 | F28: 0.9894779134 | G28: -0.01552164402 | H28: -0.01552164402 | J28: 15 | M28: 7.424310457 | N28: -1.570796325 | O28: 1.001742638 | P28: 0.05899340969 | Q28: 1.000877527 | R28: 0.04187806405 | S28: 0.99999997 | T28: -0.0002450442218 | U28: 0.9999983317 | V28: -0.001826655963 | X28: 40.86579723 | Y28: -85.21411465 | Z28: 94.78588535 | AC28: 1 | AD28: 0.05906194182 | AE28: -1.113291374e-08 | AF28: 6.094689741e-06 | AG28: 9390.977274 | AH28: -164094.4152 | AJ28: 22100 | AK28: 5.41547741 | AL28: 1 | AM28: 0.04190256277 | AN28: 22061.49081 | AO28: -919.017526 | AQ28: 8620.689655 | AR28: -3448.275862 | AT28: -484886110.4 | AU28: -1446989708 | AV28: -1.89413595 | AW28: 187061084 | AX28: -85023729.31 | AY28: -0.426609611 | BA28: 7.426961604 | BB28: 17.41622357 | BC28: -1.467526339 | BD28: -264.0830657 | BF28: 40.84617112 | BG28: -84.95799035 | BH28: 95.04200965 | BI28: 95.04200965 | BJ28: 0 | BK28: 0 | BM28: 23.42994755 | BN28: -0.8749246947 | BQ28: 34.31818437 | BT28: 151.356 | BU28: 31.0519 | BV28: -267.0283
A29: 300 | B29: 0.3 | C29: 1.000000071 | D29: 0.0003769911001 | F29: 0.9911522832 | G29: -0.02332304202 | H29: -0.02332304202 | J29: 15 | M29: 4.949540305 | N29: -1.570796325 | O29: 1.003916682 | P29: 0.0883622183 | Q29: 1.001973356 | R29: 0.06277126954 | S29: 0.9999999324 | T29: -0.0003675663235 | U29: 0.9999962463 | V29: -0.002739980135 | X29: 37.3869745 | Y29: -82.83345017 | Z29: 97.16654983 | AC29: 1 | AD29: 0.08859291273 | AE29: -2.504905591e-08 | AF29: 9.142034611e-06 | AG29: 9390.938106 | AH29: -109410.5718 | AJ29: 22100 | AK29: 8.123216115 | AL29: 1 | AM29: 0.06285384415 | AN29: 22013.54374 | AO29: -1375.512631 | AQ29: 7352.941176 | AR29: -4411.764706 | AT29: -413642683.6 | AU29: -845920107.7 | AV29: -2.025593589 | AW29: 155840617 | AX29: -107918651.9 | AY29: -0.6056704218 | BA29: 4.967508263 | BB29: 13.92277196 | BC29: -1.419923167 | BD29: -261.3556048 | BF29: 37.36740548 | BG29: -82.67031668 | BH29: 97.32968332 | BI29: 97.32968332 | BJ29: 0 | BK29: 0 | BM29: 23.44463351 | BN29: -1.314711876 | BQ29: 30.82473276 | BT29: 154.882 | BU29: 31.2487 | BV29: -260.6973
A30: 400 | B30: 0.4 | C30: 1.000000126 | D30: 0.0005026547817 | F30: 0.9935050463 | G30: -0.03117343006 | H30: -0.03117343006 | J30: 15 | M30: 3.712155229 | N30: -1.570796325 | O30: 1.006952458 | P30: 0.1175790338 | Q30: 1.003505505 | R30: 0.08360975202 | S30: 0.9999998799 | T30: -0.0004900884142 | U30: 0.9999933267 | V30: -0.003653299736 | X30: 34.9482659 | Y30: -80.46743631 | Z30: 99.53256369 | AC30: 1 | AD30: 0.1181238836 | AE30: -4.453165496e-08 | AF30: 1.218937948e-05 | AG30: 9390.883271 | AH30: -82072.93842 | AJ30: 22100 | AK30: 10.83095482 | AL30: 1 | AM30: 0.08380512553 | AN30: 21946.76897 | AO30: -1828.420774 | AQ30: 6097.560976 | AR30: -4878.04878 | AT30: -343094313.8 | AU30: -546253933.1 | AV30: -2.131611535 | AW30: 124947285.6 | AX30: -118722192.5 | AY30: -0.7598564362 | BA30: 3.742611374 | BB30: 11.46349466 | BC30: -1.371755099 | BD30: -258.5957778 | BF30: 34.92872249 | BG30: -80.35308376 | BH30: 99.64691624 | BI30: 99.64691624 | BJ30: 0 | BK30: 0 | BM30: 23.46522783 | BN30: -1.75730598 | BQ30: 28.36545546 | BT30: 158.489 | BU30: 31.0037 | BV30: -259.869
A31: 500 | B31: 0.5 | C31: 1.000000197 | D31: 0.0006283184473 | F31: 0.9965449319 | G31: -0.0390896404 | H31: -0.0390896404 | J31: 15 | M31: 2.969724183 | N31: -1.570796325 | O31: 1.010842201 | P31: 0.1465956215 | Q31: 1.005471981 | R31: 0.1043757148 | S31: 0.9999998124 | T31: -0.0006126104901 | U31: 0.999989573 | V31: -0.004566613242 | X31: 33.08706146 | Y31: -78.12082072 | Z31: 101.8791793 | AC31: 1 | AD31: 0.1476548546 | AE31: -6.958071087e-08 | AF31: 1.523672435e-05 | AG31: 9390.81277 | AH31: -65673.78895 | AJ31: 22100 | AK31: 13.53869353 | AL31: 1 | AM31: 0.1047564069 | AN31: 21861.51211 | AO31: -2276.594765 | AQ31: 5000 | AR31: -5000 | AT31: -281414880.9 | AU31: -375323008.6 | AV31: -2.214165482 | AW31: 97969091.1 | AX31: -121104630.2 | AY31: -0.8906143541 | BA31: 3.011539575 | BB31: 9.575771494 | BC31: -1.323551128 | BD31: -255.8338937 | BF31: 33.06753609 | BG31: -78.0375651 | BH31: 101.9624349 | BI31: 101.9624349 | BJ31: 0 | BK31: 0 | BM31: 23.49176459 | BN31: -2.203671425 | BQ31: 26.47773229 | BT31: 162.181 | BU31: 30.4293 | BV31: -262.3986
A32: 600 | B32: 0.6 | C32: 1.000000284 | D32: 0.0007539820931 | F32: 1.000283284 | G32: -0.04708894411 | H32: -0.04708894411 | J32: 15 | M32: 2.474770152 | N32: -1.570796325 | O32: 1.015576101 | P32: 0.1753657501 | Q32: 1.007870241 | R32: 0.1250517345 | S32: 0.9999997298 | T32: -0.0007351325477 | U32: 0.9999849853 | V32: -0.00547991913 | X32: 31.59719439 | Y32: -75.79824002 | Z32: 104.20176 | AC32: 1 | AD32: 0.1771858255 | AE32: -1.001962237e-07 | AF32: 1.828406922e-05 | AG32: 9390.726604 | AH32: -54743.88131 | AJ32: 22100 | AK32: 16.24643223 | AL32: 1 | AM32: 0.1257076883 | AN32: 21758.20987 | AO32: -2718.927832 | AQ32: 4098.360656 | AR32: -4918.032787 | AT32: -230745618.7 | AU32: -270544070.6 | AV32: -2.276968546 | AW32: 75845543.79 | AX32: -118497225.1 | AY32: -1.001439315 | BA32: 2.527376104 | BB32: 8.053397499 | BC32: -1.275529231 | BD32: -253.0824417 | BF32: 31.57768538 | BG32: -75.73723945 | BH32: 104.2627605 | BI32: 104.2627605 | BJ32: 0 | BK32: 0 | BM32: 23.52428788 | BN32: -2.654797771 | BQ32: 24.9553583 | BT32: 165.959 | BU32: 29.9194 | BV32: -264.8295
A33: 700 | B33: 0.7 | C33: 1.000000387 | D33: 0.0008796457151 | F33: 1.004734156 | G33: -0.05518917147 | H33: -0.05518917147 | J33: 15 | M33: 2.121231559 | N33: -1.570796325 | O33: 1.021142416 | P33: 0.2038455969 | Q33: 1.010697212 | R33: 0.1456208457 | S33: 0.9999996322 | T33: -0.0008576545832 | U33: 0.9999795635 | V33: -0.006393215875 | X33: 30.36858043 | Y33: -73.50419863 | Z33: 106.4958014 | AC33: 1 | AD33: 0.2067167964 | AE33: -1.363781933e-07 | AF33: 2.133141409e-05 | AG33: 9390.624773 | AH33: -46939.25457 | AJ33: 22100 | AK33: 18.95417094 | AL33: 1 | AM33: 0.1466589697 | AN33: 21637.38447 | AO33: -3154.362342 | AQ33: 3378.378378 | AR33: -4729.72973 | AT33: -190284904.1 | AU33: -202993679.9 | AV33: -2.323890787 | AW33: 58224113.86 | AX33: -113294013.1 | AY33: -1.096074451 | BA33: 2.184297619 | BB33: 6.786236248 | BC33: -1.227816336 | BD33: -250.3486941 | BF33: 30.34908811 | BG33: -73.46040075 | BH33: 106.5395992 | BI33: 106.5395992 | BJ33: 0 | BK33: 0 | BM33: 23.56285187 | BN33: -3.111706617 | BQ33: 23.68819705 | BT33: 169.824 | BU33: 29.8089 | BV33: -267.7277
A34: 800 | B34: 0.8 | C34: 1.000000505 | D34: 0.001005309309 | F34: 1.00991442 | G34: -0.06340883967 | H34: -0.06340883967 | J34: 15 | M34: 1.856077614 | N34: -1.570796325 | O34: 1.027527619 | P34: 0.231994097 | Q34: 1.013949307 | R34: 0.1660666188 | S34: 0.9999995196 | T34: -0.0009801765929 | U34: 0.9999733076 | V34: -0.007306501956 | X34: 29.3354026 | Y34: -71.2430516 | Z34: 108.7569484 | AC34: 1 | AD34: 0.2362477673 | AE34: -1.781266198e-07 | AF34: 2.437875896e-05 | AG34: 9390.507279 | AH34: -41087.92826 | AJ34: 22100 | AK34: 21.66190964 | AL34: 1 | AM34: 0.1676102511 | AN34: 21499.63723 | AO34: -3581.897684 | AQ34: 2808.988764 | AR34: -4494.382022 | AT34: -158287016.7 | AU34: -157620055.9 | AV34: -2.358305743 | AW34: 44337712.03 | AX34: -106951605.3 | AY34: -1.177802739 | BA34: 1.929391481 | BB34: 5.708407131 | BC34: -1.180503004 | BD34: -247.6378399 | BF34: 29.31592817 | BG34: -71.21329885 | BH34: 108.7867012 | BI34: 108.7867012 | BJ34: 0 | BK34: 0 | BM34: 23.60752104 | BN34: -3.57545892 | BQ34: 22.61036793 | BT34: 173.78 | BU34: 30.0709 | BV34: -269.952
A35: 900 | B35: 0.9 | C35: 1.00000064 | D35: 0.001130972872 | F35: 1.015843916 | G35: -0.07176728983 | H35: -0.07176728983 | J35: 15 | M35: 1.649846768 | N35: -1.570796325 | O35: 1.034716549 | P35: 0.2597732298 | Q35: 1.01762245 | R35: 0.1863732329 | S35: 0.999999392 | T35: -0.001102698573 | U35: 0.9999662178 | V35: -0.008219775848 | X35: 28.45510541 | Y35: -69.0189919 | Z35: 110.9810081 | AC35: 1 | AD35: 0.2657787382 | AE35: -2.254415032e-07 | AF35: 2.742610383e-05 | AG35: 9390.374122 | AH35: -36538.80209 | AJ35: 22100 | AK35: 24.36964835 | AL35: 1 | AM35: 0.1885615324 | AN35: 21345.64127 | AO35: -4000.59718 | AQ35: 2358.490566 | AR35: -4245.283019 | AT35: -132970447.3 | AU35: -126041215.8 | AV35: -2.382940695 | AW35: 33403453.66 | AX35: -100288403.7 | AY35: -1.249279245 | BA35: 1.733261144 | BB35: 4.777280024 | BC35: -1.13366145 | BD35: -244.9540166 | BF35: 28.43565044 | BG35: -69.0011794 | BH35: 110.9988206 | BI35: 110.9988206 | BJ35: 0 | BK35: 0 | BM35: 23.65837041 | BN35: -4.047162847 | BQ35: 21.67924082 | BT35: 177.828 | BU35: 29.7201 | BV35: -271.5601
A36: 1000 | B36: 1 | C36: 1.00000079 | D36: 0.001256636399 | F36: 1.022545608 | G36: -0.08028483517 | H36: -0.08028483517 | J36: 15 | M36: 1.484862091 | N36: -1.570796325 | O36: 1.042692584 | P36: 0.28714824 | Q36: 1.021712102 | R36: 0.2065255398 | S36: 0.9999992494 | T36: -0.00122522052 | U36: 0.9999582941 | V36: -0.009133036028 | X36: 27.69853585 | Y36: -66.83604257 | Z36: 113.1639574 | AC36: 1 | AD36: 0.2953097091 | AE36: -2.783228435e-07 | AF36: 3.04734487e-05 | AG36: 9390.225304 | AH36: -32901.21587 | AJ36: 22100 | AK36: 27.07738705 | AL36: 1 | AM36: 0.2095128138 | AN36: 21176.13357 | AO36: -4409.593942 | AQ36: 2000 | AR36: -4000 | AT36: -112824412.9 | AU36: -103363333 | AV36: -2.399929841 | AW36: 24757230.58 | AX36: -93736380.02 | AY36: -1.312577242 | BA36: 1.578268242 | BB36: 3.963616355 | BC36: -1.087352599 | BD36: -242.3007148 | BF36: 27.67910215 | BG36: -66.82869708 | BH36: 113.1713029 | BI36: 113.1713029 | BJ36: 0 | BK36: 0 | BM36: 23.71548579 | BN36: -4.527982257 | BQ36: 20.86557716 | BT36: 181.97 | BU36: 30.0421 | BV36: -268.8459
A37: =A36+500 -> 1500 | B37: 1.5 | C37: 1.000001777 | D37: 0.001884953358 | F37: 1.068686668 | G37: -0.1260598178 | H37: -0.1260598178 | J37: 15 | M37: 0.989908061 | N37: -1.570796325 | O37: 1.093717333 | P37: 0.4169878744 | Q37: 1.048219988 | R37: 0.3044958723 | S37: 0.9999983112 | T37: -0.001837829631 | U37: 0.9999061691 | V37: -0.01369907795 | X37: 25.19706658 | Y37: -56.66692118 | Z37: 123.3330788 | AC37: 1 | AD37: 0.4429645636 | AE37: -6.262263978e-07 | AF37: 4.571017306e-05 | AG37: 9389.246358 | AH37: -22005.60021 | AJ37: 22100 | AK37: 40.61608058 | AL37: 1 | AM37: 0.3142692207 | AN37: 20125.10546 | AO37: -6284.085131 | AQ37: 1000 | AR37: -3000 | AT37: -56627554.28 | AU37: -50173339.29 | AV37: -2.416553303 | AW37: 1314402.485 | AX37: -66806913.2 | AY37: -1.551124217 | BA37: 1.132259652 | BB37: 1.078920634 | BC37: -0.8654290857 | BD37: -229.5854341 | BF37: 25.17776908 | BG37: -56.7001298 | BH37: 123.2998702 | BI37: 123.2998702 | BJ37: 0 | BK37: 0 | BM37: 24.09884844 | BN37: -7.114695664 | BQ37: 17.98088143 | BT37: 186.209 | BU37: 29.9018 | BV37: -265.3796
A38: =A37+500 -> 2000 | B38: 2 | C38: 1.000003158 | D38: 0.002513268828 | F38: 1.139806881 | G38: -0.1797574291 | H38: -0.1797574291 | J38: 15 | M38: 0.7424310457 | N38: -1.570796325 | O38: 1.161391965 | P38: 0.5334934606 | Q38: 1.084242813 | R38: 0.3967994373 | S38: 0.9999969977 | T38: -0.002450437362 | U38: 0.9998332078 | V38: -0.01826454869 | X38: 24.07223303 | Y38: -48.04036679 | Z38: 131.9596332 | AC38: 1 | AD38: 0.5906194182 | AE38: -1.113291374e-06 | AF38: 6.094689741e-05 | AG38: 9387.876175 | AH38: -16579.2105 | AJ38: 22100 | AK38: 54.1547741 | AL38: 1 | AM38: 0.4190256277 | AN38: 18818.49439 | AO38: -7831.276648 | AQ38: 588.2352941 | AR38: -2352.941176 | AT38: -33487626.96 | AU38: -31841597.18 | AV38: -2.381385079 | AW38: -7317499.728 | AX38: -49001435.71 | AY38: -1.719033256 | BA38: 0.9326792053 | BB38: -0.6053541204 | BC38: -0.6623518229 | BD38: -217.949964 | BF38: 24.05312398 | BG38: -48.10530638 | BH38: 131.8946936 | BI38: 131.8946936 | BJ38: 0 | BK38: 0 | BM38: 24.6584781 | BN38: -10.15534234 | BQ38: 16.29660668 | BT38: 190.546 | BU38: 29.5667 | BV38: -265.8945
A39: 2500 | B39: 2.5 | C39: 1.000004935 | D39: 0.003141582315 | F39: 1.244106191 | G39: -0.2464257233 | H39: -0.2464257233 | J39: 15 | M39: 0.5939448366 | N39: -1.570796325 | O39: 1.242999961 | P39: 0.6359543098 | Q39: 1.128870063 | R39: 0.482491724 | S39: 0.9999953089 | T39: -0.003063043254 | U39: 0.9997394238 | V39: -0.02282925809 | X39: 23.83393634 | Y39: -41.34043668 | Z39: 138.6595633 | AC39: 1 | AD39: 0.7382742728 | AE39: -1.739517772e-06 | AF39: 7.618362176e-05 | AG39: 9386.1151 | AH39: -13340.49617 | AJ39: 22100 | AK39: 67.69346763 | AL39: 1 | AM39: 0.5237820346 | AN39: 17370.03019 | AO39: -9030.416284 | AQ39: 384.6153846 | AR39: -1923.076923 | AT39: -22044756.05 | AU39: -23181181.41 | AV39: -2.331072042 | AW39: -10648536.14 | AX39: -36974695.32 | AY39: -1.851203517 | BA39: 0.8313857771 | BB39: -1.603948188 | BC39: -0.4798685253 | BD39: -207.4944413 | BF39: 23.81506888 | BG39: -41.43359577 | BH39: 138.5664042 | BI39: 138.5664042 | BJ39: 0 | BK39: 0 | BM39: 25.41901707 | BN39: -13.93915452 | BQ39: 15.29801261 | BT39: 194.984 | BU39: 29.6856 | BV39: -265.6327
A40: 3000 | B40: 3 | C40: 1.000007106 | D40: 0.003769893321 | F40: 1.394852241 | G40: -0.334393441 | H40: -0.334393441 | J40: 15 | M40: 0.4949540305 | N40: -1.570796325 | O40: 1.335990426 | P40: 0.7249865246 | Q40: 1.181126823 | R40: 0.561139767 | S40: 0.9999932448 | T40: -0.003675646847 | U40: 0.9996248348 | V40: -0.02739301616 | X40: 24.26242794 | Y40: -37.03382866 | Z40: 142.9661713 | AA40: =20*LOG(7) -> 16.9019608 | AC40: 1 | AD40: 0.8859291273 | AE40: -2.504905591e-06 | AF40: 9.142034611e-05 | AG40: 9383.963571 | AH40: -11195.60345 | AJ40: 22100 | AK40: 81.23216115 | AL40: 1 | AM40: 0.6285384415 | AN40: 15878.20484 | AO40: -9898.829964 | AQ40: 270.2702703 | AR40: -1621.621622 | AT40: -15618826.26 | AU40: -18243077 | AV40: -2.278850468 | AW40: -11726418.59 | AX40: -28509190.36 | AY40: -1.961023627 | BA40: 0.7790587672 | BB40: -2.168595614 | BC40: -0.3178268411 | BD40: -198.2101366 | BF40: 24.24385538 | BG40: -37.15347054 | BH40: 142.8465295 | BI40: 142.8465295 | BJ40: 0 | BK40: 0 | BM40: 26.412451 | BN40: -18.94333391 | BQ40: 14.73336519 | BT40: 199.526 | BU40: 29.051 | BV40: -267.8015
A41: 3500 | B41: 3.5 | C41: 1.000009672 | D41: 0.00439820135 | F41: 1.611980407 | G41: -0.458383082 | H41: -0.458383082 | J41: 15 | M41: 0.4242463118 | N41: -1.570796325 | O41: 1.438157101 | P41: 0.8019113389 | Q41: 1.240048924 | R41: 0.6327238082 | S41: 0.9999908055 | T41: -0.004288247681 | U41: 0.9994894622 | V41: -0.03195563316 | X41: 25.24185341 | Y41: -35.8894999 | Z41: 144.1105001 | AC41: 1 | AD41: 1.033583982 | AE41: -3.409454833e-06 | AF41: 0.0001066570705 | AG41: 9381.422127 | AH41: -9675.734862 | AJ41: 22100 | AK41: 94.77085468 | AL41: 1 | AM41: 0.7332948484 | AN41: 14417.10828 | AO41: -10477.22037 | AQ41: 200 | AR41: -1400 | AT41: -11669744.38 | AU41: -15069137.95 | AV41: -2.229739893 | AW41: -11752840.35 | AX41: -22356036.56 | AY41: -2.054801451 | BA41: 0.75461639 | BB41: -2.445475326 | BC41: -0.1749384423 | BD41: -190.0232344 | BF41: 25.22362904 | BG41: -36.03465209 | BH41: 143.9653479 | BI41: 143.9653479 | BJ41: 0 | BK41: 0 | BM41: 27.66910437 | BN41: -26.01141765 | BQ41: 14.45648547 | BT41: 204.174 | BU41: 28.4243 | BV41: -264.1684
A42: 4000 | B42: 4 | C42: 1.000012633 | D42: 0.005026505907 | F42: 1.916849349 | G42: -0.6451980628 | H42: -0.6451980628 | J42: 15 | M42: 0.3712155229 | N42: -1.570796325 | O42: 1.547683814 | P42: 0.8682975993 | Q42: 1.304733653 | R42: 0.6975161709 | S42: 0.9999879909 | T42: -0.004900845297 | U42: 0.9993333314 | V42: -0.03651691963 | X42: 26.66440237 | Y42: -39.33767091 | Z42: 140.6623291 | AC42: 1 | AD42: 1.181238836 | AE42: -4.453165496e-06 | AF42: 0.0001218937948 | AG42: 9378.491401 | AH42: -8546.488981 | AJ42: 22100 | AK42: 108.3095482 | AL42: 1 | AM42: 0.8380512553 | AN42: 13035.52788 | AO42: -10816.13095 | AQ42: 153.8461538 | AR42: -1230.769231 | AT42: -9075910.838 | AU42: -12857603.11 | AV42: -2.185456979 | AW42: -11277198.9 | AX42: -17777672.58 | AY42: -2.136088286 | BA42: 0.7475568799 | BB42: -2.527115145 | BC42: -0.04936869329 | BD42: -182.8286178 | BF42: 26.6465794 | BG42: -39.50774619 | BH42: 140.4922538 | BI42: 140.4922538 | BJ42: 0 | BK42: 0 | BM42: 29.17369454 | BN42: -36.67912842 | BQ42: 14.37484565 | BT42: 208.93 | BU42: 28.5109 | BV42: -267.6911
A43: 4500 | B43: 4.5 | C43: 1.000015989 | D43: 0.005654806495 | F43: 2.285137766 | G43: -0.9382229563 | H43: -0.9382229563 | J43: 15 | M43: 0.3299693537 | N43: -1.570796325 | O43: 1.663117086 | P43: 0.9256935349 | Q43: 1.374367596 | R43: 0.7559686802 | S43: 0.999984801 | T43: -0.005513439234 | U43: 0.9991564715 | V43: -0.04107668645 | X43: 28.24273668 | Y43: -49.74948912 | Z43: 130.2505109 | AC43: 1 | AD43: 1.328893691 | AE43: -5.63603758e-06 | AF43: 0.0001371305192 | AG43: 9375.172125 | AH43: -7677.640461 | AJ43: 22100 | AK43: 121.8482417 | AL43: 1 | AM43: 0.9428076622 | AN43: 11760.83473 | AO43: -10966.35686 | AQ43: 121.9512195 | AR43: -1097.560976 | AT43: -7283364.881 | AU43: -11226120.68 | AV43: -2.146318584 | AW43: -10574669.49 | AX43: -14310111.65 | AY43: -2.207197449 | BA43: 0.7520692285 | BB43: -2.47484361 | BC43: 0.06087886548 | BD43: -176.5118979 | BF43: 28.2253682 | BG43: -49.94411709 | BH43: 130.0558829 | BI43: 130.0558829 | BJ43: 0 | BK43: 0 | BM43: 30.70021181 | BN43: -53.43221915 | BQ43: 14.42711719 | BT43: 213.796 | BU43: 28.179 | BV43: -266.9667
A44: 5000 | B44: 5 | C44: 1.000019739 | D44: 0.006283102619 | F44: 2.49600911 | G44: -1.364588522 | H44: -1.364588522 | J44: 15 | M44: 0.2969724183 | N44: -1.570796325 | O44: 1.783310295 | P44: 0.9754990635 | Q44: 1.448237024 | R44: 0.8086235741 | S44: 0.9999812359 | T44: -0.006126029033 | U44: 0.9989589157 | V44: -0.04563474488 | X44: 29.15336308 | Y44: -68.56814443 | Z44: 111.4318556 | AC44: 1 | AD44: 1.476548546 | AE44: -6.958071087e-06 | AF44: 0.0001523672435 | AG44: 9371.465124 | AH44: -6991.051987 | AJ44: 22100 | AK44: 135.3869353 | AL44: 1 | AM44: 1.047564069 | AN44: 10604.52344 | AO44: -10973.53079 | AQ44: 99.00990099 | AR44: -990.0990099 | AT44: -5993965.816 | AU44: -9970861.706 | AV44: -2.112059682 | AW44: -9789569.324 | AX44: -11646022.47 | AY44: -2.269803948 | BA44: 0.764678898 | BB44: -2.330417887 | BC44: 0.1577442652 | BD44: -170.9619194 | BF44: 29.13650206 | BG44: -68.78708728 | BH44: 111.2129127 | BI44: 111.2129127 | BJ44: 0 | BK44: 0 | BM44: 31.46691995 | BN44: -77.82516793 | BQ44: 14.57154291 | BT44: 218.776 | BU44: 27.7064 | BV44: -263.5369
A45: 5500 | B45: 5.5 | C45: 1.000023884 | D45: 0.006911393782 | F45: 2.242209316 | G45: 1.314025114 | H45: -1.827567536 | J45: 15 | M45: 0.2699749257 | N45: -1.570796325 | O45: 1.907363805 | P45: 1.018922458 | Q45: 1.525726869 | R45: 0.8560507187 | S45: 0.9999772956 | T45: -0.006738614235 | U45: 0.9987407008 | V45: -0.05019090658 | X45: 28.42908869 | Y45: -90.14968444 | Z45: 89.85031556 | AC45: 1 | AD45: 1.6242034 | AE45: -8.419266015e-06 | AF45: 0.0001676039679 | AG45: 9367.371323 | AH45: -6436.997911 | AJ45: 22100 | AK45: 148.9256288 | AL45: 1 | AM45: 1.152320476 | AN45: 9567.490175 | AO45: -10875.8892 | AQ45: 81.96721311 | AR45: -901.6393443 | AT45: -5036033.254 | AU45: -8973613.317 | AV45: -2.082201215 | AW45: -8998314.771 | AX45: -9574036.825 | AY45: -2.325205536 | BA45: 0.783180043 | BB45: -2.122767755 | BC45: 0.243004321 | BD45: -166.076878 | BF45: 28.41278793 | BG45: -90.39279099 | BH45: 89.60720901 | BI45: 89.60720901 | BJ45: 0 | BK45: 0 | BM45: 30.53555569 | BN45: -104.315913 | BQ45: 14.77919305 | BT45: 223.872 | BU45: 27.9371 | BV45: -265.1945
A46: 6000 | B46: 6 | C46: 1.000028424 | D46: 0.007539679488 | F46: 1.744803639 | G46: 0.963288948 | H46: -2.178303702 | J46: 15 | M46: 0.2474770152 | N46: -1.570796325 | O46: 2.034571619 | P46: 1.056980466 | Q46: 1.60631326 | R46: 0.898807587 | S46: 0.9999729801 | T46: -0.007351194378 | U46: 0.9985018676 | V46: -0.05474498371 | X46: 26.50050809 | Y46: -105.8750647 | Z46: 74.12493531 | AC46: 1 | AD46: 1.771858255 | AE46: -1.001962237e-05 | AF46: 0.0001828406922 | AG46: 9362.891737 | AH46: -5982.326068 | AJ46: 22100 | AK46: 162.4643223 | AL46: 1 | AM46: 1.257076883 | AN46: 8644.238657 | AO46: -10704.00826 | AQ46: 68.96551724 | AR46: -827.5862069 | AT46: -4305173.868 | AU46: -8161174.27 | AV46: -2.056215939 | AW46: -8240313.323 | AX46: -7944839.193 | AY46: -2.374448338 | BA46: 0.8061035787 | BB46: -1.872183016 | BC46: 0.3182323988 | BD46: -161.7666266 | BF46: 26.48482022 | BG46: -106.1422436 | BH46: 73.85775642 | BI46: 73.85775642 | BJ46: 0 | BK46: 0 | BM46: 28.35700323 | BN46: -124.3756169 | BQ46: 15.02977778 | BT46: 229.087 | BU46: 27.6763 | BV46: -266.7544
A47: 6500 | B47: 6.5 | C47: 1.000033359 | D47: 0.008167959242 | F47: 1.320945943 | G47: 0.738818153 | H47: -2.402774497 | J47: 15 | M47: 0.2284403218 | N47: -1.570796325 | O47: 2.164377642 | P47: 1.090517382 | Q47: 1.689553169 | R47: 0.9374163945 | S47: 0.9999682894 | T47: -0.007963769005 | U47: 0.9982424605 | V47: -0.05929678894 | X47: 24.36181448 | Y47: -114.8625478 | Z47: 65.13745219 | AC47: 1 | AD47: 1.919513109 | AE47: -1.175914014e-05 | AF47: 0.0001980774166 | AG47: 9358.027479 | AH47: -5604.083371 | AJ47: 22100 | AK47: 176.0030158 | AL47: 1 | AM47: 1.36183329 | AN47: 7825.883043 | AO47: -10481.54503 | AQ47: 58.82352941 | AR47: -764.7058824 | AT47: -3735003.315 | AU47: -7485790.624 | AV47: -2.033600169 | AW47: -7534325.7 | AX47: -6650865.505 | AY47: -2.418394609 | BA47: 0.8324320717 | BB47: -1.593023916 | BC47: 0.3847944395 | BD47: -157.9529026 | BF47: 24.34679192 | BG47: -115.153751 | BH47: 64.84624902 | BI47: 64.84624902 | BJ47: 0 | BK47: 0 | BM47: 25.93981583 | BN47: -137.2008484 | BQ47: 15.30893688 | BT47: 234.423 | BU47: 27.6703 | BV47: -266.7612
A48: 7000 | B48: 7 | C48: 1.000038688 | D48: 0.008796232547 | F48: 1.021305081 | G48: 0.595242108 | H48: -2.546350542 | J48: 15 | M48: 0.2121231559 | N48: -1.570796325 | O48: 2.296341305 | P48: 1.120230085 | Q48: 1.775073333 | R48: 0.9723530062 | S48: 0.9999632234 | T48: -0.008576337655 | U48: 0.9979625277 | V48: -0.0638461355 | X48: 22.42405265 | Y48: -119.6444749 | Z48: 60.35552509 | AC48: 1 | AD48: 2.067167964 | AE48: -1.363781933e-05 | AF48: 0.0002133141409 | AG48: 9352.779755 | AH48: -5285.873293 | AJ48: 22100 | AK48: 189.5417094 | AL48: 1 | AM48: 1.466589697 | AN48: 7102.124486 | AO48: -10226.36089 | AQ48: 50.76142132 | AR48: -710.6598985 | AT48: -3281697.784 | AU48: -6914963.952 | AV48: -2.01390124 | AW48: -6887557.33 | AX48: -5613451.082 | AY48: -2.457764044 | BA48: 0.8614376088 | BB48: -1.295523433 | BC48: 0.4438628044 | BD48: -154.5685346 | BF48: 22.40974763 | BG48: -119.959687 | BH48: 60.04031302 | BI48: 60.04031302 | BJ48: 0 | BK48: 0 | BM48: 23.70527106 | BN48: -145.3911524 | BQ48: 15.60643737 | BT48: 239.883 | BU48: 27.2761 | BV48: -267.5957
A49: 7500 | B49: 7.5 | C49: 1.000044412 | D49: 0.009424498908 | F49: 0.8128891297 | G49: 0.4985629021 | H49: -2.643029748 | J49: 15 | M49: 0.1979816122 | N49: -1.570796325 | O49: 2.430111132 | P49: 1.146692888 | Q49: 1.862559684 | R49: 1.004043338 | S49: 0.9999577824 | T49: -0.009188899868 | U49: 0.9976621214 | V49: -0.06839283723 | X49: 20.74936401 | Y49: -122.1114632 | Z49: 57.88853679 | AC49: 1 | AD49: 2.214822818 | AE49: -1.565565995e-05 | AF49: 0.0002285508653 | AG49: 9347.149861 | AH49: -5015.670355 | AJ49: 22100 | AK49: 203.0804029 | AL49: 1 | AM49: 1.571346104 | AN49: 6462.461422 | AO49: -9951.683172 | AQ49: 44.24778761 | AR49: -663.7168142 | AT49: -2915394.047 | AU49: -6425792.844 | AV49: -1.996724439 | AW49: -6300847.958 | AX49: -4774349.162 | AY49: -2.493161903 | BA49: 0.8925849566 | BB49: -0.9870087383 | BC49: 0.4964374636 | BD49: -151.5562285 | BF49: 20.73582851 | BG49: -122.4506944 | BH49: 57.54930564 | BI49: 57.54930564 | BJ49: 0 | BK49: 0 | BM49: 21.72283725 | BN49: -150.8944658 | BQ49: 15.91495206 | BT49: 245.471 | BU49: 27.0755 | BV49: -266.8096
A50: 8000 | B50: 8 | C50: 1.000050531 | D50: 0.01005275783 | F50: 0.6641501437 | G50: 0.4298299774 | H50: -2.711762673 | J50: 15 | M50: 0.1856077614 | N50: -1.570796325 | O50: 2.565404599 | P50: 1.170379685 | Q50: 1.951747839 | R50: 1.03286419 | S50: 0.9999519661 | T50: -0.009801455185 | U50: 0.9973412972 | V50: -0.07293670862 | X50: 19.3075625 | Y50: -123.3005479 | Z50: 56.69945207 | AC50: 1 | AD50: 2.362477673 | AE50: -1.781266198e-05 | AF50: 0.0002437875896 | AG50: 9341.13919 | AH50: -4784.454191 | AJ50: 22100 | AK50: 216.6190964 | AL50: 1 | AM50: 1.676102511 | AN50: 5896.873462 | AO50: -9667.145318 | AQ50: 38.91050584 | AR50: -622.5680934 | AT50: -2615180.072 | AU50: -6001660.748 | AV50: -1.981730867 | AW50: -5771669.906 | AX50: -4089964.51 | AY50: -2.525099802 | BA50: 0.9254712644 | BB50: -0.6727412286 | BC50: 0.5433689348 | BD50: -148.8672533 | BF50: 19.29484827 | BG50: -123.663829 | BH50: 56.33617096 | BI50: 56.33617096 | BJ50: 0 | BK50: 0 | BM50: 19.9675895 | BN50: -154.7965758 | BQ50: 16.22921957 | BT50: 251.189 | BU50: 27.0434 | BV50: -265.9205
A51: 8500 | B51: 8.5 | C51: 1.000057045 | D51: 0.01068100881 | F51: 0.5545205026 | G51: 0.3786597979 | H51: -2.762932852 | J51: 15 | M51: 0.1746896578 | N51: -1.570796325 | O51: 2.70199284 | P51: 1.191682673 | Q51: 2.042414866 | R51: 1.059146463 | S51: 0.9999457748 | T51: -0.01041400315 | U51: 0.9970001146 | V51: -0.07747756487 | X51: 18.05601299 | Y51: -123.7652208 | Z51: 56.23477917 | AC51: 1 | AD51: 2.510132527 | AE51: -2.010882544e-05 | AF51: 0.000259024314 | AG51: 9334.749221 | AH51: -4585.325695 | AJ51: 22100 | AK51: 230.1577899 | AL51: 1 | AM51: 1.780858918 | AN51: 5396.165067 | AO51: -9379.650891 | AQ51: 34.48275862 | AR51: -586.2068966 | AT51: -2366061.641 | AU51: -5630209.05 | AV51: -1.968631723 | AW51: -5295861.317 | AX51: -3527347.961 | AY51: -2.554011924 | BA51: 0.9597871585 | BB51: -0.3565013006 | BC51: 0.5853802008 | BD51: -146.460185 | BF51: 18.04417151 | BG51: -124.1526 | BH51: 55.8474 | BI51: 55.8474 | BJ51: 0 | BK51: 0 | BM51: 18.40067282 | BN51: -157.692415 | BQ51: 16.5454595 | BT51: 257.04 | BU51: 26.6776 | BV51: -267.6031
A52: 9000 | B52: 9 | C52: 1.000063953 | D52: 0.01130925137 | F52: 0.4712651922 | G52: 0.3391158935 | H52: -2.802476757 | J52: 15 | M52: 0.1649846768 | N52: -1.570796325 | O52: 2.839689027 | P52: 1.210927746 | Q52: 2.134372309 | R52: 1.083179479 | S52: 0.9999392083 | T52: -0.01102654329 | U52: 0.9966386365 | V52: -0.08201522192 | X52: 16.9576057 | Y52: -123.8103568 | Z52: 56.18964323 | AC52: 1 | AD52: 2.657787382 | AE52: -2.254415032e-05 | AF52: 0.0002742610383 | AG52: 9327.981529 | AH52: -4412.917799 | AJ52: 22100 | AK52: 243.6964835 | AL52: 1 | AM52: 1.885615324 | AN52: 4952.100588 | AO52: -9094.060273 | AQ52: 30.76923077 | AR52: -553.8461538 | AT52: -2157062.734 | AU52: -5302048.779 | AV52: -1.957181625 | AW52: -4868617.886 | AX52: -3061369.195 | AY52: -2.58026803 | BA52: 0.9952908529 | BB52: -0.04099974525 | BC52: 0.6230864051 | BD52: -144.2997787 | BF52: 16.94668818 | BG52: -124.2218968 | BH52: 55.77810318 | BI52: 55.77810318 | BJ52: 0 | BK52: 0 | BM52: 16.98768793 | BN52: -159.9221181 | BQ52: 16.86096106 | BT52: 263.027 | BU52: 26.2703 | BV52: -267.3229
A53: 9500 | B53: 9.5 | C53: 1.000071256 | D53: 0.01193748499 | F53: 0.4063875619 | G53: 0.3076235947 | H53: -2.833969055 | J53: 15 | M53: 0.1563012728 | N53: -1.570796325 | O53: 2.978339494 | P53: 1.228386965 | Q53: 2.227460354 | R53: 1.105215622 | S53: 0.9999322667 | T53: -0.01163907517 | U53: 0.9962569298 | V53: -0.08654949647 | X53: 15.98302495 | Y53: -123.6107102 | Z53: 56.38928982 | AC53: 1 | AD53: 2.805442236 | AE53: -2.511863662e-05 | AF53: 0.0002894977627 | AG53: 9320.837773 | AH53: -4262.992313 | AJ53: 22100 | AK53: 257.235177 | AL53: 1 | AM53: 1.990371731 | AN53: 4557.418265 | AO53: -8813.721306 | AQ53: 27.62430939 | AR53: -524.8618785 | AT53: -1980000.447 | AU53: -5009914.641 | AV53: -1.947172124 | AW53: -4485047.049 | AX53: -2672695.667 | AY53: -2.604184077 | BA53: 1.03179045 | BB53: 0.2718300777 | BC53: 0.6570119535 | BD53: -142.3559879 | BF53: 15.9730823 | BG53: -124.0464868 | BH53: 55.95351325 | BI53: 55.95351325 | BJ53: 0 | BK53: 0 | BM53: 15.70125223 | BN53: -161.6904988 | BQ53: 17.17379088 | BT53: 269.153 | BU53: 26.2359 | BV53: -265.677
A54: 10000 | B54: 10 | C54: 1.000078954 | D54: 0.0125657092 | F54: 0.3547140346 | G54: 0.2819232395 | H54: -2.859669411 | J54: 15 | M54: 0.1484862091 | N54: -1.570796325 | O54: 3.117816933 | P54: 1.244288579 | Q54: 2.321543003 | R54: 1.125474882 | S54: 0.9999249501 | T54: -0.0122515983 | U54: 0.9958550646 | V54: -0.09108020608 | X54: 15.10961849 | Y54: -123.2700575 | Z54: 56.72994252 | AC54: 1 | AD54: 2.953097091 | AE54: -2.783228435e-05 | AF54: 0.000304734487 | AG54: 9313.319703 | AH54: -4132.157717 | AJ54: 22100 | AK54: 270.7738705 | AL54: 1 | AM54: 2.095128138 | AN54: 4205.778931 | AO54: -8540.871912 | AQ54: 24.93765586 | AR54: -498.7531172 | AT54: -1828674.18 | AU54: -4748093.561 | AV54: -1.938425885 | AW54: -4140463.99 | AX54: -2346332.356 | AY54: -2.626030954 | BA54: 1.069131553 | BB54: 0.5806229376 | BC54: 0.6876050687 | BD54: -140.6031315 | BF54: 15.10070132 | BG54: -123.7301577 | BH54: 56.26984234 | BI54: 56.26984234 | BJ54: 0 | BK54: 0 | BM54: 14.52007838 | BN54: -163.1270261 | BQ54: 17.48258374 | BT54: 275.423 | BU54: 25.8456 | BV54: -266.4657
A55: 10500 | B55: 10.5 | C55: 1.000087046 | D55: 0.01319392348 | F55: 0.312788432 | G55: 0.2605242341 | H55: -2.881068416 | J55: 15 | M55: 0.1414154373 | N55: -1.570796325 | O55: 3.258015136 | P55: 1.258825061 | Q55: 2.416504089 | R55: 1.144149063 | S55: 0.9999172584 | T55: -0.01286411225 | U55: 0.9954331149 | V55: -0.09560716919 | X55: 14.31986691 | Y55: -122.8517757 | Z55: 57.14822435 | AC55: 1 | AD55: 3.100751946 | AE55: -3.068509349e-05 | AF55: 0.0003199712114 | AG55: 9305.429157 | AH55: -4017.667583 | AJ55: 22100 | AK55: 284.312564 | AL55: 1 | AM55: 2.199884545 | AN55: 3891.683518 | AO55: -8276.941861 | AQ55: 22.62443439 | AR55: -475.1131222 | AT55: -1698316.518 | AU55: -4512028.957 | AV55: -1.930791658 | AW55: -3830536.323 | AX55: -2070556.682 | AY55: -2.646041686 | BA55: 1.107188408 | BB55: 0.8844306022 | BC55: 0.7152500273 | BD55: -139.0191921 | BF55: 14.31202548 | BG55: -123.3362969 | BH55: 56.66370313 | BI55: 56.66370313 | BJ55: 0 | BK55: 0 | BM55: 13.42759488 | BN55: -164.3171048 | BQ55: 17.7863914 | BT55: 281.838 | BU55: 26.1068 | BV55: -266.6757
A56: 11000 | B56: 11 | C56: 1.000095533 | D56: 0.01382212735 | F56: 0.2782312112 | G56: 0.2424065394 | H56: -2.899186111 | J56: 15 | M56: 0.1349874629 | N56: -1.570796325 | O56: 3.398844912 | P56: 1.272159543 | Q56: 2.512244001 | R56: 1.161405566 | S56: 0.9999091918 | T56: -0.01347661654 | U56: 0.994991158 | V56: -0.1001302051 | X56: 13.60009952 | Y56: -122.3953601 | Z56: 57.60463991 | AC56: 1 | AD56: 3.2484068 | AE56: -3.367706406e-05 | AF56: 0.0003352079358 | AG56: 9297.168059 | AH56: -3917.273979 | AJ56: 22100 | AK56: 297.8512576 | AL56: 1 | AM56: 2.304640952 | AN56: 3610.379442 | AO56: -8022.777058 | AQ56: 20.6185567 | AR56: -453.6082474 | AT56: -1585213.598 | AU56: -4298040.645 | AV56: -1.924140036 | AW56: -3551341.373 | AX56: -1836134.883 | AY56: -2.664417415 | BA56: 1.145857458 | BB56: 1.182611915 | BC56: 0.7402773785 | BD56: -137.5852305 | BF56: 13.59338377 | BG56: -122.9044093 | BH56: 57.09559072 | BI56: 57.09559072 | BJ56: 0 | BK56: 0 | BM56: 12.41077186 | BN56: -165.3191788 | BQ56: 18.08457272 | BT56: 288.403 | BU56: 25.7844 | BV56: -268.0599
A57: 11500 | B57: 11.5 | C57: 1.000104415 | D57: 0.01445032031 | F57: 0.2493589888 | G57: 0.2268497561 | H57: -2.914742894 | J57: 15 | M57: 0.1291184427 | N57: -1.570796325 | O57: 3.540230891 | P57: 1.284430988 | Q57: 2.608676989 | R57: 1.177390726 | S57: 0.9999007501 | T57: -0.01408911072 | U57: 0.9945292748 | V57: -0.1046491341 | X57: 12.93952543 | Y57: -121.9257301 | Z57: 58.07426994 | AC57: 1 | AD57: 3.396061655 | AE57: -3.680819605e-05 | AF57: 0.0003504446601 | AG57: 9288.538416 | AH57: -3829.119104 | AJ57: 22100 | AK57: 311.3899511 | AL57: 1 | AM57: 2.409397359 | AN57: 3357.767117 | AO57: -7778.805274 | AQ57: 18.86792453 | AR57: -433.9622642 | AT57: -1486437.754 | AU57: -4103122.692 | AV57: -1.918359904 | AW57: -3299374.308 | AX57: -1635740.738 | AY57: -2.681332349 | BA57: 1.185052567 | BB57: 1.474752308 | BC57: 0.7629724451 | BD57: -136.284899 | BF57: 12.93398494 | BG57: -122.459423 | BH57: 57.54057703 | BI57: 57.54057703 | BJ57: 0 | BK57: 0 | BM57: 11.45923263 | BN57: -166.174524 | BQ57: 18.37671311 | BT57: 295.121 | BU57: 25.5811 | BV57: -265.88
A58: 12000 | B58: 12 | C58: 1.000113691 | D58: 0.01507850186 | F58: 0.2249518385 | G58: 0.2133310737 | H58: -2.928261576 | J58: 15 | M58: 0.1237385076 | N58: -1.570796325 | O58: 3.682109001 | P58: 1.29575835 | Q58: 2.705728951 | R58: 1.192232709 | S58: 0.9998919335 | T58: -0.01470159432 | U58: 0.9940475495 | V58: -0.1091637776 | X58: 12.32952412 | Y58: -121.458671 | Z58: 58.54132896 | AC58: 1 | AD58: 3.543716509 | AE58: -4.007848946e-05 | AF58: 0.0003656813845 | AG58: 9279.54232 | AH58: -3751.654028 | AJ58: 22100 | AK58: 324.9286446 | AL58: 1 | AM58: 2.514153766 | AN58: 3130.312405 | AO58: -7545.158077 | AQ58: 17.33102253 | AR58: -415.9445407 | AT58: -1399656.055 | AU58: -3924794.969 | AV58: -1.913355502 | AW58: -3071529.902 | AX58: -1463520.969 | AY58: -2.696937887 | BA58: 1.224701432 | BB58: 1.760604515 | BC58: 0.783582385 | BD58: -135.1040364 | BF58: 12.32520809 | BG58: -122.0171317 | BH58: 57.98286831 | BI58: 57.98286831 | BJ58: 0 | BK58: 0 | BM58: 10.56460358 | BN58: -166.9130953 | BQ58: 18.66256531 | BT58: 301.995 | BU58: 24.917 | BV58: -267.1358
A59: 12500 | B59: 12.5 | C59: 1.000123362 | D59: 0.01570667151 | F59: 0.2041066783 | G59: 0.2014620152 | H59: -2.940130635 | J59: 15 | M59: 0.1187889673 | N59: -1.570796325 | O59: 3.824424472 | P59: 1.306243942 | Q59: 2.803335601 | R59: 1.206044024 | S59: 0.999882742 | T59: -0.0153140669 | U59: 0.9935460698 | V59: -0.1136739578 | X59: 11.76312833 | Y59: -121.0041227 | Z59: 58.99587731 | AC59: 1 | AD59: 3.691371364 | AE59: -4.348794429e-05 | AF59: 0.0003809181088 | AG59: 9270.181947 | AH59: -3683.576925 | AJ59: 22100 | AK59: 338.4673381 | AL59: 1 | AM59: 2.618910173 | AN59: 2924.967661 | AO59: -7321.760226 | AQ59: 15.97444089 | AR59: -399.3610224 | AT59: -1322991.073 | AU59: -3760992.422 | AV59: -1.909043982 | AW59: -2865071.399 | AX59: -1314767.881 | AY59: -2.711366041 | BA59: 1.26474285 | BB59: 2.040044655 | BC59: 0.8023220593 | BD59: -134.0303321 | BF59: 11.76008558 | BG59: -121.5874829 | BH59: 58.41251706 | BI59: 58.41251706 | BJ59: 0 | BK59: 0 | BM59: 9.720040928 | BN59: -167.5571508 | BQ59: 18.94200546 | BT59: 309.03 | BU59: 24.8252 | BV59: -265.0361
A60: 13000 | B60: 13 | C60: 1.000133428 | D60: 0.01633482877 | F60: 0.1861422756 | G60: 0.1909479099 | H60: -2.95064474 | J60: 15 | M60: 0.1142201609 | N60: -1.570796325 | O60: 3.967130235 | P60: 1.315976165 | Q60: 2.901440959 | R60: 1.218923665 | S60: 0.9998731755 | T60: -0.01592652799 | U60: 0.9930249268 | V60: -0.1181794981 | X60: 11.23464504 | Y60: -120.5682213 | Z60: 59.43177871 | AC60: 1 | AD60: 3.839026218 | AE60: -4.703656055e-05 | AF60: 0.0003961548332 | AG60: 9260.459553 | AH60: -3623.785566 | AJ60: 22100 | AK60: 352.0060317 | AL60: 1 | AM60: 2.72366658 | AN60: 2739.10216 | AO60: -7108.394979 | AQ60: 14.77104874 | AR60: -384.0472674 | AT60: -1254918.245 | AU60: -3609981.299 | AV60: -1.905353397 | AW60: -2677594.28 | AX60: -1185670.933 | AY60: -2.724732308 | BA60: 1.305124607 | BB60: 2.313039562 | BC60: 0.8193789112 | BD60: -133.0530465 | BF60: 11.23292399 | BG60: -121.1766204 | BH60: 58.8233796 | BI60: 58.8233796 | BJ60: 0 | BK60: 0 | BM60: 8.919884425 | BN60: -168.1235739 | BQ60: 19.21500036 | BT60: 316.228 | BU60: 24.722 | BV60: -265.2184
A61: 13500 | B61: 13.5 | C61: 1.000143888 | D61: 0.01696297313 | F61: 0.1705360956 | G61: 0.1815611556 | H61: -2.960031494 | J61: 15 | M61: 0.1099897846 | N61: -1.570796325 | O61: 4.110185638 | P61: 1.325031735 | Q61: 2.999996099 | R61: 1.230958958 | S61: 0.9998632342 | T61: -0.01653897713 | U61: 0.9924842149 | V61: -0.1226802231 | X61: 10.73937493 | Y61: -120.1545986 | Z61: 59.84540141 | AC61: 1 | AD61: 3.986681073 | AE61: -5.072433822e-05 | AF61: 0.0004113915575 | AG61: 9250.377473 | AH61: -3571.340366 | AJ61: 22100 | AK61: 365.5447252 | AL61: 1 | AM61: 2.828422987 | AN61: 2570.441697 | AO61: -6904.751657 | AQ61: 13.69863014 | AR61: -369.8630137 | AT61: -1194189.211 | AU61: -3470294.961 | AV61: -1.902221026 | AW61: -2506989.352 | AX61: -1073126.902 | AY61: -2.737138059 | BA61: 1.345801841 | BB61: 2.579622363 | BC61: 0.8349170331 | BD61: -132.1627777 | BF61: 10.73902357 | BG61: -120.788183 | BH61: 59.21181702 | BI61: 59.21181702 | BJ61: 0 | BK61: 0 | BM61: 8.159401205 | BN61: -168.6254053 | BQ61: 19.48158316 | BT61: 323.594 | BU61: 24.5962 | BV61: -266.9949
A62: 14000 | B62: 14 | C62: 1.000154743 | D62: 0.01759110411 | F62: 0.1568813249 | G62: 0.1731231132 | H62: -2.968469537 | J62: 15 | M62: 0.106061578 | N62: -1.570796325 | O62: 4.253555402 | P62: 1.333477507 | Q62: 3.098958108 | R62: 1.242227128 | S62: 0.9998529181 | T62: -0.01715141385 | U62: 0.9919240315 | V62: -0.1271759584 | X62: 10.27340241 | Y62: -119.7652246 | Z62: 60.23477544 | AC62: 1 | AD62: 4.134335927 | AE62: -5.455127732e-05 | AF62: 0.0004266282819 | AG62: 9239.938123 | AH62: -3525.435352 | AJ62: 22100 | AK62: 379.0834187 | AL62: 1 | AM62: 2.933179394 | AN62: 2417.016683 | AO62: -6710.46011 | AQ62: 12.7388535 | AR62: -356.6878981 | AT62: -1139773.907 | AU62: -3340684.112 | AV62: -1.899591993 | AW62: -2351407.51 | AX62: -974593.8052 | AY62: -2.748672555 | BA62: 1.386735741 | BB62: 2.839874181 | BC62: 0.8490805621 | BD62: -131.3512673 | BF62: 10.27446831 | BG62: -120.4241475 | BH62: 59.57585249 | BI62: 59.57585249 | BJ62: 0 | BK62: 0 | BM62: 7.43459413 | BN62: -169.0728802 | BQ62: 19.74183498 | BT62: 331.131 | BU62: 24.3868 | BV62: -265.0934
A63: 14500 | B63: 14.5 | C63: 1.000165993 | D63: 0.01821922121 | F63: 0.1448569994 | G63: 0.1654915602 | H63: -2.97610109 | J63: 15 | M63: 0.1024042822 | N63: -1.570796325 | O63: 4.39720878 | P63: 1.341371978 | Q63: 3.198289219 | R63: 1.252796647 | S63: 0.9998422272 | T63: -0.01776383772 | U63: 0.9913444776 | V63: -0.1316665309 | X63: 9.833436648 | Y63: -119.4009633 | Z63: 60.59903671 | AC63: 1 | AD63: 4.281990782 | AE63: -5.851737784e-05 | AF63: 0.0004418650062 | AG63: 9229.143994 | AH63: -3485.375136 | AJ63: 22100 | AK63: 392.6221122 | AL63: 1 | AM63: 3.037935801 | AN63: 2277.117799 | AO63: -6525.115573 | AQ63: 11.87648456 | AR63: -344.4180523 | AT63: -1090816.33 | AU63: -3220077.802 | AV63: -1.897418105 | AW63: -2209227.352 | AX63: -887977.7446 | AY63: -2.75941463 | BA63: 1.427892521 | BB63: 3.093910375 | BC63: 0.8619965252 | BD63: -130.6112371 | BF63: 9.835966932 | BG63: -120.0853847 | BH63: 59.91461534 | BI63: 59.91461534 | BJ63: 0 | BK63: 0 | BM63: 6.742056557 | BN63: -169.4741476 | BQ63: 19.99587118 | BT63: 338.844 | BU63: 24.1369 | BV63: -266.4201
A64: 15000 | B64: 15 | C64: 1.000177637 | D64: 0.01884732392 | F64: 0.1342068389 | G64: 0.1585518127 | H64: -2.983040837 | J64: 15 | M64: 0.0989908061 | N64: -1.570796325 | O64: 4.541118856 | P64: 1.348766528 | Q64: 3.297956081 | R64: 1.262728382 | S64: 0.9998311615 | T64: -0.01837624825 | U64: 0.9907456571 | V64: -0.1361517687 | X64: 9.416689787 | Y64: -119.0619446 | Z64: 60.93805537 | AC64: 1 | AD64: 4.429645637 | AE64: -6.262263978e-05 | AF64: 0.0004571017306 | AG64: 9217.997654 | AH64: -3450.556498 | AJ64: 22100 | AK64: 406.1608058 | AL64: 1 | AM64: 3.142692207 | AN64: 2149.258276 | AO64: -6348.296431 | AQ64: 11.09877913 | AR64: -332.963374 | AT64: -1046600.414 | AU64: -3107552.565 | AV64: -1.895656899 | AW64: -2079026.077 | AX64: -811544.7053 | AY64: -2.769434127 | BA64: 1.469242591 | BB64: 3.341870189 | BC64: 0.873777228 | BD64: -129.9362525 | BF64: 9.420731115 | BG64: -119.7720307 | BH64: 60.22796929 | BI64: 60.22796929 | BJ64: 0 | BK64: 0 | BM64: 6.078860926 | BN64: -169.8357782 | BQ64: 20.24383099 | BT64: 346.737 | BU64: 24.0404 | BV64: -265.8794
A65: 15500 | B65: 15.5 | C65: 1.000189676 | D65: 0.01947541177 | F65: 0.1247239879 | G65: 0.1522103267 | H65: -2.989382323 | J65: 15 | M65: 0.09579755429 | N65: -1.570796325 | O65: 4.685261976 | P65: 1.355706448 | Q65: 3.397929149 | R65: 1.272076576 | S65: 0.9998197211 | T65: -0.018988645 | U65: 0.9901276771 | V65: -0.1406315012 | X65: 9.020782687 | Y65: -118.7478155 | Z65: 61.25218446 | AC65: 1 | AD65: 4.577300491 | AE65: -6.686706314e-05 | AF65: 0.0004723384549 | AG65: 9206.501744 | AH65: -3420.453526 | AJ65: 22100 | AK65: 419.6994993 | AL65: 1 | AM65: 3.247448614 | AN65: 2032.141871 | AO65: -6179.576804 | AQ65: 10.3950104 | AR65: -322.2453222 | AT65: -1006523.467 | AU65: -3002307.771 | AV65: -1.894270824 | AW65: -1959553.735 | AX65: -743851.3623 | AY65: -2.778793093 | BA65: 1.510759896 | BB65: 3.583908955 | BC65: 0.8845222687 | BD65: -129.3206071 | BF65: 9.02638125 | BG65: -119.4837388 | BH65: 60.51626117 | BI65: 60.51626117 | BJ65: 0 | BK65: 0 | BM65: 5.442472295 | BN65: -170.1631318 | BQ65: 20.48586976 | BT65: 354.813 | BU65: 23.629 | BV65: -265.9549
A66: 16000 | B66: 16 | C66: 1.000202109 | D66: 0.02010348425 | F66: 0.1162398386 | G66: 0.1463900059 | H66: -2.995202644 | J66: 15 | M66: 0.09280388072 | N66: -1.570796325 | O66: 4.829617274 | P66: 1.362231804 | Q66: 3.498182171 | R66: 1.280889692 | S66: 0.999807906 | T66: -0.01960102751 | U66: 0.9894906479 | V66: -0.145105559 | X66: 8.643671188 | Y66: -118.4579113 | Z66: 61.54208869 | AC66: 1 | AD66: 4.724955346 | AE66: -7.125064793e-05 | AF66: 0.0004875751793 | AG66: 9194.65898 | AH66: -3394.60555 | AJ66: 22100 | AK66: 433.2381928 | AL66: 1 | AM66: 3.352205021 | AN66: 1924.635713 | AO66: -6018.53531 | AQ66: 9.756097561 | AR66: -312.195122 | AT66: -970075.3037 | AU66: -2903645.785 | AV66: -1.893226575 | AW66: -1849710.66 | AX66: -683690.482 | AY66: -2.787546815 | BA66: 1.552421365 | BB66: 3.82019222 | BC66: 0.8943202394 | BD66: -128.7592247 | BF66: 8.650872689 | BG66: -119.2198504 | BH66: 60.78014962 | BI66: 60.78014962 | BJ66: 0 | BK66: 0 | BM66: 4.830680469 | BN66: -170.4606257 | BQ66: 20.72215302 | BT66: 363.078 | BU66: 23.6126 | BV66: -265.3916
A67: 16500 | B67: 16.5 | C67: 1.000214937 | D67: 0.02073154086 | F67: 0.1086157272 | G67: 0.1410267098 | H67: -3.00056594 | J67: 15 | M67: 0.08999164191 | N67: -1.570796325 | O67: 4.974166278 | P67: 1.368378156 | Q67: 3.598691751 | R67: 1.289211133 | S67: 0.9997957163 | T67: -0.02021339531 | U67: 0.9888346825 | V67: -0.1495737742 | X67: 8.283587881 | Y67: -118.191373 | Z67: 61.80862698 | AC67: 1 | AD67: 4.8726102 | AE67: -7.577339414e-05 | AF67: 0.0005028119036 | AG67: 9182.472147 | AH67: -3372.607269 | AJ67: 22100 | AK67: 446.7768863 | AL67: 1 | AM67: 3.456961428 | AN67: 1825.747282 | AO67: -5864.761045 | AQ67: 9.174311927 | AR67: -302.7522936 | AT67: -936821.7223 | AU67: -2810955.854 | AV67: -1.892494512 | AW67: -1748527.816 | AX67: -630047.5886 | AY67: -2.795744681 | BA67: 1.594206469 | BB67: 4.050891342 | BC67: 0.9032501696 | BD67: -128.2475774 | BF67: 8.292437522 | BG67: -118.9795123 | BH67: 61.0204877 | BI67: 61.0204877 | BJ67: 0 | BK67: 0 | BM67: 4.24154618 | BN67: -170.7319349 | BQ67: 20.95285214 | BT67: 371.535 | BU67: 23.316 | BV67: -265.2439
A68: 17000 | B68: 17 | C68: 1.000228159 | D68: 0.02135958112 | F68: 0.1017366805 | G68: 0.1360666177 | H68: -3.005526032 | J68: 15 | M68: 0.08734482891 | N68: -1.570796325 | O68: 5.118892577 | P68: 1.374177166 | Q68: 3.699436976 | R68: 1.297079866 | S68: 0.9997831519 | T68: -0.02082574796 | U68: 0.9881598971 | V68: -0.1540359801 | X68: 7.938995699 | Y68: -117.9472281 | Z68: 62.05277187 | AC68: 1 | AD68: 5.020265055 | AE68: -8.043530176e-05 | AF68: 0.000518048628 | AG68: 9169.9441 | AH68: -3354.100613 | AJ68: 22100 | AK68: 460.3155799 | AL68: 1 | AM68: 3.561717835 | AN68: 1734.604871 | AO68: -5717.857526 | AQ68: 8.643042351 | AR68: -293.8634399 | AT68: -906391.3289 | AU68: -2723700.951 | AV68: -1.892048179 | AW68: -1655149.764 | AX68: -582066.3793 | AY68: -2.803430933 | BA68: 1.636096853 | BB68: 4.276180188 | BC68: 0.911382754 | BD68: -127.7816146 | BF68: 7.949538169 | BG68: -118.7617578 | BH68: 61.23824218 | BI68: 61.23824218 | BJ68: 0 | BK68: 0 | BM68: 3.673357981 | BN68: -170.9801432 | BQ68: 21.17814099 | BT68: 380.189 | BU68: 23.2133 | BV68: -265.4987
A69: 17500 | B69: 17.5 | C69: 1.000241776 | D69: 0.02198760453 | F69: 0.09550665219 | G69: 0.131464213 | H69: -3.010128437 | J69: 15 | M69: 0.08484926237 | N69: -1.570796325 | O69: 5.263781548 | P69: 1.379657109 | Q69: 3.800399106 | R69: 1.304530955 | S69: 0.9997702131 | T69: -0.02143808498 | U69: 0.9874664108 | V69: -0.1584920115 | X69: 7.608550625 | Y69: -117.724446 | Z69: 62.27555405 | AC69: 1 | AD69: 5.167919909 | AE69: -8.523637081e-05 | AF69: 0.0005332853523 | AG69: 9157.077762 | AH69: -3338.768012 | AJ69: 22100 | AK69: 473.8542734 | AL69: 1 | AM69: 3.666474242 | AN69: 1650.441004 | AO69: -5577.445155 | AQ69: 8.156606852 | AR69: -285.4812398 | AT69: -878464.9483 | AU69: -2641406.931 | AV69: -1.891863898 | AW69: -1568819.926 | AX69: -539020.9754 | AY69: -2.810645299 | BA69: 1.678076031 | BB69: 4.496232682 | BC69: 0.9187814006 | BD69: -127.3577034 | BF69: 7.620830089 | BG69: -118.5655619 | BH69: 61.43443812 | BI69: 61.43443812 | BJ69: 0 | BK69: 0 | BM69: 3.124597407 | BN69: -171.2078585 | BQ69: 21.39819348 | BT69: 389.045 | BU69: 22.9552 | BV69: -266.0672
A70: 18000 | B70: 18 | C70: 1.000255787 | D70: 0.02261561059 | F70: 0.08984485181 | G70: 0.1271807245 | H70: -3.014411925 | J70: 15 | M70: 0.08249233841 | N70: -1.570796325 | O70: 5.408820118 | P70: 1.384843309 | Q70: 3.901561304 | R70: 1.311596027 | S70: 0.9997568996 | T70: -0.02205040592 | U70: 0.9867543454 | V70: -0.1629417047 | X70: 7.29107149 | Y70: -117.5219755 | Z70: 62.47802446 | AC70: 1 | AD70: 5.315574764 | AE70: -9.017660129e-05 | AF70: 0.0005485220767 | AG70: 9143.876124 | AH70: -3326.326777 | AJ70: 22100 | AK70: 487.3929669 | AL70: 1 | AM70: 3.771230649 | AN70: 1572.578326 | AO70: -5443.162613 | AQ70: 7.710100231 | AR70: -277.5636083 | AT70: -852767.0612 | AU70: -2563653.564 | AV70: -1.891920412 | AW70: -1488867.866 | AX70: -500293.5413 | AY70: -2.81742354 | BA70: 1.720129127 | BB70: 4.711220998 | BC70: 0.9255031277 | BD70: -126.9725768 | BF70: 7.30513157 | BG70: -118.389879 | BH70: 61.610121 | BI70: 61.610121 | BJ70: 0 | BK70: 0 | BM70: 2.593910573 | BN70: -171.4173022 | BQ70: 21.6131818 | BT70: 398.107 | BU70: 22.7385 | BV70: -265.2319
A71: 18500 | B71: 18.5 | C71: 1.000270193 | D71: 0.02324359881 | F71: 0.08468288703 | G71: 0.1231829082 | H71: -3.018409742 | J71: 15 | M71: 0.08026281575 | N71: -1.570796325 | O71: 5.553996567 | P71: 1.389758511 | Q71: 4.0029084 | R71: 1.318303667 | S71: 0.9997432118 | T71: -0.02266271033 | U71: 0.9860238255 | V71: -0.1673848973 | X71: 6.985515316 | Y71: -117.3387713 | Z71: 62.66122867 | AC71: 1 | AD71: 5.463229618 | AE71: -9.525599318e-05 | AF71: 0.000563758801 | AG71: 9130.342238 | AH71: -3316.524397 | AJ71: 22100 | AK71: 500.9316604 | AL71: 1 | AM71: 3.875987056 | AN71: 1500.417589 | AO71: -5314.667494 | AQ71: 7.299270073 | AR71: -270.0729927 | AT71: -829058.8355 | AU71: -2490067.06 | AV71: -1.892198591 | AW71: -1414698.303 | AX71: -465356.1448 | AY71: -2.823797926 | BA71: 1.762242667 | BB71: 4.921314241 | BC71: 0.9315993349 | BD71: -126.6232899 | BF71: 7.001399087 | BG71: -118.233669 | BH71: 61.76633102 | BI71: 61.76633102 | BJ71: 0 | BK71: 0 | BM71: 2.080084847 | BN71: -171.6103791 | BQ71: 21.82327504 | BT71: 407.38 | BU71: 22.7593 | BV71: -265.7319
A72: 19000 | B72: 19 | C72: 1.000284994 | D72: 0.02387156869 | F72: 0.07996251846 | G72: 0.1194420844 | H72: -3.022150566 | J72: 15 | M72: 0.07815063639 | N72: -1.570796325 | O72: 5.699300358 | P72: 1.394423194 | Q72: 4.104426698 | R72: 1.324679771 | S72: 0.9997291495 | T72: -0.02327499774 | U72: 0.9852749786 | V72: -0.1718214284 | X72: 6.690957072 | Y72: -117.1738102 | Z72: 62.82618979 | AC72: 1 | AD72: 5.610884473 | AE72: -0.0001004745465 | AF72: 0.0005789955254 | AG72: 9116.479221 | AH72: -3309.134581 | AJ72: 22100 | AK72: 514.470354 | AL72: 1 | AM72: 3.980743463 | AN72: 1433.427397 | AO72: -5191.636386 | AQ72: 6.920415225 | AR72: -262.9757785 | AT72: -807132.4212 | AU72: -2420313.806 | AV72: -1.892681171 | AW72: -1345781.637 | AX72: -433755.9832 | AY72: -2.829797638 | BA72: 1.804404393 | BB72: 5.126677514 | BC72: 0.9371164669 | BD72: -126.3071815 | BF72: 6.708707045 | BG72: -118.095914 | BH72: 61.90408601 | BI72: 61.90408601 | BJ72: 0 | BK72: 0 | BM72: 1.582029531 | BN72: -171.7887325 | BQ72: 22.02863831 | BT72: 416.869 | BU72: 22.4206 | BV72: -265.2494
A73: 19500 | B73: 19.5 | C73: =SQRT((A73/Fesr)^2+1) -> 1.000300188 | D73: =ATAN(A73/Fesr) -> 0.02449951974 | F73: =(Ro/(Ro+Rdcr))/SQRT((A73/(Q*Fo))^2+(1-(A73^2/Fo^2))^2) -> 0.07563387973 | G73: =-ATAN(A73*Fo/(Q*(Fo^2-A73^2))) -> 0.1159333714 | H73: =IF(G73>0,G73-Pi,G73) -> -3.025659279 | J73: =Vin/Vramp -> 15 | M73: =1/(2*Pi*_Rfb1*(Cc1ea_u+Cc2ea_u)*A73) -> 0.07614677392 | N73: =-Pi/2 -> -1.570796325 | O73: =SQRT(1+(A73/Fz1_u)^2) -> 5.844721994 | P73: =ATAN2(Fz1_u,A73) -> 1.398855847 | Q73: =SQRT(1+(A73/Fz2_u)^2) -> 4.206103801 | R73: =ATAN2(Fz2_u,A73) -> 1.330747844 | S73: =1/SQRT(1+(A73/Fp1_u)^2) -> 0.9997147128 | T73: =-ATAN2(Fp1_u,A73) -> -0.0238872677 | U73: =1/SQRT(1+(A73/Fp2_u)^2) -> 0.9845079348 | V73: =-ATAN2(Fp2_u,A73) -> -0.176251139 | X73: 6.406572921 | Y73: =(180/Pi)*(D73+H73+N73+P73+R73+T73+V73) -> -117.0261027 | Z73: 62.97389735 | AC73: 1 | AD73: =Rcea1_u*Cc1ea_u*A73*2*Pi -> 5.758539327 | AE73: =-Rcea1_u*Cc1ea_u*Cc2ea_u*(A73*2*Pi)^2 -> -0.0001058322612 | AF73: =(Cc2ea_u+Cc1ea_u)*A73*2*Pi -> 0.0005942322497 | AG73: 9102.290253 | AH73: -3303.953901 | AJ73: =_Rfb1 -> 22100 | AK73: =_Rfb1*Rcea2_u*Cc3ea_u*A73*2*Pi -> 528.0090475 | AL73: 1 | AM73: =(_Rfb1+Rcea2_u)*Cc3ea_u*A73*2*Pi -> 4.08549987 | AN73: 1371.135434 | AO73: -5073.764589 | AQ73: =Eadcg/(1+(Eadcg*A73/GBP)^2) -> 6.570302234 | AR73: =-(A73*Eadcg*Eadcg/GBP)/(1+(Eadcg*A73/GBP)^2) -> -256.2417871 | AT73: -786806.2543 | AU73: -2354095.097 | AV73: -1.893352537 | AW73: -1281645.763 | AX73: -405103.2961 | AY73: -2.835449124 | BA73: =SQRT(AT73^2+AU73^2)/SQRT(AW73^2+AX73^2) -> 1.846603112 | BB73: 5.327471265 | BC73: 0.9420965872 | BD73: =BC73*180/Pi-180 -> -126.0218416 | BF73: =20*LOG(BA73*J73*F73*C73) -> 6.426231029 | BG73: =(180/Pi)*(D73+H73+BC73) -> -117.9756296 | BH73: 62.02437038 | BI73: 62.02437038 | BJ73: =SUM((BF74<0)*(BF73>0))*A73 -> 0 | BK73: 0 | BM73: 1.098759765 | BN73: =(H73+D73)*180/Pi -> -171.953788 | BQ73: 22.22943206 | BT73: 426.58 | BU73: 22.3737 | BV73: -265.1406
A74: 20000 | B74: =A74/1000 -> 20 | C74: 1.000315777 | D74: 0.02512745147 | F74: 0.07165405506 | G74: 0.1126350688 | H74: -3.028957581 | J74: 15 | M74: 0.07424310457 | N74: -1.570796325 | O74: 5.990252892 | P74: 1.403073201 | Q74: 4.307928465 | R74: 1.336529264 | S74: 0.9996999018 | T74: -0.02449951974 | U74: 0.9837228266 | V74: -0.1806738711 | X74: =20*LOG(C74*J74*O74*Q74*F74*M74*S74*U74) -> 6.131626284 | Y74: -116.8946994 | Z74: =Y74+180 -> 63.10530056 | AC74: 1 | AD74: 5.906194182 | AE74: -0.0001113291374 | AF74: 0.0006094689741 | AG74: =AC74*AE74/(AE74^2+AF74^2)+AD74*AF74/(AE74^2+AF74^2) -> 9087.778571 | AH74: =AD74*AE74/(AE74^2+AF74^2)-AC74*AF74/(AE74^2+AF74^2) -> -3300.798949 | AJ74: 22100 | AK74: 541.547741 | AL74: 1 | AM74: 4.190256277 | AN74: =AJ74*AL74/(AL74^2+AM74^2)+AK74*AM74/(AL74^2+AM74^2) -> 1313.120951 | AO74: =AK74*AL74/(AL74^2+AM74^2)-AJ74*AM74/(AL74^2+AM74^2) -> -4960.765566 | AQ74: 6.24609619 | AR74: -249.8438476 | AT74: -767921.1704 | AU74: -2291142.672 | AV74: =ATAN2(AT74,AU74) -> -1.89419853 | AW74: =AG74-AH74*AO74/_Rfb2+AG74*AN74/_Rfb2+AN74-AO74*AR74+AQ74*AN74 -> -1221868.998 | AX74: =AH74+AH74*AN74/_Rfb2+AG74*AO74/_Rfb2+AO74+AO74*AQ74+AN74*AR74 -> -379061.4325 | AY74: -2.840776406 | BA74: 1.888828569 | BB74: =20*LOG(BA74) -> 5.523850858 | BC74: =AV74-AY74 -> 0.9465778756 | BD74: -125.7650827 | BF74: 6.153233877 | BG74: -117.8718717 | BH74: =IF(BG74>180,BG74-180,BG74+180) -> 62.12812831 | BI74: =IF(BH74>180,BH74-360,BH74) -> 62.12812831 | BJ74: 0 | BK74: =IF(BJ74>0,BI74,0) -> 0 | BM74: =20*LOG(J74*F74*C74) -> 0.6293830191 | BN74: -172.106789 | BQ74: =20*LOG(BA74*7) -> 22.42581166 | BT74: 436.516 | BU74: 22.0741 | BV74: -264.9151
A75: 20500 | B75: 20.5 | C75: 1.000331761 | D75: 0.02575536338 | F75: 0.0679859339 | G75: 0.1095281585 | H75: -3.032064491 | J75: 15 | M75: 0.07243229714 | N75: -1.570796325 | O75: 6.135885279 | P75: 1.407090429 | Q75: 4.409890469 | R75: 1.342043515 | S75: 0.9996847165 | T75: -0.02511175341 | U75: 0.9829197892 | V75: -0.1850894687 | X75: 5.86545618 | Y75: -116.7786956 | Z75: 63.22130442 | AC75: 1 | AD75: 6.053849037 | AE75: -0.000116965175 | AF75: 0.0006247056985 | AG75: 9072.947469 | AH75: -3299.5039 | AJ75: 22100 | AK75: 555.0864345 | AL75: 1 | AM75: 4.295012683 | AN75: 1259.008311 | AO75: -4852.370231 | AQ75: 5.94530321 | AR75: -243.7574316 | AT75: -750337.1725 | AU75: -2231214.923 | AV75: -1.895206284 | AW75: -1166073.953 | AX75: -355338.6521 | AY75: =ATAN2(AW75,AX75) -> -2.845801344 | BA75: 1.931071328 | BB75: 5.715966311 | BC75: 0.9505950597 | BD75: -125.534915 | BF75: 5.889054008 | BG75: -117.7837401 | BH75: 62.21625986 | BI75: 62.21625986 | BJ75: 0 | BK75: 0 | BM75: 0.1730876973 | BN75: -172.2488251 | BQ75: 22.61792711 | BT75: 446.684 | BU75: 21.7611 | BV75: -265.3082
A76: 21000 | B76: 21 | C76: 1.000348139 | D76: 0.02638325497 | F76: 0.06459728205 | G76: 0.1065958975 | H76: -3.034996753 | J76: 15 | M76: 0.07070771864 | N76: -1.570796325 | O76: 6.281612095 | P76: 1.410921326 | Q76: 4.511980502 | R76: 1.347308384 | S76: 0.999669157 | T76: -0.02572396826 | U76: 0.9820989605 | V76: -0.1894977773 | X76: 5.607467413 | Y76: -116.677232 | Z76: 63.32276798 | AC76: 1 | AD76: 6.201503891 | AE76: -0.000122740374 | AF76: 0.0006399424228 | AG76: 9057.800299 | AH76: -3299.918431 | AJ76: 22100 | AK76: 568.6251281 | AL76: 1 | AM76: 4.39976909 | AN76: 1208.461434 | AO76: -4748.326136 | AQ76: 5.66572238 | AR76: -237.9603399 | AT76: -733930.7299 | AU76: -2174093.66 | AV76: -1.896364079 | AW76: -1113922.233 | AX76: -333681.3324 | AY76: -2.850543871 | BA76: 1.973322683 | BB76: 5.903962161 | BC76: 0.9541797922 | BD76: -125.3295249 | BF76: 5.633095619 | BG76: -117.7103807 | BH76: 62.28961926 | BI76: 62.28961926 | BJ76: 0 | BK76: 0 | BM76: -0.2708665419 | BN76: -172.3808558 | BQ76: 22.80592296 | BT76: 457.088 | BU76: 21.6126 | BV76: -265.6514
A77: 21500 | B77: 21.5 | C77: 1.000364911 | D77: 0.02701112576 | F77: 0.06145998342 | G77: 0.1038234825 | H77: -3.037769167 | J77: 15 | M77: 0.06906335309 | N77: -1.570796325 | O77: 6.427426917 | P77: 1.414578456 | Q77: 4.614190065 | R77: 1.352340142 | S77: 0.9996532233 | T77: -0.02633616382 | U77: 0.9812604805 | V77: -0.193898644 | X77: 5.357122276 | Y77: -116.589496 | Z77: 63.41050396 | AC77: 1 | AD77: 6.349158746 | AE77: -0.0001286547344 | AF77: 0.0006551791472 | AG77: 9042.340467 | AH77: -3301.90593 | AJ77: 22100 | AK77: 582.1638216 | AL77: 1 | AM77: 4.504525497 | AN77: 1161.179002 | AO77: -4648.396598 | AQ77: 5.405405405 | AR77: -232.4324324 | AT77: -718592.5109 | AU77: -2119581.33 | AV77: -1.897661219 | AW77: -1065109.828 | AX77: -313868.3157 | AY77: -2.855022198 | BA77: 2.015574574 | BB77: 6.087977423 | BC77: 0.9573609792 | BD77: -125.1472564 | BF77: 5.384820381 | BG77: -117.6509855 | BH77: 62.34901452 | BI77: 62.34901452 | BJ77: 0 | BK77: 0 | BM77: -0.703157042 | BN77: -172.5037291 | BQ77: 22.98993822 | BT77: 467.735 | BU77: 21.3672 | BV77: -265.0501
A78: 22000 | B78: 22 | C78: 1.000382078 | D78: 0.02763897525 | F78: 0.05854941722 | G78: 0.1011977737 | H78: -3.040394876 | J78: 15 | M78: 0.06749373143 | N78: -1.570796325 | O78: 6.573323889 | P78: 1.418073289 | Q78: 4.716511388 | R78: 1.357153696 | S78: 0.9996369155 | T78: -0.02694833963 | U78: 0.9804044916 | V78: -0.1982919175 | X78: 5.113933494 | Y78: -116.5147205 | Z78: 63.48527947 | AC78: 1 | AD78: 6.4968136 | AE78: -0.0001347082562 | AF78: 0.0006704158715 | AG78: 9026.571429 | AH78: -3305.34194 | AJ78: 22100 | AK78: 595.7025151 | AL78: 1 | AM78: 4.609281904 | AN78: 1116.890316 | AO78: -4552.359808 | AQ78: 5.162622612 | AR78: -227.1553949 | AT78: -704225.4719 | AU78: -2067498.631 | AV78: -1.899087921 | AW78: -1019363.112 | AX78: -295706.1888 | AY78: -2.85925299 | BA78: 2.057819514 | BB78: 6.268145623 | BC78: 0.9601650692 | BD78: -124.9865938 | BF78: 5.143740391 | BG78: -117.6047919 | BH78: 62.39520813 | BI78: 62.39520813 | BJ78: 0 | BK78: 0 | BM78: -1.124405232 | BN78: -172.618198 | BQ78: 23.17010642 | BT78: 478.63 | BU78: 21.1958 | BV78: -264.3513
A79: 22500 | B79: 22.5 | C79: 1.000399639 | D79: 0.02826680294 | F79: 0.05584394336 | G79: 0.09870706379 | H79: -3.042885586 | J79: 15 | M79: 0.06599387073 | N79: -1.570796325 | O79: 6.71929766 | P79: 1.421416314 | Q79: 4.818937352 | R79: 1.361762731 | S79: 0.9996202336 | T79: -0.02756049524 | U79: 0.9795311387 | V79: -0.2026774485 | X79: 4.877458212 | Y79: -116.4521827 | Z79: 63.54781729 | AC79: 1 | AD79: 6.644468455 | AE79: -0.0001409009395 | AF79: 0.0006856525959 | AG79: 9010.496694 | AH79: -3310.112823 | AJ79: 22100 | AK79: 609.2412086 | AL79: 1 | AM79: 4.714038311 | AN79: 1075.351708 | AO79: -4460.007939 | AQ79: 4.935834156 | AR79: -222.112537 | AT79: -690743.2396 | AU79: -2017682.448 | AV79: -1.900635223 | AW79: -976435.3575 | AX79: -279025.3259 | AY79: -2.863251528 | BA79: 2.100050528 | BB79: 6.444594883 | BC79: 0.9626163054 | BD79: -124.8461483 | BF79: 4.909412151 | BG79: -117.5710817 | BH79: 62.42891833 | BI79: 62.42891833 | BJ79: 0 | BK79: 0 | BM79: -1.535182732 | BN79: -172.7249333 | BQ79: 23.34655568 | BT79: 489.779 | BU79: 20.9448 | BV79: -263.9108
A80: 23000 | B80: 23 | C80: 1.000417594 | D80: 0.02889460834 | F80: 0.05332447497 | G80: 0.09634088563 | H80: -3.045251764 | J80: 15 | M80: 0.06455922137 | N80: -1.570796325 | O80: 6.865343331 | P80: 1.424617142 | Q80: 4.921461423 | R80: 1.366179825 | S80: 0.9996031777 | T80: -0.02817263019 | U80: 0.9786405687 | V80: -0.2070550891 | X80: 4.647292826 | Y80: -116.4012024 | Z80: 63.59879757 | AC80: 1 | AD80: 6.792123309 | AE80: -0.0001472327842 | AF80: 0.0007008893202 | AG80: 8994.119818 | AH80: -3316.114592 | AJ80: 22100 | AK80: 622.7799022 | AL80: 1 | AM80: 4.818794718 | AN80: 1036.343416 | AO80: -4371.146276 | AQ80: 4.723665564 | AR80: -217.288616 | AT80: -678068.736 | AU80: -1969984.063 | AV80: -1.902294894 | AW80: -936103.6926 | AX80: -263676.5597 | AY80: -2.867031843 | BA80: 2.142261102 | BB80: 6.617448043 | BC80: 0.9647369496 | BD80: -124.7246444 | BF80: 4.681431409 | BG80: -117.5491791 | BH80: 62.45082087 | BI80: 62.45082087 | BJ80: 0 | BK80: 0 | BM80: -1.936016635 | BN80: -172.8245347 | BQ80: 23.51940884 | BT80: 501.187 | BU80: 20.7819 | BV80: -264.7826
A81: 23500 | B81: 23.5 | C81: 1.000435944 | D81: 0.02952239096 | F81: 0.05097412141 | G81: 0.09408984971 | H81: -3.0475028 | J81: 15 | M81: 0.06318562091 | N81: -1.570796325 | O81: 7.011456408 | P81: 1.427684595 | Q81: 5.024077595 | R81: 1.370416561 | S81: 0.9995857479 | T81: -0.02878474402 | U81: 0.9777329309 | V81: -0.2114246932 | X81: 4.423068545 | Y81: -116.3611402 | Z81: 63.63885983 | AC81: 1 | AD81: 6.939778164 | AE81: -0.0001537037903 | AF81: 0.0007161260446 | AG81: 8977.444405 | AH81: -3323.251892 | AJ81: 22100 | AK81: 636.3185957 | AL81: 1 | AM81: 4.923551125 | AN81: 999.6668744 | AO81: -4285.592368 | AQ81: 4.524886878 | AR81: -212.6696833 | AT81: -666133.0068 | AU81: -1924267.597 | AV81: -1.904059366 | AW81: -898166.4453 | AX81: -249528.3718 | AY81: -2.870606844 | BA81: 2.184445131 | BB81: 6.786822812 | BC81: 0.966547478 | BD81: -124.6209087 | BF81: 4.459428712 | BG81: -117.5384491 | BH81: 62.46155095 | BI81: 62.46155095 | BJ81: 0 | BK81: 0 | BM81: -2.327394101 | BN81: -172.9175403 | BQ81: 23.68878361 | BT81: 512.861 | BU81: 20.6348 | BV81: -265.043
A82: 24000 | B82: 24 | C82: 1.000454688 | D82: 0.0301501503 | F82: 0.04877788876 | G82: 0.09194550711 | H82: -3.049647143 | J82: 15 | M82: 0.06186925381 | N82: -1.570796325 | O82: 7.157632764 | P82: 1.430626785 | Q82: 5.126780338 | R82: 1.374483623 | S82: 0.9995679441 | T82: -0.02939683628 | U82: 0.9768083764 | V82: -0.2157861165 | X82: 4.204447545 | Y82: -116.3313949 | Z82: 63.66860508 | AC82: 1 | AD82: 7.087433018 | AE82: -0.0001603139578 | AF82: 0.0007313627689 | AG82: 8960.474102 | AH82: -3331.437108 | AJ82: 22100 | AK82: 649.8572892 | AL82: 1 | AM82: 5.028307532 | AN82: 965.1423439 | AO82: -4203.175228 | AQ82: 4.338394794 | AR82: -208.2429501 | AT82: -654874.2172 | AU82: -1880408.651 | AV82: -1.905921665 | AW82: -862440.8164 | AX82: -236464.5134 | AY82: -2.873988421 | BA82: 2.226596883 | BB82: 6.952831937 | BC82: 0.9680667559 | BD82: -124.5338605 | BF82: 4.243065568 | BG82: -117.5382947 | BH82: 62.46170534 | BI82: 62.46170534 | BJ82: 0 | BK82: 0 | BM82: -2.709766369 | BN82: -173.0044341 | BQ82: 23.85479274 | BT82: 524.807 | BU82: 20.2436 | BV82: -263.9557
A83: 24500 | B83: 24.5 | C83: 1.000473826 | D83: 0.03077788588 | F83: 0.04672242723 | G83: 0.08990023289 | H83: -3.051692417 | J83: 15 | M83: 0.06060661598 | N83: -1.570796325 | O83: 7.3038686 | P83: 1.433451183 | Q83: 5.229564552 | R83: 1.378390875 | S83: 0.9995497666 | T83: -0.03000890651 | U83: 0.9758670587 | V83: -0.2201392166 | X83: 3.99111964 | Y83: -116.311402 | Z83: 63.68859797 | AC83: 1 | AD83: 7.235087873 | AE83: -0.0001670632868 | AF83: 0.0007465994933 | AG83: 8943.212602 | AH83: -3340.589586 | AJ83: 22100 | AK83: 663.3959827 | AL83: 1 | AM83: 5.133063939 | AN83: 932.6068405 | AO83: -4123.734559 | AQ83: 4.163197336 | AR83: -203.9966694 | AT83: -644236.7906 | AU83: -1838293.119 | AV83: -1.907875356 | AW83: -828760.8382 | AX83: -224381.9831 | AY83: -2.877187548 | BA83: 2.26871096 | BB83: 7.11558338 | BC83: 0.9693121915 | BD83: -124.4625023 | BF83: 4.032031113 | BG83: -117.5481554 | BH83: 62.45184456 | BI83: 62.45184456 | BJ83: 0 | BK83: 0 | BM83: -3.083552267 | BN83: -173.0856531 | BQ83: 24.01754418 | BT83: 537.032 | BU83: 20.2926 | BV83: -264.5682
A84: 25000 | B84: 25 | C84: 1.000493359 | D84: 0.03140559719 | F84: 0.04479581742 | G84: 0.08794712665 | H84: -3.053645523 | J84: 15 | M84: 0.05939448366 | N84: -1.570796325 | O84: 7.450160413 | P84: 1.436164682 | Q84: 5.332425524 | R84: 1.382147444 | S84: 0.9995312152 | T84: -0.03062095424 | U84: 0.9749091329 | V84: -0.2244838528 | X84: 3.782799381 | Y84: -116.3006311 | Z84: 63.69936892 | AC84: 1 | AD84: 7.382742727 | AE84: -0.0001739517772 | AF84: 0.0007618362176 | AG84: 8925.663636 | AH84: -3350.634943 | AJ84: 22100 | AK84: 676.9346763 | AL84: 1 | AM84: 5.237820346 | AN84: 901.9123228 | AO84: -4047.120038 | AQ84: 3.99840064 | AR84: -199.920032 | AT84: -634170.6659 | AU84: -1797816.141 | AV84: -1.90991449 | AW84: -796975.5821 | AX84: -213189.3045 | AY84: -2.880214363 | BA84: 2.310782264 | BB84: 7.275180512 | BC84: 0.9702998733 | BD84: -124.4059123 | BF84: 3.82603921 | BG84: -117.567505 | BH84: 62.43249502 | BI84: 62.43249502 | BJ84: 0 | BK84: 0 | BM84: -3.449141301 | BN84: -173.1615926 | BQ84: 24.17714131 | BT84: 549.541 | BU84: 19.992 | BV84: -264.4762
A85: 25500 | B85: 25.5 | C85: 1.000513285 | D85: 0.03203328375 | F85: 0.04298738849 | G85: 0.08607992722 | H85: -3.055512723 | J85: 15 | M85: 0.05822988594 | N85: -1.570796325 | O85: 7.596504969 | P85: 1.438773651 | Q85: 5.435358899 | R85: 1.38576178 | S85: 0.9995122902 | T85: -0.03123297903 | U85: 0.9739347564 | V85: -0.2288198862 | X85: 3.579223517 | Y85: -116.2985837 | Z85: 63.70141627 | AC85: 1 | AD85: 7.530397582 | AE85: -0.000180979429 | AF85: 0.000777072942 | AG85: 8907.830977 | AH85: -3361.504464 | AJ85: 22100 | AK85: 690.4733698 | AL85: 1 | AM85: 5.342576753 | AN85: 872.9240996 | AO85: -3973.190631 | AQ85: 3.84319754 | AR85: -196.0030746 | AT85: -624630.656 | AU85: -1758881.185 | AV85: -1.912033558 | AW85: -766947.5793 | AX85: -202805.0533 | AY85: -2.88307825 | BA85: 2.352805977 | BB85: 7.431722295 | BC85: 0.9710446916 | BD85: -124.3632374 | BF85: 3.624825914 | BG85: -117.5958489 | BH85: 62.40415111 | BI85: 62.40415111 | BJ85: 0 | BK85: 0 | BM85: -3.80689638 | BN85: -173.2326115 | BQ85: 24.33368309 | BT85: 562.341 | BU85: 19.6823 | BV85: -264.604
A86: 26000 | B86: 26 | C86: 1.000533606 | D86: 0.03266094505 | F86: 0.04128756299 | G86: 0.08429293929 | H86: -3.057299711 | J86: 15 | M86: 0.05711008044 | N86: -1.570796325 | O86: 7.742899277 | P86: 1.44128398 | Q86: 5.538360638 | R86: 1.389241722 | S86: 0.9994929915 | T86: -0.03184498041 | U86: 0.972944088 | V86: -0.2331471797 | X86: 3.380148779 | Y86: -116.3047917 | Z86: 63.69520828 | AC86: 1 | AD86: 7.678052437 | AE86: -0.0001881462422 | AF86: 0.0007923096663 | AG86: 8889.718432 | AH86: -3373.134559 | AJ86: 22100 | AK86: 704.0120633 | AL86: 1 | AM86: 5.44733316 | AN86: 845.5194293 | AO86: -3901.813961 | AQ86: 3.696857671 | AR86: -192.2365989 | AT86: =-AR86*AH86+AG86*AQ86 -> -615575.8915 | AU86: =AQ86*AH86+AG86*AR86 -> -1721399.235 | AV86: -1.914227454 | AW86: -738551.4288 | AX86: -193156.5956 | AY86: -2.885787902 | BA86: 2.394777526 | BB86: 7.585303477 | BC86: 0.9715604482 | BD86: -124.3336867 | BF86: 3.42814725 | BG86: -117.6327227 | BH86: 62.36727727 | BI86: 62.36727727 | BJ86: 0 | BK86: 0 | BM86: -4.157156227 | BN86: -173.299036 | BQ86: 24.48726428 | BT86: 575.44 | BU86: 19.596 | BV86: -264.9076
A87: 26500 | B87: 26.5 | C87: 1.000554321 | D87: 0.03328858062 | F87: 0.03968772394 | G87: 0.08258096999 | H87: -3.05901168 | J87: 15 | M87: 0.05603253175 | N87: -1.570796325 | O87: 7.889340569 | P87: 1.443701131 | Q87: 5.641426996 | R87: 1.392594549 | S87: 0.9994733192 | T87: -0.03245695793 | U87: 0.9719372886 | V87: -0.2374655982 | X87: 3.18534992 | Y87: -116.3188149 | Z87: 63.68118508 | AC87: 1 | AD87: 7.825707291 | AE87: -0.0001954522168 | AF87: 0.0008075463907 | AG87: 8871.329848 | AH87: -3385.466292 | AJ87: 22100 | AK87: 717.5507568 | AL87: 1 | AM87: 5.552089566 | AN87: 819.5862858 | AO87: -3832.865709 | AQ87: 3.558718861 | AR87: -188.6120996 | AT87: -606969.3368 | AU87: -1685288.072 | AV87: -1.916491434 | AW87: -711672.5676 | AX87: -184179.0021 | AY87: -2.888351387 | BA87: 2.43669257 | BB87: 7.736014781 | BC87: 0.9718599528 | BD87: -124.3165264 | BF87: 3.235777261 | BG87: -117.6776901 | BH87: 62.32230987 | BI87: 62.32230987 | BJ87: 0 | BK87: 0 | BM87: -4.50023752 | BN87: -173.3611638 | BQ87: 24.63797558 | BT87: 588.844 | BU87: 19.3732 | BV87: -263.8817
A88: 27000 | B88: 27 | C88: 1.00057543 | D88: 0.03391618995 | F88: 0.03818010048 | G88: 0.08093927388 | H88: -3.060653376 | J88: 15 | M88: 0.05499489228 | N88: -1.570796325 | O88: 8.035826274 | P88: 1.446030171 | Q88: 5.744554497 | R88: 1.39582703 | S88: 0.9994532734 | T88: -0.03306891113 | U88: 0.9709145207 | V88: -0.2417750084 | X88: 2.994617997 | Y88: -116.3402395 | Z88: 63.65976052 | AC88: 1 | AD88: 7.973362146 | AE88: -0.0002028973529 | AF88: 0.000822783115 | AG88: 8852.669102 | AH88: -3398.444956 | AJ88: 22100 | AK88: 731.0894504 | AL88: 1 | AM88: 5.656845973 | AN88: 795.0222683 | AO88: -3766.229067 | AQ88: 3.428179637 | AR88: -185.1217004 | AT88: -598777.3689 | AU88: -1650471.637 | AV88: -1.918821089 | AW88: -686206.1818 | AX88: -175814.1136 | AY88: -2.8907762 | BA88: 2.478546974 | BB88: 7.883943083 | BC88: 0.9719551107 | BD88: -124.3110742 | BF88: 3.047506285 | BG88: -117.7303409 | BH88: 62.26965912 | BI88: 62.26965912 | BJ88: 0 | BK88: 0 | BM88: -4.836436798 | BN88: -173.4192667 | BQ88: 24.78590388 | BT88: 602.56 | BU88: 19.198 | BV88: -264.0026
A89: 27500 | B89: 27.5 | C89: 1.000596933 | D89: 0.03454377255 | F89: 0.03675766924 | G89: 0.07936350514 | H89: -3.062229145 | J89: 15 | M89: 0.05399498514 | N89: -1.570796325 | O89: 8.182354008 | P89: 1.448275807 | Q89: 5.847739904 | R89: 1.398945467 | S89: 0.9994328541 | T89: -0.03368083955 | U89: 0.9698759485 | V89: -0.2460752789 | X89: 2.807758846 | Y89: -116.3686761 | Z89: 63.63132388 | AC89: 1 | AD89: 8.121017 | AE89: -0.0002104816504 | AF89: 0.0008380198394 | AG89: 8833.740105 | AH89: -3412.019694 | AJ89: 22100 | AK89: 744.6281439 | AL89: 1 | AM89: 5.76160238 | AN89: 771.7336369 | AO89: -3701.794215 | AQ89: 3.304692664 | AR89: -181.7580965 | AT89: -590969.4087 | AU89: -1616879.463 | AV89: -1.921212311 | AW89: -662056.2416 | AX89: -168009.7328 | AY89: -2.893069312 | BA89: 2.520336795 | BB89: 8.029171595 | BC89: 0.9718570009 | BD89: -124.3166955 | BF89: 2.863139432 | BG89: -117.7902892 | BH89: 62.20971078 | BI89: 62.20971078 | BJ89: 0 | BK89: 0 | BM89: -5.166032164 | BN89: -173.4735937 | BQ89: 24.9311324 | BT89: 616.595 | BU89: 18.9837 | BV89: -264.1331
A90: 28000 | B90: 28 | C90: 1.00061883 | D90: 0.03517132793 | F90: 0.03541406901 | G90: 0.07784967576 | H90: -3.063742974 | J90: 15 | M90: 0.05303078898 | N90: -1.570796325 | O90: 8.328921553 | P90: 1.450442418 | Q90: 5.950980207 | R90: 1.401955732 | S90: 0.9994120615 | T90: -0.03429274275 | U90: 0.9688217375 | V90: -0.2503662802 | X90: 2.624591732 | Y90: -116.4037585 | Z90: 63.59624154 | AC90: 1 | AD90: 8.268671855 | AE90: -0.0002182051093 | AF90: 0.0008532565637 | AG90: 8814.546796 | AH90: -3426.143169 | AJ90: 22100 | AK90: 758.1668374 | AL90: 1 | AM90: 5.866358787 | AN90: 749.6344577 | AO90: -3639.457851 | AQ90: 3.187759005 | AR90: -178.5145043 | AT90: -583517.5985 | AU90: -1584446.171 | AV90: -1.92366127 | AW90: -639134.6441 | AX90: -160718.924 | AY90: -2.895237216 | BA90: 2.562058264 | BB90: 8.171780038 | BC90: 0.971575946 | BD90: -124.3327988 | BF90: 2.682495231 | BG90: -117.8571722 | BH90: 62.14282776 | BI90: 62.14282776 | BJ90: 0 | BK90: 0 | BM90: -5.489284808 | BN90: -173.5243735 | BQ90: 25.07374084 | BT90: 630.957 | BU90: 18.8029 | BV90: -263.7485
A91: 28500 | B91: 28.5 | C91: 1.000641121 | D91: 0.0357988556 | F91: 0.03414352658 | G91: 0.07639411894 | H91: -3.065198531 | J91: 15 | M91: 0.05210042426 | N91: -1.570796325 | O91: 8.475526844 | P91: 1.452534085 | Q91: 6.054272596 | R91: 1.404863305 | S91: 0.9993908956 | T91: -0.03490462025 | U91: 0.9677520552 | V91: -0.2546478848 | X91: 2.444948144 | Y91: -116.4451415 | Z91: 63.55485849 | AC91: 1 | AD91: 8.416326709 | AE91: -0.0002260677296 | AF91: 0.0008684932881 | AG91: 8795.093144 | AH91: -3440.771253 | AJ91: 22100 | AK91: 771.7055309 | AL91: 1 | AM91: 5.971115194 | AN91: 728.6458436 | AO91: -3579.122737 | AQ91: 3.076923077 | AR91: -175.3846154 | AT91: -576396.5177 | AU91: -1553111.017 | AV91: -1.926164393 | AW91: -617360.4507 | AX91: -153899.4053 | AY91: -2.897285969 | BA91: 2.603707777 | BB91: 8.311844807 | BC91: 0.9711215762 | BD91: -124.3588322 | BF91: 2.505404433 | BG91: -117.9306483 | BH91: 62.06935171 | BI91: 62.06935171 | BJ91: 0 | BK91: 0 | BM91: -5.806440374 | BN91: -173.5718161 | BQ91: 25.21380561 | BT91: 645.654 | BU91: 18.5986 | BV91: -263.7636
A92: 29000 | B92: 29 | C92: 1.000663807 | D92: 0.03642635506 | F92: 0.0329407922 | G92: 0.07499345698 | H92: -3.066599193 | J92: 15 | M92: 0.05120214109 | N92: -1.570796325 | O92: 8.622167954 | P92: 1.454554613 | Q92: 6.15761445 | R92: 1.407673308 | S92: 0.9993693564 | T92: -0.03551647161 | U92: 0.9666670699 | V92: -0.2589199669 | X92: 2.268670727 | Y92: -116.4925002 | Z92: 63.50749977 | AC92: 1 | AD92: 8.563981564 | AE92: -0.0002340695114 | AF92: 0.0008837300124 | AG92: 8775.383144 | AH92: -3455.862765 | AJ92: 22100 | AK92: 785.2442245 | AL92: 1 | AM92: 6.075871601 | AN92: 708.6952793 | AO92: -3520.697297 | AQ92: 2.971768202 | AR92: -172.3625557 | AT92: -569582.9339 | AU92: -1522817.489 | AV92: -1.928718336 | AW92: -596659.2077 | AX92: -147513.0195 | AY92: -2.899221222 | BA92: 2.645281877 | BB92: 8.44943913 | BC92: 0.9705028856 | BD92: -124.3942806 | BF92: 2.331708939 | BG92: -118.0103956 | BH92: 61.98960441 | BI92: 61.98960441 | BJ92: 0 | BK92: 0 | BM92: -6.117730191 | BN92: -173.616115 | BQ92: 25.35139993 | BT92: 660.693 | BU92: 18.468 | BV92: -263.6098
A93: 29500 | B93: 29.5 | C93: 1.000686886 | D93: 0.03705382582 | F93: 0.03180108322 | G93: 0.07364457294 | H93: -3.067948077 | J93: 15 | M93: 0.05033430819 | N93: -1.570796325 | O93: 8.768843087 | P93: 1.456507555 | Q93: 6.26100332 | R93: 1.410390527 | S93: 0.9993474441 | T93: -0.03612829636 | U93: 0.9655669519 | V93: -0.2631824031 | X93: 2.095612328 | Y93: -116.5455282 | Z93: 63.45447176 | AC93: 1 | AD93: 8.711636418 | AE93: -0.0002422104545 | AF93: 0.0008989667368 | AG93: 8755.420814 | AH93: -3471.379226 | AJ93: 22100 | AK93: 798.782918 | AL93: 1 | AM93: 6.180628008 | AN93: 689.716019 | AO93: -3464.095227 | AQ93: 2.871912694 | AR93: -169.4428489 | AT93: -563055.5816 | AU93: -1493512.944 | AV93: -1.931319972 | AW93: -576962.3399 | AX93: -141525.2725 | AY93: -2.901048257 | BA93: 2.686777243 | BB93: 8.584633224 | BC93: 0.9697282844 | BD93: -124.438662 | BF93: 2.161260839 | BG93: -118.0961109 | BH93: 61.90388909 | BI93: 61.90388909 | BJ93: 0 | BK93: 0 | BM93: -6.423372385 | BN93: -173.6574489 | BQ93: 25.48659402 | BT93: 676.083 | BU93: 18.2744 | BV93: -263.3252
A94: 30000 | B94: 30 | C94: 1.000710359 | D94: 0.0376812674 | F94: 0.03072003468 | G94: 0.07234458558 | H94: -3.069248064 | J94: 15 | M94: 0.04949540305 | N94: -1.570796325 | O94: 8.915550564 | P94: 1.458396231 | Q94: 6.364436915 | R94: 1.413019446 | S94: 0.9993251587 | T94: -0.03674009406 | U94: 0.9644518725 | V94: -0.2674350714 | X94: 1.925635132 | Y94: -116.6039365 | Z94: 63.39606348 | AC94: 1 | AD94: 8.859291273 | AE94: -0.0002504905591 | AF94: 0.0009142034611 | AG94: 8735.210195 | AH94: -3487.284638 | AJ94: 22100 | AK94: 812.3216115 | AL94: 1 | AM94: 6.285384415 | AN94: 671.6465499 | AO94: -3409.235146 | AQ94: 2.777006387 | AR94: -166.6203832 | AT94: -556794.9683 | AU94: -1465148.282 | AV94: -1.93396637 | AW94: -558206.6085 | AX94: -135904.9295 | AY94: -2.902772015 | BA94: 2.728190686 | BB94: 8.717494438 | BC94: 0.9688056448 | BD94: -124.4915253 | BF94: 1.993921563 | BG94: -118.1875083 | BH94: 61.8124917 | BI94: 61.8124917 | BJ94: 0 | BK94: 0 | BM94: -6.723572876 | BN94: -173.695983 | BQ94: 25.61945524 | BT94: 691.831 | BU94: 18.0926 | BV94: -263.5782
A95: 30500 | B95: 30.5 | C95: 1.000734226 | D95: 0.03830867929 | F95: 0.029693656 | G95: 0.07109082724 | H95: -3.070501823 | J95: 15 | M95: 0.048684003 | N95: -1.570796325 | O95: 9.062288814 | P95: 1.46022375 | Q95: 6.467913089 | R95: 1.415564265 | S95: 0.9993025002 | T95: -0.03735186424 | U95: 0.9633220041 | V95: -0.2716778522 | X95: 1.758609899 | Y95: -116.6674523 | Z95: 63.33254771 | AC95: 1 | AD95: 9.006946128 | AE95: -0.0002589098251 | AF95: 0.0009294401855 | AG95: 8714.75535 | AH95: -3503.54529 | AJ95: 22100 | AK95: 825.860305 | AL95: 1 | AM95: 6.390140822 | AN95: 654.4301112 | AO95: -3356.040264 | AQ95: 2.686727566 | AR95: -163.8903815 | AT95: -550783.2007 | AU95: -1437677.651 | AV95: -1.936654782 | AW95: -540333.6255 | AX95: -130623.6611 | AY95: -2.904397126 | BA95: 2.769519133 | BB95: 8.848087396 | BC95: 0.9677423444 | BD95: -124.5524479 | BF95: 1.829561105 | BG95: -118.2843179 | BH95: 61.71568206 | BI95: 61.71568206 | BJ95: 0 | BK95: 0 | BM95: -7.01852629 | BN95: -173.73187 | BQ95: 25.7500482 | BT95: 707.946 | BU95: 17.887 | BV95: -262.8499
A96: 31000 | B96: 31 | C96: 1.000758488 | D96: 0.03893606101 | F96: 0.02871829283 | G96: 0.06988082414 | H96: -3.071711826 | J96: 15 | M96: 0.04789877714 | N96: -1.570796325 | O96: 9.209056365 | P96: 1.461993023 | Q96: 6.57142983 | R96: 1.418028925 | S96: 0.9992794688 | T96: -0.03796360645 | U96: 0.9621775205 | V96: -0.2759106277 | X96: 1.594415268 | Y96: -116.735818 | Z96: 63.26418204 | AC96: 1 | AD96: 9.154600982 | AE96: -0.0002674682526 | AF96: 0.0009446769099 | AG96: 8694.06036 | AH96: -3520.129578 | AJ96: 22100 | AK96: 839.3989986 | AL96: 1 | AM96: 6.494897229 | AN96: 638.0142647 | AO96: -3304.438081 | AQ96: 2.600780234 | AR96: -161.2483745 | AT96: -545003.8322 | AU96: -1411058.184 | AV96: -1.939382624 | AW96: -523289.4189 | AX96: -125655.7333 | AY96: -2.905927927 | BA96: 2.810759623 | BB96: 8.976474124 | BC96: 0.9665453033 | BD96: -124.6210334 | BF96: 1.668057338 | BG96: -118.3862851 | BH96: 61.61371492 | BI96: 61.61371492 | BJ96: 0 | BK96: 0 | BM96: -7.308416786 | BN96: -173.7652517 | BQ96: 25.87843492 | BT96: 724.436 | BU96: 17.7536 | BV96: -262.8169
A97: 31500 | B97: 31.5 | C97: 1.000783143 | D97: 0.03956341207 | F97: 0.02779059337 | G97: 0.06871227882 | H97: -3.072880371 | J97: 15 | M97: 0.04713847909 | N97: -1.570796325 | O97: 9.35585184 | P97: 1.463706781 | Q97: 6.674985252 | R97: 1.420417125 | S97: 0.9992560646 | T97: -0.03857532024 | U97: 0.9610185965 | V97: -0.2801332821 | X97: 1.432937135 | Y97: -116.8087901 | Z97: 63.19120992 | AC97: 1 | AD97: 9.302255837 | AE97: -0.0002761658414 | AF97: 0.0009599136342 | AG97: 8673.129323 | AH97: -3537.007848 | AJ97: 22100 | AK97: 852.9376921 | AL97: 1 | AM97: 6.599653636 | AN97: 622.3505085 | AO97: -3254.360104 | AQ97: 2.518891688 | AR97: -158.6901763 | AT97: -539441.7257 | AU97: -1385249.761 | AV97: -1.942147471 | AW97: -507024.0417 | AX97: -120977.7333 | AY97: -2.907368491 | BA97: 2.851909298 | BB97: 9.102714181 | BC97: 0.9652210199 | BD97: -124.6969092 | BF97: 1.509295383 | BG97: -118.4931691 | BH97: 61.50683092 | BI97: 61.50683092 | BJ97: 0 | BK97: 0 | BM97: -7.593418798 | BN97: -173.7962599 | BQ97: 26.00467498 | BT97: 741.31 | BU97: 17.4164 | BV97: -262.1972
A98: 32000 | B98: 32 | C98: 1.000808191 | D98: 0.04019073197 | F98: 0.02690747859 | G98: 0.06758305453 | H98: -3.074009595 | J98: 15 | M98: 0.04640194036 | N98: -1.570796325 | O98: 9.502673943 | P98: 1.465367587 | Q98: 6.778577581 | R98: 1.422732345 | S98: 0.9992322876 | T98: -0.03918700514 | U98: 0.9598454081 | V98: -0.2843457016 | X98: 1.274068088 | Y98: -116.8861385 | Z98: 63.11386152 | AC98: 1 | AD98: 9.449910691 | AE98: -0.0002850025917 | AF98: 0.0009751503586 | AG98: 8651.966352 | AH98: -3554.152243 | AJ98: 22100 | AK98: 866.4763856 | AL98: 1 | AM98: 6.704410043 | AN98: 607.3939308 | AO98: -3205.741584 | AQ98: 2.440810349 | AR98: -156.2118623 | AT98: -534082.9319 | AU98: -1360214.788 | AV98: -1.94494704 | AW98: -491491.2202 | AX98: -116568.3295 | AY98: -2.908722642 | BA98: 2.892965395 | BB98: 9.226864776 | BC98: 0.9637756024 | BD98: -124.7797255 | BF98: 1.353167051 | BG98: -118.6047424 | BH98: 61.39525759 | BI98: 61.39525759 | BJ98: 0 | BK98: 0 | BM98: -7.873697724 | BN98: -173.8250169 | BQ98: 26.12882558 | BT98: 758.578 | BU98: 17.2832 | BV98: -262.5669
A99: 32500 | B99: 32.5 | C99: 1.000833634 | D99: 0.04081802022 | F99: 0.02606611588 | G99: 0.06649116126 | H99: -3.075101489 | J99: 15 | M99: 0.04568806435 | N99: -1.570796325 | O99: 9.64952146 | P99: 1.466977848 | Q99: 6.882205151 | R99: 1.424977853 | S99: 0.9992081378 | T99: -0.03979866071 | U99: 0.958658132 | V99: -0.2885477745 | X99: 1.117706901 | Y99: -116.9676454 | Z99: 63.03235464 | AC99: 1 | AD99: 9.597565546 | AE99: -0.0002939785034 | AF99: 0.0009903870829 | AG99: 8630.575576 | AH99: -3571.536576 | AJ99: 22100 | AK99: 880.0150791 | AL99: 1 | AM99: 6.809166449 | AN99: 593.1028981 | AO99: -3158.521276 | AQ99: 2.366303833 | AR99: -153.8097492 | AT99: -528914.5809 | AU99: -1335918.005 | AV99: -1.947779179 | AW99: -476648.0379 | AX99: -112408.058 | AY99: -2.909993976 | BA99: 2.933925245 | BB99: 9.348980881 | BC99: 0.9622147975 | BD99: -124.8691531 | BF99: 1.199570333 | BG99: -118.7207898 | BH99: 61.27921015 | BI99: 61.27921015 | BJ99: 0 | BK99: 0 | BM99: -8.149410549 | BN99: -173.8516368 | BQ99: 26.25094168 | BT99: 776.247 | BU99: 17.0071 | BV99: -262.7177
A100: 33000 | B100: 33 | C100: 1.000859471 | D100: 0.04144527633 | F100: 0.02526389557 | G100: 0.06543474312 | H100: -3.076157907 | J100: 15 | M100: 0.04499582095 | N100: -1.570796325 | O100: 9.796393247 | P100: 1.468539829 | Q100: 6.985866393 | R100: 1.427156732 | S100: 0.9991836155 | T100: -0.04041028648 | U100: 0.9574569461 | V100: -0.292739391 | X100: 0.9637580651 | Y100: -117.0531045 | Z100: 62.94689546 | AC100: 1 | AD100: 9.7452204 | AE100: -0.0003030935765 | AF100: 0.001005623807 | AG100: 8608.961132 | AH100: -3589.136209 | AJ100: 22100 | AK100: 893.5537727 | AL100: 1 | AM100: 6.913922856 | AN100: 579.4387743 | AO100: -3112.641213 | AQ100: 2.295157218 | AR100: -151.4803764 | AT100: -523924.7847 | AU100: -1312326.305 | AV100: -1.950641859 | AW100: -462454.6496 | AX100: -108479.1346 | AY100: -2.911185876 | BA100: 2.974786261 | BB100: 9.469115341 | BC100: 0.9605440171 | BD100: -124.9648817 | BF100: 1.048408933 | BG100: -118.8411077 | BH100: 61.15889232 | BI100: 61.15889232 | BJ100: 0 | BK100: 0 | BM100: -8.420706409 | BN100: -173.876226 | BQ100: 26.37107614 | BT100: 794.328 | BU100: 16.8354 | BV100: -262.7938
A101: 33500 | B101: 33.5 | C101: 1.000885701 | D101: 0.04207249981 | F101: 0.02449841009 | G101: 0.06441206719 | H101: -3.077180583 | J101: 15 | M101: 0.04432424154 | N101: -1.570796325 | O101: 9.943288229 | P101: 1.470055663 | Q101: 7.089559831 | R101: 1.429271883 | S101: 0.9991587206 | T101: -0.041021882 | U101: 0.9562420289 | V101: -0.2969204432 | X101: 0.812131373 | Y101: -117.1423207 | Z101: 62.85767933 | AC101: 1 | AD101: 9.892875255 | AE101: -0.0003123478111 | AF101: 0.001020860532 | AG101: 8587.12717 | AH101: -3606.927941 | AJ101: 22100 | AK101: 907.0924662 | AL101: 1 | AM101: 7.018679263 | AN101: 566.3656672 | AO101: -3068.046498 | AQ101: 2.227171492 | AR101: -149.22049 | AT101: -519102.5498 | AU101: -1289408.571 | AV101: -1.953533168 | AW101: -448874.0238 | AX101: -104765.2878 | AY101: -2.912301531 | BA101: 3.015545937 | BB101: 9.587318974 | BC101: 0.9587683624 | BD101: -125.0666192 | BF101: 0.899591854 | BG101: -118.965503 | BH101: 61.03449704 | BI101: 61.03449704 | BJ101: 0 | BK101: 0 | BM101: -8.68772712 | BN101: -173.8988837 | BQ101: 26.48927977 | BT101: 812.831 | BU101: 16.6614 | BV101: -262.2369
A102: =A101+500 -> 34000 | B102: 34 | C102: 1.000912325 | D102: 0.04269969017 | F102: 0.02376743535 | G102: 0.06342151329 | H102: -3.078171137 | J102: 15 | M102: 0.04367241445 | N102: -1.570796325 | O102: 10.09020539 | P102: 1.471527359 | Q102: 7.193284072 | R102: 1.431326044 | S102: 0.9991334532 | T102: -0.04163344682 | U102: 0.9550135598 | V102: -0.3010908256 | X102: 0.6627415353 | Y102: -117.2351086 | Z102: 62.7648914 | AC102: 1 | AD102: 10.04053011 | AE102: -0.0003217412071 | AF102: 0.001036097256 | AG102: 8565.077848 | AH102: -3624.889907 | AJ102: 22100 | AK102: 920.6311597 | AL102: 1 | AM102: 7.12343567 | AN102: 553.8501998 | AO102: -3024.68511 | AQ102: 2.162162162 | AR102: -147.027027 | AT102: -514437.699 | AU102: -1267135.532 | AV102: -1.956451298 | AW102: -435871.7095 | AX102: -101251.6104 | AY102: -2.913343944 | BA102: 3.056201843 | BB102: 9.703640666 | BC102: 0.9568926457 | BD102: -125.1740899 | BF102: 0.7530330143 | BG102: -119.0937928 | BH102: 60.90620719 | BI102: 60.90620719 | BJ102: 0 | BK102: 0 | BM102: -8.950607652 | BN102: -173.9197029 | BQ102: 26.60560147 | BT102: 831.764 | BU102: 16.5098 | BV102: -262.3432
A103: 34500 | B103: 34.5 | C103: 1.000939343 | D103: 0.04332684692 | F103: 0.02306891414 | G103: 0.06246156488 | H103: -3.079131085 | J103: 15 | M103: 0.04303948091 | N103: -1.570796325 | O103: 10.23714378 | P103: 1.472956809 | Q103: 7.297037803 | R103: 1.433321798 | S103: 0.9991078135 | T103: -0.04224498048 | U103: 0.9537717189 | V103: -0.3052504343 | X103: 0.5155078318 | Y103: -117.3312927 | Z103: 62.66870729 | AC103: 1 | AD103: 10.18818496 | AE103: -0.0003312737644 | AF103: 0.00105133398 | AG103: 8542.81733 | AH103: -3643.001489 | AJ103: 22100 | AK103: 934.1698532 | AL103: 1 | AM103: 7.228192077 | AN103: 541.8613029 | AO103: -2982.507724 | AQ103: 2.099958001 | AR103: -144.8971021 | AT103: -509920.801 | AU103: -1245479.625 | AV103: -1.95939454 | AW103: -423415.6254 | AX103: -97924.42775 | AY103: -2.914315951 | BA103: 3.09675162 | BB103: 9.818127468 | BC103: 0.9549214111 | BD103: -125.2870333 | BF103: 0.6086508968 | BG103: -119.2258038 | BH103: 60.77419621 | BI103: 60.77419621 | BJ103: 0 | BK103: 0 | BM103: -9.209476571 | BN103: -173.9387705 | BQ103: 26.72008827 | BT103: 851.138 | BU103: 16.2768 | BV103: -262.197
A104: 35000 | B104: 35 | C104: 1.000966754 | D104: 0.04395396956 | F104: 0.02240094118 | G104: 0.06153080081 | H104: -3.080061849 | J104: 15 | M104: 0.04242463118 | N104: -1.570796325 | O104: 10.3841025 | P104: 1.474345802 | Q104: 7.400819784 | R104: 1.435261587 | S104: 0.9990818015 | T104: -0.04285648253 | U104: 0.952516687 | V104: -0.3093991678 | X104: 0.3703537936 | Y104: -117.4307063 | Z104: 62.56929367 | AC104: 1 | AD104: 10.33583982 | AE104: -0.0003409454833 | AF104: 0.001066570705 | AG104: 8520.349786 | AH104: -3661.243233 | AJ104: 22100 | AK104: 947.7085468 | AL104: 1 | AM104: 7.332948484 | AN104: 530.3700278 | AO104: -2941.467545 | AQ104: 2.040399918 | AR104: -142.8279943 | AT104: -505543.1066 | AU104: -1224414.871 | AV104: -1.962361277 | AW104: -411475.8678 | AX104: -94771.18029 | AY104: -2.91522023 | BA104: 3.137192975 | BB104: 9.930824676 | BC104: 0.9528589528 | BD104: -125.4052035 | BF104: 0.4663682335 | BG104: -119.3613713 | BH104: 60.63862868 | BI104: 60.63862868 | BJ104: 0 | BK104: 0 | BM104: -9.464456443 | BN104: -173.9561678 | BQ104: 26.83278548 | BT104: 870.964 | BU104: 16.1061 | BV104: -261.768
A105: 35500 | B105: 35.5 | C105: 1.000994559 | D105: 0.04458105762 | F105: 0.02176174986 | G105: 0.06062788786 | H105: -3.080964762 | J105: 15 | M105: 0.04182710117 | N105: -1.570796325 | O105: 10.53108069 | P105: 1.475696026 | Q105: 7.504628841 | R105: 1.437147718 | S105: 0.9990554173 | T105: -0.0434679525 | U105: 0.9512486455 | V105: -0.3135369262 | X105: 0.227206912 | Y105: -117.5331912 | Z105: 62.46680882 | AC105: 1 | AD105: 10.48349467 | AE105: -0.0003507563635 | AF105: 0.001081807429 | AG105: 8497.679388 | AH105: -3679.596769 | AJ105: 22100 | AK105: 961.2472403 | AL105: 1 | AM105: 7.437704891 | AN105: 519.3493757 | AO105: -2901.520152 | AQ105: 1.983339944 | AR105: -140.8171361 | AT105: -501296.4918 | AU105: -1203916.766 | AV105: -1.965349978 | AW105: -400024.5375 | AX105: -91780.31838 | AY105: -2.91605931 | BA105: 3.177523681 | BB105: 10.04177592 | BC105: 0.9507093321 | BD105: -125.5283677 | BF105: 0.3261117141 | BG105: -119.5003391 | BH105: 60.49966089 | BI105: 60.49966089 | BJ105: 0 | BK105: 0 | BM105: -9.715664204 | BN105: -173.9719715 | BQ105: 26.94373672 | BT105: 891.251 | BU105: 15.8824 | BV105: -261.3831
A106: 36000 | B106: 36 | C106: 1.001022758 | D106: 0.04520811059 | F106: 0.02114970015 | G106: 0.0597515739 | H106: -3.081841076 | J106: 15 | M106: 0.04124616921 | N106: -1.570796325 | O106: 10.67807756 | P106: 1.477009078 | Q106: 7.608463868 | R106: 1.438982374 | S106: 0.999028661 | T106: -0.04407938996 | U106: 0.9499677761 | V106: -0.3176636121 | X106: 0.085998372 | Y106: -117.6385969 | Z106: 62.36140311 | AC106: 1 | AD106: 10.63114953 | AE106: -0.0003607064051 | AF106: 0.001097044153 | AG106: 8474.810311 | AH106: -3698.044741 | AJ106: 22100 | AK106: 974.7859338 | AL106: 1 | AM106: 7.542461298 | AN106: 508.7741436 | AO106: -2862.623354 | AQ106: 1.928640309 | AR106: -138.8621022 | AT106: -497173.406 | AU106: -1183962.174 | AV106: -1.968359191 | AW106: -389035.5818 | AX106: -88941.20874 | AY106: -2.916835585 | BA106: 3.217741572 | BB106: 10.15102323 | BC106: 0.9484763932 | BD106: -125.6563056 | BF106: 0.1878117198 | BG106: -119.6425587 | BH106: 60.35744131 | BI106: 60.35744131 | BJ106: 0 | BK106: 0 | BM106: -9.96321151 | BN106: -173.9862531 | BQ106: 27.05298403 | BT106: 912.011 | BU106: 15.6715 | BV106: -261.7487
A107: 36500 | B107: 36.5 | C107: 1.00105135 | D107: 0.04583512798 | F107: 0.02056326787 | G107: 0.05890068183 | H107: -3.082691968 | J107: 15 | M107: 0.04068115319 | N107: -1.570796325 | O107: 10.82509233 | P107: 1.478286467 | Q107: 7.712323815 | R107: 1.440767622 | S107: 0.9990015326 | T107: -0.04469079443 | U107: 0.9486742614 | V107: -0.3217791297 | X107: -0.05333719242 | Y107: -117.7467805 | Z107: 62.25321953 | AC107: 1 | AD107: 10.77880438 | AE107: -0.0003707956082 | AF107: 0.001112280878 | AG107: 8451.746731 | AH107: -3716.570744 | AJ107: 22100 | AK107: 988.3246273 | AL107: 1 | AM107: 7.647217705 | AN107: 498.6207833 | AO107: -2824.737055 | AQ107: 1.876172608 | AR107: -136.9606004 | AT107: -493166.8248 | AU107: -1164529.235 | AV107: -1.971387543 | AW107: -378484.6503 | AX107: -86244.05046 | AY107: -2.91755132 | BA107: 3.257844539 | BB107: 10.25860713 | BC107: 0.9461637776 | BD107: -125.7888088 | BF107: 0.05140207885 | BG107: -119.7878889 | BH107: 60.21211112 | BI107: 60.21211112 | BJ107: 36500 | BK107: 60.21211112 | BM107: -10.20720505 | BN107: -173.9990801 | BQ107: 27.16056793 | BT107: 933.254 | BU107: 15.4714 | BV107: -261.2073
A108: 37000 | B108: 37 | C108: 1.001080336 | D108: 0.04646210931 | F108: 0.02000103495 | G108: 0.05807410392 | H108: -3.083518546 | J108: 15 | M108: 0.04013140788 | N108: -1.570796325 | O108: 10.97212429 | P108: 1.479529623 | Q108: 7.816207688 | R108: 1.44250542 | S108: 0.9989740324 | T108: -0.04530216547 | U108: 0.9473682839 | V108: -0.3258833856 | X108: -0.1908619225 | Y108: -117.8576059 | Z108: 62.14239407 | AC108: 1 | AD108: 10.92645924 | AE108: -0.0003810239727 | AF108: 0.001127517602 | AG108: 8428.492821 | AH108: -3735.159266 | AJ108: 22100 | AK108: 1001.863321 | AL108: 1 | AM108: 7.751974112 | AN108: 488.8672738 | AO108: -2787.823129 | AQ108: 1.825817053 | AR108: -135.1104619 | AT108: -489270.2078 | AU108: -1145597.276 | AV108: -1.974433725 | AW108: -368348.9648 | AX108: -83679.79968 | AY108: -2.918208663 | BA108: 3.297830527 | BB108: 10.36456668 | BC108: 0.9437749374 | BD108: -125.9256792 | BF108: -0.0831801573 | BG108: -119.9361954 | BH108: 60.06380461 | BI108: 60.06380461 | BJ108: 0 | BK108: 0 | BM108: -10.44774683 | BN108: -174.0105162 | BQ108: 27.26652748 | BT108: 954.993 | BU108: 15.3525 | BV108: -261.2661
A109: 37500 | B109: 37.5 | C109: 1.001109715 | D109: 0.04708905409 | F109: 0.0194616806 | G109: 0.05727079673 | H109: -3.084321853 | J109: 15 | M109: 0.03959632244 | N109: -1.570796325 | O109: 11.11917276 | P109: 1.4807399 | Q109: 7.920114547 | R109: 1.444197626 | S109: 0.9989461603 | T109: -0.04591350263 | U109: 0.9460500269 | V109: -0.3299762882 | X109: -0.3266349416 | Y109: -117.9709438 | Z109: 62.02905618 | AC109: 1 | AD109: 11.07411409 | AE109: -0.0003913914986 | AF109: 0.001142754326 | AG109: 8405.052751 | AH109: -3753.795626 | AJ109: 22100 | AK109: 1015.402014 | AL109: 1 | AM109: 7.856730519 | AN109: 479.4930043 | AO109: -2751.845306 | AQ109: 1.777461785 | AR109: -133.3096338 | AT109: -485477.4604 | AU109: -1127146.733 | AV109: -1.977496499 | AW109: -358607.1991 | AX109: -81240.10204 | AY109: -2.918809646 | BA109: 3.337697537 | BB109: 10.46893957 | BC109: 0.9413131475 | BD109: -126.0667294 | BF109: -0.2159949207 | BG109: -120.0873504 | BH109: 59.91264962 | BI109: 59.91264962 | BJ109: 0 | BK109: 0 | BM109: -10.68493449 | BN109: -174.020621 | BQ109: 27.37090037 | BT109: 977.237 | BU109: 15.0807 | BV109: -260.9324
A110: 38000 | B110: 38 | C110: 1.001139487 | D110: 0.04771596183 | F110: 0.01894397343 | G110: 0.05648977647 | H110: -3.085102874 | J110: 15 | M110: 0.0390753182 | N110: -1.570796325 | O110: 11.26623709 | P110: 1.481918581 | Q110: 8.024043498 | R110: 1.445846002 | S110: 0.9989179164 | T110: -0.04652480544 | U110: 0.9447196738 | V110: -0.3340577479 | X110: -0.4607125453 | Y110: -118.0866709 | Z110: 61.9133291 | AC110: 1 | AD110: 11.22176895 | AE110: -0.000401898186 | AF110: 0.001157991051 | AG110: 8381.430689 | AH110: -3772.465933 | AJ110: 22100 | AK110: 1028.940708 | AL110: 1 | AM110: 7.961486925 | AN110: 470.4786682 | AO110: -2716.769058 | AQ110: 1.73100225 | AR110: -131.556171 | AT110: -481782.8981 | AU110: -1109159.076 | AV110: -1.980574685 | AW110: -349239.3706 | AX110: -78917.23191 | AY110: -2.919356202 | BA110: 3.377443619 | BB110: 10.57176216 | BC110: 0.9387815171 | BD110: -126.2117811 | BF110: -0.3470993166 | BG110: -120.2412321 | BH110: 59.75876789 | BI110: 59.75876789 | BJ110: 0 | BK110: 0 | BM110: -10.91886147 | BN110: -174.029451 | BQ110: 27.47372296 | BT110: 1000 | BU110: 14.8838 | BV110: -260.5154
A111: 38500 | B111: 38.5 | C111: 1.001169654 | D111: 0.04834283203 | F111: 0.01844676418 | G111: 0.05573011476 | H111: -3.085862535 | J111: 15 | M111: 0.03856784653 | N111: -1.570796325 | O111: 11.41331668 | P111: 1.483066886 | Q111: 8.127993694 | R111: 1.447452218 | S111: 0.998889301 | T111: -0.04713607346 | U111: 0.9433774081 | V111: -0.3381276774 | X111: -0.5931483769 | Y111: -118.2046697 | Z111: 61.7953303 | AC111: 1 | AD111: 11.3694238 | AE111: -0.0004125440347 | AF111: 0.001173227775 | AG111: 8357.630794 | AH111: -3791.157031 | AJ111: 22100 | AK111: 1042.479401 | AL111: 1 | AM111: 8.066243332 | AN111: 461.8061656 | AO111: -2682.561503 | AQ111: 1.686340641 | AR111: -129.8482293 | AT111: -478181.2152 | AU111: -1091616.742 | AV111: -1.983667163 | AW111: -340226.7402 | AX111: -76704.03764 | AY111: -2.919850162 | BA111: 3.41706687 | BB111: 10.67306956 | BC111: 0.9361829999 | BD111: -126.3606652 | BF111: -0.4765477991 | BG111: -120.3977246 | BH111: 59.60227543 | BI111: 59.60227543 | BJ111: 0 | BK111: 0 | BM111: -11.14961735 | BN111: -174.0370594 | BQ111: 27.57503036 | BT111: 1023.293 | BU111: 14.7437 | BV111: -261.1239
A112: 39000 | B112: 39 | C112: 1.001200213 | D112: 0.04896966421 | F112: 0.01796897928 | G112: 0.05499093472 | H112: -3.086601715 | J112: 15 | M112: 0.03807338696 | N112: -1.570796325 | O112: 11.56041092 | P112: 1.484185969 | Q112: 8.231964331 | R112: 1.449017866 | S112: 0.9988603139 | T112: -0.04774730623 | U112: 0.9420234138 | V112: -0.342185991 | X112: -0.7239935899 | Y112: -118.3248283 | Z112: 61.67517171 | AC112: 1 | AD112: 11.51707865 | AE112: -0.0004233290449 | AF112: 0.001188464499 | AG112: 8333.657221 | AH112: -3809.856461 | AJ112: 22100 | AK112: 1056.018095 | AL112: 1 | AM112: 8.170999739 | AN112: 453.4585144 | AO112: -2649.191308 | AQ112: 1.643385374 | AR112: -128.1840592 | AT112: -474667.4556 | AU112: -1074503.073 | AV112: -1.986772865 | AW112: -331551.7215 | AX112: -74593.89222 | AY112: -2.920293269 | BA112: 3.456565436 | BB112: 10.77289566 | BC112: 0.9335204042 | BD112: -126.5132207 | BF112: -0.6043923324 | BG112: -120.5567171 | BH112: 59.44328287 | BI112: 59.44328287 | BJ112: 0 | BK112: 0 | BM112: -11.37728799 | BN112: -174.0434964 | BQ112: 27.67485646 | BT112: 1047.129 | BU112: 14.5866 | BV112: -260.4077
A113: 39500 | B113: 39.5 | C113: 1.001231166 | D113: 0.04959645789 | F113: 0.01750961486 | G113: 0.0542714074 | H113: -3.087321243 | J113: 15 | M113: 0.03759144535 | N113: -1.570796325 | O113: 11.70751929 | P113: 1.485276932 | Q113: 8.335954642 | R113: 1.450544454 | S113: 0.9988309554 | T113: -0.0483585033 | U113: 0.9406578747 | V113: -0.3462326055 | X113: -0.8532969971 | Y113: -118.4470399 | Z113: 61.55296011 | AC113: 1 | AD113: 11.66473351 | AE113: -0.0004342532165 | AF113: 0.001203701224 | AG113: 8309.514113 | AH113: -3828.552418 | AJ113: 22100 | AK113: 1069.556788 | AL113: 1 | AM113: 8.275756146 | AN113: 445.4197689 | AO113: -2616.628601 | AQ113: 1.602050625 | AR113: -126.5619994 | AT113: -471236.9864 | AU113: -1057802.255 | AV113: -1.989890776 | AW113: -323197.7968 | AX113: -72580.64876 | AY113: -2.920687177 | BA113: 3.495937508 | BB113: 10.87127321 | BC113: 0.9307964013 | BD113: -126.6692946 | BF113: -0.7306825411 | BG113: -120.7181042 | BH113: 59.28189576 | BI113: 59.28189576 | BJ113: 0 | BK113: 0 | BM113: -11.60195576 | BN113: -174.0488097 | BQ113: 27.77323401 | BT113: 1071.519 | BU113: 14.3581 | BV113: -260.5301
A114: 40000 | B114: 40 | C114: 1.001262512 | D114: 0.05022321256 | F114: 0.01706773137 | G114: 0.05357074856 | H114: -3.088021901 | J114: 15 | M114: 0.03712155229 | N114: -1.570796325 | O114: 11.85464124 | P114: 1.486340816 | Q114: 8.439963901 | R114: 1.45203342 | S114: 0.9988012256 | T114: -0.04896966421 | U114: 0.9392809749 | V114: -0.3502674393 | X114: -0.9811052104 | Y114: -118.5712026 | Z114: 61.4287974 | AC114: 1 | AD114: 11.81238836 | AE114: -0.0004453165496 | AF114: 0.001218937948 | AG114: 8285.205605 | AH114: -3847.233716 | AJ114: 22100 | AK114: 1083.095482 | AL114: 1 | AM114: 8.380512553 | AN114: 437.6749452 | AO114: -2584.844891 | AQ114: 1.562255898 | AR114: -124.9804718 | AT114: -467885.4737 | AU114: -1041499.269 | AV114: -1.993019928 | AW114: -315149.441 | AX114: -70658.60016 | AY114: -2.921033462 | BA114: 3.535181317 | BB114: 10.96823387 | BC114: 0.9280135344 | BD114: -126.8287411 | BF114: -0.8554658482 | BG114: -120.8817852 | BH114: 59.11821483 | BI114: 59.11821483 | BJ114: 0 | BK114: 0 | BM114: -11.82369972 | BN114: -174.0530441 | BQ114: 27.87019467 | BT114: 1096.478 | BU114: 14.1501 | BV114: -260.5471
A115: 40500 | B115: 40.5 | C115: 1.001294252 | D115: 0.05084992774 | F115: 0.01664244871 | G115: 0.05288821563 | H115: -3.088704434 | J115: 15 | M115: 0.03666326152 | N115: -1.570796325 | O115: 12.00177628 | P115: 1.487378617 | Q115: 8.543991416 | R115: 1.453486132 | S115: 0.9987711245 | T115: -0.04958078852 | U115: 0.9378928983 | V115: -0.354290413 | X115: -1.107462768 | Y115: -118.6972192 | Z115: 61.30278084 | AC115: 1 | AD115: 11.96004322 | AE115: -0.000456519044 | AF115: 0.001234174673 | AG115: 8260.735819 | AH115: -3865.889752 | AJ115: 22100 | AK115: 1096.634176 | AL115: 1 | AM115: 8.48526896 | AN115: 430.2099529 | AO115: -2553.812984 | AQ115: 1.523925632 | AR115: -123.4379762 | AT115: -464608.8603 | AU115: -1025579.84 | AV115: -1.996159398 | AW115: -307392.0509 | AX115: -68822.44273 | AY115: -2.921333624 | BA115: 3.574295139 | BB115: 11.06380821 | BC115: 0.9251742259 | BD115: -126.9914215 | BF115: -0.9787876034 | BG115: -121.0476637 | BH115: 58.95233631 | BI115: 58.95233631 | BJ115: 0 | BK115: 0 | BM115: -12.04259581 | BN115: -174.0562422 | BQ115: 27.96576901 | BT115: 1122.018 | BU115: 13.9679 | BV115: -259.931
A116: 41000 | B116: 41 | C116: 1.001326385 | D116: 0.05147660295 | F116: 0.01623294172 | G116: 0.05222310494 | H116: -3.089369545 | J116: 15 | M116: 0.03621614857 | N116: -1.570796325 | O116: 12.14892393 | P116: 1.488391279 | Q116: 8.648036529 | R116: 1.454903891 | S116: 0.9987406522 | T116: -0.05019187576 | U116: 0.936493829 | V116: -0.3583014492 | X116: -1.232412257 | Y116: -118.8249967 | Z116: 61.17500334 | AC116: 1 | AD116: 12.10769807 | AE116: -0.0004678606999 | AF116: 0.001249411397 | AG116: 8236.108866 | AH116: -3884.510475 | AJ116: 22100 | AK116: 1110.172869 | AL116: 1 | AM116: 8.590025367 | AN116: 423.011532 | AO116: -2523.506921 | AQ116: 1.486988848 | AR116: -121.9330855 | AT116: -461403.3458 | AU116: -1010030.39 | AV116: -1.999308307 | AW116: -299911.881 | AX116: -67067.24308 | AY116: -2.921589091 | BA116: 3.61327729 | BB116: 11.15802583 | BC116: 0.9222807847 | BD116: -127.1572035 | BF116: -1.100691203 | BG116: -121.2156478 | BH116: 58.78435215 | BI116: 58.78435215 | BJ116: 0 | BK116: 0 | BM116: -12.25871703 | BN116: -174.0584444 | BQ116: 28.05998663 | BT116: 1148.154 | BU116: 13.7508 | BV116: -259.948
A117: 41500 | B117: 41.5 | C117: 1.001358911 | D117: 0.05210323769 | F117: 0.01583843611 | G117: 0.05157474923 | H117: -3.090017901 | J117: 15 | M117: 0.03577980943 | N117: -1.570796325 | O117: 12.29608374 | P117: 1.489379702 | Q117: 8.752098611 | R117: 1.456287938 | S117: 0.9987098089 | T117: -0.05080292548 | U117: 0.9350839507 | V117: -0.3623004725 | X117: -1.355994418 | Y117: -118.9544463 | Z117: 61.04555369 | AC117: 1 | AD117: 12.25535293 | AE117: -0.0004793415172 | AF117: 0.001264648121 | AG117: 8211.328842 | AH117: -3903.086354 | AJ117: 22100 | AK117: 1123.711563 | AL117: 1 | AM117: 8.694781774 | AN117: 416.0671951 | AO117: -2493.901902 | AQ117: 1.45137881 | AR117: -120.4644412 | AT117: -458265.368 | AU117: -994837.9974 | AV117: -2.002465814 | AW117: -292695.9836 | AX117: -65388.40819 | AY117: -2.921801227 | BA117: 3.652126122 | BB117: 11.25091534 | BC117: 0.919335413 | BD117: -127.3259608 | BF117: -1.221218199 | BG117: -121.3856497 | BH117: 58.61435027 | BI117: 58.61435027 | BJ117: 0 | BK117: 0 | BM117: -12.47213354 | BN117: -174.0596889 | BQ117: 28.15287614 | BT117: 1174.898 | BU117: 13.6038 | BV117: -260.1987
A118: 42000 | B118: 42 | C118: 1.00139183 | D118: 0.05272983148 | F118: 0.01545820473 | G118: 0.05094251523 | H118: -3.090650135 | J118: 15 | M118: 0.03535385932 | N118: -1.570796325 | O118: 12.44325528 | P118: 1.490344746 | Q118: 8.856177064 | R118: 1.457639457 | S118: 0.9986785946 | T118: -0.05141393724 | U118: 0.9336634473 | V118: -0.3662874094 | X118: -1.478248255 | Y118: -119.0854832 | Z118: 60.91451676 | AC118: 1 | AD118: 12.40300778 | AE118: -0.0004909614959 | AF118: 0.001279884846 | AG118: 8186.399826 | AH118: -3921.608356 | AJ118: 22100 | AK118: 1137.250256 | AL118: 1 | AM118: 8.799538181 | AN118: 409.3651745 | AO118: -2464.974227 | AQ118: 1.417032733 | AR118: -119.0307496 | AT118: -455191.5857 | AU118: -979990.3553 | AV118: -2.005631117 | AW118: -285732.1545 | AX118: -63781.65819 | AY118: -2.92197133 | BA118: 3.690840029 | BB118: 11.34250444 | BC118: 0.9163402122 | BD118: -127.4975732 | BF118: -1.340408403 | BG118: -121.5575853 | BH118: 58.44241474 | BI118: 58.44241474 | BJ118: 0 | BK118: 0 | BM118: -12.68291285 | BN118: -174.0600121 | BQ118: 28.24446524 | BT118: 1202.264 | BU118: 13.4128 | BV118: -259.341
A119: 42500 | B119: 42.5 | C119: 1.001425142 | D119: 0.05335638383 | F119: 0.01509156413 | G119: 0.05032580159 | H119: -3.091266848 | J119: 15 | M119: 0.03493793156 | N119: -1.570796325 | O119: 12.59043814 | P119: 1.491287228 | Q119: 8.960271319 | R119: 1.458959577 | S119: 0.9986470095 | T119: -0.05202491058 | U119: 0.9322325022 | V119: -0.3702621884 | X119: -1.599211128 | Y119: -119.2180263 | Z119: 60.78197372 | AC119: 1 | AD119: 12.55066264 | AE119: -0.000502720636 | AF119: 0.00129512157 | AG119: 8161.325883 | AH119: -3940.067911 | AJ119: 22100 | AK119: 1150.78895 | AL119: 1 | AM119: 8.904294588 | AN119: 402.8943731 | AO119: -2436.701236 | AQ119: 1.383891503 | AR119: -117.6307777 | AT119: -452178.8632 | AU119: -965475.7376 | AV119: -2.008803451 | AW119: -279008.8825 | AX119: -62243.00155 | AY119: -2.92210064 | BA119: 3.72941744 | BB119: 11.43281995 | BC119: 0.9132971892 | BD119: -127.6719256 | BF119: -1.458299984 | BG119: -121.7313739 | BH119: 58.26862608 | BI119: 58.26862608 | BJ119: 0 | BK119: 0 | BM119: -12.89111993 | BN119: -174.0594484 | BQ119: 28.33478075 | BT119: 1230.269 | BU119: 13.1837 | BV119: -259.551
A120: 43000 | B120: 43 | C120: 1.001458848 | D120: 0.05398289425 | F120: 0.01473787147 | G120: 0.04972403679 | H120: -3.091868613 | J120: 15 | M120: 0.03453167655 | N120: -1.570796325 | O120: 12.73763193 | P120: 1.492207928 | Q120: 9.06438083 | R120: 1.460249374 | S120: 0.9986150537 | T120: -0.05263584504 | U120: 0.9307912986 | V120: -0.3742247401 | X120: -1.718918843 | Y120: -119.3519977 | Z120: 60.64800225 | AC120: 1 | AD120: 12.69831749 | AE120: -0.0005146189376 | AF120: 0.001310358294 | AG120: 8136.111058 | AH120: -3958.456898 | AJ120: 22100 | AK120: 1164.327643 | AL120: 1 | AM120: 9.009050995 | AN120: 396.644319 | AO120: -2409.061253 | AQ120: 1.351899419 | AR120: -116.26335 | AT120: -449224.256 | AU120: -951282.9632 | AV120: -2.011982083 | AW120: -272515.3029 | AX120: -60768.71259 | AY120: -2.922190344 | BA120: 3.767856818 | BB120: 11.52188782 | BC120: 0.910208261 | BD120: -127.8489081 | BF120: -1.574929552 | BG120: -121.9069386 | BH120: 58.09306135 | BI120: 58.09306135 | BJ120: 0 | BK120: 0 | BM120: -13.09681737 | BN120: -174.0580305 | BQ120: 28.42384862 | BT120: 1258.925 | BU120: 13.0792 | BV120: -259.272
A121: 43500 | B121: 43.5 | C121: 1.001492946 | D121: 0.05460936225 | F121: 0.01439652162 | G121: 0.04913667734 | H121: -3.092455973 | J121: 15 | M121: 0.03413476072 | N121: -1.570796325 | O121: 12.88483626 | P121: 1.493107592 | Q121: 9.168505077 | R121: 1.461509878 | S121: 0.9985827272 | T121: -0.05324674018 | U121: 0.9293400197 | V121: -0.378174997 | X121: -1.837405734 | Y121: -119.4873233 | Z121: 60.51267671 | AC121: 1 | AD121: 12.84597235 | AE121: -0.0005266564006 | AF121: 0.001325595019 | AG121: 8110.759377 | AH121: -3976.767614 | AJ121: 22100 | AK121: 1177.866337 | AL121: 1 | AM121: 9.113807402 | AN121: 390.6051243 | AO121: -2382.033537 | AQ121: 1.321003963 | AR121: -114.9273448 | AT121: -446324.9974 | AU121: -937401.3652 | AV121: -2.015166312 | AW121: -266241.1545 | AX121: -59355.31089 | AY121: -2.922241573 | BA121: 3.806156663 | BB121: 11.6097332 | BC121: 0.9070752603 | BD121: -128.0284158 | BF121: -1.690332247 | BG121: -122.0842056 | BH121: 57.91579439 | BI121: 57.91579439 | BJ121: 0 | BK121: 0 | BM121: -13.30006545 | BN121: -174.0557898 | BQ121: 28.511694 | BT121: 1288.25 | BU121: 12.807 | BV121: -258.861
A122: 44000 | B122: 44 | C122: 1.001527438 | D122: 0.05523578735 | F122: 0.01406694453 | G122: 0.04856320607 | H122: -3.093029444 | J122: 15 | M122: 0.03374686572 | N122: -1.570796325 | O122: 13.03205079 | P122: 1.49398693 | Q122: 9.272643565 | R122: 1.46274207 | S122: 0.9985500302 | T122: -0.05385759554 | U122: 0.9278788478 | V122: -0.3821128934 | X122: -1.954704745 | Y122: -119.6239317 | Z122: 60.37606829 | AC122: 1 | AD122: 12.9936272 | AE122: -0.000538833025 | AF122: 0.001340831743 | AG122: 8085.274848 | AH122: -3994.992759 | AJ122: 22100 | AK122: 1191.40503 | AL122: 1 | AM122: 9.218563808 | AN122: 384.7674464 | AO122: -2355.598226 | AQ122: 1.291155584 | AR122: -113.6216914 | AT122: -443478.4867 | AU122: -923820.761 | AV122: -2.01835547 | AW122: -260176.7403 | AX122: -57999.54257 | AY122: -2.92225541 | BA122: 3.844315508 | BB122: 11.69638047 | BC122: 0.9038999402 | BD122: -128.2103483 | BF122: -1.804541814 | BG122: -122.263104 | BH122: 57.73689598 | BI122: 57.73689598 | BJ122: 0 | BK122: 0 | BM122: -13.50092229 | BN122: -174.0527558 | BQ122: 28.59834127 | BT122: 1318.257 | BU122: 12.6826 | BV122: -258.683
A123: 44500 | B123: 44.5 | C123: 1.001562322 | D123: 0.05586216905 | F123: 0.01374860282 | G123: 0.04800313052 | H123: -3.093589519 | J123: 15 | M123: 0.03336768745 | N123: -1.570796325 | O123: 13.17927517 | P123: 1.494846623 | Q123: 9.376795819 | R123: 1.463946892 | S123: 0.9985169628 | T123: -0.05446841067 | U123: 0.9264079654 | V123: -0.3860383657 | X123: -2.070847498 | Y123: -119.7617548 | Z123: 60.2382452 | AC123: 1 | AD123: 13.14128205 | AE123: -0.0005511488108 | AF123: 0.001356068467 | AG123: 8059.661455 | AH123: -4013.125412 | AJ123: 22100 | AK123: 1204.943724 | AL123: 1 | AM123: 9.323320215 | AN123: 379.1224524 | AO123: -2329.736301 | AQ123: 1.262307498 | AR123: -112.3453673 | AT123: -440682.2774 | AU123: -910531.425 | AV123: -2.021548914 | AW123: -254312.8907 | AX123: -56698.36314 | AY123: -2.922232892 | BA123: 3.88233192 | BB123: 11.78185325 | BC123: 0.9006839782 | BD123: -128.3946093 | BF123: -1.917590675 | BG123: -122.443566 | BH123: 57.556434 | BI123: 57.556434 | BJ123: 0 | BK123: 0 | BM123: -13.69944393 | BN123: -174.0489567 | BQ123: 28.68381405 | BT123: 1348.963 | BU123: 12.4759 | BV123: -258.797
A124: 45000 | B124: 45 | C124: 1.0015976 | D124: 0.05648850688 | F124: 0.01344098955 | G124: 0.04745598147 | H124: -3.094136669 | J124: 15 | M124: 0.03299693537 | N124: -1.570796325 | O124: 13.32650908 | P124: 1.495687321 | Q124: 9.480961386 | R124: 1.46512524 | S124: 0.9984835251 | T124: -0.05507918512 | U124: 0.9249275541 | V124: -0.3899513523 | X124: -2.185864363 | Y124: -119.9007272 | Z124: 60.09927281 | AC124: 1 | AD124: 13.28893691 | AE124: -0.000563603758 | AF124: 0.001371305192 | AG124: 8033.92316 | AH124: -4031.159014 | AJ124: 22100 | AK124: 1218.482417 | AL124: 1 | AM124: 9.428076622 | AN124: 373.6617862 | AO124: -2304.429534 | AQ124: 1.234415504 | AR124: -111.0973954 | AT124: -437934.0676 | AU124: -897524.063 | AV124: -2.024746031 | AW124: -248640.9294 | AX124: -55448.92186 | AY124: -2.922175011 | BA124: 3.920204496 | BB124: 11.86617445 | BC124: 0.8974289805 | BD124: -128.5811069 | BF124: -2.029509999 | BG124: -122.6255264 | BH124: 57.37447355 | BI124: 57.37447355 | BJ124: 0 | BK124: 0 | BM124: -13.89568445 | BN124: -174.0444195 | BQ124: 28.76813525 | BT124: 1380.384 | BU124: 12.2584 | BV124: -258.41
A125: 45500 | B125: 45.5 | C125: 1.00163327 | D125: 0.05711480035 | F125: 0.01314362614 | G125: 0.04692131161 | H125: -3.094671338 | J125: 15 | M125: 0.03263433168 | N125: -1.570796325 | O125: 13.4737522 | P125: 1.496509645 | Q125: 9.58513983 | R125: 1.466277976 | S125: 0.9984497172 | T125: -0.05568991844 | U125: 0.9234377952 | V125: -0.3938517933 | X125: -2.299784524 | Y125: -120.0407862 | Z125: 59.95921379 | AC125: 1 | AD125: 13.43659176 | AE125: -0.0005761978667 | AF125: 0.001386541916 | AG125: 8008.063903 | AH125: -4049.087354 | AJ125: 22100 | AK125: 1232.021111 | AL125: 1 | AM125: 9.532833029 | AN125: 368.3775382 | AO125: -2279.660453 | AQ125: 1.207437817 | AR125: -109.8768413 | AT125: -435231.6895 | AU125: -884789.7882 | AV125: -2.027946233 | AW125: -243152.6422 | AX125: -54248.54741 | AY125: -2.922082719 | BA125: 3.957931867 | BB125: 11.94936628 | BC125: 0.8941364859 | BD125: -128.769753 | BF125: -2.140329763 | BG125: -122.8089229 | BH125: 57.19107715 | BI125: 57.19107715 | BJ125: 0 | BK125: 0 | BM125: -14.08969604 | BN125: -174.0391699 | BQ125: 28.85132708 | BT125: 1412.538 | BU125: 12.0929 | BV125: -258.136
A126: 46000 | B126: 46 | C126: 1.001669333 | D126: 0.05774104896 | F126: 0.01285606051 | G126: 0.04639869421 | H126: -3.095193956 | J126: 15 | M126: 0.03227961068 | N126: -1.570796325 | O126: 13.62100423 | P126: 1.497314189 | Q126: 9.689330737 | R126: 1.467405923 | S126: 0.9984155392 | T126: -0.05630061017 | U126: 0.9219388695 | V126: -0.3977396309 | X126: -2.412636036 | Y126: -120.1818717 | Z126: 59.81812825 | AC126: 1 | AD126: 13.58424662 | AE126: -0.0005889311368 | AF126: 0.00140177864 | AG126: 7982.087599 | AH126: -4066.904545 | AJ126: 22100 | AK126: 1245.559804 | AL126: 1 | AM126: 9.637589436 | AN126: 363.2622172 | AO126: -2255.412303 | AQ126: 1.181334908 | AR126: -108.6828116 | AT126: -432573.1016 | AU126: -872320.0988 | AV126: -2.031148958 | AW126: -237840.248 | AX126: -53094.73475 | AY126: -2.921956927 | BA126: 3.995512692 | BB126: 12.03145029 | BC126: 0.8908079691 | BD126: -128.960463 | BF126: -2.250078815 | BG126: -122.9936952 | BH126: 57.00630481 | BI126: 57.00630481 | BJ126: 0 | BK126: 0 | BM126: -14.28152911 | BN126: -174.0332322 | BQ126: 28.93341109 | BT126: 1445.44 | BU126: 11.9189 | BV126: -257.929
A127: 46500 | B127: 46.5 | C127: 1.001705789 | D127: 0.05836725224 | F127: 0.01257786532 | G127: 0.04588772196 | H127: -3.095704928 | J127: 15 | M127: 0.0319325181 | N127: -1.570796325 | O127: 13.76826489 | P127: 1.498101524 | Q127: 9.79353371 | R127: 1.468509868 | S127: 0.9983809913 | T127: -0.05691125987 | U127: 0.9204309571 | V127: -0.4016148091 | X127: -2.524445881 | Y127: -120.3239261 | Z127: 59.67607385 | AC127: 1 | AD127: 13.73190147 | AE127: -0.0006018035683 | AF127: 0.001417015365 | AG127: 7955.998135 | AH127: -4084.605016 | AJ127: 22100 | AK127: 1259.098498 | AL127: 1 | AM127: 9.742345843 | AN127: 358.3087237 | AO127: -2231.669007 | AQ127: 1.156069364 | AR127: -107.5144509 | AT127: -429956.3796 | AU127: -860106.8573 | AV127: -2.034353665 | AW127: -232696.3715 | AX127: -51985.13311 | AY127: -2.921798509 | BA127: 4.032945663 | BB127: 12.11244741 | BC127: 0.8874448443 | BD127: -129.1531558 | BF127: -2.358784926 | BG127: -123.1797858 | BH127: 56.82021421 | BI127: 56.82021421 | BJ127: 0 | BK127: 0 | BM127: -14.47123234 | BN127: -174.02663 | BQ127: 29.01440821 | BT127: 1479.108 | BU127: 11.7147 | BV127: -257.745
A128: 47000 | B128: 47 | C128: 1.001742638 | D128: 0.05899340969 | F128: 0.01230863637 | G128: 0.04538800591 | H128: -3.096204644 | J128: 15 | M128: 0.03159281046 | N128: -1.570796325 | O128: 13.9155339 | P128: 1.498872195 | Q128: 9.897748366 | R128: 1.469590567 | S128: 0.9983460735 | T128: -0.05752186708 | U128: 0.9189142376 | V128: -0.4054772739 | X128: -2.635240022 | Y128: -120.4668941 | Z128: 59.53310593 | AC128: 1 | AD128: 13.87955633 | AE128: -0.0006148151612 | AF128: 0.001432252089 | AG128: 7929.799375 | AH128: -4102.183495 | AJ128: 22100 | AK128: 1272.637191 | AL128: 1 | AM128: 9.84710225 | AN128: 353.5103263 | AO128: -2208.415138 | AQ128: 1.131605749 | AR128: -106.3709404 | AT128: -427379.7094 | AU128: -848142.2708 | AV128: -2.037559836 | AW128: -227714.0186 | AX128: -50917.53491 | AY128: -2.921608305 | BA128: 4.070229501 | BB128: 12.19237795 | BC128: 0.8840484685 | BD128: -129.3477538 | BF128: -2.466474845 | BG128: -123.3671392 | BH128: 56.63286077 | BI128: 56.63286077 | BJ128: 0 | BK128: 0 | BM128: -14.6588528 | BN128: -174.0193854 | BQ128: 29.09433875 | BT128: 1513.561 | BU128: 11.5252 | BV128: -257.61
A129: 47500 | B129: 47.5 | C129: 1.00177988 | D129: 0.05961952083 | F129: 0.01204799107 | G129: 0.04489917435 | H129: -3.096693476 | J129: 15 | M129: 0.03126025456 | N129: -1.570796325 | O129: 14.06281101 | P129: 1.499626723 | Q129: 10.00197434 | R129: 1.470648745 | S129: 0.998310786 | T129: -0.05813243135 | U129: 0.91738889 | V129: -0.4093269729 | X129: -2.745043454 | Y129: -120.6107224 | Z129: 59.38927762 | AC129: 1 | AD129: 14.02721118 | AE129: -0.0006279659156 | AF129: 0.001447488813 | AG129: 7903.495153 | AH129: -4119.634994 | AJ129: 22100 | AK129: 1286.175885 | AL129: 1 | AM129: 9.951858657 | AN129: 348.8606385 | AO129: -2185.635881 | AQ129: 1.107910481 | AR129: -105.2514957 | AT129: -424841.3797 | AU129: -836418.8727 | AV129: -2.040766976 | AW129: -222886.5525 | AX129: -49889.86561 | AY129: -2.92138712 | BA129: 4.107362954 | BB129: 12.27126163 | BC129: 0.8806201438 | BD129: -129.5441823 | BF129: -2.573174348 | BG129: -123.5557022 | BH129: 56.44429777 | BI129: 56.44429777 | BJ129: 0 | BK129: 0 | BM129: -14.84443598 | BN129: -174.0115199 | BQ129: 29.17322243 | BT129: 1548.817 | BU129: 11.3354 | BV129: -257.471
A130: 48000 | B130: 48 | C130: 1.001817514 | D130: 0.06024558517 | F130: 0.01179556713 | G130: 0.04442087196 | H130: -3.097171778 | J130: 15 | M130: 0.03093462691 | N130: -1.570796325 | O130: 14.21009596 | P130: 1.500365611 | Q130: 10.10621129 | R130: 1.471685095 | S130: 0.9982751289 | T130: -0.05874295224 | U130: 0.9158550923 | V130: -0.4131638559 | X130: -2.853880245 | Y130: -120.7553601 | Z130: 59.24463995 | AC130: 1 | AD130: 14.17486604 | AE130: -0.0006412558314 | AF130: 0.001462725538 | AG130: 7877.089276 | AH130: -4136.954798 | AJ130: 22100 | AK130: 1299.714578 | AL130: 1 | AM130: 10.05661506 | AN130: 344.3535985 | AO130: -2163.317007 | AQ130: 1.08495172 | AR130: -104.1553651 | AT130: -422339.7758 | AU130: -824929.5056 | AV130: -2.043974608 | AW130: -218207.6727 | AX130: -48900.1744 | AY130: -2.921135729 | BA130: 4.1443448 | BB130: 12.34911761 | BC130: 0.877161121 | BD130: -129.7423698 | BF130: -2.678908282 | BG130: -123.7454235 | BH130: 56.2545765 | BI130: 56.2545765 | BJ130: 0 | BK130: 0 | BM130: -15.02802589 | BN130: -174.0030537 | BQ130: 29.25107841 | BT130: 1584.893 | BU130: 11.1604 | BV130: -256.942
A131: 48500 | B131: 48.5 | C131: 1.001855541 | D131: 0.06087160224 | F131: 0.0115510212 | G131: 0.04395275883 | H131: -3.097639891 | J131: 15 | M131: 0.03061571323 | N131: -1.570796325 | O131: 14.3573885 | P131: 1.501089339 | Q131: 10.21045886 | R131: 1.472700284 | S131: 0.9982391023 | T131: -0.05935342928 | U131: 0.914313022 | V131: -0.4169878744 | X131: -2.961773587 | Y131: -120.9007581 | Z131: 59.09924192 | AC131: 1 | AD131: 14.32252089 | AE131: -0.0006546849086 | AF131: 0.001477962262 | AG131: 7850.585522 | AH131: -4154.138453 | AJ131: 22100 | AK131: 1313.253272 | AL131: 1 | AM131: 10.16137147 | AN131: 339.9834488 | AO131: -2141.444845 | AQ131: 1.062699256 | AR131: -103.0818278 | AT131: -419873.3734 | AU131: -813667.3051 | AV131: -2.047182276 | AW131: -213671.3943 | AX131: -47946.62562 | AY131: -2.920854877 | BA131: 4.181173846 | BB131: 12.4259645 | BC131: 0.8736726016 | BD131: -129.9422472 | BF131: -2.783700612 | BG131: -123.9362537 | BH131: 56.06374629 | BI131: 56.06374629 | BJ131: 0 | BK131: 0 | BM131: -15.20966511 | BN131: -173.9940065 | BQ131: 29.3279253 | BT131: 1621.81 | BU131: 10.9787 | BV131: -256.753
A132: 49000 | B132: 49 | C132: 1.00189396 | D132: 0.06149757154 | F132: 0.01131402775 | G132: 0.04349450966 | H132: -3.09809814 | J132: 15 | M132: 0.03030330799 | N132: -1.570796325 | O132: 14.50468842 | P132: 1.501798368 | Q132: 10.31471675 | R132: 1.473694952 | S132: 0.9982027063 | T132: -0.05996386204 | U132: 0.9127628558 | V132: -0.4207989816 | X132: -3.068745829 | Y132: -121.0468694 | Z132: 58.95313063 | AC132: 1 | AD132: 14.47017575 | AE132: -0.0006682531472 | AF132: 0.001493198987 | AG132: 7823.987639 | AH132: -4171.181751 | AJ132: 22100 | AK132: 1326.791965 | AL132: 1 | AM132: 10.26612788 | AN132: 335.7447188 | AO132: -2120.006252 | AQ132: 1.041124414 | AR132: -102.0301926 | AT132: -417440.7329 | AU132: -802625.6849 | AV132: -2.05038954 | AW132: -209272.0298 | AX132: -47027.49078 | AY132: -2.92054528 | BA132: 4.217848925 | BB132: 12.5018204 | BC132: 0.8701557403 | BD132: -130.1437485 | BF132: -2.88757446 | BG132: -124.1281454 | BH132: 55.87185464 | BI132: 55.87185464 | BJ132: 0 | BK132: 0 | BM132: -15.38939486 | BN132: -173.9843969 | BQ132: 29.4037812 | BT132: 1659.587 | BU132: 10.7578 | BV132: -256.857
A133: 49500 | B133: 49.5 | C133: 1.001932772 | D133: 0.06212349259 | F133: 0.01108427793 | G133: 0.04304581298 | H133: -3.098546837 | J133: 15 | M133: 0.02999721397 | N133: -1.570796325 | O133: 14.65199548 | P133: 1.50249314 | Q133: 10.41898464 | R133: 1.474669713 | S133: 0.998165941 | T133: -0.06057425006 | U133: 0.9112047696 | V133: -0.4245971327 | X133: -3.174818525 | Y133: -121.1936487 | Z133: 58.80635135 | AC133: 1 | AD133: 14.6178306 | AE133: -0.0006819605472 | AF133: 0.001508435711 | AG133: 7797.299343 | AH133: -4188.080726 | AJ133: 22100 | AK133: 1340.330659 | AL133: 1 | AM133: 10.37088428 | AN133: 331.6322076 | AO133: -2098.988591 | AQ133: 1.020199959 | AR133: -100.999796 | AT133: -415040.4943 | AU133: -791798.3224 | AV133: -2.053595979 | AW133: -205004.171 | AX133: -46141.14135 | AY133: -2.920207627 | BA133: 4.254368896 | BB133: 12.5767029 | BC133: 0.8666116476 | BD133: -130.3468101 | BF133: -2.990552144 | BG133: -124.3210527 | BH133: 55.67894729 | BI133: 55.67894729 | BJ133: 0 | BK133: 0 | BM133: -15.56725504 | BN133: -173.9742426 | BQ133: 29.4786637 | BT133: 1698.244 | BU133: 10.5805 | BV133: -256.313
A134: 50000 | B134: 50 | C134: 1.001971977 | D134: 0.0627493649 | F134: 0.01086147858 | G134: 0.04260637039 | H134: -3.09898628 | J134: 15 | M134: 0.02969724183 | N134: -1.570796325 | O134: 14.79930947 | P134: 1.503174082 | Q134: 10.52326223 | R134: 1.475625156 | S134: 0.9981288066 | T134: -0.06118459289 | U134: 0.9096389383 | V134: -0.4283822846 | X134: -3.280012463 | Y134: -121.3410524 | Z134: 58.6589476 | AC134: 1 | AD134: 14.76548545 | AE134: -0.0006958071087 | AF134: 0.001523672435 | AG134: 7770.524319 | AH134: -4204.831636 | AJ134: 22100 | AK134: 1353.869353 | AL134: 1 | AM134: 10.47564069 | AN134: 327.6409683 | AO134: -2078.379707 | AQ134: 0.99990001 | AR134: -99.990001 | AT134: -412671.3722 | AU134: -781179.1456 | AV134: -2.05680119 | AW134: -200862.6733 | AX134: -45286.04197 | AY134: -2.919842582 | BA134: 4.290732648 | BB134: 12.6506291 | BC134: 0.8630413918 | BD134: -130.5513706 | BF134: -3.092655214 | BG134: -124.5149317 | BH134: 55.48506834 | BI134: 55.48506834 | BJ134: 0 | BK134: 0 | BM134: -15.74328431 | BN134: -173.963561 | BQ134: 29.5525899 | BT134: 1737.801 | BU134: 10.4643 | BV134: -256.379
A135: 50500 | B135: 50.5 | C135: 1.002011573 | D135: 0.06337518799 | F135: 0.01064535127 | G135: 0.04217589593 | H135: -3.099416754 | J135: 15 | M135: 0.02940320973 | N135: -1.570796325 | O135: 14.94663019 | P135: 1.5038416 | Q135: 10.62754924 | R135: 1.476561849 | S135: 0.9980913033 | T135: -0.06179489008 | U135: 0.9080655361 | V135: -0.432154396 | X135: -3.384347703 | Y135: -121.4890388 | Z135: 58.51096124 | AC135: 1 | AD135: 14.91314031 | AE135: -0.0007097928316 | AF135: 0.00153890916 | AG135: 7743.66622 | AH135: -4221.430961 | AJ135: 22100 | AK135: 1367.408046 | AL135: 1 | AM135: 10.5803971 | AN135: 323.7662932 | AO135: -2058.167903 | AQ135: 0.9801999608 | AR135: -99.00019604 | AT135: -410332.1514 | AU135: -770762.3203 | AV135: -2.060004783 | AW135: -196842.6402 | AX135: -44460.74427 | AY135: -2.919450784 | BA135: 4.326939093 | BB135: 12.72361564 | BC135: 0.859446001 | BD135: -130.7573714 | BF135: -3.193904487 | BG135: -124.7097397 | BH135: 55.29026027 | BI135: 55.29026027 | BJ135: 0 | BK135: 0 | BM135: -15.91752013 | BN135: -173.9523684 | BQ135: 29.62557644 | BT135: 1778.279 | BU135: 10.2137 | BV135: -256.015
A136: 51000 | B136: 51 | C136: 1.002051563 | D136: 0.06400096137 | F136: 0.01043563141 | G136: 0.04175411536 | H136: -3.099838535 | J136: 15 | M136: 0.02911494297 | N136: -1.570796325 | O136: 15.09395743 | P136: 1.504496087 | Q136: 10.73184539 | R136: 1.477480336 | S136: 0.998053431 | T136: -0.06240514119 | U136: 0.9064847362 | V136: -0.4359134275 | X136: -3.487843609 | Y136: -121.6375675 | Z136: 58.36243252 | AC136: 1 | AD136: 15.06079516 | AE136: -0.0007239177159 | AF136: 0.001554145884 | AG136: 7716.728666 | AH136: -4237.875387 | AJ136: 22100 | AK136: 1380.94674 | AL136: 1 | AM136: 10.68515351 | AN136: 320.0037002 | AO136: -2038.341919 | AQ136: 0.9610764056 | AR136: -98.02979337 | AT136: -408021.6827 | AU136: -760542.2386 | AV136: -2.063206387 | AW136: -192939.4093 | AX136: -43663.8811 | AY136: -2.919032851 | BA136: 4.362987171 | BB136: 12.79567872 | BC136: 0.8558264648 | BD136: -130.9647555 | BF136: -3.29432008 | BG136: -124.9054359 | BH136: 55.09456405 | BI136: 55.09456405 | BJ136: 0 | BK136: 0 | BM136: -16.0899988 | BN136: -173.9406804 | BQ136: 29.69763952 | BT136: 1819.701 | BU136: 10.0452 | BV136: -255.833
A137: 51500 | B137: 51.5 | C137: =SQRT((A137/Fesr)^2+1) -> 1.002091945 | D137: =ATAN(A137/Fesr) -> 0.06462668457 | F137: =(Ro/(Ro+Rdcr))/SQRT((A137/(Q*Fo))^2+(1-(A137^2/Fo^2))^2) -> 0.01023206743 | G137: =-ATAN(A137*Fo/(Q*(Fo^2-A137^2))) -> 0.04134076562 | H137: =IF(G137>0,G137-Pi,G137) -> -3.100251884 | J137: =Vin/Vramp -> 15 | M137: =1/(2*Pi*_Rfb1*(Cc1ea_u+Cc2ea_u)*A137) -> 0.02883227362 | N137: =-Pi/2 -> -1.570796325 | O137: =SQRT(1+(A137/Fz1_u)^2) -> 15.24129102 | P137: =ATAN2(Fz1_u,A137) -> 1.505137921 | Q137: =SQRT(1+(A137/Fz2_u)^2) -> 10.83615042 | R137: =ATAN2(Fz2_u,A137) -> 1.478381142 | S137: =1/SQRT(1+(A137/Fp1_u)^2) -> 0.99801519 | T137: =-ATAN2(Fp1_u,A137) -> -0.06301534575 | U137: =1/SQRT(1+(A137/Fp2_u)^2) -> 0.9048967107 | V137: =-ATAN2(Fp2_u,A137) -> -0.4396593412 | X137: -3.590518881 | Y137: =(180/Pi)*(D137+H137+N137+P137+R137+T137+V137) -> -121.7865998 | Z137: 58.2134002 | AC137: 1 | AD137: =Rcea1_u*Cc1ea_u*A137*2*Pi -> 15.20845002 | AE137: =-Rcea1_u*Cc1ea_u*Cc2ea_u*(A137*2*Pi)^2 -> -0.0007381817616 | AF137: =(Cc2ea_u+Cc1ea_u)*A137*2*Pi -> 0.001569382608 | AG137: 7689.715243 | AH137: -4254.161802 | AJ137: =_Rfb1 -> 22100 | AK137: =_Rfb1*Rcea2_u*Cc3ea_u*A137*2*Pi -> 1394.485433 | AL137: 1 | AM137: =(_Rfb1+Rcea2_u)*Cc3ea_u*A137*2*Pi -> 10.78990991 | AN137: 316.3489199 | AO137: -2018.890914 | AQ137: =Eadcg/(1+(Eadcg*A137/GBP)^2) -> 0.9425070688 | AR137: =-(A137*Eadcg*Eadcg/GBP)/(1+(Eadcg*A137/GBP)^2) -> -97.07822809 | AT137: -405738.8787 | AU137: -750513.5079 | AV137: -2.066405641 | AW137: -189148.5387 | AX137: -42894.16122 | AY137: -2.918589377 | BA137: =SQRT(AT137^2+AU137^2)/SQRT(AW137^2+AX137^2) -> 4.398875846 | BB137: 12.86683409 | BC137: 0.8521837368 | BD137: =BC137*180/Pi-180 -> -131.1734685 | BF137: =20*LOG(BA137*J137*F137*C137) -> -3.393921438 | BG137: =(180/Pi)*(D137+H137+BC137) -> -125.1019808 | BH137: 54.89801921 | BI137: 54.89801921 | BJ137: =SUM((BF138<0)*(BF137>0))*A137 -> 0 | BK137: 0 | BM137: -16.26075553 | BN137: =(H137+D137)*180/Pi -> -173.9285123 | BQ137: 29.76879489 | BT137: 1862.087 | BU137: 9.87672 | BV137: -255.47
A138: 52000 | B138: =A138/1000 -> 52 | C138: 1.002132719 | D138: 0.0652523571 | F138: 0.01003442003 | G138: 0.04093559426 | H138: -3.100657056 | J138: 15 | M138: 0.02855504022 | N138: -1.570796325 | O138: 15.38863077 | P138: 1.505767465 | Q138: 10.94046408 | R138: 1.47926477 | S138: 0.9979765804 | T138: -0.06362550333 | U138: 0.903301631 | V138: -0.4433921012 | X138: =20*LOG(C138*J138*O138*Q138*F138*M138*S138*U138) -> -3.692391581 | Y138: -121.9360984 | Z138: =Y138+180 -> 58.06390155 | AC138: 1 | AD138: 15.35610487 | AE138: -0.0007525849688 | AF138: 0.001584619333 | AG138: =AC138*AE138/(AE138^2+AF138^2)+AD138*AF138/(AE138^2+AF138^2) -> 7662.629504 | AH138: =AD138*AE138/(AE138^2+AF138^2)-AC138*AF138/(AE138^2+AF138^2) -> -4270.287284 | AJ138: 22100 | AK138: 1408.024127 | AL138: 1 | AM138: 10.89466632 | AN138: =AJ138*AL138/(AL138^2+AM138^2)+AK138*AM138/(AL138^2+AM138^2) -> 312.7978839 | AO138: =AK138*AL138/(AL138^2+AM138^2)-AJ138*AM138/(AL138^2+AM138^2) -> -1999.804444 | AQ138: 0.9244707405 | AR138: -96.14495701 | AT138: -403482.7106 | AU138: -740670.9399 | AV138: =ATAN2(AT138,AU138) -> -2.069602201 | AW138: =AG138-AH138*AO138/_Rfb2+AG138*AN138/_Rfb2+AN138-AO138*AR138+AQ138*AN138 -> -185465.7951 | AX138: =AH138+AH138*AN138/_Rfb2+AG138*AO138/_Rfb2+AO138+AO138*AQ138+AN138*AR138 -> -42150.36442 | AY138: -2.918120937 | BA138: 4.434604108 | BB138: =20*LOG(BA138) -> 12.9370971 | BC138: =AV138-AY138 -> 0.8485187354 | BD138: -131.3834576 | BF138: -3.492727366 | BG138: -125.2993361 | BH138: =IF(BG138>180,BG138-180,BG138+180) -> 54.70066388 | BI138: =IF(BH138>180,BH138-360,BH138) -> 54.70066388 | BJ138: 0 | BK138: =IF(BJ138>0,BI138,0) -> 0 | BM138: =20*LOG(J138*F138*C138) -> -16.42982446 | BN138: -173.9158785 | BQ138: =20*LOG(BA138*7) -> 29.8390579 | BT138: 1905.461 | BU138: 9.71342 | BV138: -255.059
A139: 52500 | B139: 52.5 | C139: 1.002173885 | D139: 0.06587797846 | F139: 0.009842461454 | G139: 0.04053835886 | H139: -3.101054291 | J139: 15 | M139: 0.02828308746 | N139: -1.570796325 | O139: 15.5359765 | P139: 1.506385068 | Q139: 11.04478611 | R139: 1.480131708 | S139: 0.9979376023 | T139: -0.06423561348 | U139: 0.9016996673 | V139: -0.4471116731 | X139: -3.793479164 | Y139: -122.0860275 | Z139: 57.91397247 | AC139: 1 | AD139: 15.50375973 | AE139: -0.0007671273373 | AF139: 0.001599856057 | AG139: 7635.474965 | AH139: -4286.249097 | AJ139: 22100 | AK139: 1421.56282 | AL139: 1 | AM139: 10.99942273 | AN139: 309.3467131 | AO139: -1981.072446 | AQ139: 0.9069472157 | AR139: -95.22945765 | AT139: -401252.2041 | AU139: -731009.5415 | AV139: -2.072795737 | AW139: -181887.1417 | AX139: -41431.33692 | AY139: =ATAN2(AW139,AX139) -> -2.917628083 | BA139: 4.470170971 | BB139: 13.00648268 | BC139: 0.8448323461 | BD139: -131.5946721 | BF139: -3.590756057 | BG139: -125.4974651 | BH139: 54.50253489 | BI139: 54.50253489 | BJ139: 0 | BK139: 0 | BM139: -16.59723874 | BN139: -173.902793 | BQ139: 29.90844348 | BT139: 1949.845 | BU139: 9.52685 | BV139: -254.971
A140: 53000 | B140: 53 | C140: 1.002215443 | D140: 0.06650354819 | F140: 0.00965597484 | G140: 0.04014882657 | H140: -3.101443823 | J140: 15 | M140: 0.02801626588 | N140: -1.570796325 | O140: 15.68332804 | P140: 1.506991066 | Q140: 11.1491163 | R140: 1.48098242 | S140: 0.9978982558 | T140: -0.06484567574 | U140: 0.9000909888 | V140: -0.4508180243 | X140: -3.893798503 | Y140: -122.2363525 | Z140: 57.7636475 | AC140: 1 | AD140: 15.65141458 | AE140: -0.0007818088673 | AF140: 0.001615092781 | AG140: 7608.255108 | AH140: -4302.04468 | AJ140: 22100 | AK140: 1435.101514 | AL140: 1 | AM140: 11.10417913 | AN140: 305.9917078 | AO140: -1962.685223 | AQ140: 0.8899172377 | AR140: -94.3312272 | AT140: -399046.4368 | AU140: -721524.5049 | AV140: -2.07598593 | AW140: -178408.7279 | AX140: -40735.98715 | AY140: -2.917111352 | BA140: 4.505575475 | BB140: 13.07500538 | BC140: 0.8411254227 | BD140: -131.8070632 | BF140: -3.688025113 | BG140: -125.6963322 | BH140: 54.30366777 | BI140: 54.30366777 | BJ140: 0 | BK140: 0 | BM140: -16.7630305 | BN140: -173.889269 | BQ140: 29.97696618 | BT140: 1995.262 | BU140: 9.33494 | BV140: -254.804
A141: 53500 | B141: 53.5 | C141: 1.002257394 | D141: 0.06712906579 | F141: 0.009474753584 | G141: 0.03976677364 | H141: -3.101825876 | J141: 15 | M141: 0.02775443162 | N141: -1.570796325 | O141: 15.83068524 | P141: 1.507585782 | Q141: 11.2534544 | R141: 1.481817358 | S141: 0.9978585411 | T141: -0.06545568967 | U141: 0.8984757635 | V141: -0.4545111239 | X141: -3.993365912 | Y141: -122.3870401 | Z141: 57.61295992 | AC141: 1 | AD141: 15.79906944 | AE141: -0.0007966295587 | AF141: 0.001630329506 | AG141: 7580.973378 | AH141: -4317.671644 | AJ141: 22100 | AK141: 1448.640207 | AL141: 1 | AM141: 11.20893554 | AN141: 302.7293373 | AO141: -1944.633421 | AQ141: 0.8733624454 | AR141: -93.44978166 | AT141: -396864.5349 | AU141: -712211.1992 | AV141: -2.079172473 | AW141: -175026.8786 | AX141: -40063.28187 | AY141: -2.916571262 | BA141: 4.540816684 | BB141: 13.14267939 | BC141: 0.8373987889 | BD141: -132.0205836 | BF141: -3.784551576 | BG141: -125.8959031 | BH141: 54.10409688 | BI141: 54.10409688 | BJ141: 0 | BK141: 0 | BM141: -16.92723096 | BN141: -173.8753195 | BQ141: 30.04464019 | BT141: 2041.738 | BU141: 9.08847 | BV141: -254.411
A142: 54000 | B142: 54 | C142: 1.002299737 | D142: 0.06775453079 | F142: 0.009298600769 | G142: 0.03939198496 | H142: -3.102200665 | J142: 15 | M142: 0.02749744614 | N142: -1.570796325 | O142: 15.97804793 | P142: 1.508169528 | Q142: 11.3578002 | R142: 1.482636956 | S142: 0.9978184583 | T142: -0.06606565483 | U142: 0.8968541585 | V142: -0.4581909426 | X142: -4.092197174 | Y142: -122.5380582 | Z142: 57.46194179 | AC142: 1 | AD142: 15.94672429 | AE142: -0.0008115894116 | AF142: 0.00164556623 | AG142: 7553.633185 | AH142: -4333.127759 | AJ142: 22100 | AK142: 1462.178901 | AL142: 1 | AM142: 11.31369195 | AN142: 299.5562314 | AO142: -1926.908022 | AQ142: 0.8572653236 | AR142: -92.58465495 | AT142: -394705.6707 | AU142: -703065.1622 | AV142: -2.082355073 | AW142: -171738.0852 | AX142: -39412.24251 | AY142: -2.916008312 | BA142: 4.575893683 | BB142: 13.20951851 | BC142: 0.8336532395 | BD142: -132.2351877 | BF142: -3.880351945 | BG142: -126.0961446 | BH142: 53.9038554 | BI142: 53.9038554 | BJ142: 0 | BK142: 0 | BM142: -17.08987045 | BN142: -173.8609569 | BQ142: 30.11147931 | BT142: 2089.296 | BU142: 8.96986 | BV142: -254.113
A143: 54500 | B143: 54.5 | C143: 1.002342472 | D143: 0.0683799427 | F143: 0.009127328624 | G143: 0.03902425366 | H143: -3.102568396 | J143: 15 | M143: 0.02724517599 | N143: -1.570796325 | O143: 16.12541597 | P143: 1.508742606 | Q143: 11.4621535 | R143: 1.48344163 | S143: 0.9977780075 | T143: -0.06667557075 | U143: 0.8952263396 | V143: -0.4618574528 | X143: -4.190307556 | Y143: -122.689376 | Z143: 57.31062398 | AC143: 1 | AD143: 16.09437915 | AE143: -0.0008266884258 | AF143: 0.001660802954 | AG143: 7526.237899 | AH143: -4348.410955 | AJ143: 22100 | AK143: 1475.717594 | AL143: 1 | AM143: 11.41844835 | AN143: 296.469171 | AO143: -1909.500324 | AQ143: 0.8416091567 | AR143: -91.73539808 | AT143: -392569.0593 | AU143: -694082.0922 | AV143: -2.085533446 | AW143: -168538.9963 | AX143: -38781.94177 | AY143: -2.915422988 | BA143: 4.610805585 | BB143: 13.27553621 | BC143: 0.8298895417 | BD143: -132.4508317 | BF143: -3.975442204 | BG143: -126.2970246 | BH143: 53.70297541 | BI143: 53.70297541 | BJ143: 0 | BK143: 0 | BM143: -17.25097841 | BN143: -173.8461928 | BQ143: 30.17749701 | BT143: 2137.962 | BU143: 8.68736 | BV143: -254.34
A144: 55000 | B144: 55 | C144: 1.002385599 | D144: 0.06900530104 | F144: 0.008960758015 | G144: 0.03866338069 | H144: -3.102929269 | J144: 15 | M144: 0.02699749257 | N144: -1.570796325 | O144: 16.2727892 | P144: 1.509305303 | Q144: 11.56651408 | R144: 1.484231785 | S144: 0.9977371889 | T144: -0.06728543699 | U144: 0.8935924716 | V144: -0.4655106286 | X144: -4.287711837 | Y144: -122.8409637 | Z144: 57.15903625 | AC144: 1 | AD144: 16.242034 | AE144: -0.0008419266015 | AF144: 0.001676039679 | AG144: 7498.790856 | AH144: -4363.519309 | AJ144: 22100 | AK144: 1489.256288 | AL144: 1 | AM144: 11.52320476 | AN144: 293.4650809 | AO144: -1892.401929 | AQ144: 0.8263779853 | AR144: -90.90157838 | AT144: -390453.9568 | AU144: -685257.8411 | AV144: -2.088707321 | AW144: -165426.4094 | AX144: -38171.50053 | AY144: -2.914815757 | BA144: 4.645551523 | BB144: 13.34074562 | BC144: 0.8261084364 | BD144: -132.6674731 | BF144: -4.069837839 | BG144: -126.4985121 | BH144: 53.50148794 | BI144: 53.50148794 | BJ144: 0 | BK144: 0 | BM144: -17.41058346 | BN144: -173.8310389 | BQ144: 30.24270642 | BT144: 2187.762 | BU144: 8.53088 | BV144: -253.785
A145: 55500 | B145: 55.5 | C145: 1.002429118 | D145: 0.06963060532 | F145: 0.008798717974 | G145: 0.0383091745 | H145: -3.103283476 | J145: 15 | M145: 0.02675427192 | N145: -1.570796325 | O145: 16.4201675 | P145: 1.509857899 | Q145: 11.67088175 | R145: 1.485007807 | S145: 0.9976960026 | T145: -0.06789525312 | U145: 0.891952718 | V145: -0.4691504455 | X145: -4.384424326 | Y145: -122.9927927 | Z145: 57.00720727 | AC145: 1 | AD145: 16.38968886 | AE145: -0.0008573039386 | AF145: 0.001691276403 | AG145: 7471.295352 | AH145: -4378.451044 | AJ145: 22100 | AK145: 1502.794981 | AL145: 1 | AM145: 11.62796117 | AN145: 290.5410212 | AO145: -1875.604731 | AQ145: 0.8115565655 | AR145: -90.08277877 | AT145: -388359.6579 | AU145: -676588.407 | AV145: -2.091876434 | AW145: -162397.2633 | AX145: -37580.08488 | AY145: -2.914187074 | BA145: 4.680130655 | BB145: 13.40515955 | BC145: 0.8223106395 | BD145: -132.8850709 | BF145: -4.163553859 | BG145: -126.700577 | BH145: 53.29942298 | BI145: 53.29942298 | BJ145: 0 | BK145: 0 | BM145: -17.56871341 | BN145: -173.8155062 | BQ145: 30.30712035 | BT145: 2238.721 | BU145: 8.34969 | BV145: -253.783
A146: 56000 | B146: 56 | C146: 1.002473028 | D146: 0.07025585507 | F146: 0.008641045253 | G146: 0.03796145063 | H146: -3.103631199 | J146: 15 | M146: 0.02651539449 | N146: -1.570796325 | O146: 16.56755072 | P146: 1.510400665 | Q146: 11.77525633 | R146: 1.485770073 | S146: 0.9976544487 | T146: -0.06850501867 | U146: 0.8903072411 | V146: -0.4727768809 | X146: -4.480458878 | Y146: -123.1448353 | Z146: 56.85516467 | AC146: 1 | AD146: 16.53734371 | AE146: -0.0008728204371 | AF146: 0.001706513127 | AG146: 7443.754646 | AH146: -4393.204519 | AJ146: 22100 | AK146: 1516.333675 | AL146: 1 | AM146: 11.73271757 | AN146: 287.6941812 | AO146: -1859.100901 | AQ146: 0.7971303308 | AR146: -89.27859705 | AT146: -386285.4934 | AU146: -668069.9281 | AV146: -2.095040536 | AW146: -159448.6303 | AX146: -37006.90344 | AY146: -2.913537378 | BA146: 4.714542161 | BB146: 13.46879048 | BC146: 0.8184968425 | BD146: -133.1035853 | BF146: -4.256604816 | BG146: -126.9031904 | BH146: 53.09680957 | BI146: 53.09680957 | BJ146: 0 | BK146: 0 | BM146: -17.72539529 | BN146: -173.7996051 | BQ146: 30.37075128 | BT146: 2290.868 | BU146: 8.28183 | BV146: -253.62
A147: 56500 | B147: 56.5 | C147: 1.002517331 | D147: 0.07088104981 | F147: 0.00848758391 | G147: 0.03762003142 | H147: -3.103972619 | J147: 15 | M147: 0.02628074498 | N147: -1.570796325 | O147: 16.71493874 | P147: 1.510933858 | Q147: 11.87963763 | R147: 1.486518945 | S147: 0.9976125274 | T147: -0.0691147332 | U147: 0.888656202 | V147: -0.4763899135 | X147: -4.575828917 | Y147: -123.2970649 | Z147: 56.7029351 | AC147: 1 | AD147: 16.68499856 | AE147: -0.0008884760971 | AF147: 0.001721749852 | AG147: 7416.171956 | AH147: -4407.77823 | AJ147: 22100 | AK147: 1529.872368 | AL147: 1 | AM147: 11.83747398 | AN147: 284.9218721 | AO147: -1842.882879 | AQ147: 0.7830853563 | AR147: -88.48864526 | AT147: -384230.8285 | AU147: -659698.676 | AV147: -2.098199383 | AW147: -156577.7098 | AX147: -36451.20481 | AY147: -2.912867097 | BA147: 4.748785244 | BB147: 13.53165059 | BC147: 0.814667714 | BD147: -133.3229782 | BF147: -4.349004823 | BG147: -127.1063242 | BH147: 52.8936758 | BI147: 52.8936758 | BJ147: 0 | BK147: 0 | BM147: -17.88065542 | BN147: -173.783346 | BQ147: 30.4336114 | BT147: 2344.229 | BU147: 8.06623 | BV147: -253.171
A148: 57000 | B148: 57 | C148: 1.002562026 | D148: 0.07150618904 | F148: 0.008338184918 | G148: 0.0372847457 | H148: -3.104307904 | J148: 15 | M148: 0.02605021213 | N148: -1.570796325 | O148: 16.86233143 | P148: 1.51145773 | Q148: 11.98402548 | R148: 1.48725477 | S148: 0.9975702389 | T148: -0.06972439627 | U148: 0.8869997605 | V148: -0.4799895236 | X148: -4.670547448 | Y148: -123.4494558 | Z148: 56.55054424 | AC148: 1 | AD148: 16.83265342 | AE148: -0.0009042709184 | AF148: 0.001736986576 | AG148: 7388.550462 | AH148: -4422.170797 | AJ148: 22100 | AK148: 1543.411062 | AL148: 1 | AM148: 11.94223039 | AN148: 282.2215206 | AO148: -1826.943357 | AQ148: 0.769408325 | AR148: -87.71254905 | AT148: -382195.0607 | AU148: -651471.0498 | AV148: -2.101352742 | AW148: -153781.8211 | AX148: -35912.27518 | AY148: -2.912176643 | BA148: 4.782859129 | BB148: 13.59375179 | BC148: 0.8108239004 | BD148: -133.5432125 | BF148: -4.440767566 | BG148: -127.3099511 | BH148: 52.69004889 | BI148: 52.69004889 | BJ148: 0 | BK148: 0 | BM148: -18.03451936 | BN148: -173.7667386 | BQ148: 30.49571259 | BT148: 2398.833 | BU148: 7.81402 | BV148: -252.658
A149: 57500 | B149: 57.5 | C149: 1.002607112 | D149: 0.07213127229 | F149: 0.008192705801 | G149: 0.03695542846 | H149: -3.104637222 | J149: 15 | M149: 0.02582368855 | N149: -1.570796325 | O149: 17.00972866 | P149: 1.511972523 | Q149: 12.0884197 | R149: 1.487977887 | S149: 0.9975275832 | T149: -0.07033400743 | U149: 0.8853380753 | V149: -0.4835756932 | X149: -4.764627079 | Y149: -123.6019831 | Z149: 56.39801686 | AC149: 1 | AD149: 16.98030827 | AE149: -0.0009202049012 | AF149: 0.001752223301 | AG149: 7360.893307 | AH149: -4436.380966 | AJ149: 22100 | AK149: 1556.949755 | AL149: 1 | AM149: 12.0469868 | AN149: 279.5906635 | AO149: -1811.275276 | AQ149: 0.7560864963 | AR149: -86.94994707 | AT149: -380177.6181 | AU149: -643383.5712 | AV149: -2.104500391 | AW149: -151058.398 | AX149: -35389.43618 | AY149: -2.911466418 | BA149: 4.816763063 | BB149: 13.65510568 | BC149: 0.8069660272 | BD149: -133.7642524 | BF149: -4.531906329 | BG149: -127.5140448 | BH149: 52.48595518 | BI149: 52.48595518 | BJ149: 0 | BK149: 0 | BM149: -18.18701201 | BN149: -173.7497924 | BQ149: 30.55706648 | BT149: 2454.709 | BU149: 7.64239 | BV149: -251.974
A150: 58000 | B150: 58 | C150: 1.00265259 | D150: 0.07275629909 | F150: 0.008051010289 | G150: 0.03663192062 | H150: -3.104960729 | J150: 15 | M150: 0.02560107054 | N150: -1.570796325 | O150: 17.15713032 | P150: 1.512478471 | Q150: 12.19282014 | R150: 1.48868862 | S150: 0.9974845605 | T150: -0.07094356623 | U150: 0.8836713035 | V150: -0.4871484057 | X150: -4.858080032 | Y150: -123.7546231 | Z150: 56.24537685 | AC150: 1 | AD150: 17.12796313 | AE150: -0.0009362780454 | AF150: 0.001767460025 | AG150: 7333.20359 | AH150: -4450.407598 | AJ150: 22100 | AK150: 1570.488449 | AL150: 1 | AM150: 12.1517432 | AN150: 277.026942 | AO150: -1795.87181 | AQ150: 0.7431076763 | AR150: -86.20049045 | AT150: =-AR150*AH150+AG150*AQ150 -> -378177.9578 | AU150: =AQ150*AH150+AG150*AR150 -> -635432.8781 | AV150: -2.107642112 | AW150: -148404.9824 | AX150: -34882.04281 | AY150: -2.910736812 | BA150: 4.850496317 | BB150: 13.71572358 | BC150: 0.8030946993 | BD150: -133.9860631 | BF150: -4.622434004 | BG150: -127.7185798 | BH150: 52.2814202 | BI150: 52.2814202 | BJ150: 0 | BK150: 0 | BM150: -18.33815759 | BN150: -173.7325167 | BQ150: 30.61768438 | BT150: 2511.886 | BU150: 7.45716 | BV150: -252.252
A151: 58500 | B151: 58.5 | C151: 1.002698459 | D151: 0.07338126894 | F151: 0.007912967997 | G151: 0.03631406872 | H151: -3.105278581 | J151: 15 | M151: 0.02538225797 | N151: -1.570796325 | O151: 17.3045363 | P151: 1.512975799 | Q151: 12.29722662 | R151: 1.489387286 | S151: 0.9974411709 | T151: -0.07155307223 | U151: 0.8819996012 | V151: -0.490707646 | X151: -4.95091816 | Y151: -123.9073528 | Z151: 56.09264724 | AC151: 1 | AD151: 17.27561798 | AE151: -0.0009524903511 | AF151: 0.001782696749 | AG151: 7305.484374 | AH151: -4464.249671 | AJ151: 22100 | AK151: 1584.027142 | AL151: 1 | AM151: 12.25649961 | AN151: 274.5280959 | AO151: -1780.726357 | AQ151: 0.7304601899 | AR151: -85.46384222 | AT151: -376195.564 | AU151: -627615.7206 | AV151: -2.1107777 | AW151: -145819.2193 | AX151: -34389.48149 | AY151: -2.909988202 | BA151: 4.884058181 | BB151: 13.77561658 | BC151: 0.7992105024 | BD151: -134.2086112 | BF151: -4.712363104 | BG151: -127.9235313 | BH151: 52.07646867 | BI151: 52.07646867 | BJ151: 0 | BK151: 0 | BM151: -18.48797968 | BN151: -173.7149201 | BQ151: 30.67757738 | BT151: 2570.396 | BU151: 7.31271 | BV151: -251.702
A152: 59000 | B152: 59 | C152: 1.002744721 | D152: 0.07400618137 | F152: 0.007778454119 | G152: 0.03600172471 | H152: -3.105590925 | J152: 15 | M152: 0.02516715409 | N152: -1.570796325 | O152: 17.45194649 | P152: 1.513464726 | Q152: 12.40163902 | R152: 1.490074187 | S152: 0.9973974147 | T152: -0.07216252498 | U152: 0.880323123 | V152: -0.4942534005 | X152: -5.043152961 | Y152: -124.0601498 | Z152: 55.93985025 | AC152: 1 | AD152: 17.42327284 | AE152: -0.0009688418181 | AF152: 0.001797933474 | AG152: 7277.73868 | AH152: -4477.90627 | AJ152: 22100 | AK152: 1597.565836 | AL152: 1 | AM152: 12.36125602 | AN152: 272.0919594 | AO152: -1765.832535 | AQ152: 0.7181328546 | AR152: -84.73967684 | AT152: -374229.947 | AU152: -619928.9555 | AV152: -2.113906955 | AW152: -143298.8516 | AX152: -33911.16831 | AY152: -2.909220958 | BA152: 4.917447967 | BB152: 13.83479547 | BC152: 0.7953140034 | BD152: -134.4318642 | BF152: -4.801705783 | BG152: -128.1288754 | BH152: 51.87112457 | BI152: 51.87112457 | BJ152: 0 | BK152: 0 | BM152: -18.63650125 | BN152: -173.6970113 | BQ152: 30.73675627 | BT152: 2630.268 | BU152: 7.13504 | BV152: -251.401
A153: 59500 | B153: 59.5 | C153: 1.002791373 | D153: 0.0746310359 | F153: 0.007647349148 | G153: 0.03569474568 | H153: -3.105897904 | J153: 15 | M153: 0.0249556654 | N153: -1.570796325 | O153: 17.59936078 | P153: 1.513945462 | Q153: 12.50605716 | R153: 1.490749618 | S153: 0.9973532919 | T153: -0.07277192403 | U153: 0.8786420221 | V153: -0.497785657 | X153: -5.134795591 | Y153: -124.2129927 | Z153: 55.78700731 | AC153: 1 | AD153: 17.57092769 | AE153: -0.0009853324466 | AF153: 0.001813170198 | AG153: 7249.969488 | AH153: -4491.376586 | AJ153: 22100 | AK153: 1611.104529 | AL153: 1 | AM153: 12.46601242 | AN153: 269.7164562 | AO153: -1751.184164 | AQ153: 0.7061149555 | AR153: -84.02767971 | AT153: -372280.6413 | AU153: -612369.5422 | AV153: -2.117029685 | AW153: -140841.715 | AX153: -33446.5473 | AY153: -2.908435436 | BA153: 4.950665011 | BB153: 13.89327081 | BC153: 0.7914057513 | BD153: -134.6557905 | BF153: -4.890473845 | BG153: -128.3345889 | BH153: 51.66541115 | BI153: 51.66541115 | BJ153: 0 | BK153: 0 | BM153: -18.78374466 | BN153: -173.6787983 | BQ153: 30.79523161 | BT153: 2691.535 | BU153: 6.88093 | BV153: -251.244
A154: 60000 | B154: 60 | C154: 1.002838418 | D154: 0.07525583205 | F154: 0.007519538605 | G154: 0.03539299367 | H154: -3.106199656 | J154: 15 | M154: 0.02474770152 | N154: -1.570796325 | O154: 17.74677907 | P154: 1.514418212 | Q154: 12.61048092 | R154: 1.491413864 | S154: 0.9973088026 | T154: -0.07338126894 | U154: 0.8769564505 | V154: -0.5013044048 | X154: -5.225856876 | Y154: -124.3658609 | Z154: 55.63413911 | AC154: 1 | AD154: 17.71858255 | AE154: -0.001001962237 | AF154: 0.001828406922 | AG154: 7222.179738 | AH154: -4504.65991 | AJ154: 22100 | AK154: 1624.643223 | AL154: 1 | AM154: 12.57076883 | AN154: 267.3995948 | AO154: -1736.775268 | AQ154: 0.6943962225 | AR154: -83.3275467 | AT154: -370347.2047 | AU154: -604934.5382 | AV154: -2.120145706 | AW154: -138445.7338 | AX154: -32995.08893 | AY154: -2.907631984 | BA154: 4.983708666 | BB154: 13.95105294 | BC154: 0.7874862781 | BD154: -134.8803598 | BF154: -4.978678758 | BG154: -128.5406491 | BH154: 51.45935094 | BI154: 51.45935094 | BJ154: 0 | BK154: 0 | BM154: -18.92973169 | BN154: -173.6602893 | BQ154: 30.85301374 | BT154: 2754.229 | BU154: 6.70094 | BV154: -251.051
A155: 60500 | B155: 60.5 | C155: 1.002885853 | D155: 0.07588056934 | F155: 0.007394912785 | G155: 0.03509633541 | H155: -3.106496315 | J155: 15 | M155: 0.02454317507 | N155: -1.570796325 | O155: 17.89420126 | P155: 1.514883172 | Q155: 12.71491015 | R155: 1.492067198 | S155: 0.9972639471 | T155: -0.07399055927 | U155: 0.8752665587 | V155: -0.5048096347 | X155: -5.316347329 | Y155: -124.5187344 | Z155: 55.48126559 | AC155: 1 | AD155: 17.8662374 | AE155: -0.001018731188 | AF155: 0.001843643647 | AG155: 7194.37233 | AH155: -4517.755633 | AJ155: 22100 | AK155: 1638.181917 | AL155: 1 | AM155: 12.67552524 | AN155: 265.1394648 | AO155: -1722.60006 | AQ155: 0.6829668078 | AR155: -82.63898375 | AT155: -368429.2168 | AU155: -597621.0952 | AV155: -2.123254841 | AW155: -136108.9163 | AX155: -32556.2886 | AY155: -2.90681094 | BA155: 5.01657831 | BB155: 14.00815192 | BC155: 0.783556099 | BD155: -135.1055425 | BF155: -5.066331665 | BG155: -128.7470342 | BH155: 51.25296581 | BI155: 51.25296581 | BJ155: 0 | BK155: 0 | BM155: -19.07448359 | BN155: -173.6414917 | BQ155: 30.91011272 | BT155: 2818.383 | BU155: 6.53562 | BV155: -250.48
A156: 61000 | B156: 61 | C156: 1.002933681 | D156: 0.07650524729 | F156: 0.007273366525 | G156: 0.0348046422 | H156: -3.106788008 | J156: 15 | M156: 0.0243420015 | N156: -1.570796325 | O156: 18.04162726 | P156: 1.515340534 | Q156: 12.81934471 | R156: 1.492709888 | S156: 0.9972187255 | T156: -0.07459979456 | U156: 0.8735724959 | V156: -0.5083013387 | X156: -5.406277153 | Y156: -124.671594 | Z156: 55.32840601 | AC156: 1 | AD156: 18.01389226 | AE156: -0.001035639301 | AF156: 0.001858880371 | AG156: 7166.550123 | AH156: -4530.663236 | AJ156: 22100 | AK156: 1651.72061 | AL156: 1 | AM156: 12.78028164 | AN156: 262.9342327 | AO156: -1708.652937 | AQ156: 0.6718172657 | AR156: -81.96170642 | AT156: -366526.2779 | AU156: -590426.4549 | AV156: -2.12635692 | AW156: -133829.351 | AX156: -32129.66526 | AY156: -2.905972634 | BA156: 5.049273339 | BB156: 14.06457763 | BC156: 0.7796157137 | BD156: -135.3313099 | BF156: -5.153443399 | BG156: -128.953723 | BH156: 51.04627698 | BI156: 51.04627698 | BJ156: 0 | BK156: 0 | BM156: -19.21802103 | BN156: -173.6224131 | BQ156: 30.96653843 | BT156: 2884.032 | BU156: 6.32652 | BV156: -250.202
A157: 61500 | B157: 61.5 | C157: 1.002981899 | D157: 0.07712986542 | F157: 0.007154798973 | G157: 0.03451778961 | H157: -3.10707486 | J157: 15 | M157: 0.02414409905 | N157: -1.570796325 | O157: 18.18905697 | P157: 1.515790482 | Q157: 12.92378449 | R157: 1.493342191 | S157: 0.9971731379 | T157: -0.07520897438 | U157: 0.8718744098 | V157: -0.5117795103 | X157: -5.495656263 | Y157: -124.8244211 | Z157: 55.17557894 | AC157: 1 | AD157: 18.16154711 | AE157: -0.001052686575 | AF157: 0.001874117095 | AG157: 7138.715932 | AH157: -4543.382291 | AJ157: 22100 | AK157: 1665.259304 | AL157: 1 | AM157: 12.88503805 | AN157: 260.7821384 | AO157: -1694.928473 | AQ157: 0.6609385327 | AR157: -81.29543952 | AT157: -364638.0079 | AU157: -583347.9458 | AV157: -2.12945178 | AW157: -131605.2027 | AX157: -31714.76013 | AY157: -2.905117387 | BA157: 5.081793169 | BB157: 14.1203397 | BC157: 0.7756656064 | BD157: -135.5576344 | BF157: -5.24002449 | BG157: -129.160695 | BH157: 50.83930504 | BI157: 50.83930504 | BJ157: 0 | BK157: 0 | BM157: -19.36036419 | BN157: -173.6030606 | BQ157: 31.0223005 | BT157: 2951.209 | BU157: 6.18308 | BV157: -249.926
A158: 62000 | B158: 62 | C158: 1.003030509 | D158: 0.07775442325 | F158: 0.007039113383 | G158: 0.03423565739 | H158: -3.107356993 | J158: 15 | M158: 0.02394938857 | N158: -1.570796325 | O158: 18.3364903 | P158: 1.516233194 | Q158: 13.02822935 | R158: 1.493964356 | S158: 0.9971271846 | T158: -0.07581809827 | U158: 0.8701724467 | V158: -0.5152441444 | X158: -5.584494287 | Y158: -124.9771977 | Z158: 55.0228023 | AC158: 1 | AD158: 18.30920196 | AE158: -0.00106987301 | AF158: 0.00188935382 | AG158: 7110.872536 | AH158: -4555.912459 | AJ158: 22100 | AK158: 1678.797997 | AL158: 1 | AM158: 12.98979446 | AN158: 258.6814917 | AO158: -1681.42141 | AQ158: 0.6503219093 | AR158: -80.63991676 | AT158: -362764.0452 | AU158: -576382.9791 | AV158: -2.132539263 | AW158: -129434.7089 | AX158: -31311.13552 | AY158: -2.90424551 | BA158: 5.11413724 | BB158: 14.17544757 | BC158: 0.7717062468 | BD158: -135.784489 | BF158: -5.326085179 | BG158: -129.36793 | BH158: 50.63206999 | BI158: 50.63206999 | BJ158: 0 | BK158: 0 | BM158: -19.50153275 | BN158: -173.583441 | BQ158: 31.07740837 | BT158: 3019.952 | BU158: 6.01306 | BV158: -249.651
A159: 62500 | B159: 62.5 | C159: 1.00307951 | D159: 0.0783789203 | F159: 0.006926216911 | G159: 0.03395812926 | H159: -3.107634521 | J159: 15 | M159: 0.02375779346 | N159: -1.570796325 | O159: 18.48392717 | P159: 1.516668843 | Q159: 13.13267918 | R159: 1.494576624 | S159: 0.9970808655 | T159: -0.0764271658 | U159: 0.8684667515 | V159: -0.5186952372 | X159: -5.672800581 | Y159: -125.1299066 | Z159: 54.87009338 | AC159: 1 | AD159: 18.45685682 | AE159: -0.001087198607 | AF159: 0.001904590544 | AG159: 7083.022668 | AH159: -4568.25348 | AJ159: 22100 | AK159: 1692.336691 | AL159: 1 | AM159: 13.09455086 | AN159: 256.6306688 | AO159: -1668.126655 | AQ159: 0.6399590426 | AR159: -79.99488033 | AT159: -360904.046 | AU159: -569529.0458 | AV159: -2.135619218 | AW159: -127316.1762 | AX159: -30918.37366 | AY159: -2.903357309 | BA159: 5.146305009 | BB159: 14.22991044 | BC159: 0.7677380904 | BD159: -136.0118476 | BF159: -5.411635427 | BG159: -129.5754088 | BH159: 50.42459123 | BI159: 50.42459123 | BJ159: 0 | BK159: 0 | BM159: -19.64154587 | BN159: -173.5635612 | BQ159: 31.13187124 | BT159: 3090.295 | BU159: 5.85449 | BV159: -248.418
A160: 63000 | B160: 63 | C160: 1.003128902 | D160: 0.0790033561 | F160: 0.006816020432 | G160: 0.03368509275 | H160: -3.107907557 | J160: 15 | M160: 0.02356923955 | N160: -1.570796325 | O160: 18.63136749 | P160: 1.517097598 | Q160: 13.23713385 | R160: 1.49517923 | S160: 0.9970341809 | T160: -0.07703617653 | U160: 0.8667574676 | V160: -0.5221327862 | X160: -5.76058424 | Y160: -125.2825311 | Z160: 54.71746888 | AC160: 1 | AD160: 18.60451167 | AE160: -0.001104663366 | AF160: 0.001919827268 | AG160: 7055.169023 | AH160: -4580.405177 | AJ160: 22100 | AK160: 1705.875384 | AL160: 1 | AM160: 13.19930727 | AN160: 254.6281094 | AO160: -1655.039272 | AQ160: 0.6298419097 | AR160: -79.36008062 | AT160: -359057.683 | AU160: -562783.7136 | AV160: -2.138691501 | AW160: -125247.9773 | AX160: -30536.07565 | AY160: -2.90245308 | BA160: 5.178295953 | BB160: 14.28373736 | BC160: 0.7637615792 | BD160: -136.2396849 | BF160: -5.496684923 | BG160: -129.7831124 | BH160: 50.21688762 | BI160: 50.21688762 | BJ160: 0 | BK160: 0 | BM160: -19.78042228 | BN160: -173.5434275 | BQ160: 31.18569816 | BT160: 3162.278 | BU160: 5.60993 | BV160: -248.626
A161: 63500 | B161: 63.5 | C161: 1.003178685 | D161: 0.07962773017 | F161: 0.006708438357 | G161: 0.03341643904 | H161: -3.108176211 | J161: 15 | M161: 0.02338365498 | N161: -1.570796325 | O161: 18.77881118 | P161: 1.51751962 | Q161: 13.34159325 | R161: 1.4957724 | S161: 0.996987131 | T161: -0.07764513 | U161: 0.865044737 | V161: -0.5255567902 | X161: -5.847854103 | Y161: -125.4350551 | Z161: 54.56494491 | AC161: 1 | AD161: 18.75216653 | AE161: -0.001122267286 | AF161: 0.001935063993 | AG161: 7027.314253 | AH161: -4592.367449 | AJ161: 22100 | AK161: 1719.414078 | AL161: 1 | AM161: 13.30406368 | AN161: 252.6723137 | AO161: -1642.154474 | AQ161: 0.6199628022 | AR161: -78.73527588 | AT161: -357224.6446 | AU161: -556144.6234 | AV161: -2.141755971 | AW161: -123228.5478 | AX161: -30163.86045 | AY161: -2.901533113 | BA161: 5.210109572 | BB161: 14.33693714 | BC161: 0.7597771423 | BD161: -136.4679763 | BF161: -5.581243095 | BG161: -129.9910225 | BH161: 50.00897747 | BI161: 50.00897747 | BJ161: 0 | BK161: 0 | BM161: -19.91818023 | BN161: -173.5230462 | BQ161: 31.23889794 | BT161: 3235.937 | BU161: 5.43209 | BV161: -248.575
A162: 64000 | B162: 64 | C162: 1.003228859 | D162: 0.08025204202 | F162: 0.00660338847 | G162: 0.03315206281 | H162: -3.108440587 | J162: 15 | M162: 0.02320097018 | N162: -1.570796325 | O162: 18.92625817 | P162: 1.517935066 | Q162: 13.44605727 | R162: 1.496356353 | S162: 0.9969397159 | T162: -0.07825402577 | U162: 0.8633287003 | V162: -0.5289672492 | X162: -5.934618767 | Y162: -125.587463 | Z162: 54.412537 | AC162: 1 | AD162: 18.89982138 | AE162: -0.001140010367 | AF162: 0.001950300717 | AG162: 6999.460968 | AH162: -4604.140268 | AJ162: 22100 | AK162: 1732.952771 | AL162: 1 | AM162: 13.40882009 | AN162: 250.7618396 | AO162: -1629.467621 | AQ162: 0.6103143119 | AR162: -78.12023192 | AT162: -355404.6343 | AU162: -549609.4869 | AV162: -2.144812496 | AW162: -121256.3833 | AX162: -29801.36397 | AY162: -2.900597692 | BA162: 5.241745381 | BB162: 14.38951842 | BC162: 0.755785196 | BD162: -136.696698 | BF162: -5.66531912 | BG162: -130.1991214 | BH162: 49.80087859 | BI162: 49.80087859 | BJ162: 0 | BK162: 0 | BM162: -20.05483754 | BN162: -173.5024234 | BQ162: 31.29147922 | BT162: 3311.311 | BU162: 5.23561 | BV162: -247.758
A163: 64500 | B163: 64.5 | C163: 1.003279424 | D163: 0.08087629119 | F163: 0.006500791767 | G163: 0.03289186213 | H163: -3.108700788 | J163: 15 | M163: 0.0230211177 | N163: -1.570796325 | O163: 19.07370837 | P163: 1.518344089 | Q163: 13.55052581 | R163: 1.496931302 | S163: 0.9968919357 | T163: -0.07886286341 | U163: 0.8616094963 | V163: -0.5323641647 | X163: -6.020886591 | Y163: -125.7397398 | Z163: 54.26026016 | AC163: 1 | AD163: 19.04747624 | AE163: -0.00115789261 | AF163: 0.001965537441 | AG163: 6971.61174 | AH163: -4615.723679 | AJ163: 22100 | AK163: 1746.491465 | AL163: 1 | AM163: 13.51357649 | AN163: 248.8953001 | AO163: -1616.974212 | AQ163: 0.6008893162 | AR163: -77.51472179 | AT163: -353597.3698 | AU163: -543176.0835 | AV163: -2.147860947 | AW163: -119330.037 | AX163: -29448.23818 | AY163: -2.899647091 | BA163: 5.273202918 | BB163: 14.44148968 | BC163: 0.7517861447 | BD163: -136.9258268 | BF163: -5.74892193 | BG163: -130.4073917 | BH163: 49.59260827 | BI163: 49.59260827 | BJ163: 0 | BK163: 0 | BM163: -20.19041161 | BN163: -173.481565 | BQ163: 31.34345048 | BT163: 3388.442 | BU163: 5.05282 | BV163: -247.756
A164: 65000 | B164: 65 | C164: 1.003330381 | D164: 0.0815004772 | F164: 0.006400572309 | G164: 0.03263573828 | H164: -3.108956912 | J164: 15 | M164: 0.02284403218 | N164: -1.570796325 | O164: 19.22116171 | P164: 1.518746837 | Q164: 13.65499875 | R164: 1.497497454 | S164: 0.9968437907 | T164: -0.07947164246 | U164: 0.8598872628 | V164: -0.5357475392 | X164: -6.106665706 | Y164: -125.8918711 | Z164: 54.10812885 | AC164: 1 | AD164: 19.19513109 | AE164: -0.001175914014 | AF164: 0.001980774166 | AG164: 6943.769095 | AH164: -4627.117793 | AJ164: 22100 | AK164: 1760.030158 | AL164: 1 | AM164: 13.6183329 | AN164: 247.0713607 | AO164: -1604.669882 | AQ164: 0.5916809656 | AR164: -76.91852553 | AT164: -351802.5821 | AU164: -536842.2579 | AV164: -2.1509012 | AW164: -117448.1164 | AX164: -29104.15024 | AY164: -2.898681581 | BA164: 5.30448174 | BB164: 14.49285918 | BC164: 0.747780381 | BD164: -137.1553401 | BF164: -5.832060222 | BG164: -130.6158167 | BH164: 49.38418333 | BI164: 49.38418333 | BJ164: 0 | BK164: 0 | BM164: -20.3249194 | BN164: -173.4604766 | BQ164: 31.39481998 | BT164: 3467.369 | BU164: 4.9029 | BV164: -247.513
A165: 65500 | B165: 65.5 | C165: 1.003381728 | D165: 0.08212459957 | F165: 0.006302657077 | G165: 0.03238359564 | H165: -3.109209054 | J165: 15 | M165: 0.02266965025 | N165: -1.570796325 | O165: 19.36861813 | P165: 1.519143452 | Q165: 13.75947601 | R165: 1.498055008 | S165: 0.9967952809 | T165: -0.08008036249 | U165: 0.8581621357 | V165: -0.5391173765 | X165: -6.191964026 | Y165: -126.0438429 | Z165: 53.95615706 | AC165: 1 | AD165: 19.34278595 | AE165: -0.001194074579 | AF165: 0.00199601089 | AG165: 6915.935521 | AH165: -4638.322788 | AJ165: 22100 | AK165: 1773.568852 | AL165: 1 | AM165: 13.72308931 | AN165: 245.2887371 | AO165: -1592.550393 | AQ165: 0.582682671 | AR165: -76.3314299 | AT165: -350020.015 | AU165: -530605.9177 | AV165: -2.153933139 | AW165: -115609.2817 | AX165: -28768.78179 | AY165: -2.897701425 | BA165: 5.335581422 | BB165: 14.54363503 | BC165: 0.7437682864 | BD165: -137.3852162 | BF165: -5.914742465 | BG165: -130.8243799 | BH165: 49.17562011 | BI165: 49.17562011 | BJ165: 0 | BK165: 0 | BM165: -20.4583775 | BN165: -173.4391637 | BQ165: 31.44559583 | BT165: 3548.134 | BU165: 4.65226 | BV165: -246.726
A166: =A165+500 -> 66000 | B166: 66 | C166: 1.003433465 | D166: 0.08274865781 | F166: 0.006206975838 | G166: 0.0321353416 | H166: -3.109457308 | J166: 15 | M166: 0.02249791048 | N166: -1.570796325 | O166: 19.51607754 | P166: 1.519534074 | Q166: 13.86395748 | R166: 1.498604159 | S166: 0.9967464066 | T166: -0.08068902305 | U166: 0.8564342497 | V166: -0.5424736817 | X166: -6.27678925 | Y166: -126.1956417 | Z166: 53.80435825 | AC166: 1 | AD166: 19.4904408 | AE166: -0.001212374306 | AF166: 0.002011247615 | AG166: 6888.113463 | AH166: -4649.338905 | AJ166: 22100 | AK166: 1787.107545 | AL166: 1 | AM166: 13.82784571 | AN166: 243.5461929 | AO166: -1580.611634 | AQ166: 0.5738880918 | AR166: -75.75322812 | AT166: -348249.4244 | AU166: -524465.0307 | AV166: -2.156956649 | AW166: -113812.2426 | AX166: -28441.82815 | AY166: -2.89670688 | BA166: 5.366501557 | BB166: 14.59382519 | BC166: 0.7397502315 | BD166: -137.6154338 | BF166: -5.996976908 | BG166: -131.0330655 | BH166: 48.96693452 | BI166: 48.96693452 | BJ166: 0 | BK166: 0 | BM166: -20.5908021 | BN166: -173.4176317 | BQ166: 31.49578599 | BT166: 3630.781 | BU166: 4.4951 | BV166: -246.212
A167: 66500 | B167: 66.5 | C167: 1.003485594 | D167: 0.08337265147 | F167: 0.006113461021 | G167: 0.03189088639 | H167: -3.109701764 | J167: 15 | M167: 0.02232875326 | N167: -1.570796325 | O167: 19.66353989 | P167: 1.519918837 | Q167: 13.96844307 | R167: 1.499145094 | S167: 0.9966971679 | T167: -0.08129762371 | U167: 0.8547037377 | V167: -0.5458164609 | X167: -6.361148873 | Y167: -126.3472546 | Z167: 53.65274544 | AC167: 1 | AD167: 19.63809566 | AE167: -0.001230813195 | AF167: 0.002026484339 | AG167: 6860.305328 | AH167: -4660.166444 | AJ167: 22100 | AK167: 1800.646239 | AL167: 1 | AM167: 13.93260212 | AN167: 241.8425377 | AO167: -1568.849614 | AQ167: 0.5652911249 | AR167: -75.18371962 | AT167: -346490.5776 | AU167: -518417.623 | AV167: -2.159971622 | AW167: -112055.7567 | AX167: -28122.99766 | AY167: -2.895698199 | BA167: 5.39724176 | BB167: 14.64343744 | BC167: 0.7357265765 | BD167: -137.8459722 | BF167: -6.078771587 | BG167: -131.241858 | BH167: 48.75814202 | BI167: 48.75814202 | BJ167: 0 | BK167: 0 | BM167: -20.72220903 | BN167: -173.3958857 | BQ167: 31.54539824 | BT167: 3715.352 | BU167: 4.3437 | BV167: -245.97
A168: 67000 | B168: 67 | C168: 1.003538113 | D168: 0.08399658005 | F168: 0.006022047596 | G168: 0.031650143 | H168: -3.109942507 | J168: 15 | M168: 0.02216212077 | N168: -1.570796325 | O168: 19.8110051 | P168: 1.520297872 | Q168: 14.07293269 | R168: 1.499677997 | S168: 0.996647565 | T168: -0.08190616401 | U168: 0.8529707314 | V168: -0.5491457214 | X168: -6.445050191 | Y168: -126.4986688 | Z168: 53.50133116 | AC168: 1 | AD168: 19.78575051 | AE168: -0.001249391244 | AF168: 0.002041721063 | AG168: 6832.513477 | AH168: -4670.805766 | AJ168: 22100 | AK168: 1814.184932 | AL168: 1 | AM168: 14.03735853 | AN168: 240.1766247 | AO168: -1557.260459 | AQ168: 0.5568858941 | AR168: -74.62270981 | AT168: -344743.2529 | AU168: -512461.7763 | AV168: -2.162977955 | AW168: -110338.6274 | AX168: -27812.01103 | AY168: -2.894675626 | BA168: 5.427801661 | BB168: 14.69247939 | BC168: 0.7316976716 | BD168: -138.0768115 | BF168: -6.16013433 | BG168: -131.4507423 | BH168: 48.54925766 | BI168: 48.54925766 | BJ168: 0 | BK168: 0 | BM168: -20.85261372 | BN168: -173.3739308 | BQ168: 31.59444019 | BT168: 3801.894 | BU168: 4.14374 | BV168: -245.169
A169: 67500 | B169: 67.5 | C169: 1.003591023 | D169: 0.08462044309 | F169: 0.005932672957 | G169: 0.03141302709 | H169: -3.110179623 | J169: 15 | M169: 0.02199795691 | N169: -1.570796325 | O169: 19.95847312 | P169: 1.520671306 | Q169: 14.17742624 | R169: 1.500203045 | S169: 0.9965975979 | T169: -0.08251464351 | U169: 0.8512353608 | V169: -0.5524614718 | X169: -6.528500309 | Y169: -126.6498725 | Z169: 53.35012753 | AC169: 1 | AD169: 19.93340536 | AE169: -0.001268108456 | AF169: 0.002056957788 | AG169: 6804.740234 | AH169: -4681.257286 | AJ169: 22100 | AK169: 1827.723626 | AL169: 1 | AM169: 14.14211493 | AN169: 238.5473492 | AO169: -1545.840403 | AQ169: 0.5486667398 | AR169: -74.07000988 | AT169: -343007.2387 | AU169: -506595.6265 | AV169: -2.165975547 | AW169: -108659.7015 | AX169: -27508.60072 | AY169: -2.893639404 | BA169: 5.458180912 | BB169: 14.74095853 | BC169: 0.727663857 | BD169: -138.307932 | BF169: -6.241072769 | BG169: -131.6597039 | BH169: 48.34029609 | BI169: 48.34029609 | BJ169: 0 | BK169: 0 | BM169: -20.98203129 | BN169: -173.3517719 | BQ169: 31.64291933 | BT169: 3890.451 | BU169: 3.9573 | BV169: -244.768
A170: 68000 | B170: 68 | C170: 1.003644324 | D170: 0.08524424011 | F170: 0.005845276819 | G170: 0.03117945684 | H170: -3.110413193 | J170: 15 | M170: 0.02183620723 | N170: -1.570796325 | O170: 20.10594389 | P170: 1.521039262 | Q170: 14.28192364 | R170: 1.500720409 | S170: 0.996547267 | T170: -0.08312306179 | U170: 0.8494977544 | V170: -0.5557637217 | X170: -6.611506148 | Y170: -126.8008538 | Z170: 53.19914622 | AC170: 1 | AD170: 20.08106022 | AE170: -0.001286964828 | AF170: 0.002072194512 | AG170: 6776.987881 | AH170: -4691.521471 | AJ170: 22100 | AK170: 1841.262319 | AL170: 1 | AM170: 14.24687134 | AN170: 236.9536463 | AO170: -1534.585793 | AQ170: 0.54062821 | AR170: -73.52543656 | AT170: -341282.3334 | AU170: -500817.3614 | AV170: -2.168964304 | AW170: -107017.8676 | AX170: -27212.51036 | AY170: -2.892589768 | BA170: 5.48837918 | BB170: 14.78888216 | BC170: 0.7236254638 | BD170: -138.5393149 | BF170: -6.321594339 | BG170: -131.8687285 | BH170: 48.13127155 | BI170: 48.13127155 | BJ170: 0 | BK170: 0 | BM170: -21.1104765 | BN170: -173.3294135 | BQ170: 31.69084296 | BT170: 3981.072 | BU170: 3.89809 | BV170: -244.315
A171: 68500 | B171: 68.5 | C171: 1.003698014 | D171: 0.08586797063 | F171: 0.005759801109 | G171: 0.03094935291 | H171: -3.110643297 | J171: 15 | M171: 0.02167681885 | N171: -1.570796325 | O171: 20.25341733 | P171: 1.52140186 | Q171: 14.38642482 | R171: 1.501230257 | S171: 0.9964965724 | T171: -0.08373141838 | U171: 0.8477580392 | V171: -0.5590524817 | X171: -6.694074448 | Y171: -126.9516015 | Z171: 53.0483985 | AC171: 1 | AD171: 20.22871507 | AE171: -0.001305960362 | AF171: 0.002087431236 | AG171: 6749.258659 | AH171: -4701.598842 | AJ171: 22100 | AK171: 1854.801013 | AL171: 1 | AM171: 14.35162775 | AN171: 235.3944897 | AO171: -1523.493077 | AQ171: 0.5327650506 | AR171: -72.98881193 | AT171: -339568.3445 | AU171: -495125.2185 | AV171: -2.171944135 | AW171: -105412.0541 | AX171: -26923.49419 | AY171: -2.891526949 | BA171: 5.518396154 | BB171: 14.83625749 | BC171: 0.7195828139 | BD171: -138.7709417 | BF171: -6.401706291 | BG171: -132.0778021 | BH171: 47.92219792 | BI171: 47.92219792 | BJ171: 0 | BK171: 0 | BM171: -21.23796378 | BN171: -173.3068604 | BQ171: 31.73821829 | BT171: 4073.803 | BU171: 3.5601 | BV171: -244.142
A172: 69000 | B172: 69 | C172: 1.003752096 | D172: 0.08649163419 | F172: 0.005676189876 | G172: 0.03072263831 | H172: -3.110870012 | J172: 15 | M172: 0.02151974046 | N172: -1.570796325 | O172: 20.4008934 | P172: 1.521759215 | Q172: 14.49092967 | R172: 1.501732752 | S172: 0.9964455141 | T172: -0.08433971286 | U172: 0.8460163408 | V172: -0.5623277637 | X172: -6.776211778 | Y172: -127.1021048 | Z172: 52.89789523 | AC172: 1 | AD172: 20.37636993 | AE172: -0.001325095058 | AF172: 0.002102667961 | AG172: 6721.554768 | AH172: -4711.489968 | AJ172: 22100 | AK172: 1868.339706 | AL172: 1 | AM172: 14.45638415 | AN172: 233.8688896 | AO172: -1512.558803 | AQ172: 0.5250721974 | AR172: -72.45996324 | AT172: -337865.0884 | AU172: -489517.4838 | AV172: -2.174914952 | AW172: -103841.228 | AX172: -26641.31657 | AY172: -2.890451173 | BA172: 5.548231536 | BB172: 14.88309153 | BC172: 0.7155362206 | BD172: -139.0027944 | BF172: -6.481415693 | BG172: -132.2869113 | BH172: 47.7130887 | BI172: 47.7130887 | BJ172: 0 | BK172: 0 | BM172: -21.36450722 | BN172: -173.2841169 | BQ172: 31.78505233 | BT172: 4168.694 | BU172: 3.40988 | BV172: -243.709
A173: 69500 | B173: 69.5 | C173: 1.003806568 | D173: 0.0871152303 | F173: 0.005594389193 | G173: 0.03049923831 | H173: -3.111093412 | J173: 15 | M173: 0.02136492218 | N173: -1.570796325 | O173: 20.54837203 | P173: 1.522111441 | Q173: 14.59543814 | R173: 1.502228051 | S173: 0.9963940925 | T173: -0.08494794479 | U173: 0.8442727829 | V173: -0.5655895805 | X173: -6.857924538 | Y173: -127.2523531 | Z173: 52.7476469 | AC173: 1 | AD173: 20.52402478 | AE173: -0.001344368915 | AF173: 0.002117904685 | AG173: 6693.878368 | AH173: -4721.195466 | AJ173: 22100 | AK173: 1881.8784 | AL173: 1 | AM173: 14.56114056 | AN173: 232.3758914 | AO173: -1501.779618 | AQ173: 0.5175447676 | AR173: -71.9387227 | AT173: -336172.3897 | AU173: -483992.4897 | AV173: -2.177876673 | AW173: -102304.3924 | AX173: -26365.75148 | AY173: -2.889362661 | BA173: 5.57788505 | BB173: 14.9293912 | BC173: 0.7114859885 | BD173: -139.2348556 | BF173: -6.560729437 | BG173: -132.496043 | BH173: 47.50395704 | BI173: 47.50395704 | BJ173: 0 | BK173: 0 | BM173: -21.49012064 | BN173: -173.2611873 | BQ173: 31.831352 | BT173: 4265.795 | BU173: 3.2245 | BV173: -243.324
A174: 70000 | B174: 70 | C174: 1.00386143 | D174: 0.08773875849 | F174: 0.005514347075 | G174: 0.0302790804 | H174: -3.11131357 | J174: 15 | M174: 0.02121231559 | N174: -1.570796325 | O174: 20.69585318 | P174: 1.522458647 | Q174: 14.69995013 | R174: 1.502716307 | S174: 0.9963423077 | T174: -0.08555611371 | U174: 0.8425274882 | V174: -0.5688379459 | X174: -6.939218966 | Y174: -127.4023364 | Z174: 52.59766361 | AC174: 1 | AD174: 20.67167964 | AE174: -0.001363781933 | AF174: 0.002133141409 | AG174: 6666.231581 | AH174: -4730.715998 | AJ174: 22100 | AK174: 1895.417094 | AL174: 1 | AM174: 14.66589697 | AN174: 230.9145743 | AO174: -1491.152261 | AQ174: 0.5101780521 | AR174: -71.4249273 | AT174: -334490.0812 | AU174: -478548.6135 | AV174: -2.180829217 | AW174: -100800.5859 | AX174: -26096.58204 | AY174: -2.888261631 | BA174: 5.607356435 | BB174: 14.97516326 | BC174: 0.7074324142 | BD174: -139.4671083 | BF174: -6.639654248 | BG174: -132.7051842 | BH174: 47.29481575 | BI174: 47.29481575 | BJ174: 0 | BK174: 0 | BM174: -21.61481751 | BN174: -173.2380759 | BQ174: 31.87712406 | BT174: 4365.158 | BU174: 3.07782 | BV174: -242.172
A175: 70500 | B175: 70.5 | C175: 1.003916682 | D175: 0.0883622183 | F175: 0.005436013389 | G175: 0.03006209417 | H175: -3.111530556 | J175: 15 | M175: 0.02106187364 | N175: -1.570796325 | O175: 20.84333679 | P175: 1.522800939 | Q175: 14.80446558 | R175: 1.503197669 | S175: 0.9962901598 | T175: -0.0861642192 | U175: 0.8407805775 | V175: -0.572072875 | X175: -7.020101146 | Y175: -127.5520449 | Z175: 52.4479551 | AC175: 1 | AD175: 20.81933449 | AE175: -0.001383334113 | AF175: 0.002148378134 | AG175: 6638.616484 | AH175: -4740.052268 | AJ175: 22100 | AK175: 1908.955787 | AL175: 1 | AM175: 14.77065337 | AN175: 229.4840494 | AO175: -1480.673562 | AQ175: 0.5029675083 | AR175: -70.91841867 | AT175: -332818.0028 | AU175: -473184.2755 | AV175: -2.18377251 | AW175: -99328.88056 | AX175: -25833.60012 | AY175: -2.887148296 | BA175: 5.636645451 | BB175: 15.02041436 | BC175: 0.7033757863 | BD175: -139.699536 | BF175: -6.718196682 | BG175: -132.9143227 | BH175: 47.08567732 | BI175: 47.08567732 | BJ175: 0 | BK175: 0 | BM175: -21.73861105 | BN175: -173.2147867 | BQ175: 31.92237516 | BT175: 4466.836 | BU175: 2.92332 | BV175: -240.903
A176: 71000 | B176: 71 | C176: 1.003972324 | D176: 0.08898560923 | F176: 0.005359339781 | G176: 0.02984821122 | H176: -3.111744439 | J176: 15 | M176: 0.02091355058 | N176: -1.570796325 | O176: 20.99082281 | P176: 1.523138421 | Q176: 14.90898441 | R176: 1.503672282 | S176: 0.996237649 | T176: -0.08677226081 | U176: 0.8390321701 | V176: -0.5752943835 | X176: -7.100577006 | Y176: -127.7014692 | Z176: 52.29853077 | AC176: 1 | AD176: 20.96698935 | AE176: -0.001403025454 | AF176: 0.002163614858 | AG176: 6611.03512 | AH176: -4749.205023 | AJ176: 22100 | AK176: 1922.494481 | AL176: 1 | AM176: 14.87540978 | AN176: 228.0834591 | AO176: -1470.340438 | AQ176: 0.4959087528 | AR176: -70.4190429 | AT176: -331156.002 | AU176: -467897.9381 | AV176: -2.186706479 | AW176: -97888.38052 | AX176: -25576.60587 | AY176: -2.886022864 | BA176: 5.66575187 | BB176: 15.06515102 | BC176: 0.6993163859 | BD176: -139.9321225 | BF176: -6.796363138 | BG176: -133.1234461 | BH176: 46.87655389 | BI176: 46.87655389 | BJ176: 0 | BK176: 0 | BM176: -21.86151415 | BN176: -173.1913236 | BQ176: 31.96711182 | BT176: 4570.882 | BU176: 2.72669 | BV176: -241.252
A177: 71500 | B177: 71.5 | C177: 1.004028357 | D177: 0.08960893083 | F177: 0.005284279596 | G177: 0.02963736515 | H177: -3.111955285 | J177: 15 | M177: 0.02076730198 | N177: -1.570796325 | O177: 21.13831118 | P177: 1.523471194 | Q177: 15.01350655 | R177: 1.504140287 | S177: 0.9961847755 | T177: -0.08738023811 | U177: 0.8372823839 | V177: -0.5785024884 | X177: -7.180652331 | Y177: -127.8506003 | Z177: 52.14939966 | AC177: 1 | AD177: 21.1146442 | AE177: -0.001422855957 | AF177: 0.002178851582 | AG177: 6583.489489 | AH177: -4758.175049 | AJ177: 22100 | AK177: 1936.033174 | AL177: 1 | AM177: 14.98016619 | AN177: 226.7119752 | AO177: -1460.149891 | AQ177: 0.488997555 | AR177: -69.92665037 | AT177: -329503.9327 | AU177: -462688.1036 | AV177: -2.189631055 | AW177: -96478.22094 | AX177: -25325.40739 | AY177: -2.884885541 | BA177: 5.694675487 | BB177: 15.10937961 | BC177: 0.6952544866 | BD177: -140.1648522 | BF177: -6.874159859 | BG177: -133.3325427 | BH177: 46.6674573 | BI177: 46.6674573 | BJ177: 0 | BK177: 0 | BM177: -21.98353947 | BN177: -173.1676905 | BQ177: 32.01134041 | BT177: 4677.351 | BU177: 2.54392 | BV177: -240.638
A178: 72000 | B178: 72 | C178: 1.00408478 | D178: 0.09023218262 | F178: 0.005210787813 | G178: 0.02942949143 | H178: -3.112163159 | J178: 15 | M178: 0.0206230846 | N178: -1.570796325 | O178: 21.28580187 | P178: 1.523799356 | Q178: 15.11803194 | R178: 1.504601821 | S178: 0.9961315394 | T178: -0.08798815065 | U178: 0.8355313353 | V178: -0.5816972076 | X178: -7.260332762 | Y178: -127.9994295 | Z178: 52.0005705 | AC178: 1 | AD178: 21.26229906 | AE178: -0.001442825621 | AF178: 0.002194088307 | AG178: 6555.981551 | AH178: -4766.96317 | AJ178: 22100 | AK178: 1949.571868 | AL178: 1 | AM178: 15.0849226 | AN178: 225.3687978 | AO178: -1450.099002 | AQ178: 0.4822298307 | AR178: -69.44109563 | AT178: -327861.6555 | AU178: -457553.3137 | AV178: -2.192546173 | AW178: -95097.5665 | AX178: -25079.82031 | AY178: -2.883736527 | BA178: 5.723416108 | BB178: 15.15310643 | BC178: 0.6911903547 | BD178: -140.3977098 | BF178: -6.951592937 | BG178: -133.5416009 | BH178: 46.45839911 | BI178: 46.45839911 | BJ178: 0 | BK178: 0 | BM178: -22.10469937 | BN178: -173.1438911 | BQ178: 32.05506723 | BT178: 4786.301 | BU178: 2.53075 | BV178: -240.031
A179: 72500 | B179: 72.5 | C179: 1.004141592 | D179: 0.09085536412 | F179: 0.005138820969 | G179: 0.02922452734 | H179: -3.112368123 | J179: 15 | M179: 0.02048085643 | N179: -1.570796325 | O179: 21.43329481 | P179: 1.524123001 | Q179: 15.2225605 | R179: 1.505057016 | S179: 0.996077941 | T179: -0.08859599799 | U179: 0.833779139 | V179: -0.5848785597 | X179: -7.339623802 | Y179: -128.1479483 | Z179: 51.85205171 | AC179: 1 | AD179: 21.40995391 | AE179: -0.001462934446 | AF179: 0.002209325031 | AG179: 6528.51323 | AH179: -4775.570248 | AJ179: 22100 | AK179: 1963.110561 | AL179: 1 | AM179: 15.189679 | AN179: 224.0531544 | AO179: -1440.184934 | AQ179: 0.4756016361 | AR179: -68.96223723 | AT179: -326229.0367 | AU179: -452492.1472 | AV179: -2.19545177 | AW179: -93745.61035 | AX179: -24839.66749 | AY179: -2.88257602 | BA179: 5.751973562 | BB179: 15.19633762 | BC179: 0.6871242498 | BD179: -140.6306804 | BF179: -7.028668318 | BG179: -133.7506094 | BH179: 46.24939055 | BI179: 46.24939055 | BJ179: 0 | BK179: 0 | BM179: -22.22500594 | BN179: -173.119929 | BQ179: 32.09829842 | BT179: 4897.788 | BU179: 2.17956 | BV179: -239.481
A180: 73000 | B180: 73 | C180: 1.004198795 | D180: 0.09147847487 | F180: 0.0050683371 | G180: 0.02902241194 | H180: -3.112570238 | J180: 15 | M180: 0.0203405766 | N180: -1.570796325 | O180: 21.58078997 | P180: 1.524442222 | Q180: 15.32709217 | R180: 1.505506002 | S180: 0.9960239804 | T180: -0.0892037797 | U180: 0.8320259083 | V180: -0.5880465647 | X180: -7.418530821 | Y180: -128.2961486 | Z180: 51.70385136 | AC180: 1 | AD180: 21.55760876 | AE180: -0.001483182433 | AF180: 0.002224561755 | AG180: 6501.086409 | AH180: -4783.997176 | AJ180: 22100 | AK180: 1976.649255 | AL180: 1 | AM180: 15.29443541 | AN180: 222.7642987 | AO180: -1430.404923 | AQ180: 0.4691091617 | AR180: -68.48993761 | AT180: -324605.9489 | AU180: -447503.2194 | AV180: -2.198347789 | AW180: -92421.57283 | AX180: -24604.77864 | AY180: -2.881404213 | BA180: 5.78034769 | BB180: 15.23907924 | BC180: 0.6830564248 | BD180: -140.8637496 | BF180: -7.105391809 | BG180: -133.9595574 | BH180: 46.0404426 | BI180: 46.0404426 | BJ180: 0 | BK180: 0 | BM180: -22.34447105 | BN180: -173.0958077 | BQ180: 32.14104004 | BT180: 5011.872 | BU180: 2.08934 | BV180: -238.507
A181: 73500 | B181: 73.5 | C181: 1.004256387 | D181: 0.0921015144 | F181: 0.004999295678 | G181: 0.02882308599 | H181: -3.112769564 | J181: 15 | M181: 0.02020220533 | N181: -1.570796325 | O181: 21.72828729 | P181: 1.524757109 | Q181: 15.43162689 | R181: 1.505948906 | S181: 0.9959696578 | T181: -0.08981149534 | U181: 0.8302717549 | V181: -0.591201243 | X181: -7.497059061 | Y181: -128.4440227 | Z181: 51.55597727 | AC181: 1 | AD181: 21.70526362 | AE181: -0.001503569581 | AF181: 0.00223979848 | AG181: 6473.702932 | AH181: -4792.244884 | AJ181: 22100 | AK181: 1990.187948 | AL181: 1 | AM181: 15.39919182 | AN181: 221.5015093 | AO181: -1420.756281 | AQ181: 0.4627487274 | AR181: -68.02406293 | AT181: -322992.2698 | AU181: -442585.1809 | AV181: -2.201234172 | AW181: -91124.70046 | AX181: -24374.99004 | AY181: -2.880221298 | BA181: 5.808538351 | BB181: 15.28133722 | BC181: 0.6789871259 | BD181: -141.0969033 | BF181: -7.181769076 | BG181: -134.168434 | BH181: 45.83156595 | BI181: 45.83156595 | BJ181: 0 | BK181: 0 | BM181: -22.4631063 | BN181: -173.0715308 | BQ181: 32.18329802 | BT181: 5128.614 | BU181: 1.79547 | BV181: -237.881
A182: 74000 | B182: 74 | C182: 1.004314369 | D182: 0.09272448222 | F182: 0.004931657553 | G182: 0.02862649187 | H182: -3.112966158 | J182: 15 | M182: 0.02006570394 | N182: -1.570796325 | O182: 21.87578675 | P182: 1.52506775 | Q182: 15.5361646 | R182: 1.506385849 | S182: 0.9959149734 | T182: -0.09041914447 | U182: 0.8285167892 | V182: -0.5943426163 | X182: -7.575213637 | Y182: -128.5915631 | Z182: 51.40843694 | AC182: 1 | AD182: 21.85291847 | AE182: -0.001524095891 | AF182: 0.002255035204 | AG182: 6446.364606 | AH182: -4800.314331 | AJ182: 22100 | AK182: 2003.726642 | AL182: 1 | AM182: 15.50394822 | AN182: 220.264089 | AO182: -1411.236389 | AQ182: 0.456516777 | AR182: -67.56448299 | AT182: -321387.8824 | AU182: -437736.7159 | AV182: -2.204110866 | AW182: -89854.2649 | AX182: -24150.14424 | AY182: -2.879027459 | BA182: 5.83654542 | BB182: 15.32311739 | BC182: 0.6749165931 | BD182: -141.3301276 | BF182: -7.257805654 | BG182: -134.377229 | BH182: 45.62277102 | BI182: 45.62277102 | BJ182: 0 | BK182: 0 | BM182: -22.58092305 | BN182: -173.0471013 | BQ182: 32.22507819 | BT182: 5248.075 | BU182: 1.60241 | BV182: -238.28
A183: 74500 | B183: 74.5 | C183: 1.004372741 | D183: 0.09334737788 | F183: 0.004865384893 | G183: 0.02843257356 | H183: -3.113160076 | J183: 15 | M183: 0.01993103478 | N183: -1.570796325 | O183: 22.02328828 | P183: 1.525374229 | Q183: 15.64070523 | R183: 1.506816951 | S183: 0.9958599274 | T183: -0.09102672665 | U183: 0.8267611198 | V183: -0.5974707069 | X183: -7.652999543 | Y183: -128.7387624 | Z183: 51.2612376 | AC183: 1 | AD183: 22.00057333 | AE183: -0.001544761362 | AF183: 0.002270271929 | AG183: 6419.073201 | AH183: -4808.206507 | AJ183: 22100 | AK183: 2017.265335 | AL183: 1 | AM183: 15.60870463 | AN183: 219.0513637 | AO183: -1401.8427 | AQ183: 0.450409873 | AR183: -67.11107107 | AT183: -319792.6747 | AU183: -432956.5415 | AV183: -2.206977822 | AW183: -88609.56188 | AX183: -23930.08976 | AY183: -2.877822883 | BA183: 5.864368791 | BB183: 15.36442548 | BC183: 0.6708450604 | BD183: -141.5634093 | BF183: -7.333506947 | BG183: -134.585932 | BH183: 45.41406796 | BI183: 45.41406796 | BJ183: 0 | BK183: 0 | BM183: -22.69793242 | BN183: -173.0225227 | BQ183: 32.26638628 | BT183: 5370.318 | BU183: 1.48515 | BV183: -237.347
A184: 75000 | B184: 75 | C184: 1.004431503 | D184: 0.09397020089 | F184: 0.004800441138 | G184: 0.02824127656 | H184: -3.113351373 | J184: 15 | M184: 0.01979816122 | N184: -1.570796325 | O184: 22.17079186 | P184: 1.525676631 | Q184: 15.74524874 | R184: 1.507242329 | S184: 0.9958045199 | T184: -0.09163424145 | U184: 0.8250048538 | V184: -0.600585538 | X184: -7.730421656 | Y184: -128.8856138 | Z184: 51.1143862 | AC184: 1 | AD184: 22.14822818 | AE184: -0.001565565995 | AF184: 0.002285508653 | AG184: 6391.830446 | AH184: -4815.922431 | AJ184: 22100 | AK184: 2030.804029 | AL184: 1 | AM184: 15.71346104 | AN184: 217.8626815 | AO184: -1392.572729 | AQ184: 0.4444246922 | AR184: -66.66370384 | AT184: -318206.5394 | AU184: -428243.4066 | AV184: -2.209834992 | AW184: -87389.91033 | AX184: -23714.68085 | AY184: -2.876607748 | BA184: 5.892008369 | BB184: 15.4052671 | BC184: 0.6667727557 | BD184: -141.7967352 | BF184: -7.408878233 | BG184: -134.7945333 | BH184: 45.20546671 | BI184: 45.20546671 | BJ184: 0 | BK184: 0 | BM184: -22.81414533 | BN184: -172.9977981 | BQ184: 32.3072279 | BT184: 5495.409 | BU184: 1.35836 | BV184: -235.612
A185: 75500 | B185: 75.5 | C185: 1.004490654 | D185: 0.0945929508 | F185: 0.004736790942 | G185: 0.02805254785 | H185: -3.113540102 | J185: 15 | M185: 0.01966704757 | N185: -1.570796325 | O185: 22.31829744 | P185: 1.525975036 | Q185: 15.84979505 | R185: 1.507662095 | S185: 0.9957487511 | T185: -0.09224168843 | U185: 0.8232480972 | V185: -0.6036871337 | X185: -7.807484739 | Y185: -129.0321106 | Z185: 50.96788945 | AC185: 1 | AD185: 22.29588304 | AE185: -0.001586509789 | AF185: 0.002300745377 | AG185: 6364.638035 | AH185: -4823.463149 | AJ185: 22100 | AK185: 2044.342722 | AL185: 1 | AM185: 15.81821744 | AN185: 216.6974119 | AO185: -1383.424059 | AQ185: 0.4385580212 | AR185: -66.22226121 | AT185: -316629.3735 | AU185: -423596.0909 | AV185: -2.212682332 | AW185: -86194.65141 | AX185: -23503.77721 | AY185: -2.875382233 | BA185: 5.91946408 | BB185: 15.44564779 | BC185: 0.6626999013 | BD185: -142.0300925 | BF185: -7.483924669 | BG185: -135.0030231 | BH185: 44.99697693 | BI185: 44.99697693 | BJ185: 0 | BK185: 0 | BM185: -22.92957246 | BN185: -172.9729305 | BQ185: 32.34760859 | BT185: 5623.413 | BU185: 1.07298 | BV185: -235.138
A186: 76000 | B186: 76 | C186: 1.004550195 | D186: 0.09521562713 | F186: 0.004674400131 | G186: 0.02786633582 | H186: -3.113726314 | J186: 15 | M186: 0.0195376591 | N186: -1.570796325 | O186: 22.46580497 | P186: 1.526269522 | Q186: 15.95434412 | R186: 1.50807636 | S186: 0.9956926212 | T186: -0.09284906714 | U186: 0.8214909539 | V186: -0.6067755188 | X186: -7.884193442 | Y186: -129.1782462 | Z186: 50.82175376 | AC186: 1 | AD186: 22.44353789 | AE186: -0.001607592744 | AF186: 0.002315982102 | AG186: 6337.497624 | AH186: -4830.829732 | AJ186: 22100 | AK186: 2057.881416 | AL186: 1 | AM186: 15.92297385 | AN186: 215.5549449 | AO186: -1374.394335 | AQ186: 0.4328067518 | AR186: -65.78662627 | AT186: -315061.0784 | AU186: -419013.4034 | AV186: -2.215519798 | AW186: -85023.14771 | AX186: -23297.24376 | AY186: -2.874146512 | BA186: 5.946735861 | BB186: 15.48557297 | BC186: 0.6586267138 | BD186: -142.263469 | BF186: -7.558651293 | BG186: -135.211392 | BH186: 44.78860804 | BI186: 44.78860804 | BJ186: 0 | BK186: 0 | BM186: -23.04422427 | BN186: -172.947923 | BQ186: 32.38753377 | BT186: 5754.399 | BU186: 0.869153 | BV186: -234.689
A187: 76500 | B187: 76.5 | C187: 1.004610125 | D187: 0.0958382294 | F187: 0.004613235651 | G187: 0.02768259027 | H187: -3.11391006 | J187: 15 | M187: 0.01940996198 | N187: -1.570796325 | O187: 22.61331443 | P187: 1.526560166 | Q187: 16.05889589 | R187: 1.508485231 | S187: 0.9956361304 | T187: -0.09345637716 | U187: 0.8197335268 | V187: -0.6098507192 | X187: -7.96055231 | Y187: -129.3240147 | Z187: 50.67598534 | AC187: 1 | AD187: 22.59119275 | AE187: -0.001628814861 | AF187: 0.002331218826 | AG187: 6310.410834 | AH187: -4838.023277 | AJ187: 22100 | AK187: 2071.420109 | AL187: 1 | AM187: 16.02773026 | AN187: 214.43469 | AO187: -1365.48126 | AQ187: 0.427167877 | AR187: -65.35668518 | AT187: -313501.5594 | AU187: -414494.1824 | AV187: -2.218347352 | AW187: -83874.78236 | AX187: -23094.95044 | AY187: -2.872900757 | BA187: 5.973823668 | BB187: 15.52504798 | BC187: 0.6545534047 | BD187: -142.4968524 | BF187: -7.633063027 | BG187: -135.4196307 | BH187: 44.58036926 | BI187: 44.58036926 | BJ187: 0 | BK187: 0 | BM187: -23.15811101 | BN187: -172.9227783 | BQ187: 32.42700878 | BT187: 5888.437 | BU187: 0.803236 | BV187: -233.954
A188: 77000 | B188: 77 | C188: 1.004670444 | D188: 0.09646075715 | F188: 0.004553265529 | G188: 0.0275012623 | H188: -3.114091388 | J188: 15 | M188: 0.01928392327 | N188: -1.570796325 | O188: 22.76082578 | P188: 1.526847043 | Q188: 16.16345031 | R188: 1.508888812 | S188: 0.9955792789 | T188: -0.09406361805 | U188: 0.8179759171 | V188: -0.6129127612 | X188: -8.036565785 | Y188: -129.4694099 | Z188: 50.53059013 | AC188: 1 | AD188: 22.7388476 | AE188: -0.001650176139 | AF188: 0.00234645555 | AG188: 6283.379247 | AH188: -4845.044904 | AJ188: 22100 | AK188: 2084.958803 | AL188: 1 | AM188: 16.13248666 | AN188: 213.336076 | AO188: -1356.682598 | AQ188: 0.4216384872 | AR188: -64.93232702 | AT188: -311950.7256 | AU188: -410037.2935 | AV188: -2.221164957 | AW188: -82748.95828 | AX188: -22896.77193 | AY188: -2.871645137 | BA188: 6.000727471 | BB188: 15.56407807 | BC188: 0.65048018 | BD188: -142.730231 | BF188: -7.70716468 | BG188: -135.6277304 | BH188: 44.37226955 | BI188: 44.37226955 | BJ188: 0 | BK188: 0 | BM188: -23.27124275 | BN188: -172.8974995 | BQ188: 32.46603887 | BT188: 6025.596 | BU188: 0.769928 | BV188: -234.147
A189: 77500 | B189: 77.5 | C189: 1.004731153 | D189: 0.09708320992 | F189: 0.004494458828 | G189: 0.02732230432 | H189: -3.114270346 | J189: 15 | M189: 0.01915951086 | N189: -1.570796325 | O189: 22.90833898 | P189: 1.527130225 | Q189: 16.26800733 | R189: 1.509287205 | S189: 0.9955220668 | T189: -0.09467078937 | U189: 0.8162182244 | V189: -0.6159616721 | X189: -8.112238204 | Y189: -129.6144262 | Z189: 50.38557385 | AC189: 1 | AD189: 22.88650246 | AE189: -0.001671676579 | AF189: 0.002361692275 | AG189: 6256.40441 | AH189: -4851.895754 | AJ189: 22100 | AK189: 2098.497496 | AL189: 1 | AM189: 16.23724307 | AN189: 212.2585497 | AO189: -1347.996169 | AQ189: 0.4162157663 | AR189: -64.51344377 | AT189: -310408.4897 | AU189: -405641.6296 | AV189: -2.223972577 | AW189: -81645.0974 | AX189: -22702.58752 | AY189: -2.870379818 | BA189: 6.027447255 | BB189: 15.60266837 | BC189: 0.6464072405 | BD189: -142.9635932 | BF189: -7.780960953 | BG189: -135.8356823 | BH189: 44.16431769 | BI189: 44.16431769 | BJ189: 0 | BK189: 0 | BM189: -23.38362933 | BN189: -172.8720891 | BQ189: 32.50462917 | BT189: 6165.95 | BU189: 0.469478 | BV189: -232.056
A190: 78000 | B190: 78 | C190: 1.004792251 | D190: 0.09770558723 | F190: 0.004436785605 | G190: 0.02714566998 | H190: -3.11444698 | J190: 15 | M190: 0.01903669348 | N190: -1.570796325 | O190: 23.05585398 | P190: 1.527409784 | Q190: 16.3725669 | R190: 1.50968051 | S190: 0.9954644944 | T190: -0.09527789069 | U190: 0.8144605471 | V190: -0.6189974798 | X190: -8.18757381 | Y190: -129.759058 | Z190: 50.24094197 | AC190: 1 | AD190: 23.03415731 | AE190: -0.00169331618 | AF190: 0.002376928999 | AG190: 6229.487834 | AH190: -4858.57699 | AJ190: 22100 | AK190: 2112.03619 | AL190: 1 | AM190: 16.34199948 | AN190: 211.2015755 | AO190: -1339.419846 | AQ190: 0.4108969881 | AR190: -64.09993015 | AT190: -308874.7679 | AU190: -401306.1097 | AV190: -2.226770181 | AW190: -80562.63997 | AX190: -22512.28083 | AY190: -2.869104963 | BA190: 6.053983021 | BB190: 15.64082397 | BC190: 0.6423347825 | BD190: -143.1969279 | BF190: -7.854456441 | BG190: -136.0434778 | BH190: 43.95652223 | BI190: 43.95652223 | BJ190: 0 | BK190: 0 | BM190: -23.49528041 | BN190: -172.8465499 | BQ190: 32.54278477 | BT190: 6309.573 | BU190: 0.369853 | BV190: -231.369
A191: 78500 | B191: 78.5 | C191: 1.004853738 | D191: 0.09832788861 | F191: 0.00438021688 | G191: 0.02697131414 | H191: -3.114621336 | J191: 15 | M191: 0.01891544066 | N191: -1.570796325 | O191: 23.20337077 | P191: 1.527685788 | Q191: 16.47712897 | R191: 1.510068824 | S191: 0.9954065618 | T191: -0.09588492157 | U191: 0.8127029819 | V191: -0.622020213 | X191: -8.262576748 | Y191: -129.9033002 | Z191: 50.09669978 | AC191: 1 | AD191: 23.18181216 | AE191: -0.001715094942 | AF191: 0.002392165723 | AG191: 6202.630996 | AH191: -4865.089795 | AJ191: 22100 | AK191: 2125.574883 | AL191: 1 | AM191: 16.44675589 | AN191: 210.1646346 | AO191: -1330.951558 | AQ191: 0.4056795132 | AR191: -63.69168357 | AT191: -307349.4795 | AU191: -397029.678 | AV191: -2.229557738 | AW191: -79501.04383 | AX191: -22325.73972 | AY191: -2.867820735 | BA191: 6.080334784 | BB191: 15.67854984 | BC191: 0.6382629971 | BD191: -143.430224 | BF191: -7.927655635 | BG191: -136.2511085 | BH191: 43.74889149 | BI191: 43.74889149 | BJ191: 0 | BK191: 0 | BM191: -23.60620548 | BN191: -172.8208845 | BQ191: 32.58051064 | BT191: 6456.542 | BU191: 0.127676 | BV191: -230.779
A192: 79000 | B192: 79 | C192: 1.004915614 | D192: 0.0989501136 | F192: 0.004324724592 | G192: 0.02679919281 | H192: -3.114793457 | J192: 15 | M192: 0.01879572268 | N192: -1.570796325 | O192: 23.35088931 | P192: 1.527958305 | Q192: 16.5816935 | R192: 1.51045224 | S192: 0.9953482693 | T192: -0.09649188158 | U192: 0.8109456241 | V192: -0.6250299011 | X192: -8.337251073 | Y192: -130.0471477 | Z192: 49.95285232 | AC192: 1 | AD192: 23.32946702 | AE192: -0.001737012866 | AF192: 0.002407402448 | AG192: 6175.835335 | AH192: -4871.435371 | AJ192: 22100 | AK192: 2139.113577 | AL192: 1 | AM192: 16.55151229 | AN192: 209.1472247 | AO192: -1322.589283 | AQ192: 0.4005607851 | AR192: -63.28860405 | AT192: -305832.5469 | AU192: -392811.3032 | AV192: -2.232335221 | AW192: -78459.7838 | AX192: -22142.85601 | AY192: -2.866527292 | BA192: 6.106502573 | BB192: 15.71585089 | BC192: 0.6341920708 | BD192: -143.6634709 | BF192: -8.000562926 | BG192: -136.4585664 | BH192: 43.54143364 | BI192: 43.54143364 | BJ192: 0 | BK192: 0 | BM192: -23.71641381 | BN192: -172.7950955 | BQ192: 32.61781169 | BT192: 6606.934 | BU192: 0.0369381 | BV192: -229.609
A193: 79500 | B193: 79.5 | C193: 1.00497788 | D193: 0.09957226173 | F193: 0.004270281565 | G193: 0.02662926314 | H193: -3.114963387 | J193: 15 | M193: 0.01867751058 | N193: -1.570796325 | O193: 23.49840955 | P193: 1.5282274 | Q193: 16.68626043 | R193: 1.51083085 | S193: 0.995289617 | T193: -0.09709877028 | U193: 0.8091885676 | V193: -0.6280265742 | X193: -8.411600747 | Y193: -130.1905955 | Z193: 49.80940445 | AC193: 1 | AD193: 23.47712187 | AE193: -0.001759069951 | AF193: 0.002422639172 | AG193: 6149.102258 | AH193: -4877.614936 | AJ193: 22100 | AK193: 2152.652271 | AL193: 1 | AM193: 16.6562687 | AN193: 208.1488588 | AO193: -1314.331051 | AQ193: 0.3955383277 | AR193: -62.8905941 | AT193: -304323.8955 | AU193: -388649.9779 | AV193: -2.235102603 | AW193: -77438.351 | AX193: -21963.52541 | AY193: -2.865224789 | BA193: 6.132486435 | BB193: 15.75273192 | BC193: 0.6301221859 | BD193: -143.8966581 | BF193: -8.073182608 | BG193: -136.6658434 | BH193: 43.33415662 | BI193: 43.33415662 | BJ193: 0 | BK193: 0 | BM193: -23.82591453 | BN193: -172.7691852 | BQ193: 32.65469272 | BT193: 6760.83 | BU193: -0.0490191 | BV193: -229.1
A194: 80000 | B194: 80 | C194: 1.005040534 | D194: 0.1001943325 | F194: 0.00421686148 | G194: 0.02646148338 | H194: -3.115131167 | J194: 15 | M194: 0.01856077614 | N194: -1.570796325 | O194: 23.64593148 | P194: 1.528493137 | Q194: 16.79082972 | R194: 1.511204745 | S194: 0.9952306051 | T194: -0.09770558723 | U194: 0.8074319048 | V194: -0.6310102631 | X194: -8.485629649 | Y194: -130.3336392 | Z194: 49.66636081 | AC194: 1 | AD194: 23.62477673 | AE194: -0.001781266198 | AF194: 0.002437875896 | AG194: 6122.433137 | AH194: -4883.629727 | AJ194: 22100 | AK194: 2166.190964 | AL194: 1 | AM194: 16.76102511 | AN194: 207.1690652 | AO194: -1306.174938 | AQ194: 0.3906097418 | AR194: -62.49755869 | AT194: -302823.4534 | AU194: -384544.7176 | AV194: -2.237859861 | AW194: -76436.25227 | AX194: -21787.64728 | AY194: -2.863913381 | BA194: 6.158286427 | BB194: 15.78919769 | BC194: 0.6260535199 | BD194: -144.1297755 | BF194: -8.145518878 | BG194: -136.8729318 | BH194: 43.12706819 | BI194: 43.12706819 | BJ194: 0 | BK194: 0 | BM194: -23.93471657 | BN194: -172.7431563 | BQ194: 32.69115849 | BT194: 6918.31 | BU194: -0.217983 | BV194: -228.376
A195: 80500 | B195: 80.5 | C195: 1.005103577 | D195: 0.1008163255 | F195: 0.004164438837 | G195: 0.02629581283 | H195: -3.115296837 | J195: 15 | M195: 0.01844549182 | N195: -1.570796325 | O195: 23.79345505 | P195: 1.528755579 | Q195: 16.89540133 | R195: 1.511574011 | S195: 0.9951712339 | T195: -0.09831233201 | U195: 0.8056757267 | V195: -0.6339809993 | X195: -8.55934157 | Y195: -130.4762741 | Z195: 49.52372585 | AC195: 1 | AD195: 23.77243158 | AE195: -0.001803601606 | AF195: 0.002453112621 | AG195: 6095.829308 | AH195: -4889.480993 | AJ195: 22100 | AK195: 2179.729658 | AL195: 1 | AM195: 16.86578151 | AN195: 206.2073865 | AO195: -1298.11907 | AQ195: 0.3857727027 | AR195: -62.10940514 | AT195: -301331.1514 | AU195: -380494.5604 | AV195: -2.240606973 | AW195: -75453.0096 | AX195: -21615.12453 | AY195: -2.862593219 | BA195: 6.183902622 | BB195: 15.82525284 | BC195: 0.6219862463 | BD195: -144.3628131 | BF195: -8.217575844 | BG195: -137.0798241 | BH195: 42.92017593 | BI195: 42.92017593 | BJ195: 0 | BK195: 0 | BM195: -24.04282869 | BN195: -172.7170109 | BQ195: 32.72721364 | BT195: 7079.458 | BU195: -0.384014 | BV195: -227.044
A196: 81000 | B196: 81 | C196: 1.005167009 | D196: 0.1014382403 | F196: 0.004112988926 | G196: 0.02613221181 | H196: -3.115460438 | J196: 15 | M196: 0.01833163076 | N196: -1.570796325 | O196: 23.94098025 | P196: 1.529014787 | Q196: 16.99997521 | R196: 1.511938735 | S196: 0.9951115034 | T196: -0.09891900417 | U196: 0.8039201228 | V196: -0.6369388146 | X196: -8.63274022 | Y196: -130.6184962 | Z196: 49.38150384 | AC196: 1 | AD196: 23.92008644 | AE196: -0.001826076176 | AF196: 0.002468349345 | AG196: 6069.292076 | AH196: -4895.170001 | AJ196: 22100 | AK196: 2193.268351 | AL196: 1 | AM196: 16.97053792 | AN196: 205.2633796 | AO196: -1290.161616 | AQ196: 0.3810249571 | AR196: -61.72604306 | AT196: -299846.9225 | AU196: -376498.5659 | AV196: -2.24334392 | AW196: -74488.15955 | AX196: -21445.86344 | AY196: -2.861264454 | BA196: 6.209335109 | BB196: 15.86090197 | BC196: 0.6179205343 | BD196: -144.5957613 | BF196: -8.289357521 | BG196: -137.2865128 | BH196: 42.71348723 | BI196: 42.71348723 | BJ196: 0 | BK196: 0 | BM196: -24.15025949 | BN196: -172.6907515 | BQ196: 32.76286277 | BT196: 7244.36 | BU196: -0.57486 | BV196: -226.239
A197: 81500 | B197: 81.5 | C197: 1.00523083 | D197: 0.1020600763 | F197: 0.0040624878 | G197: 0.02597064165 | H197: -3.115622008 | J197: 15 | M197: 0.01821916677 | N197: -1.570796325 | O197: 24.08850703 | P197: 1.52927082 | Q197: 17.10455133 | R197: 1.512298999 | S197: 0.995051414 | T197: -0.0995256033 | U197: 0.8021651812 | V197: -0.639883742 | X197: -8.705829231 | Y197: -130.7603011 | Z197: 49.23969886 | AC197: 1 | AD197: 24.06774129 | AE197: -0.001848689907 | AF197: 0.002483586069 | AG197: 6042.822712 | AH197: -4900.69803 | AJ197: 22100 | AK197: 2206.807045 | AL197: 1 | AM197: 17.07529433 | AN197: 204.3366144 | AO197: -1282.300789 | AQ197: 0.3763643207 | AR197: -61.34738427 | AT197: -298370.7023 | AU197: -372555.8148 | AV197: -2.246070683 | AW197: -73541.25277 | AX197: -21279.77354 | AY197: -2.859927232 | BA197: 6.234583987 | BB197: 15.8961496 | BC197: 0.6138565491 | BD197: -144.8286105 | BF197: -8.360867836 | BG197: -137.4929907 | BH197: 42.50700932 | BI197: 42.50700932 | BJ197: 0 | BK197: 0 | BM197: -24.25701743 | BN197: -172.6643802 | BQ197: 32.7981104 | BT197: 7413.102 | BU197: -0.7333 | BV197: -225.834
A198: 82000 | B198: 82 | C198: 1.005295039 | D198: 0.1026818331 | F198: 0.004012912245 | G198: 0.02581106462 | H198: -3.115781585 | J198: 15 | M198: 0.01810807429 | N198: -1.570796325 | O198: 24.23603537 | P198: 1.529523736 | Q198: 17.20912965 | R198: 1.512654884 | S198: 0.9949909657 | T198: -0.1001321289 | U198: 0.8004109886 | V198: -0.6428158146 | X198: -8.778612154 | Y198: -130.9016852 | Z198: 49.09831481 | AC198: 1 | AD198: 24.21539615 | AE198: -0.0018714428 | AF198: 0.002498822794 | AG198: 6016.422452 | AH198: -4906.066372 | AJ198: 22100 | AK198: 2220.345738 | AL198: 1 | AM198: 17.18005073 | AN198: 203.4266743 | AO198: -1274.534847 | AQ198: 0.3717886753 | AR198: -60.97334275 | AT198: -296902.4287 | AU198: -368665.4082 | AV198: -2.248787246 | AW198: -72611.85342 | AX198: -21116.76749 | AY198: -2.858581698 | BA198: 6.259649373 | BB198: 15.93100015 | BC198: 0.6097944519 | BD198: -145.0613515 | BF198: -8.432110633 | BG198: -137.6992508 | BH198: 42.30074925 | BI198: 42.30074925 | BJ198: 0 | BK198: 0 | BM198: -24.36311078 | BN198: -172.6378993 | BQ198: 32.83296095 | BT198: 7585.776 | BU198: -0.870902 | BV198: -224.429
A199: 82500 | B199: 82.5 | C199: 1.005359637 | D199: 0.1033035103 | F199: 0.003964239752 | G199: 0.02565344393 | H199: -3.115939206 | J199: 15 | M199: 0.01799832838 | N199: -1.570796325 | O199: 24.38356525 | P199: 1.529773592 | Q199: 17.31371011 | R199: 1.51300647 | S199: 0.9949301589 | T199: -0.1007385807 | U199: 0.7986576303 | V199: -0.6457350664 | X199: -8.851092467 | Y199: -131.0426446 | Z199: 48.95735541 | AC199: 1 | AD199: 24.363051 | AE199: -0.001894334853 | AF199: 0.002514059518 | AG199: 5990.092504 | AH199: -4911.27633 | AJ199: 22100 | AK199: 2233.884432 | AL199: 1 | AM199: 17.28480714 | AN199: 202.5331547 | AO199: -1266.862087 | AQ199: 0.3672959671 | AR199: -60.60383457 | AT199: -295442.0414 | AU199: -364826.4671 | AV199: -2.251493596 | AW199: -71699.53876 | AX199: -20956.76091 | AY199: -2.857227996 | BA199: 6.284531394 | BB199: 15.965458 | BC199: 0.6057344002 | BD199: -145.2939753 | BF199: -8.503089672 | BG199: -137.9052861 | BH199: 42.0947139 | BI199: 42.0947139 | BJ199: 0 | BK199: 0 | BM199: -24.46854767 | BN199: -172.6113108 | BQ199: 32.8674188 | BT199: 7762.471 | BU199: -1.03486 | BV199: -223.255
A200: 83000 | B200: 83 | C200: 1.005424623 | D200: 0.1039251073 | F200: 0.003916448495 | G200: 0.0254977437 | H200: -3.116094906 | J200: 15 | M200: 0.01788990472 | N200: -1.570796325 | O200: 24.53109662 | P200: 1.530020442 | Q200: 17.41829269 | R200: 1.513353834 | S200: 0.9948689936 | T200: -0.1013449581 | U200: 0.7969051902 | V200: -0.6486415318 | X200: -8.923273574 | Y200: -131.1831758 | Z200: 48.81682424 | AC200: 1 | AD200: 24.51070586 | AE200: -0.001917366069 | AF200: 0.002529296243 | AG200: 5963.834039 | AH200: -4916.329221 | AJ200: 22100 | AK200: 2247.423125 | AL200: 1 | AM200: 17.38956355 | AN200: 201.6556634 | AO200: -1259.280848 | AQ200: 0.3628842037 | AR200: -60.23877781 | AT200: -293989.4824 | AU200: -361038.1317 | AV200: -2.25418972 | AW200: -70803.89861 | AX200: -20799.67231 | AY200: -2.855866267 | BA200: 6.309230192 | BB200: 15.99952746 | BC200: 0.6016765477 | BD200: -145.5264731 | BF200: -8.573808631 | BG200: -138.11109 | BH200: 41.88891 | BI200: 41.88891 | BJ200: 0 | BK200: 0 | BM200: -24.57333609 | BN200: -172.5846169 | BQ200: 32.90148826 | BT200: 7943.282 | BU200: -1.2308 | BV200: -223.135
A201: =A200+500 -> 83500 | B201: 83.5 | C201: =SQRT((A201/Fesr)^2+1) -> 1.005489998 | D201: =ATAN(A201/Fesr) -> 0.1045466237 | F201: =(Ro/(Ro+Rdcr))/SQRT((A201/(Q*Fo))^2+(1-(A201^2/Fo^2))^2) -> 0.003869517302 | G201: =-ATAN(A201*Fo/(Q*(Fo^2-A201^2))) -> 0.02534392891 | H201: =IF(G201>0,G201-Pi,G201) -> -3.116248721 | J201: =Vin/Vramp -> 15 | M201: =1/(2*Pi*_Rfb1*(Cc1ea_u+Cc2ea_u)*A201) -> 0.01778277954 | N201: =-Pi/2 -> -1.570796325 | O201: =SQRT(1+(A201/Fz1_u)^2) -> 24.67862948 | P201: =ATAN2(Fz1_u,A201) -> 1.530264341 | Q201: =SQRT(1+(A201/Fz2_u)^2) -> 17.52287735 | R201: =ATAN2(Fz2_u,A201) -> 1.513697052 | S201: =1/SQRT(1+(A201/Fp1_u)^2) -> 0.9948074702 | T201: =-ATAN2(Fp1_u,A201) -> -0.1019512607 | U201: =1/SQRT(1+(A201/Fp2_u)^2) -> 0.7951537508 | V201: =-ATAN2(Fp2_u,A201) -> -0.6515352459 | X201: -8.995158809 | Y201: =(180/Pi)*(D201+H201+N201+P201+R201+T201+V201) -> -131.3232753 | Z201: 48.67672468 | AC201: 1 | AD201: =Rcea1_u*Cc1ea_u*A201*2*Pi -> 24.65836071 | AE201: =-Rcea1_u*Cc1ea_u*Cc2ea_u*(A201*2*Pi)^2 -> -0.001940536445 | AF201: =(Cc2ea_u+Cc1ea_u)*A201*2*Pi -> 0.002544532967 | AG201: 5937.648199 | AH201: -4921.226368 | AJ201: =_Rfb1 -> 22100 | AK201: =_Rfb1*Rcea2_u*Cc3ea_u*A201*2*Pi -> 2260.961819 | AL201: 1 | AM201: =(_Rfb1+Rcea2_u)*Cc3ea_u*A201*2*Pi -> 17.49431995 | AN201: 200.7938197 | AO201: -1251.789509 | AQ201: =Eadcg/(1+(Eadcg*A201/GBP)^2) -> 0.3585514521 | AR201: =-(A201*Eadcg*Eadcg/GBP)/(1+(Eadcg*A201/GBP)^2) -> -59.87809251 | AT201: -292544.6953 | AU201: -357299.561 | AV201: -2.256875606 | AW201: -69924.53498 | AX201: -20645.42295 | AY201: -2.854496651 | BA201: =SQRT(AT201^2+AU201^2)/SQRT(AW201^2+AX201^2) -> 6.333745923 | BB201: 16.03321276 | BC201: 0.5976210446 | BD201: =BC201*180/Pi-180 -> -145.7588364 | BF201: =20*LOG(BA201*J201*F201*C201) -> -8.64427111 | BG201: =(180/Pi)*(D201+H201+BC201) -> -138.3166559 | BH201: 41.68334412 | BI201: 41.68334412 | BJ201: =SUM((BF202<0)*(BF201>0))*A201 -> 0 | BK201: 0 | BM201: -24.67748386 | BN201: =(H201+D201)*180/Pi -> -172.5578195 | BQ201: 32.93517356 | BT201: 8128.305 | BU201: -1.35261 | BV201: -221.982
... 491 more rows

Sheet Schematic Management (hidden)
A2: =IF(RDSON_sense=1, "SCH_RDSON", "SCH_SHUNT") -> SCH_RDSON

Sheet Power Calculations (hidden)
A1: BUCK CONTROLLER POWER TOOL
AG3: =VsdBot -> 0.9 | AK3: =Iq -> 0.002
A6: Enter the values of your design and FET datasheet specifications below. Note that thermal resistance ("Theta JA") will change when components are placed on the PCB | BH6: 80 | BI6: 100 | BJ6: 120 | BK6: 140 | BL6: 160 | BM6: 180 | BN6: 20 | BO6: 30 | BP6: 40 | BQ6: 50
G7: Currents | N7: INDUCTOR | R7: Cout | U7: Cin | X7: HIGH SIDE FET losses | AD7: LOW SIDE FET Losses | AH7: Shunt | AI7: External Diode | AJ7: Diod/eFET | AK7: Part Losses | AO7: RESULSTS
A8: Input Parameters | G8: Step | H8: Iout | I8: Duty Cycle | J8: Current Ripple p-p | K8: Peak Inductor Current | L8: Valley Inductor Current | M8: SW node voltage at Q1 turn-on | N8: IRMS | O8: DCR Loss | P8: Core | Q8: Total Inductor Loss/Diss | R8: Irms | S8: Cout Esr Loss | T8: Total Cout Loss/Diss | U8: Irms | V8: Cin Esr Loss | W8: Total Cin Loss/Diss | X8: Irms | Y8: RDSON Loss | Z8: Transitional Loss (not including capacitive loss) | AA8: MOSFET Output Capacitance Loss | AB8: Dead Time Loss | AC8: Total Top FET Loss/Diss | AD8: Irms | AE8: RDSON Loss | AF8: DeadTime Loss | AG8: Total Bottom FET Diss/Loss | AH8: Shunt Loss (if applicable) | AI8: DeadTime Loss | AJ8: Reverse Recovery Loss | AK8: IQ Loss | AL8: Switching Current Loss | AM8: Switching Current Diss | AN8: Total Part Loss | AO8: Total Loss | AP8: OUTPUT POWER | AQ8: EFF | AR8: Top FET Temp Rise | AS8: Bottom FET Temp Rise | BF8: Qg | BH8: θJA=80 | BI8: θJA=100 | BJ8: θJA=120 | BK8: θJA=140 | BL8: θJA=160 | BM8: θJA=180 | BN8: θJA=20 | BO8: θJA=30 | BP8: θJA=40 | BQ8: θJA=50
A9: Design | B9: Input Value | C9: Units | D9: Description | G9: 0 | H9: =Iout*(G9/200) -> 0 | I9: =(Vout+Rdcr*H9+RdsonBot*H9)/(Vin-RdsonTop*H9+RdsonBot*H9) -> 0.2083333333 | J9: =(Vin-Vout)*I9/(Fsw*Lout2) -> 3.661732963 | K9: =H9+J9/2 -> 1.830866482 | L9: =H9-J9/2 -> -1.830866482 | M9: =IF(MIN(Vin, -L9/(CossTop+CossBot)*0.00000002)<0, 0, MIN(Vin, -L9/(CossTop+CossBot)*0.00000002)) -> 24 | N9: =SQRT(H9^2+(J9^2)/12) -> 1.057051256 | O9: =(N9^2*Rdcr*(1+Ltc*Ta-Ltc*25))/(1-N9^2*Rdcr*Ltc*ThetaCa) -> 0.005589284881 | P9: =Core_Loss -> 0.2 | Q9: =O9+P9 -> 0.2055892849 | R9: =J9/(2*SQRT(3)) -> 1.057051256 | S9: =RCoutEsr*R9^2 -> 0.001117357358 | T9: =S9 -> 0.001117357358 | U9: =SQRT(I9)*SQRT(H9^2+(J9^2)/12) -> 0.4824756811 | V9: =RCinEsr*U9^2 -> 0.0004655655658 | W9: =V9 -> 0.0004655655658 | X9: =SQRT(I9)*SQRT(H9^2+(J9^2)/12) -> 0.4824756811 | Y9: =RdsonTop*X9^2 -> 0.001396696697 | Z9: =IF(L9<0, (Vin*K9*Tf/2)*Fsw, (Vin*L9*Tr/2+Vin*K9*Tf/2)*Fsw) -> 0.01731326903 | AA9: =(0.5*CossTop*(Vin-M9)^2-0.5*CossBot*(Vin-M9)^2+(QossBot*(Vin-M9)/Vin)*Vin)*Fsw -> 0 | AB9: =IF(L9>0,0,-L9*VsdTop*Deadtime*Fsw) -> 0.01010638298 | AC9: =(AB9+AA9+Z9+Y9*(1+RdsonTopTc*Ta-RdsonTopTc*25))/(1-Y9*RdsonTopTc*ThetaJaTop) -> 0.0288244005 | AD9: =SQRT(1-I9)*SQRT(H9^2+(J9^2)/12) -> 0.9405182481 | AE9: =RdsonBot*AD9^2 -> 0.00530744745 | AF9: =IF(L9<0, Deadtime*Fsw*IF(VfdSky>0,0,VsdBot)*K9, Deadtime*Fsw*IF(VfdSky>0,0,VsdBot)*(K9+L9)) -> 0.01136968085 | AG9: =(AF9+AE9*(1+RdsonBotTc*Ta-RdsonBotTc*25))/(1-AE9*RdsonBotTc*ThetaJaBot) -> 0.01669484971 | AH9: =IF(RDSON_sense=1, 0, AD9^2*Rshunt) -> 0 | AI9: =2*Deadtime*Fsw*IF(VfdSky>0,VfdSky,0)*H9 -> 0 | AJ9: =IF(QrrSky>0,QrrSky,QrrBot)*Fsw*(Vin-H9*RdsonTop) -> 0.34776 | AK9: =Iq*Vin -> 0.048 | AL9: =IF(Ext_VCC=1, Vdd*(QgTop+QgBot)*Fsw, Vin*(QgTop+QgBot)*Fsw) -> 0.039675 | AM9: =(Vin-Vdd)*Fsw*(QgTop+QgBot)+(RdsonDRT+RdsonDRT2)*Fsw*QgTop*Vdd/(RdsonDRT+2*RGateTop+RdsonDRT2)+(RdsonDRB+RdsonDRB2)*Fsw*QgBot*Vdd/(RdsonDRB+2*RGateBot+RdsonDRB2) -> 0.1046415149 | AN9: =SUM(AK9:AL9) -> 0.087675 | AO9: =SUM(Q9,T9,W9,AC9,AJ9,AI9,AG9,AN9, AH9) -> 0.688126458 | AP9: =Vout*H9 -> 0 | AQ9: =AP9/(AP9+AO9) -> 0 | AR9: =ThetaJaTop*AC9 -> 1.441220025 | AS9: =AG9*ThetaJaBot -> 0.8347424854 | AU9: =AQ9*100 -> 0 | BC9: 250kHz / 5-1.2V /25A | BD9: 70 | BE9: 70 | BF9: 70 | BG9: =250000*(5-Vdd)*BF9/1000000000+((250000*BF9/1000000000*Vdd)*2.5/(2*4)) -> -0.002734375 | BH9: =BH$6*$BG9 -> -0.21875 | BI9: -0.2734375 | BJ9: -0.328125 | BK9: -0.3828125 | BL9: -0.4375 | BM9: -0.4921875 | BN9: -0.0546875 | BO9: -0.08203125 | BP9: -0.109375 | BQ9: -0.13671875
G10: 1 | H10: 0.06 | I10: =(Vout+Rdcr*H10+RdsonBot*H10)/(Vin-RdsonTop*H10+RdsonBot*H10) -> 0.2083608333 | J10: 3.662216312 | K10: =H10+J10/2 -> 1.891108156 | L10: =H10-J10/2 -> -1.771108156 | M10: 24 | N10: 1.058892043 | O10: =(N10^2*Rdcr*(1+Ltc*Ta-Ltc*25))/(1-N10^2*Rdcr*Ltc*ThetaCa) -> 0.00560877734 | P10: 0.2 | Q10: =O10+P10 -> 0.2056087773 | R10: =J10/(2*SQRT(3)) -> 1.057190787 | S10: =RCoutEsr*R10^2 -> 0.00111765236 | T10: =S10 -> 0.00111765236 | U10: 0.4833477796 | V10: =RCinEsr*U10^2 -> 0.0004672501521 | W10: =V10 -> 0.0004672501521 | X10: 0.4833477796 | Y10: =RdsonTop*X10^2 -> 0.001401750456 | Z10: 0.0178829339 | AA10: 0 | AB10: 0.009776517021 | AC10: 0.02906935098 | AD10: 0.9421397368 | AE10: =RdsonBot*AD10^2 -> 0.005325763702 | AF10: 0.01174378165 | AG10: 0.01708774641 | AH10: 0 | AI10: 0 | AJ10: 0.3477547836 | AK10: 0.048 | AL10: 0.039675 | AM10: 0.1046415149 | AN10: =SUM(AK10:AL10) -> 0.087675 | AO10: 0.6887805608 | AP10: 0.3 | AQ10: =AP10/(AP10+AO10) -> 0.303404023 | AR10: 1.453467549 | AS10: =AG10*ThetaJaBot -> 0.8543873205 | AU10: =AQ10*100 -> 30.3404023
